Workbook

Sheet Instrucciones
B1: HERRAMIENTA DE HUELLA DE CARBONO PARA ORGANIZACIONES. Año de cálculo 2020
B4: PRESENTACIÓN DE LA CALCULADORA | K4: INSTRUCCIONES
B6: Datos generales de la organización | L6: PESTAÑAS | Q6: CELDAS
B8: Alcance 1 | K8: Pestañas a cumplimentar | P8: Celdas a cumplimentar
B10: Alcance 2 | K10: Pestañas de resultados | P10: Celdas autocompletadas
B12: Alcance 3 | K12: Pestañas de motor de cálculo | P12: Celdas informativas
B14: Hoja de registros | K14: Pestañas factores, variables… | P14: Celdas informativas
B16: Mi área de trabajo
B18: Resultados - RVHdC Declaración | K18: Paso 1
B20: Resultados - RVHdC Detalle | K20: Rellenar checklist para comprobar que se han seguido todos los pasos para completar la herramienta
B22: Resultados - Sistema de Gestión del Medio Ambiente | K22: Paso 2
B24: Resultados - Registro Español de Huella de Carbono | K24: Completar la pestaña de Datos generales organización
B26: Cálculos | K26: Paso 3
B28: Factores de emisión | K28: Completar las pestañas de Alcance 1 y 2 con los datos de actividad
B30: Potencial de calentamiento global | K30: Paso 4
B32: Factores de conversión | K32: Completar la pestaña Hoja de registros con la información del responsable y fuentes de los datos de actividad
B34: Fuentes de datos
B36: Acrónimos
G41: Sí
G42: No
G43: No aplica
B45: CHECKLIST PARA ASEGURARSE DE QUE SE HAN COMPLETADO TODOS LOS PASOS NECESARIOS PARA EL CÁLCULO DEL INVENTARIO
B46: PASO 1: RESETEAR EL CHECKLIST | G46: ¿Realizado?
B47: Instrucciones | I47: Sí
B48: Para todos los pasos seleccionar en la columna G: "No" | G48: No | I48: No Aplica
I49: No
B50: PASO 2: COMPLETAR LOS INPUTS | G50: ¿Realizado?
B51: Datos generales
B52: Datos básicos (Nombre, CIF/NIF y sector) | G52: No
B53: Responsable del inventario de GEI (Nombre, teléfono y email) | G53: No
B54: Año del inventario | G54: No
B55: Índices de actividad para el año del inventario (superficie, nº de empleados, facturación, etc.) | G55: No
B56: Datos históricos (si existen) | G56: No
B57: Insertar el número de instalaciones o centros de trabajo en el alcance de la huella | G57: No
B58: Sustituir los nombres de cada una de las instalaciones | G58: No
B60: Alcance 1
B61: Combustión fija
B62: Consumo de Biomasa (kg) | G62: No
B63: Consumo de Carbón mineral (kg) | G63: No
B64: Consumo de Coque de petróleo (kg) | G64: No
B65: Consumo de Fueloleo (L) | G65: No
B66: Consumo de Gas butano (L) | G66: No
B67: Consumo de Gas natural (Nm3) | G67: No
B68: Consumo de Gas propano (L) | G68: No
B69: Consumo de Gasóleo C (L) | G69: No
B70: Consumo de GLP genérico (L) | G70: No
B71: Consumo de Queroseno (L) | G71: No
B72: Combustión móvil
B73: Opción 1
B74: Consumo de Gasolina (L) | G74: No
B75: Consumo de Gasoleo A (L) | G75: No
B76: Consumo de E10 (L) | G76: No
B77: Consumo de E85 (L) | G77: No
B78: Consumo de B30 (L) | G78: No
B79: Consumo de B100 (L) | G79: No
B80: Consumo de Gas Natural Comprimido (Nm3) | G80: No
B81: Consumo de Gas Natural Licuado (L) | G81: No
B82: Consumo de GLP genérico (L) | G82: No
B83: Opción 2
B84: Tipo de vehículo | G84: No
B85: Tipo de propulsión | G85: No
B86: Distancia recorrida (km) | G86: No
B87: Emisiones de uso de productos
B88: Consumo de lubricantes (L) | G88: No
B89: Consumo de aceites (L) | G89: No
B90: Tipo de gas refrigerante | G90: No
B91: Recarga anual de gas refrigerante (kg) | G91: No
B92: Otras emisiones específicas no incluidas anteriormente y calculadas aparte
B93: Opción 1
B94: Emisiones de CO2 equivalente | G94: No
B95: Opción 2
B96: Emisiones de CO2 | G96: No
B97: Emisiones de CH4 | G97: No
B98: Emisiones de N2O | G98: No
B99: Tipo de gas refrigerante | G99: No
B100: Recarga anual de gas refrigerante (kg) | G100: No
B101: Alcance 2
B102: Consumo de electricidad fija
B103: Consumo de electricidad (kWh) | G103: No
B104: Consumo de electricidad móvil (vehículos eléctricos)
B105: Opción 1
B106: Consumo de electricidad (kWh) | G106: No
B107: Opción 2
B108: Tipo de vehículo | G108: No
B109: Distancia recorrida (km) | G109: No
B110: Alcance 3
B111: Movilidad de los trabajadores desde y hasta el puesto de trabajo
B112: Por carretera en vehículo privado
B113: Tipo de vehículo | G113: No
B114: Tipo de propulsión | G114: No
B115: Distancia recorrida (km) | G115: No
B116: Por carretera en vehículo privado
B117: Tipo de transporte público | G117: No
B118: Distancia recorrida (km) | G118: No
B119: Viajes de trabajo
B120: Por carretera en vehículo privado
B121: Tipo de vehículo | G121: No
B122: Tipo de propulsión | G122: No
B123: Distancia recorrida (km) | G123: No
B124: Por carretera en vehículo privado
B125: Tipo de transporte público | G125: No
B126: Distancia recorrida (km) | G126: No
B127: Gestión de residuos
B128: Residuos domiciliarios a vertedero (t) | G128: No
B129: Residuos domiciliarios a incineración (t) | G129: No
B130: Residuos comerciales e industriales a vertedero (t) | G130: No
B131: Residuos comerciales e industriales a incineración (t) | G131: No
B132: Fracción orgánica a compostaje (t) | G132: No
B133: Vidrio a reciclaje (t) | G133: No
B134: Envases a reciclaje (t) | G134: No
B135: Papel y cartón a reciclaje (t) | G135: No
B136: Otras emisiones indirectas diferentes a las anteriores
B137: Emisiones calculadas (tCO2e) | G137: No
B139: PASO 3: COMPLETAR LA HOJA DE REGISTROS | G139: ¿Realizado?
B140: ¿Hoja de registros completa para todos los datos de actividad? | G140: No

Sheet Datos generales organización
C1: =Instrucciones!B1 -> HERRAMIENTA DE HUELLA DE CARBONO PARA ORGANIZACIONES. Año de cálculo 2020
C2: Datos generales
C4: Datos básicos
A5: Datos generales de la organización | C5: Nombre de la organización
A6: Alcance 1 | C6: CIF/NIF
A7: Alcance 2
A8: Alcance 3 | C8: Responsable del inventario de GEI
A9: Hoja de registros | C9: Nombre y apellidos
A10: Mi área de trabajo | C10: Teléfono de contacto
A11: Resultados: RVHdC Declaración | C11: Email de contacto
A12: Resultados: RVHdC Detalle
A13: Resultados: SGMA | C13: Año del inventario
A14: Resultados: REHdC | C14: Año del inventario | D14: <seleccionar año>
A15: Cálculos
A16: Datos 1: Factores emisión | C16: =CONCATENATE("Índices de actividad para el año ",D14) -> Índices de actividad para el año <seleccionar año>
A17: Datos 2: Potenciales de calent. gl. | C17: Índice principal | D17: Unidades | E17: Valor
A18: Datos 3: Factores de conversión | C18: Seleccionar índice | D18: =LOOKUP(C18,C154:C160,D150:D156) -> unidades
A19: Fuentes de datos | C19: Otro diferente <sustituir si aplica> | D19: <sustituir si aplica>
C20: =IF($C$18=$C$157,C19,C18) -> Seleccionar índice | D20: =IF($C$18=$C$157,D19,D18) -> unidades | E20: =IF($C$18=$C$157,E19,E18) -> 0
C21: Índices auxiliares | D21: Unidades | E21: Valor
C22: Superficie | D22: m2
C23: Nº de empleados | D23: uds
C24: Facturación | D24: miles €/año
C26: Datos históricos de huella de carbono en términos absolutos (si existen)
C27: Datos | D27: Unidades | E27: =F27-1 ->  | J27: =K27-1 ->  | K27: =D14-1 -> 
C28: Emisiones directas (alcance 1) | D28: t CO2e
C29: Emisiones indirectas por energía (alcance 2) | D29: t CO2e
C30: Emisiones alcance 1+2 | D30: t CO2e | E30: =E28+E29 -> 0 | F30: =F28+F29 -> 0 | G30: 0 | H30: 0 | I30: 0 | J30: =J28+J29 -> 0 | K30: =K28+K29 -> 0
C31: Absorciones | D31: t CO2e
C32: Balance emisiones alcance 1 +2 | D32: t CO2e | E32: =E30-E31 -> 0 | F32: =F30-F31 -> 0 | G32: 0 | H32: 0 | I32: 0 | J32: =J30-J31 -> 0 | K32: =K30-K31 -> 0
C33: Emisiones de alcance 3 | D33: t CO2e
C35: Datos históricos de índice principal (si existen)
C36: Índice | D36: Unidades | E36: =E27 ->  | F36: =F27 ->  | J36: =J27 ->  | K36: =K27 -> 
C37: =C20 -> Seleccionar índice | D37: =D20 -> unidades
C38: Datos históricos de índices auxiliares (si existen)
C39: Índice | D39: Unidades | E39: =E27 ->  | F39: =F27 ->  | J39: =J27 ->  | K39: =K27 -> 
C40: Superficie | D40: m2
C41: Nº de empleados | D41: uds
C42: Facturación | D42: miles E/año
C44: Datos históricos de huella de carbono en términos relativos para el índice principal (si existen)
C45: Datos | D45: Unidades | E45: =E27 ->  | F45: =F27 ->  | J45: =J27 -> 
C46: Emisiones directas (alcance 1) | D46: =CONCATENATE("t CO2e/ ",$D$20) -> t CO2e/ unidades | E46: =E28/E$37 ->  | F46: =F28/F$37 ->  | J46: =J28/J$37 ->  | K46: =K28/K$37 -> 
C47: Emisiones indirectas por energía (alcance 2) | D47: =CONCATENATE("t CO2e/ ",$D$20) -> t CO2e/ unidades | E47: =E29/E$37 ->  | J47: =J29/J$37 -> 
C48: Emisiones alcance 1+2 | D48: t CO2e/ unidades | E48: =E30/E$37 ->  | J48: =J30/J$37 -> 
C49: Absorciones | D49: t CO2e/ unidades | E49: =E31/E$37 ->  | J49: =J31/J$37 -> 
C50: Balance emisiones alcance 1 +2 | D50: t CO2e/ unidades | E50: =E32/E$37 ->  | J50: =J32/J$37 -> 
C51: Emisiones de alcance 3 | D51: t CO2e/ unidades | E51: =E33/E$37 ->  | J51: =J33/J$37 -> 
C54: Centros de trabajo/ Instalación
C55: Escribir nombre de centro
D131: Año del inventario
C132: LISTAS DESPLEGABLES | D132: <seleccionar año>
D133: 2005
D134: 2006
D135: 2007
D136: 2008
D137: 2009
D138: 2010
D139: 2011
D140: 2012
D141: 2013
D142: 2014
D143: 2015
D144: 2016
D145: 2017
D146: 2018
D147: 2019
D148: 2020
D150: miles E/año
D151: cliente
D152: trabajador
D153: indicar debajo
C154: Facturación | D154: Euro
C155: Nº de clientes | D155: unidades
C156: Nº de empleados | D156: m2
C157: Otro (indicar debajo)
C158: Presupuesto
C159: Seleccionar índice
C160: Superficie

Sheet Alcance 1
C1: =Instrucciones!B1 -> HERRAMIENTA DE HUELLA DE CARBONO PARA ORGANIZACIONES. Año de cálculo 2020
C2: INPUTS ALCANCE 1
C4: COMBUSTIÓN FIJA
A5: Datos generales de la organización
A6: Alcance 1 | C6: Fuente de energía | D6: Dato de consumo | E6: Unidades | F6: =D6 -> Dato de consumo
A7: Alcance 2 | D7: Total (sumatorio de centros) | F7: ='Datos generales organización'!$C$55 -> Escribir nombre de centro
A8: Alcance 3 | C8: Biomasa | D8: =SUM(F8:K8) -> 0 | E8: kg
A9: Hoja de registros | C9: Carbón mineral | D9: 0 | E9: kg
A10: Mi área de trabajo | C10: Coque de petróleo | D10: 0 | E10: kg
A11: Resultados: RVHdC Declaración | C11: Fueloleo | D11: 0 | E11: L
A12: Resultados: RVHdC Detalle | C12: Gas butano | D12: 0 | E12: L
A13: Resultados: SGMA | C13: Gas natural | D13: 0 | E13: Nm3
A14: Resultados: REHdC | C14: Gas propano | D14: 0 | E14: L
A15: Cálculos | C15: Gasóleo C | D15: 0 | E15: L
A16: Datos 1: Factores emisión | C16: GLP genérico | D16: 0 | E16: L
A17: Datos 2: Potenciales de calent. gl. | C17: Queroseno | D17: 0 | E17: L
A18: Datos 3: Factores de conversión
A19: Fuentes de datos | C19: COMBUSTIÓN MÓVIL
C21: Opción 1- Se dispone de datos de consumo de combustible por tipo de combustible
C22: Fuente de energía | D22: Dato de consumo | E22: Unidades | F22: =D22 -> Dato de consumo
D23: Total (sumatorio de centros) | F23: ='Datos generales organización'!$C$55 -> Escribir nombre de centro
C24: Gasolina | D24: =SUM(F24:K24) -> 0 | E24: L
C25: Gasóleo A y B | D25: 0 | E25: L
C26: E10 | D26: 0 | E26: L
C27: E85 | D27: 0 | E27: L
C28: B30 | D28: 0 | E28: L
C29: B100 | D29: 0 | E29: L
C30: Gas Natural Comprimido | D30: 0 | E30: Nm3
C31: Gas Natural Licuado | D31: 0 | E31: L
C32: GLP genérico | D32: 0 | E32: L
C34: Opción 2- Se dispone de datos de kilómetros recorridos por tipo de vehículo
C35: Tipo de vehículo (seleccionar de la lista) | D35: Propulsión (seleccionar de la lista) | E35: Distancia recorrida | F35: Unidades | G35: =E35 -> Distancia recorrida
E36: Total (sumatorio de centros) | G36: ='Datos generales organización'!$C$55 -> Escribir nombre de centro
C37: Tipo de vehículo | D37: Tipo de propulsión | E37: =IF(D37="Híbrido enchufable",SUM(G37:L37)*(100%-$D$51),SUM(G37:L37)) -> 0 | F37: km
C38: Tipo de vehículo | D38: Tipo de propulsión | E38: 0 | F38: km
C39: Tipo de vehículo | D39: Tipo de propulsión | E39: 0 | F39: km
C40: Tipo de vehículo | D40: Tipo de propulsión | E40: 0 | F40: km
C41: Tipo de vehículo | D41: Tipo de propulsión | E41: 0 | F41: km
C42: Tipo de vehículo | D42: Tipo de propulsión | E42: 0 | F42: km
C43: Tipo de vehículo | D43: Tipo de propulsión | E43: 0 | F43: km
C44: Tipo de vehículo | D44: Tipo de propulsión | E44: 0 | F44: km
C45: Tipo de vehículo | D45: Tipo de propulsión | E45: 0 | F45: km
C46: Tipo de vehículo | D46: Tipo de propulsión | E46: 0 | F46: km
C48: Vehículo híbrido eléctrico enchufable
C49: Autonomía motor eléctrico | D49: Rango de uso medio del motor eléctrico | E49: Fuente
C50: km | D50: %
D51: =1-(25/(25+C51)) -> 0 | E51: e
C53: EMISIONES DE USO DE PRODUCTOS
C55: Lubricantes
C56: Emisión de proceso | D56: Consumo | E56: Unidades | F56: =D56 -> Consumo
D57: Total (sumatorio de centros) | F57: ='Datos generales organización'!$C$55 -> Escribir nombre de centro
C58: Grasas | D58: =SUM(F58:K58) -> 0 | E58: L
C59: Aceites | D59: =SUM(F59:K59) -> 0 | E59: L
C61: Gases refrigerantes
C62: Tipo de gas (seleccionar de la lista) | D62: Recarga anual | E62: Unidades | F62: =D62 -> Recarga anual
D63: Total (sumatorio de centros) | F63: ='Datos generales organización'!$C$55 -> Escribir nombre de centro
C64: Tipo de gas fluorado | D64: =SUM(F64:K64) -> 0 | E64: kg
C65: Tipo de gas fluorado | D65: 0 | E65: kg
C66: Tipo de gas fluorado | D66: 0 | E66: kg
C67: Tipo de gas fluorado | D67: 0 | E67: kg
C68: Tipo de gas fluorado | D68: 0 | E68: kg
C69: Tipo de gas fluorado | D69: 0 | E69: kg
C70: Tipo de gas fluorado | D70: 0 | E70: kg
C71: Tipo de gas fluorado | D71: 0 | E71: kg
C72: Tipo de gas fluorado | D72: 0 | E72: kg
C73: Tipo de gas fluorado | D73: 0 | E73: kg
C75: ABSORCIONES
C77: ABSORCIONES
C78: Especie | D78: Número de árboles | E78: Unidades | F78: =D78 -> Número de árboles
D79: Total (sumatorio de centros) | F79: ='Datos generales organización'!$C$55 -> Escribir nombre de centro
C80: Abies alba | D80: =SUM(F80:K80) -> 0 | E80: árboles
C81: Abies pinsapo | D81: =SUM(F81:K81) -> 0 | E81: árboles
C82: Acacia spp. | D82: 0 | E82: árboles
C83: Acer spp. | D83: 0 | E83: árboles
C84: Ailanthus altissima | D84: 0 | E84: árboles
C85: Alnus spp. | D85: 0 | E85: árboles
C86: Amelanchier ovalis | D86: 0 | E86: árboles
C87: Arbutus unedo | D87: 0 | E87: árboles
C88: Betula spp. | D88: 0 | E88: árboles
C89: Carpinus betulus | D89: 0 | E89: árboles
C90: Castanea sativa | D90: 0 | E90: árboles
C91: Ceratonia siliqua | D91: 0 | E91: árboles
C92: Cedrus atlantica | D92: 0 | E92: árboles
C93: Celtis australis | D93: 0 | E93: árboles
C94: Chamaecyparis lawsoniana | D94: 0 | E94: árboles
C95: Cornus sanguinea | D95: 0 | E95: árboles
C96: Corylus avellana | D96: 0 | E96: árboles
C97: Crataegus spp. | D97: 0 | E97: árboles
C98: Cupressus arizonica | D98: 0 | E98: árboles
C99: Cupressus macrocarpa | D99: 0 | E99: árboles
C100: Cupressus sempervirens | D100: 0 | E100: árboles
C101: Erica arborea | D101: 0 | E101: árboles
C102: Eucalyptus camaldulensis | D102: 0 | E102: árboles
C103: Eucalyptus globulus | D103: 0 | E103: árboles
C104: Fagus sylvatica | D104: 0 | E104: árboles
C105: Fraxinus spp. | D105: 0 | E105: árboles
C106: Ilex aquifolium | D106: 0 | E106: árboles
C107: Ilex canariensis | D107: 0 | E107: árboles
C108: Juglans regia | D108: 0 | E108: árboles
C109: Juniperus oxycedrus, J. communis | D109: 0 | E109: árboles
C110: Juniperus phoenicea | D110: 0 | E110: árboles
C111: Juniperus thurifera | D111: 0 | E111: árboles
C112: Larix spp. | D112: =SUM(F112:K112) -> 0 | E112: árboles
C113: Laurus azorica | D113: 0 | E113: árboles
C114: Laurus nobilis | D114: 0 | E114: árboles
C115: Malus sylvestris | D115: 0 | E115: árboles
C116: Myrica faya | D116: 0 | E116: árboles
C117: Myrtus communis | D117: 0 | E117: árboles
C118: Olea europaea | D118: 0 | E118: árboles
C119: Phillyrea latifolia | D119: 0 | E119: árboles
C120: Phoenix spp. | D120: 0 | E120: árboles
C121: Picea abies | D121: 0 | E121: árboles
C122: Pinus canariensis | D122: 0 | E122: árboles
C123: Pinus halepensis | D123: 0 | E123: árboles
C124: Pinus nigra Sistema Ibérico | D124: 0 | E124: árboles
C125: Pinus nigra (Resto) | D125: 0 | E125: árboles
C126: Pinus pinaster ssp. atlantica Zona Norte interior | D126: 0 | E126: árboles
C127: Pinus pinaster ssp. atlantica Zona Norte costera | D127: 0 | E127: árboles
C128: Pinus pinaster ssp. mesogeensis Sistema Central | D128: 0 | E128: árboles
C129: Pinus pinaster (Resto) | D129: 0 | E129: árboles
C130: Pinus pinea | D130: 0 | E130: árboles
C131: Pinus radiata | D131: 0 | E131: árboles
C132: Pinus sylvestris Sistema Central | D132: 0 | E132: árboles
C133: Pinus sylvestris Sistema Ibérico | D133: 0 | E133: árboles
C134: Pinus sylvestris Pirineos | D134: 0 | E134: árboles
C135: Pinus sylvestris (Resto) | D135: 0 | E135: árboles
C136: Pinus uncinata | D136: 0 | E136: árboles
C137: Pistacia terebinthus | D137: 0 | E137: árboles
C138: Platanus hispanica | D138: 0 | E138: árboles
C139: Populus alba | D139: 0 | E139: árboles
C140: Populus nigra | D140: 0 | E140: árboles
C141: Populus x canadensis | D141: 0 | E141: árboles
C142: Prunus spp. | D142: 0 | E142: árboles
C143: Pseudotsuga menziesii | D143: 0 | E143: árboles
C144: Pyrus spp. | D144: =SUM(F144:K144) -> 0 | E144: árboles
C145: Quercus canariensis | D145: 0 | E145: árboles
C146: Quercus faginea | D146: 0 | E146: árboles
C147: Quercus ilex | D147: 0 | E147: árboles
C148: Quercus petraea | D148: 0 | E148: árboles
C149: Quercus pubescens | D149: 0 | E149: árboles
C150: Quercus pyrenaica | D150: 0 | E150: árboles
C151: Quercus robur | D151: 0 | E151: árboles
C152: Quercus rubra | D152: 0 | E152: árboles
C153: Quercus suber | D153: 0 | E153: árboles
C154: Rhamnus alaternus | D154: 0 | E154: árboles
C155: Robinia pseudacacia | D155: 0 | E155: árboles
C156: Salix spp. | D156: 0 | E156: árboles
C157: Sorbus spp. | D157: 0 | E157: árboles
C158: Tamarix spp. | D158: 0 | E158: árboles
C159: Taxus baccata | D159: 0 | E159: árboles
C160: Tetraclinis articulata | D160: 0 | E160: árboles
C161: Thuja spp. | D161: 0 | E161: árboles
C162: Tilia spp. | D162: 0 | E162: árboles
C163: Ulmus spp. | D163: 0 | E163: árboles
C165: OTRAS EMISIONES ESPECÍFICAS NO INCLUIDAS ANTERIORMENTE Y CALCULADAS APARTE
C167: Opción 1- Se dispone del CO2 equivalente
C168: Fuente de emisión | D168: Dato de consumo | E168: Unidades | F168: =D168 -> Dato de consumo
D169: Total (sumatorio de centros) | F169: ='Datos generales organización'!$C$55 -> Escribir nombre de centro
C170: CO2 e | D170: =SUM(F170:K170) -> 0 | E170: kg CO2 e
C172: Opción 2- Se dispone de datos de emisiones por tipo de contaminante
C173: Fuente de emisión | D173: Dato de consumo | E173: Unidades | F173: =D173 -> Dato de consumo
D174: Total (sumatorio de centros) | F174: ='Datos generales organización'!$C$55 -> Escribir nombre de centro
C175: CO2 | D175: =SUM(F175:K175) -> 0 | E175: kg
C176: CH4 | D176: 0 | E176: kg
C177: N2O | D177: 0 | E177: kg
C178: Tipo de gas fluorado | D178: 0 | E178: kg
C179: Tipo de gas fluorado | D179: 0 | E179: kg
C180: Tipo de gas fluorado | D180: 0 | E180: kg
C181: Tipo de gas fluorado | D181: 0 | E181: kg
C182: Tipo de gas fluorado | D182: 0 | E182: kg
C183: Tipo de gas fluorado | D183: 0 | E183: kg
C184: Tipo de gas fluorado | D184: 0 | E184: kg
C185: Tipo de gas fluorado | D185: 0 | E185: kg
C186: Tipo de gas fluorado | D186: 0 | E186: kg
C187: Tipo de gas fluorado | D187: 0 | E187: kg
C189: LISTAS DESPLEGABLES
C191: Tipo de vehículo | D191: Tipo de propulsión
C193: Vehículos | D193: Gasolina
C194: Microcoche | D194: Gasóleo A y B
C195: Turismo pequeño | D195: Híbrido
C196: Turismo medio | D196: Híbrido enchufable
C197: Turismo grande | D197: Gas Natural Comprimido
C198: Deportivo | D198: Gas Natural Licuado
C199: 4x4 | D199: GLP
C200: Motocicleta | D200: B100
C201: Furgoneta | D201: B30
C202: Camión rígido (de 3,5 a 7,5 toneladas) | D202: E10
C203: Camión rígido (de 7,5 a 17 toneladas) | D203: E85
C204: Camión rígido (más de 17 toneladas)
C205: Camión articulado (de 3,5 a 33 toneladas)
C206: Camión articulado (más de 33 toneladas)
C207: Bus
C209: Tipo de gas fluorado
C211: HFC-23
C212: HFC-32
C213: HFC-41
C214: HFC-43-10mee
C215: HFC-125
C216: HFC-134
C217: HFC-134a
... 31 more rows

Sheet Alcance 2
C1: =Instrucciones!B1 -> HERRAMIENTA DE HUELLA DE CARBONO PARA ORGANIZACIONES. Año de cálculo 2020
C2: INPUTS ALCANCE 2
C4: CONSUMO DE ELECTRICIDAD FIJA
A5: Datos generales de la organización
A6: Alcance 1 | C6: Fuente de energía | D6: Dato de consumo | E6: Unidades | F6: Compañía suministradora (seleccionar) | G6: =D6 -> Dato de consumo
A7: Alcance 2 | D7: Total (sumatorio de centros) | G7: ='Datos generales organización'!$C$55 -> Escribir nombre de centro
A8: Alcance 3 | C8: Electricidad | D8: =SUM(G8:L8) -> 0 | E8: kWh | F8: Compañía suministradora
A9: Hoja de registros | D9: =SUM(G9:L9) -> 0 | E9: kWh | F9: Compañía suministradora
A10: Mi área de trabajo | D10: =SUM(G10:L10) -> 0 | E10: kWh | F10: Compañía suministradora
A11: Resultados: RVHdC Declaración
A12: Resultados: RVHdC Detalle | C12: CONSUMO DE ELECTRICIDAD MÓVIL (VEHÍCULOS ELÉCTRICOS)
A13: Resultados: SGMA
A14: Resultados: REHdC | C14: Opción 1- Se dispone de datos de consumo de electricidad
A15: Cálculos | C15: Fuente de energía | D15: Dato de consumo | E15: Unidades | F15: Compañía suministradora (seleccionar) | G15: =D15 -> Dato de consumo
A16: Datos 1: Factores emisión | D16: Total (sumatorio de centros) | G16: ='Datos generales organización'!$C$55 -> Escribir nombre de centro
A17: Datos 2: Potenciales de calent. gl. | C17: Electricidad | D17: =SUM(G17:L17) -> 0 | E17: kWh | F17: Compañía suministradora
A18: Datos 3: Factores de conversión
A19: Fuentes de datos | C19: Opción 2- Se dispone de datos de kilómetros recorridos por tipo de vehículo
C20: Tipo de vehículo (seleccionar de la lista) | D20: Distancia recorrida | E20: Unidades | F20: Compañía suministradora (seleccionar) | G20: =D20 -> Distancia recorrida
D21: Total (sumatorio de centros) | G21: ='Datos generales organización'!$C$55 -> Escribir nombre de centro
C22: Tipo de vehículo | D22: =SUM(G22:K22) -> 0 | E22: km | F22: Compañía suministradora
C23: Tipo de vehículo | D23: =SUM(G23:K23) -> 0 | E23: km | F23: Compañía suministradora
C24: Tipo de vehículo | D24: =SUM(G24:K24) -> 0 | E24: km | F24: Compañía suministradora
C26: Km recorridos por vehículo híbrido enchufable
C27: Tipo de vehículo (seleccionar de la lista) | D27: Distancia recorrida | E27: Unidades | F27: Compañía suministradora (seleccionar)
D28: Total (sumatorio de centros)
C29: Híbrido enchufable | D29: =IFERROR(VLOOKUP("Híbrido enchufable",'Alcance 1'!D37:E46,2,FALSE)*'Alcance 1'!D51,0)/(1-'Alcance 1'!D51) -> 0 | E29: km | F29: Compañía suministradora
C34: Turismo (tipo REVAi o EV11 )
C35: Furgoneta pequeña (tipo QUICC)
C36: Otro

Sheet Alcance 3
C1: =Instrucciones!B1 -> HERRAMIENTA DE HUELLA DE CARBONO PARA ORGANIZACIONES. Año de cálculo 2020
C2: INPUTS ALCANCE 3
C4: A) MOVILIDAD DE LOS TRABAJADORES DESDE Y HASTA EL PUESTO DE TRABAJO
A5: Datos generales de la organización | C5: A.1) POR CARRETERA EN VEHÍCULO PRIVADO
A6: Alcance 1
A7: Alcance 2 | C7: A partir de datos de kilómetros recorridos por tipo de vehículo
A8: Alcance 3 | C8: Tipo de vehículo (seleccionar de la lista) | D8: Propulsión (seleccionar de la lista) | E8: Distancia recorrida | F8: Unidades | G8: =E8 -> Distancia recorrida
A9: Hoja de registros | E9: Total (sumatorio de centros) | G9: ='Datos generales organización'!$C$55 -> Escribir nombre de centro
A10: Mi área de trabajo | C10: Tipo de vehículo | D10: Tipo de propulsión | E10: =SUM(G10:N10) -> 0 | F10: km*pasajero
A11: Resultados: RVHdC Declaración | C11: Tipo de vehículo | D11: Tipo de propulsión | E11: 0 | F11: km*pasajero
A12: Resultados: RVHdC Detalle | C12: Tipo de vehículo | D12: Tipo de propulsión | E12: 0 | F12: km*pasajero
A13: Resultados: SGMA | C13: Tipo de vehículo | D13: Tipo de propulsión | E13: 0 | F13: km*pasajero
A14: Resultados: REHdC | C14: Tipo de vehículo | D14: Tipo de propulsión | E14: 0 | F14: km*pasajero
A15: Cálculos | C15: Tipo de vehículo | D15: Tipo de propulsión | E15: 0 | F15: km*pasajero
A16: Datos 1: Factores emisión | C16: Tipo de vehículo | D16: Tipo de propulsión | E16: 0 | F16: km*pasajero
A17: Datos 2: Potenciales de calent. gl. | C17: Tipo de vehículo | D17: Tipo de propulsión | E17: 0 | F17: km*pasajero
A18: Datos 3: Factores de conversión | C18: Tipo de vehículo | D18: Tipo de propulsión | E18: 0 | F18: km*pasajero
A19: Fuentes de datos
C20: A.2) TRANSPORTE PÚBLICO
C22: A partir de datos de kilómetros recorridos por tipo de vehículo
C23: Tipo de transporte público (seleccionar de la lista) | D23: Distancia recorrida | E23: Unidades | F23: =D23 -> Distancia recorrida
D24: Total (sumatorio de centros) | F24: ='Datos generales organización'!$C$55 -> Escribir nombre de centro
C25: Autobús urbano | D25: =SUM(F25:K25) -> 50 | E25: km*pasajero | F25: 50
C26: Tipo de transporte público | D26: 0 | E26: km*pasajero
C27: Tipo de transporte público | D27: 0 | E27: km*pasajero
C28: Tipo de transporte público | D28: 0 | E28: km*pasajero
C29: Tipo de transporte público | D29: 0 | E29: km*pasajero
C30: Tipo de transporte público | D30: 0 | E30: km*pasajero
C31: Tipo de transporte público | D31: 0 | E31: km*pasajero
C33: B) VIAJES DE TRABAJO
C34: B.1) POR CARRETERA EN VEHÍCULO PRIVADO
C36: A partir de datos de kilómetros recorridos por tipo de vehículo
C37: Tipo de vehículo (seleccionar de la lista) | D37: Propulsión (seleccionar de la lista) | E37: Distancia recorrida | F37: Unidades | G37: =E37 -> Distancia recorrida
E38: Total (sumatorio de centros) | G38: ='Datos generales organización'!$C$55 -> Escribir nombre de centro
C39: Tipo de vehículo | D39: Tipo de propulsión | E39: =SUM(G39:N39) -> 0 | F39: km
C40: Tipo de vehículo | D40: Tipo de propulsión | E40: 0 | F40: km
C41: Tipo de vehículo | D41: Tipo de propulsión | E41: 0 | F41: km
C42: Tipo de vehículo | D42: Tipo de propulsión | E42: 0 | F42: km
C43: Tipo de vehículo | D43: Tipo de propulsión | E43: 0 | F43: km
C44: Tipo de vehículo | D44: Tipo de propulsión | E44: 0 | F44: km
C45: Tipo de vehículo | D45: Tipo de propulsión | E45: 0 | F45: km
C46: Tipo de vehículo | D46: Tipo de propulsión | E46: 0 | F46: km
C47: Tipo de vehículo | D47: Tipo de propulsión | E47: 0 | F47: km
C49: B.2) TRANSPORTE PÚBLICO
C51: A partir de datos de kilómetros recorridos por tipo de vehículo
C52: Tipo de transporte público (seleccionar de la lista) | D52: Distancia recorrida | E52: Unidades | F52: =D52 -> Distancia recorrida
D53: Total (sumatorio de centros) | F53: ='Datos generales organización'!$C$55 -> Escribir nombre de centro
C54: Tipo de transporte público | D54: =SUM(F54:K54) -> 0 | E54: km
C55: Tipo de transporte público | D55: 0 | E55: km
C56: Tipo de transporte público | D56: 0 | E56: km
C57: Tipo de transporte público | D57: 0 | E57: km
C58: Tipo de transporte público | D58: 0 | E58: km
C59: Tipo de transporte público | D59: 0 | E59: km
C60: Tipo de transporte público | D60: 0 | E60: km
C62: C) GESTIÓN DE RESIDUOS
C64: Tipo de residuo y tipo de gestión | D64: Masa generada | E64: Unidad | F64: =D64 -> Masa generada
D65: Total (sumatorio de centros) | F65: ='Datos generales organización'!$C$55 -> Escribir nombre de centro
C66: Residuos domiciliarios a vertedero | D66: =SUM(F66:K66) -> 0 | E66: kg
C67: Residuos domiciliarios a incineración | D67: 0 | E67: kg
C68: Residuos comerciales e industriales a vertedero | D68: 0 | E68: kg
C69: Residuos comerciales e industriales a incineración | D69: 0 | E69: kg
C70: Fracción orgánica a compostaje | D70: 0 | E70: kg
C71: Vidrio a reciclaje | D71: 0 | E71: kg
C72: Envases a reciclaje | D72: 0 | E72: kg
C73: Papel y cartón a reciclaje | D73: 0 | E73: kg
C75: D) CONSUMO DE AGUA
C77: Fuente de emisión | D77: Consumo | E77: Unidad | F77: =D77 -> Consumo
D78: Total (sumatorio de centros) | F78: ='Datos generales organización'!$C$55 -> Escribir nombre de centro
C79: Suministro de agua potable | D79: =SUM(F79:K79) -> 0 | E79: m3
C81: E) CONSUMO DE BIENES Y SERVICIOS
C83: Tipos de bienes y servicios | D83: Cantidad de materias | E83: Unidad | F83: =D83 -> Cantidad de materias
D84: Total (sumatorio de centros) | F84: ='Datos generales organización'!C55 -> Escribir nombre de centro
C85: Router internet | D85: =SUM(F85:K85) -> 0 | E85: ud
C86: Papel | D86: 0 | E86: kg
C87: Ordenador portátil | D87: 0 | E87: ud
C88: Mesa escritorio | D88: 0 | E88: ud
C89: Ordenador de mesa completo | D89: 0 | E89: ud
C90: Cartucho de impresora negro | D90: 0 | E90: ud
C91: Cartucho de impresora color | D91: 0 | E91: ud
C92: Material 1 | D92: 0
C93: Material 2 | D93: 0
C94: Material 3 | D94: 0
C95: Material 4 | D95: 0
C96: Material 5 | D96: 0
C97: Material 6 | D97: 0
C98: Material 7 | D98: 0
C99: Material 8 | D99: 0
C101: F) TRANSPORTE DE VEHÍCULO PRIVADO PROVEEDOR DE BIENES Y SERVICIOS
C103: A partir de datos de kilómetros recorridos y masa transportada por tipo de vehículo
C104: Tipo de bien y servicio | D104: Tipo de vehículo (seleccionar de la lista) | E104: Distancia recorrida | F104: Unidades | G104: Distancia recorrida
E105: Total (sumatorio de centros) | G105: ='Datos generales organización'!C55 -> Escribir nombre de centro
C106: =C85 -> Router internet | D106: Tipo de transporte de carga | E106: =SUM(G106:L106) -> 0 | F106: km
C107: Papel | D107: Tipo de transporte de carga | E107: 0 | F107: km
C108: Ordenador portátil | D108: Tipo de transporte de carga | E108: 0 | F108: km
C109: Mesa escritorio | D109: Tipo de transporte de carga | E109: 0 | F109: km
C110: Ordenador de mesa completo | D110: Tipo de transporte de carga | E110: 0 | F110: km
C111: Cartucho de impresora negro | D111: Tipo de transporte de carga | E111: 0 | F111: km
C112: Cartucho de impresora color | D112: Tipo de transporte de carga | E112: 0 | F112: km
C113: Material 1 | D113: Tipo de transporte de carga | E113: 0 | F113: km
C114: Material 2 | D114: Tipo de transporte de carga | E114: 0 | F114: km
C115: Material 3 | D115: Tipo de transporte de carga | E115: 0 | F115: km
C116: Material 4 | D116: Tipo de transporte de carga | E116: 0 | F116: km
C117: Material 5 | D117: Tipo de transporte de carga | E117: 0 | F117: km
C118: Material 6 | D118: Tipo de transporte de carga | E118: 0 | F118: km
C119: Material 7 | D119: Tipo de transporte de carga | E119: 0 | F119: km
C120: Material 8 | D120: Tipo de transporte de carga | E120: 0 | F120: km
C122: A partir de datos de kilómetros recorridos y masa transportada por tipo de vehículo
C123: Tipo de bien y servicio | D123: Tipo de vehículo (seleccionar de la lista) | E123: Masa transportada | F123: Unidades | G123: Masa transportada
E124: Total (sumatorio de centros) | G124: ='Datos generales organización'!C55 -> Escribir nombre de centro
C125: =C106 -> Router internet | D125: Tipo de transporte de carga | E125: =SUM(G125:L125) -> 0 | F125: ton
C126: Papel | D126: Tipo de transporte de carga | E126: 0 | F126: ton
C127: Ordenador portátil | D127: Tipo de transporte de carga | E127: 0 | F127: ton
C128: Mesa escritorio | D128: Tipo de transporte de carga | E128: 0 | F128: ton
C129: Ordenador de mesa completo | D129: Tipo de transporte de carga | E129: 0 | F129: ton
C130: Cartucho de impresora negro | D130: Tipo de transporte de carga | E130: 0 | F130: ton
C131: Cartucho de impresora color | D131: Tipo de transporte de carga | E131: 0 | F131: ton
C132: Material 1 | D132: =D113 -> Tipo de transporte de carga | E132: 0 | F132: ton
C133: Material 2 | D133: Tipo de transporte de carga | E133: 0 | F133: ton
C134: Material 3 | D134: Tipo de transporte de carga | E134: 0 | F134: ton
C135: Material 4 | D135: Tipo de transporte de carga | E135: 0 | F135: ton
C136: Material 5 | D136: Tipo de transporte de carga | E136: 0 | F136: ton
C137: Material 6 | D137: Tipo de transporte de carga | E137: 0 | F137: ton
C138: Material 7 | D138: Tipo de transporte de carga | E138: 0 | F138: ton
C139: Material 8 | D139: Tipo de transporte de carga | E139: 0 | F139: ton
C141: G) DISTRIBUCIÓN DE PRODUCTOS VENDIDOS POR LA ORGANIZACIÓN
C143: A partir de datos de kilómetros recorridos por tipo de vehículo
C144: Tipo de bien y servicio | D144: Tipo de vehículo (seleccionar de la lista) | E144: Distancia recorrida | F144: Unidades | G144: Distancia recorrida | L144: Unidades | M144: =E144 -> Distancia recorrida | N144: Masa transportada
E145: Total (sumatorio de centros) | G145: ='Datos generales organización'!C55 -> Escribir nombre de centro | M145: ='Datos generales organización'!C55 -> Escribir nombre de centro | N145: ='Datos generales organización'!C55 -> Escribir nombre de centro
C146: Producto | D146: Tipo de transporte de carga | E146: =SUM(G146:L146) -> 0 | F146: km | L146: ton
C147: Producto | D147: Tipo de transporte de carga | E147: =SUM(G147:L147) -> 0 | F147: km | L147: ton
C148: Producto | D148: Tipo de transporte de carga | E148: =SUM(G148:L148) -> 0 | F148: km | L148: ton
C150: A partir de datos masa de producto transportada
C151: Tipo de bien y servicio | D151: Tipo de vehículo (seleccionar de la lista) | E151: Masa transportada | F151: Unidades | G151: Masa transportada | L151: Unidades | M151: =E151 -> Masa transportada | N151: Masa transportada
E152: Total (sumatorio de centros) | G152: ='Datos generales organización'!C55 -> Escribir nombre de centro | M152: ='Datos generales organización'!C64 -> 0 | N152: ='Datos generales organización'!C64 -> 0
C153: =C146 -> Producto | D153: =D146 -> Tipo de transporte de carga | E153: =SUM(G153:L153) -> 0 | F153: ton | L153: ton
C154: =C147 -> Producto | D154: Tipo de transporte de carga | E154: =SUM(G154:L154) -> 0 | F154: ton | L154: ton
C155: Producto | D155: Tipo de transporte de carga | E155: =SUM(G155:L155) -> 0 | F155: ton | L155: ton
C157: H) OTRAS EMISIONES INDIRECTAS DIFERENTES A LAS ANTERIORES
C159: Tipo de emisión indirecta calculada | D159: Emisiones calculadas | E159: Unidad | F159: =D159 -> Emisiones calculadas
D160: Total (sumatorio de centros) | F160: ='Datos generales organización'!$C$55 -> Escribir nombre de centro
C161: <Tipo de emisión 1> | D161: =SUM(F161:K161) -> 0 | E161: kg CO2e
C162: <Tipo de emisión 2> | D162: =SUM(F162:K162) -> 0 | E162: kg CO2e
C163: <Tipo de emisión 3> | D163: =SUM(F163:K163) -> 0 | E163: kg CO2e
C174: LISTAS DESPLEGABLES
C176: Tipo de vehículo | D176: Tipo de propulsión
C178: Vehículos | D178: Gasolina
C179: Microcoche | D179: Gasóleo A y B
C180: Turismo pequeño | D180: Híbrido
C181: Turismo medio | D181: Gas Natural Comprimido
C182: Turismo grande | D182: Gas Natural Licuado
C183: Deportivo | D183: GLP
C184: 4x4 | D184: B100
C185: Motocicleta | D185: B30
C186: Furgoneta | D186: E10
D187: E85
C188: Tipo de transporte público
D189: Tipo de transporte de carga
C190: Autobús larga distancia
C191: Autobús urbano | D191: Tren de carga
C192: Ferry | D192: Camión 3,5 - 7,5 ton EURO 5
C193: Metro | D193: Camión 3,5 - 7,5 ton EURO 4
C194: Taxis | D194: Camión 7,5-16 ton EURO 5
C195: Tranvía | D195: Camión 7,5-16 ton EURO 4
C196: Tren | D196: Camión 16 - 32 ton EURO 5
C197: Vuelo corta distancia < 3 h | D197: Camión 16 - 32 ton EURO 4
C198: Vuelo doméstico | D198: Camión >32 ton EURO 5
C199: Vuelos larga distancia > 3h | D199: Camión >32 ton EURO 4
D200: Buque de carga transoceánico
D201: Buque de carga de navegación interior
D202: Avión de carga

Sheet Hoja de registros
C1: =Instrucciones!B1 -> HERRAMIENTA DE HUELLA DE CARBONO PARA ORGANIZACIONES. Año de cálculo 2020
C2: HOJA DE REGISTROS
C4: TRAZABILIDAD DE LOS DATOS DE ACTIVIDAD
A5: Datos generales de la organización
A6: Alcance 1 | C6: Tipo de dato de actividad | D6: Instalación | E6: Registro del que se obtiene | F6: Responsable | G6: Comentarios
A7: Alcance 2
A8: Alcance 3
A9: Hoja de registros
A10: Mi área de trabajo
A11: Resultados: RVHdC Declaración
A12: Resultados: RVHdC Detalle
A13: Resultados: SGMA
A14: Resultados: REHdC
A15: Cálculos
A16: Datos 1: Factores emisión
A17: Datos 2: Potenciales de calent. gl.
A18: Datos 3: Factores de conversión
A19: Fuentes de datos
C34: incluir más filas en caso necesario

Sheet Mi área de trabajo
C1: =Instrucciones!B1 -> HERRAMIENTA DE HUELLA DE CARBONO PARA ORGANIZACIONES. Año de cálculo 2020
C2: ÁREA DE TRABAJO
C4: CÁLCULOS AUXILIARES
A5: Datos generales de la organización
A6: Alcance 1
A7: Alcance 2
A8: Alcance 3
A9: Hoja de registros
A10: Mi área de trabajo
A11: Resultados: RVHdC Declaración
A12: Resultados: RVHdC Detalle
A13: Resultados: SGMA
A14: Resultados: REHdC
A15: Cálculos
A16: Datos 1: Factores emisión
A17: Datos 2: Potenciales de calent. gl.
A18: Datos 3: Factores de conversión
A19: Fuentes de datos

Sheet Result- RVHdC Declarac
C1: =Instrucciones!B1 -> HERRAMIENTA DE HUELLA DE CARBONO PARA ORGANIZACIONES. Año de cálculo 2020
B2: RESULTADOS PARA LA DECLARACIÓN DEL REGISTRO VASCO DE HUELLA DE CARBONO Y REDUCCIÓN DE EMISIONES DE GEI
B4: Nombre de la organización | C4: ='Datos generales organización'!D5 -> 0
B5: Indicador de referencia: | C5: ='Datos generales organización'!C20 -> Seleccionar índice | D5: ='Datos generales organización'!E20 -> 0
B8: =CONCATENATE("A) HUELLA DE CARBONO ", 'Datos generales organización'!D14," (t CO2e/", C5," )") -> A) HUELLA DE CARBONO <seleccionar año> (t CO2e/Seleccionar índice )
B9: A.1) REPORTE OBLIGATORIO: HUELLA DE CARBONO EN ALCANCE 1 Y ALCANCE 2
D13: Total
B14: EMISIONES DIRECTAS (ALCANCE 1) | C14: Combustión fija | D14: =IF(ISNUMBER(ROUND('Result- RVHdC Detalle'!D11/$D$5,3-(1+INT(LOG10(ABS('Result- RVHdC Detalle'!D11/$D$5))))))=TRUE,(ROUND('Result- RVHdC Detalle'!D11/$D$5,2-(1+INT(LOG10(ABS('Result- RVHdC Detalle'!D11/$D$5)))))),0) -> 0
C15: Vehículos | D15: =IF(ISNUMBER(ROUND('Result- RVHdC Detalle'!D12/$D$5,3-(1+INT(LOG10(ABS('Result- RVHdC Detalle'!D12/$D$5))))))=TRUE,(ROUND('Result- RVHdC Detalle'!D12/$D$5,2-(1+INT(LOG10(ABS('Result- RVHdC Detalle'!D12/$D$5)))))),0) -> 0
C16: Refrigerantes y lubricantes | D16: =IF(ISNUMBER(ROUND('Result- RVHdC Detalle'!D13/$D$5,2-(1+INT(LOG10(ABS('Result- RVHdC Detalle'!D13/$D$5))))))=TRUE,(ROUND('Result- RVHdC Detalle'!D13/$D$5,2-(1+INT(LOG10(ABS('Result- RVHdC Detalle'!D13/$D$5)))))),0) -> 0
B17: Total | C17: Total | D17: =IF(ISNUMBER(ROUND('Result- RVHdC Detalle'!D14/$D$5,3-(1+INT(LOG10(ABS('Result- RVHdC Detalle'!D14/$D$5))))))=TRUE,(ROUND('Result- RVHdC Detalle'!D14/$D$5,2-(1+INT(LOG10(ABS('Result- RVHdC Detalle'!D14/$D$5)))))),0) -> 0
B19: EMISIONES INDIRECTAS POR ENERGÍA (ALCANCE 2) | C19: Uso de electricidad o vapor externo | D19: =IF(ISNUMBER(ROUND('Result- RVHdC Detalle'!D16/$D$5,3-(1+INT(LOG10(ABS('Result- RVHdC Detalle'!D16/$D$5))))))=TRUE,(ROUND('Result- RVHdC Detalle'!D16/$D$5,2-(1+INT(LOG10(ABS('Result- RVHdC Detalle'!D16/$D$5)))))),0) -> 0
C20: Vehículos | D20: =IF(ISNUMBER(ROUND('Result- RVHdC Detalle'!D17/$D$5,3-(1+INT(LOG10(ABS('Result- RVHdC Detalle'!D17/$D$5))))))=TRUE,(ROUND('Result- RVHdC Detalle'!D17/$D$5,2-(1+INT(LOG10(ABS('Result- RVHdC Detalle'!D17/$D$5)))))),0) -> 0
C21: Total | D21: =IF(ISNUMBER(ROUND('Result- RVHdC Detalle'!D18/$D$5,3-(1+INT(LOG10(ABS('Result- RVHdC Detalle'!D18/$D$5))))))=TRUE,(ROUND('Result- RVHdC Detalle'!D18/$D$5,2-(1+INT(LOG10(ABS('Result- RVHdC Detalle'!D18/$D$5)))))),0) -> 0
B23: EMISIONES DIRECTAS (ALCANCE 1) + EMISIONES INDIRECTAS POR ENERGÍA (ALCANCE 2) | C23: Total | D23: =IF(ISNUMBER(ROUND('Result- RVHdC Detalle'!D20/$D$5,3-(1+INT(LOG10(ABS('Result- RVHdC Detalle'!D20/$D$5))))))=TRUE,(ROUND('Result- RVHdC Detalle'!D20/$D$5,2-(1+INT(LOG10(ABS('Result- RVHdC Detalle'!D20/$D$5)))))),0) -> 0
B25: ABSORCIONES (ALCANCE 1) | C25: Total | D25: =IF(ISNUMBER(ROUND('Result- RVHdC Detalle'!D22/$D$5,3-(1+INT(LOG10(ABS('Result- RVHdC Detalle'!D22/$D$5))))))=TRUE,(ROUND('Result- RVHdC Detalle'!D22/$D$5,2-(1+INT(LOG10(ABS('Result- RVHdC Detalle'!D22/$D$5)))))),0) -> 0
B27: BALANCE ABSORCIONES Y EMISIONES (ALCANCE 1 Y 2) | C27: Total | D27: =IF(ISNUMBER(ROUND('Result- RVHdC Detalle'!D24/$D$5,3-(1+INT(LOG10(ABS('Result- RVHdC Detalle'!D24/$D$5))))))=TRUE,(ROUND('Result- RVHdC Detalle'!D24/$D$5,2-(1+INT(LOG10(ABS('Result- RVHdC Detalle'!D24/$D$5)))))),0) -> 0
B29: A.2) REPORTE OPCIONAL: HUELLA DE CARBONO EN ALCANCE 3
D31: Total
B32: OTRAS EMISIONES INDIRECTAS (ALCANCE 3) | C32: ='Result- RVHdC Detalle'!C29 -> Movilidad de los trabajadores | D32: =IF(ISNUMBER(ROUND('Result- RVHdC Detalle'!D29/$D$5,3-(1+INT(LOG10(ABS('Result- RVHdC Detalle'!D29/$D$5))))))=TRUE,(ROUND('Result- RVHdC Detalle'!D29/$D$5,3-(1+INT(LOG10(ABS('Result- RVHdC Detalle'!D29/$D$5)))))),0) -> 0
C33: ='Result- RVHdC Detalle'!C30 -> Viajes de trabajo | D33: =IF(ISNUMBER(ROUND('Result- RVHdC Detalle'!D30/$D$5,3-(1+INT(LOG10(ABS('Result- RVHdC Detalle'!D30/$D$5))))))=TRUE,(ROUND('Result- RVHdC Detalle'!D30/$D$5,3-(1+INT(LOG10(ABS('Result- RVHdC Detalle'!D30/$D$5)))))),0) -> 0
C34: ='Result- RVHdC Detalle'!C31 -> Gestión de residuos | D34: =IF(ISNUMBER(ROUND('Result- RVHdC Detalle'!D31/$D$5,3-(1+INT(LOG10(ABS('Result- RVHdC Detalle'!D31/$D$5))))))=TRUE,(ROUND('Result- RVHdC Detalle'!D31/$D$5,3-(1+INT(LOG10(ABS('Result- RVHdC Detalle'!D31/$D$5)))))),0) -> 0
C35: ='Result- RVHdC Detalle'!C32 -> Consumo de agua | D35: =IF(ISNUMBER(ROUND('Result- RVHdC Detalle'!D32/$D$5,3-(1+INT(LOG10(ABS('Result- RVHdC Detalle'!D32/$D$5))))))=TRUE,(ROUND('Result- RVHdC Detalle'!D32/$D$5,3-(1+INT(LOG10(ABS('Result- RVHdC Detalle'!D32/$D$5)))))),0) -> 0
C36: ='Result- RVHdC Detalle'!C33 -> Consumo de bienes y servicios | D36: =IF(ISNUMBER(ROUND('Result- RVHdC Detalle'!D33/$D$5,3-(1+INT(LOG10(ABS('Result- RVHdC Detalle'!D33/$D$5))))))=TRUE,(ROUND('Result- RVHdC Detalle'!D33/$D$5,3-(1+INT(LOG10(ABS('Result- RVHdC Detalle'!D33/$D$5)))))),0) -> 0
C37: ='Result- RVHdC Detalle'!C34 -> Transporte desde proveedor | D37: =IF(ISNUMBER(ROUND('Result- RVHdC Detalle'!D34/$D$5,3-(1+INT(LOG10(ABS('Result- RVHdC Detalle'!D34/$D$5))))))=TRUE,(ROUND('Result- RVHdC Detalle'!D34/$D$5,3-(1+INT(LOG10(ABS('Result- RVHdC Detalle'!D34/$D$5)))))),0) -> 0
C38: ='Result- RVHdC Detalle'!C35 -> Distribución de productos | D38: =IF(ISNUMBER(ROUND('Result- RVHdC Detalle'!D35/$D$5,3-(1+INT(LOG10(ABS('Result- RVHdC Detalle'!D35/$D$5))))))=TRUE,(ROUND('Result- RVHdC Detalle'!D35/$D$5,3-(1+INT(LOG10(ABS('Result- RVHdC Detalle'!D35/$D$5)))))),0) -> 0
C39: Total | D39: =SUM(D32:D38) -> 0
B41: A.3) TOTAL: HUELLA DE CARBONO EN ALCANCE 1 + ALCANCE 2+ ALCANCE 3
B43: BALANCE TOTAL DE ABSORCIONES Y EMISIONES (ALCANCE 1 , 2 Y 3) | C43: Total | D43: =D27+D39 -> 0
B46: B) EVOLUCIÓN HISTÓRICA DE LA HUELLA DE CARBONO
D48: ='Datos generales organización'!D14 -> <seleccionar año> | E48: =IF('Datos generales organización'!E45<>"<Año>",'Datos generales organización'!E45,NA()) ->  | F48: =IF('Datos generales organización'!F45<>"<Año>",'Datos generales organización'!F45,NA()) ->  | G48: =IF('Datos generales organización'!G45<>"<Año>",'Datos generales organización'!G45,NA()) ->  | H48: =IF('Datos generales organización'!H45<>"<Año>",'Datos generales organización'!H45,NA()) ->  | I48: =IF('Datos generales organización'!I45<>"<Año>",'Datos generales organización'!I45,NA()) ->  | J48: =IF('Datos generales organización'!J45<>"<Año>",'Datos generales organización'!J45,NA()) ->  | K48: =IF('Datos generales organización'!K45<>"<Año>",'Datos generales organización'!K45,NA()) -> 
B49: =CONCATENATE("Emisiones de alcance 1 / ",'Datos generales organización'!$C$20) -> Emisiones de alcance 1 / Seleccionar índice | C49: =CONCATENATE("(t CO2e/ ",'Datos generales organización'!$D$20," )") -> (t CO2e/ unidades ) | D49: =IF(ISNUMBER(D17)=TRUE,IF(D17=0,NA(),D17),NA()) ->  | E49: =IF('Datos generales organización'!E46<>0,ROUND('Datos generales organización'!E46,2-(1+INT(LOG10(ABS('Datos generales organización'!E46))))),NA()) ->  | F49: =IF('Datos generales organización'!F46<>0,ROUND('Datos generales organización'!F46,2-(1+INT(LOG10(ABS('Datos generales organización'!F46))))),NA()) ->  | G49: =IF('Datos generales organización'!G46<>0,ROUND('Datos generales organización'!G46,2-(1+INT(LOG10(ABS('Datos generales organización'!G46))))),NA()) ->  | H49: =IF('Datos generales organización'!H46<>0,ROUND('Datos generales organización'!H46,2-(1+INT(LOG10(ABS('Datos generales organización'!H46))))),NA()) ->  | I49: =IF('Datos generales organización'!I46<>0,ROUND('Datos generales organización'!I46,2-(1+INT(LOG10(ABS('Datos generales organización'!I46))))),NA()) ->  | J49: =IF('Datos generales organización'!J46<>0,ROUND('Datos generales organización'!J46,2-(1+INT(LOG10(ABS('Datos generales organización'!J46))))),NA()) ->  | K49: =IF('Datos generales organización'!K46<>0,ROUND('Datos generales organización'!K46,2-(1+INT(LOG10(ABS('Datos generales organización'!K46))))),NA()) -> 
B50: =CONCATENATE("Emisiones de alcance 2 / ",'Datos generales organización'!$C$20) -> Emisiones de alcance 2 / Seleccionar índice | C50: =CONCATENATE("(t CO2e/ ",'Datos generales organización'!$D$20," )") -> (t CO2e/ unidades ) | D50: =IF(ISNUMBER(D21)=TRUE,IF(D21=0,NA(),D21),NA()) ->  | E50: =IF('Datos generales organización'!E47<>0,ROUND('Datos generales organización'!E47,2-(1+INT(LOG10(ABS('Datos generales organización'!E47))))),NA()) ->  | F50: =IF('Datos generales organización'!F47<>0,ROUND('Datos generales organización'!F47,2-(1+INT(LOG10(ABS('Datos generales organización'!F47))))),NA()) ->  | G50: =IF('Datos generales organización'!G47<>0,ROUND('Datos generales organización'!G47,2-(1+INT(LOG10(ABS('Datos generales organización'!G47))))),NA()) ->  | H50: =IF('Datos generales organización'!H47<>0,ROUND('Datos generales organización'!H47,2-(1+INT(LOG10(ABS('Datos generales organización'!H47))))),NA()) ->  | I50: =IF('Datos generales organización'!I47<>0,ROUND('Datos generales organización'!I47,2-(1+INT(LOG10(ABS('Datos generales organización'!I47))))),NA()) ->  | J50: =IF('Datos generales organización'!J47<>0,ROUND('Datos generales organización'!J47,2-(1+INT(LOG10(ABS('Datos generales organización'!J47))))),NA()) ->  | K50: =IF('Datos generales organización'!K47<>0,ROUND('Datos generales organización'!K47,2-(1+INT(LOG10(ABS('Datos generales organización'!K47))))),NA()) -> 
B51: =CONCATENATE("Absorciones / ",'Datos generales organización'!$C$20) -> Absorciones / Seleccionar índice | C51: =CONCATENATE("(t CO2e/ ",'Datos generales organización'!$D$20," )") -> (t CO2e/ unidades ) | D51: =IF(ISNUMBER(D25)=TRUE,IF(D25=0,NA(),D25),NA()) ->  | E51: =IF('Datos generales organización'!E49<>0,ROUND('Datos generales organización'!E49,2-(1+INT(LOG10(ABS('Datos generales organización'!E48))))),NA()) ->  | F51: =IF('Datos generales organización'!F49<>0,ROUND('Datos generales organización'!F49,2-(1+INT(LOG10(ABS('Datos generales organización'!F48))))),NA()) ->  | G51: =IF('Datos generales organización'!G49<>0,ROUND('Datos generales organización'!G49,2-(1+INT(LOG10(ABS('Datos generales organización'!G48))))),NA()) ->  | H51: =IF('Datos generales organización'!H49<>0,ROUND('Datos generales organización'!H49,2-(1+INT(LOG10(ABS('Datos generales organización'!H48))))),NA()) ->  | I51: =IF('Datos generales organización'!I49<>0,ROUND('Datos generales organización'!I49,2-(1+INT(LOG10(ABS('Datos generales organización'!I48))))),NA()) ->  | J51: =IF('Datos generales organización'!J49<>0,ROUND('Datos generales organización'!J49,2-(1+INT(LOG10(ABS('Datos generales organización'!J48))))),NA()) ->  | K51: =IF('Datos generales organización'!K49<>0,ROUND('Datos generales organización'!K49,2-(1+INT(LOG10(ABS('Datos generales organización'!K48))))),NA()) -> 
B52: =CONCATENATE("Balance emisiones de alcance 1+2 / ",'Datos generales organización'!$C$20) -> Balance emisiones de alcance 1+2 / Seleccionar índice | C52: =CONCATENATE("(t CO2e/ ",'Datos generales organización'!$D$20," )") -> (t CO2e/ unidades ) | D52: =IF(ISNUMBER(D27)=TRUE,IF(D27=0,NA(),D27),NA()) ->  | E52: =IF('Datos generales organización'!E50<>0,ROUND('Datos generales organización'!E50,2-(1+INT(LOG10(ABS('Datos generales organización'!E50))))),NA()) ->  | F52: =IF('Datos generales organización'!F50<>0,ROUND('Datos generales organización'!F50,2-(1+INT(LOG10(ABS('Datos generales organización'!F50))))),NA()) ->  | G52: =IF('Datos generales organización'!G50<>0,ROUND('Datos generales organización'!G50,2-(1+INT(LOG10(ABS('Datos generales organización'!G50))))),NA()) ->  | H52: =IF('Datos generales organización'!H50<>0,ROUND('Datos generales organización'!H50,2-(1+INT(LOG10(ABS('Datos generales organización'!H50))))),NA()) ->  | I52: =IF('Datos generales organización'!I50<>0,ROUND('Datos generales organización'!I50,2-(1+INT(LOG10(ABS('Datos generales organización'!I50))))),NA()) ->  | J52: =IF('Datos generales organización'!J50<>0,ROUND('Datos generales organización'!J50,2-(1+INT(LOG10(ABS('Datos generales organización'!J50))))),NA()) ->  | K52: =IF('Datos generales organización'!K50<>0,ROUND('Datos generales organización'!K50,2-(1+INT(LOG10(ABS('Datos generales organización'!K50))))),NA()) -> 
B53: =CONCATENATE("Emisiones de alcance 3 / ",'Datos generales organización'!$C$20) -> Emisiones de alcance 3 / Seleccionar índice | C53: =CONCATENATE("(t CO2e/ ",'Datos generales organización'!$D$20," )") -> (t CO2e/ unidades ) | D53: =IF(ISNUMBER(D39)=TRUE,IF(D39=0,NA(),D39),NA()) ->  | E53: =IF('Datos generales organización'!E51<>0,ROUND('Datos generales organización'!E51,2-(1+INT(LOG10(ABS('Datos generales organización'!E51))))),NA()) ->  | F53: =IF('Datos generales organización'!F51<>0,ROUND('Datos generales organización'!F51,2-(1+INT(LOG10(ABS('Datos generales organización'!F51))))),NA()) ->  | G53: =IF('Datos generales organización'!G51<>0,ROUND('Datos generales organización'!G51,2-(1+INT(LOG10(ABS('Datos generales organización'!G51))))),NA()) ->  | H53: =IF('Datos generales organización'!H51<>0,ROUND('Datos generales organización'!H51,2-(1+INT(LOG10(ABS('Datos generales organización'!H51))))),NA()) ->  | I53: =IF('Datos generales organización'!I51<>0,ROUND('Datos generales organización'!I51,2-(1+INT(LOG10(ABS('Datos generales organización'!I51))))),NA()) ->  | J53: =IF('Datos generales organización'!J51<>0,ROUND('Datos generales organización'!J51,2-(1+INT(LOG10(ABS('Datos generales organización'!J51))))),NA()) ->  | K53: =IF('Datos generales organización'!K51<>0,ROUND('Datos generales organización'!K51,2-(1+INT(LOG10(ABS('Datos generales organización'!K51))))),NA()) -> 
B54: =CONCATENATE("Balance emisiones de alcance 1+2+3 / ",'Datos generales organización'!$C$20) -> Balance emisiones de alcance 1+2+3 / Seleccionar índice | C54: =CONCATENATE("(t CO2e/ ",'Datos generales organización'!$D$20," )") -> (t CO2e/ unidades ) | D54: =IF((D52+D53)>0,(D52+D53),NA()) ->  | E54: =IF((E52+E53)>0,(E52+E53),NA()) ->  | F54: =IF((F52+F53)>0,(F52+F53),NA()) ->  | J54: =IF((J52+J53)>0,(J52+J53),NA()) -> 

Sheet Result- RVHdC Detalle
C1: =Instrucciones!B1 -> HERRAMIENTA DE HUELLA DE CARBONO PARA ORGANIZACIONES. Año de cálculo 2020
B2: DETALLE DE RESULTADOS SEGÚN EL REGISTRO VASCO DE HUELLA DE CARBONO Y REDUCCIÓN DE EMISIONES DE GEI
B4: Nombre de la organización | C4: ='Datos generales organización'!D5 -> 0
B7: =CONCATENATE("A) RESUMEN DE RESULTADOS DE ",'Datos generales organización'!D14," -FORMATO ISO 14064-1 - (t CO2e)") -> A) RESUMEN DE RESULTADOS DE <seleccionar año> -FORMATO ISO 14064-1 - (t CO2e)
B8: A.1) REPORTE OBLIGATORIO: ALCANCE 1 Y ALCANCE 2
D10: Total | E10: CO2 | F10: CH4 | G10: N2O | H10: Gases fluorados | I10: CO2 (b)
B11: EMISIONES DIRECTAS (ALCANCE 1) | C11: Fuentes fijas | D11: =SUM(E11:H11) -> 0 | E11: =(SUMIFS(Cálculos!AH$6:AH$228,Cálculos!$I$6:$I$228,1,Cálculos!$C$6:$C$228,"Fuente fija",Cálculos!$H$6:$H$228,"Ambos")+SUMIFS(Cálculos!AH$6:AH$228,Cálculos!$I$6:$I$228,1,Cálculos!$C$6:$C$228,"Fuente fija",Cálculos!$H$6:$H$228,"CAPV"))/1000 -> 0 | F11: =(SUMIFS(Cálculos!AI$6:AI$228,Cálculos!$I$6:$I$228,1,Cálculos!$C$6:$C$228,"Fuente fija",Cálculos!$H$6:$H$228,"Ambos")+SUMIFS(Cálculos!AI$6:AI$228,Cálculos!$I$6:$I$228,1,Cálculos!$C$6:$C$228,"Fuente fija",Cálculos!$H$6:$H$228,"CAPV"))/1000 -> 0 | G11: =(SUMIFS(Cálculos!AJ$6:AJ$228,Cálculos!$I$6:$I$228,1,Cálculos!$C$6:$C$228,"Fuente fija",Cálculos!$H$6:$H$228,"Ambos")+SUMIFS(Cálculos!AJ$6:AJ$228,Cálculos!$I$6:$I$228,1,Cálculos!$C$6:$C$228,"Fuente fija",Cálculos!$H$6:$H$228,"CAPV"))/1000 -> 0 | H11: =(SUMIFS(Cálculos!AK$6:AK$228,Cálculos!$I$6:$I$228,1,Cálculos!$C$6:$C$228,"Fuente fija",Cálculos!$H$6:$H$228,"Ambos")+SUMIFS(Cálculos!AK$6:AK$228,Cálculos!$I$6:$I$228,1,Cálculos!$C$6:$C$228,"Fuente fija",Cálculos!$H$6:$H$228,"CAPV"))/1000 -> 0 | I11: =(SUMIFS(Cálculos!AM$6:AM$228,Cálculos!$I$6:$I$228,1,Cálculos!$C$6:$C$228,"Fuente fija",Cálculos!$H$6:$H$228,"Ambos")+SUMIFS(Cálculos!AM$6:AM$228,Cálculos!$I$6:$I$228,1,Cálculos!$C$6:$C$228,"Fuente fija",Cálculos!$H$6:$H$228,"CAPV"))/1000 -> 0
C12: Fuentes móviles | D12: =SUM(E12:H12) ->  | E12: =(SUMIFS(Cálculos!AH$6:AH$228,Cálculos!$I$6:$I$228,1,Cálculos!$C$6:$C$228,"Fuente móvil",Cálculos!$H$6:$H$228,"Ambos")+SUMIFS(Cálculos!AH$6:AH$228,Cálculos!$I$6:$I$228,1,Cálculos!$C$6:$C$228,"Fuente móvil",Cálculos!$H$6:$H$228,"CAPV"))/1000 ->  | F12: =(SUMIFS(Cálculos!AI$6:AI$228,Cálculos!$I$6:$I$228,1,Cálculos!$C$6:$C$228,"Fuente móvil",Cálculos!$H$6:$H$228,"Ambos")+SUMIFS(Cálculos!AI$6:AI$228,Cálculos!$I$6:$I$228,1,Cálculos!$C$6:$C$228,"Fuente móvil",Cálculos!$H$6:$H$228,"CAPV"))/1000 ->  | G12: =(SUMIFS(Cálculos!AJ$6:AJ$228,Cálculos!$I$6:$I$228,1,Cálculos!$C$6:$C$228,"Fuente móvil",Cálculos!$H$6:$H$228,"Ambos")+SUMIFS(Cálculos!AJ$6:AJ$228,Cálculos!$I$6:$I$228,1,Cálculos!$C$6:$C$228,"Fuente móvil",Cálculos!$H$6:$H$228,"CAPV"))/1000 ->  | H12: =(SUMIFS(Cálculos!AK$6:AK$228,Cálculos!$I$6:$I$228,1,Cálculos!$C$6:$C$228,"Fuente móvil",Cálculos!$H$6:$H$228,"Ambos")+SUMIFS(Cálculos!AK$6:AK$228,Cálculos!$I$6:$I$228,1,Cálculos!$C$6:$C$228,"Fuente móvil",Cálculos!$H$6:$H$228,"CAPV"))/1000 -> 0 | I12: =(SUMIFS(Cálculos!AM$6:AM$228,Cálculos!$I$6:$I$228,1,Cálculos!$C$6:$C$228,"Fuente móvil",Cálculos!$H$6:$H$228,"Ambos")+SUMIFS(Cálculos!AM$6:AM$228,Cálculos!$I$6:$I$228,1,Cálculos!$C$6:$C$228,"Fuente móvil",Cálculos!$H$6:$H$228,"CAPV"))/1000 -> 
C13: Fuentes difusas | D13: =SUM(E13:H13) -> 0 | E13: =(SUMIFS(Cálculos!AH$6:AH$228,Cálculos!$I$6:$I$228,1,Cálculos!$C$6:$C$228,"Fuente difusa",Cálculos!$H$6:$H$228,"Ambos")+SUMIFS(Cálculos!AH$6:AH$228,Cálculos!$I$6:$I$228,1,Cálculos!$C$6:$C$228,"Fuente difusa",Cálculos!$H$6:$H$228,"CAPV"))/1000 -> 0 | F13: =(SUMIFS(Cálculos!AI$6:AI$228,Cálculos!$I$6:$I$228,1,Cálculos!$C$6:$C$228,"Fuente difusa",Cálculos!$H$6:$H$228,"Ambos")+SUMIFS(Cálculos!AI$6:AI$228,Cálculos!$I$6:$I$228,1,Cálculos!$C$6:$C$228,"Fuente difusa",Cálculos!$H$6:$H$228,"CAPV"))/1000 -> 0 | G13: =(SUMIFS(Cálculos!AJ$6:AJ$228,Cálculos!$I$6:$I$228,1,Cálculos!$C$6:$C$228,"Fuente difusa",Cálculos!$H$6:$H$228,"Ambos")+SUMIFS(Cálculos!AJ$6:AJ$228,Cálculos!$I$6:$I$228,1,Cálculos!$C$6:$C$228,"Fuente difusa",Cálculos!$H$6:$H$228,"CAPV"))/1000 -> 0 | H13: =(SUMIFS(Cálculos!AK$6:AK$228,Cálculos!$I$6:$I$228,1,Cálculos!$C$6:$C$228,"Fuente difusa",Cálculos!$H$6:$H$228,"Ambos")+SUMIFS(Cálculos!AK$6:AK$228,Cálculos!$I$6:$I$228,1,Cálculos!$C$6:$C$228,"Fuente difusa",Cálculos!$H$6:$H$228,"CAPV"))/1000 -> 0 | I13: =(SUMIFS(Cálculos!AM$6:AM$228,Cálculos!$I$6:$I$228,1,Cálculos!$C$6:$C$228,"Fuente difusa",Cálculos!$H$6:$H$228,"Ambos")+SUMIFS(Cálculos!AM$6:AM$228,Cálculos!$I$6:$I$228,1,Cálculos!$C$6:$C$228,"Fuente difusa",Cálculos!$H$6:$H$228,"CAPV"))/1000 -> 0
B14: Total | C14: Total | D14: =D11+D12+D13 ->  | E14: =E11+E12+E13 ->  | F14: =F11+F12+F13 ->  | H14: 0
B16: EMISIONES INDIRECTAS POR ENERGÍA (ALCANCE 2) | C16: Fuentes fijas | D16: =(SUMIFS(Cálculos!$AH$6:$AH$228,Cálculos!$I$6:$I$228,2,Cálculos!$C$6:$C$228,"Fuente fija",Cálculos!$H$6:$H$228,"Ambos")+SUMIFS(Cálculos!$AH$6:$AH$228,Cálculos!$I$6:$I$228,2,Cálculos!$C$6:$C$228,"Fuente fija",Cálculos!$H$6:$H$228,"CAPV"))/1000 -> 0
C17: Fuentes móviles | D17: =(SUMIFS(Cálculos!$AH$6:$AH$228,Cálculos!$I$6:$I$228,2,Cálculos!$C$6:$C$228,"Fuente móvil",Cálculos!$H$6:$H$228,"Ambos")+SUMIFS(Cálculos!$AH$6:$AH$228,Cálculos!$I$6:$I$228,2,Cálculos!$C$6:$C$228,"Fuente móvil",Cálculos!$H$6:$H$228,"CAPV"))/1000 -> 0
C18: Total | D18: =D16+D17 -> 0
B20: EMISIONES DIRECTAS (ALCANCE 1) + EMISIONES INDIRECTAS POR ENERGÍA (ALCANCE 2) | C20: Total | D20: =D14+D18 -> 
B22: ABSORCIONES (ALCANCE 1) | C22: Total | D22: =SUM(Cálculos!AN6:AN228)/1000 -> 
B24: BALANCE ABSORCIONES Y EMISIONES (ALCANCE 1 Y 2) | C24: Total | D24: =D20+D22 -> 
B26: A.2) REPORTE OPCIONAL: ALCANCE 3 (t CO2e)
D28: Total | E28: CO2 | F28: CH4 | G28: N2O | H28: Gases fluorados | I28: CO2 (b)
B29: OTRAS EMISIONES INDIRECTAS (ALCANCE 3) | C29: Movilidad de los trabajadores | D29: =SUM(E29:H29) -> 0.00869 | E29: =(SUMIFS(Cálculos!AH$6:AH$228,Cálculos!$I$6:$I$228,3,Cálculos!$G$6:$G$228,$C29,Cálculos!$H$6:$H$228,"Ambos")+SUMIFS(Cálculos!AH$6:AH$228,Cálculos!$I$6:$I$228,3,Cálculos!$G$6:$G$228,$C29,Cálculos!$H$6:$H$228,"CAPV"))/1000 -> 0.001364 | F29: =(SUMIFS(Cálculos!AI$6:AI$228,Cálculos!$I$6:$I$228,3,Cálculos!$G$6:$G$228,$C29,Cálculos!$H$6:$H$228,"Ambos")+SUMIFS(Cálculos!AI$6:AI$228,Cálculos!$I$6:$I$228,3,Cálculos!$G$6:$G$228,$C29,Cálculos!$H$6:$H$228,"CAPV"))/1000 -> 2.5e-05 | G29: =(SUMIFS(Cálculos!AJ$6:AJ$228,Cálculos!$I$6:$I$228,3,Cálculos!$G$6:$G$228,$C29,Cálculos!$H$6:$H$228,"Ambos")+SUMIFS(Cálculos!AJ$6:AJ$228,Cálculos!$I$6:$I$228,3,Cálculos!$G$6:$G$228,$C29,Cálculos!$H$6:$H$228,"CAPV"))/1000 -> 0.007301 | H29: =(SUMIFS(Cálculos!AK$6:AK$228,Cálculos!$I$6:$I$228,3,Cálculos!$G$6:$G$228,$C29,Cálculos!$H$6:$H$228,"Ambos")+SUMIFS(Cálculos!AK$6:AK$228,Cálculos!$I$6:$I$228,3,Cálculos!$G$6:$G$228,$C29,Cálculos!$H$6:$H$228,"CAPV"))/1000 -> 0 | I29: =(SUMIFS(Cálculos!AL$6:AL$228,Cálculos!$I$6:$I$228,3,Cálculos!$G$6:$G$228,$C29,Cálculos!$H$6:$H$228,"Ambos")+SUMIFS(Cálculos!AL$6:AL$228,Cálculos!$I$6:$I$228,3,Cálculos!$G$6:$G$228,$C29,Cálculos!$H$6:$H$228,"CAPV"))/1000 -> 0.00869
C30: Viajes de trabajo | D30: =SUM(E30:H30) -> 0 | E30: =(SUMIFS(Cálculos!AH$6:AH$228,Cálculos!$I$6:$I$228,3,Cálculos!$G$6:$G$228,$C30,Cálculos!$H$6:$H$228,"Ambos")+SUMIFS(Cálculos!AH$6:AH$228,Cálculos!$I$6:$I$228,3,Cálculos!$G$6:$G$228,$C30,Cálculos!$H$6:$H$228,"CAPV"))/1000 -> 0 | F30: =(SUMIFS(Cálculos!AI$6:AI$228,Cálculos!$I$6:$I$228,3,Cálculos!$G$6:$G$228,$C30,Cálculos!$H$6:$H$228,"Ambos")+SUMIFS(Cálculos!AI$6:AI$228,Cálculos!$I$6:$I$228,3,Cálculos!$G$6:$G$228,$C30,Cálculos!$H$6:$H$228,"CAPV"))/1000 -> 0 | G30: =(SUMIFS(Cálculos!AJ$6:AJ$228,Cálculos!$I$6:$I$228,3,Cálculos!$G$6:$G$228,$C30,Cálculos!$H$6:$H$228,"Ambos")+SUMIFS(Cálculos!AJ$6:AJ$228,Cálculos!$I$6:$I$228,3,Cálculos!$G$6:$G$228,$C30,Cálculos!$H$6:$H$228,"CAPV"))/1000 -> 0 | H30: =(SUMIFS(Cálculos!AK$6:AK$228,Cálculos!$I$6:$I$228,3,Cálculos!$G$6:$G$228,$C30,Cálculos!$H$6:$H$228,"Ambos")+SUMIFS(Cálculos!AK$6:AK$228,Cálculos!$I$6:$I$228,3,Cálculos!$G$6:$G$228,$C30,Cálculos!$H$6:$H$228,"CAPV"))/1000 -> 0 | I30: =(SUMIFS(Cálculos!AL$6:AL$228,Cálculos!$I$6:$I$228,3,Cálculos!$G$6:$G$228,$C30,Cálculos!$H$6:$H$228,"Ambos")+SUMIFS(Cálculos!AL$6:AL$228,Cálculos!$I$6:$I$228,3,Cálculos!$G$6:$G$228,$C30,Cálculos!$H$6:$H$228,"CAPV"))/1000 -> 0
C31: Gestión de residuos | D31: 0 | E31: =(SUMIFS(Cálculos!AH$6:AH$228,Cálculos!$I$6:$I$228,3,Cálculos!$G$6:$G$228,$C31,Cálculos!$H$6:$H$228,"Ambos")+SUMIFS(Cálculos!AH$6:AH$228,Cálculos!$I$6:$I$228,3,Cálculos!$G$6:$G$228,$C31,Cálculos!$H$6:$H$228,"CAPV"))/1000 -> 0 | F31: =(SUMIFS(Cálculos!AI$6:AI$228,Cálculos!$I$6:$I$228,3,Cálculos!$G$6:$G$228,$C31,Cálculos!$H$6:$H$228,"Ambos")+SUMIFS(Cálculos!AI$6:AI$228,Cálculos!$I$6:$I$228,3,Cálculos!$G$6:$G$228,$C31,Cálculos!$H$6:$H$228,"CAPV"))/1000 -> 0 | G31: =(SUMIFS(Cálculos!AJ$6:AJ$228,Cálculos!$I$6:$I$228,3,Cálculos!$G$6:$G$228,$C31,Cálculos!$H$6:$H$228,"Ambos")+SUMIFS(Cálculos!AJ$6:AJ$228,Cálculos!$I$6:$I$228,3,Cálculos!$G$6:$G$228,$C31,Cálculos!$H$6:$H$228,"CAPV"))/1000 -> 0 | H31: =(SUMIFS(Cálculos!AK$6:AK$228,Cálculos!$I$6:$I$228,3,Cálculos!$G$6:$G$228,$C31,Cálculos!$H$6:$H$228,"Ambos")+SUMIFS(Cálculos!AK$6:AK$228,Cálculos!$I$6:$I$228,3,Cálculos!$G$6:$G$228,$C31,Cálculos!$H$6:$H$228,"CAPV"))/1000 -> 0 | I31: =(SUMIFS(Cálculos!AL$6:AL$228,Cálculos!$I$6:$I$228,3,Cálculos!$G$6:$G$228,$C31,Cálculos!$H$6:$H$228,"Ambos")+SUMIFS(Cálculos!AL$6:AL$228,Cálculos!$I$6:$I$228,3,Cálculos!$G$6:$G$228,$C31,Cálculos!$H$6:$H$228,"CAPV"))/1000 -> 0
C32: Consumo de agua | D32: 0 | E32: =(SUMIFS(Cálculos!AH$6:AH$228,Cálculos!$I$6:$I$228,3,Cálculos!$G$6:$G$228,$C32,Cálculos!$H$6:$H$228,"Ambos")+SUMIFS(Cálculos!AH$6:AH$228,Cálculos!$I$6:$I$228,3,Cálculos!$G$6:$G$228,$C32,Cálculos!$H$6:$H$228,"CAPV"))/1000 -> 0 | F32: =(SUMIFS(Cálculos!AI$6:AI$228,Cálculos!$I$6:$I$228,3,Cálculos!$G$6:$G$228,$C32,Cálculos!$H$6:$H$228,"Ambos")+SUMIFS(Cálculos!AI$6:AI$228,Cálculos!$I$6:$I$228,3,Cálculos!$G$6:$G$228,$C32,Cálculos!$H$6:$H$228,"CAPV"))/1000 -> 0 | G32: =(SUMIFS(Cálculos!AJ$6:AJ$228,Cálculos!$I$6:$I$228,3,Cálculos!$G$6:$G$228,$C32,Cálculos!$H$6:$H$228,"Ambos")+SUMIFS(Cálculos!AJ$6:AJ$228,Cálculos!$I$6:$I$228,3,Cálculos!$G$6:$G$228,$C32,Cálculos!$H$6:$H$228,"CAPV"))/1000 -> 0 | H32: =(SUMIFS(Cálculos!AK$6:AK$228,Cálculos!$I$6:$I$228,3,Cálculos!$G$6:$G$228,$C32,Cálculos!$H$6:$H$228,"Ambos")+SUMIFS(Cálculos!AK$6:AK$228,Cálculos!$I$6:$I$228,3,Cálculos!$G$6:$G$228,$C32,Cálculos!$H$6:$H$228,"CAPV"))/1000 -> 0 | I32: =(SUMIFS(Cálculos!AL$6:AL$228,Cálculos!$I$6:$I$228,3,Cálculos!$G$6:$G$228,$C32,Cálculos!$H$6:$H$228,"Ambos")+SUMIFS(Cálculos!AL$6:AL$228,Cálculos!$I$6:$I$228,3,Cálculos!$G$6:$G$228,$C32,Cálculos!$H$6:$H$228,"CAPV"))/1000 -> 0
C33: Consumo de bienes y servicios | D33: 0 | E33: =(SUMIFS(Cálculos!AH$6:AH$228,Cálculos!$I$6:$I$228,3,Cálculos!$G$6:$G$228,$C33,Cálculos!$H$6:$H$228,"Ambos")+SUMIFS(Cálculos!AH$6:AH$228,Cálculos!$I$6:$I$228,3,Cálculos!$G$6:$G$228,$C33,Cálculos!$H$6:$H$228,"CAPV"))/1000 -> 0 | F33: =(SUMIFS(Cálculos!AI$6:AI$228,Cálculos!$I$6:$I$228,3,Cálculos!$G$6:$G$228,$C33,Cálculos!$H$6:$H$228,"Ambos")+SUMIFS(Cálculos!AI$6:AI$228,Cálculos!$I$6:$I$228,3,Cálculos!$G$6:$G$228,$C33,Cálculos!$H$6:$H$228,"CAPV"))/1000 -> 0 | G33: =(SUMIFS(Cálculos!AJ$6:AJ$228,Cálculos!$I$6:$I$228,3,Cálculos!$G$6:$G$228,$C33,Cálculos!$H$6:$H$228,"Ambos")+SUMIFS(Cálculos!AJ$6:AJ$228,Cálculos!$I$6:$I$228,3,Cálculos!$G$6:$G$228,$C33,Cálculos!$H$6:$H$228,"CAPV"))/1000 -> 0 | H33: =(SUMIFS(Cálculos!AK$6:AK$228,Cálculos!$I$6:$I$228,3,Cálculos!$G$6:$G$228,$C33,Cálculos!$H$6:$H$228,"Ambos")+SUMIFS(Cálculos!AK$6:AK$228,Cálculos!$I$6:$I$228,3,Cálculos!$G$6:$G$228,$C33,Cálculos!$H$6:$H$228,"CAPV"))/1000 -> 0 | I33: =(SUMIFS(Cálculos!AL$6:AL$228,Cálculos!$I$6:$I$228,3,Cálculos!$G$6:$G$228,$C33,Cálculos!$H$6:$H$228,"Ambos")+SUMIFS(Cálculos!AL$6:AL$228,Cálculos!$I$6:$I$228,3,Cálculos!$G$6:$G$228,$C33,Cálculos!$H$6:$H$228,"CAPV"))/1000 -> 0
C34: Transporte desde proveedor | D34: 0 | E34: =(SUMIFS(Cálculos!AH$6:AH$228,Cálculos!$I$6:$I$228,3,Cálculos!$G$6:$G$228,$C34,Cálculos!$H$6:$H$228,"Ambos")+SUMIFS(Cálculos!AH$6:AH$228,Cálculos!$I$6:$I$228,3,Cálculos!$G$6:$G$228,$C34,Cálculos!$H$6:$H$228,"CAPV"))/1000 -> 0 | F34: =(SUMIFS(Cálculos!AI$6:AI$228,Cálculos!$I$6:$I$228,3,Cálculos!$G$6:$G$228,$C34,Cálculos!$H$6:$H$228,"Ambos")+SUMIFS(Cálculos!AI$6:AI$228,Cálculos!$I$6:$I$228,3,Cálculos!$G$6:$G$228,$C34,Cálculos!$H$6:$H$228,"CAPV"))/1000 -> 0 | G34: =(SUMIFS(Cálculos!AJ$6:AJ$228,Cálculos!$I$6:$I$228,3,Cálculos!$G$6:$G$228,$C34,Cálculos!$H$6:$H$228,"Ambos")+SUMIFS(Cálculos!AJ$6:AJ$228,Cálculos!$I$6:$I$228,3,Cálculos!$G$6:$G$228,$C34,Cálculos!$H$6:$H$228,"CAPV"))/1000 -> 0 | H34: =(SUMIFS(Cálculos!AK$6:AK$228,Cálculos!$I$6:$I$228,3,Cálculos!$G$6:$G$228,$C34,Cálculos!$H$6:$H$228,"Ambos")+SUMIFS(Cálculos!AK$6:AK$228,Cálculos!$I$6:$I$228,3,Cálculos!$G$6:$G$228,$C34,Cálculos!$H$6:$H$228,"CAPV"))/1000 -> 0 | I34: =(SUMIFS(Cálculos!AL$6:AL$228,Cálculos!$I$6:$I$228,3,Cálculos!$G$6:$G$228,$C34,Cálculos!$H$6:$H$228,"Ambos")+SUMIFS(Cálculos!AL$6:AL$228,Cálculos!$I$6:$I$228,3,Cálculos!$G$6:$G$228,$C34,Cálculos!$H$6:$H$228,"CAPV"))/1000 -> 0
C35: Distribución de productos | D35: 0 | E35: =(SUMIFS(Cálculos!AH$6:AH$228,Cálculos!$I$6:$I$228,3,Cálculos!$G$6:$G$228,$C35,Cálculos!$H$6:$H$228,"Ambos")+SUMIFS(Cálculos!AH$6:AH$228,Cálculos!$I$6:$I$228,3,Cálculos!$G$6:$G$228,$C35,Cálculos!$H$6:$H$228,"CAPV"))/1000 -> 0 | F35: =(SUMIFS(Cálculos!AI$6:AI$228,Cálculos!$I$6:$I$228,3,Cálculos!$G$6:$G$228,$C35,Cálculos!$H$6:$H$228,"Ambos")+SUMIFS(Cálculos!AI$6:AI$228,Cálculos!$I$6:$I$228,3,Cálculos!$G$6:$G$228,$C35,Cálculos!$H$6:$H$228,"CAPV"))/1000 -> 0 | G35: =(SUMIFS(Cálculos!AJ$6:AJ$228,Cálculos!$I$6:$I$228,3,Cálculos!$G$6:$G$228,$C35,Cálculos!$H$6:$H$228,"Ambos")+SUMIFS(Cálculos!AJ$6:AJ$228,Cálculos!$I$6:$I$228,3,Cálculos!$G$6:$G$228,$C35,Cálculos!$H$6:$H$228,"CAPV"))/1000 -> 0 | H35: =(SUMIFS(Cálculos!AK$6:AK$228,Cálculos!$I$6:$I$228,3,Cálculos!$G$6:$G$228,$C35,Cálculos!$H$6:$H$228,"Ambos")+SUMIFS(Cálculos!AK$6:AK$228,Cálculos!$I$6:$I$228,3,Cálculos!$G$6:$G$228,$C35,Cálculos!$H$6:$H$228,"CAPV"))/1000 -> 0 | I35: =(SUMIFS(Cálculos!AL$6:AL$228,Cálculos!$I$6:$I$228,3,Cálculos!$G$6:$G$228,$C35,Cálculos!$H$6:$H$228,"Ambos")+SUMIFS(Cálculos!AL$6:AL$228,Cálculos!$I$6:$I$228,3,Cálculos!$G$6:$G$228,$C35,Cálculos!$H$6:$H$228,"CAPV"))/1000 -> 0
C36: Total | D36: =SUM(D29:D35) -> 0.00869 | E36: =SUM(E29:E35) -> 0.001364 | F36: 2.5e-05 | G36: 0.007301 | H36: 0 | I36: =SUM(I29:I35) -> 0.00869
B38: A.3) TOTAL: ALCANCE 1 + ALCANCE 2+ ALCANCE 3 (t CO2e)
B40: BALANCE TOTAL DE ABSORCIONES Y EMISIONES (ALCANCE 1 , 2 Y 3) | C40: Total | D40: =D24+D36 -> 
B43: =CONCATENATE("B) DETALLE DE RESULTADOS ABSOLUTOS EN EL AÑO ",'Datos generales organización'!$D$14," - (ALCANCE 1 +ALCANCE 2)"," (t CO2e)") -> B) DETALLE DE RESULTADOS ABSOLUTOS EN EL AÑO <seleccionar año> - (ALCANCE 1 +ALCANCE 2) (t CO2e)
D45: Total | E45: CO2 | F45: CH4 | G45: N2O | H45: Gases fluorados | I45: CO2 (b)
B46: Combustión | C46: Biomasa | D46: =SUM(E46:H46) -> 0 | E46: =(SUMIFS(Cálculos!AH$6:AH$228,Cálculos!$E$6:$E$228,$C46,Cálculos!$H$6:$H$228,"Ambos",Cálculos!$I$6:$I$228,1)+SUMIFS(Cálculos!AH$6:AH$228,Cálculos!$E$6:$E$228,$C46,Cálculos!$H$6:$H$228,"CAPV",Cálculos!$I$6:$I$228,1))/1000 -> 0 | F46: =(SUMIFS(Cálculos!AI$6:AI$228,Cálculos!$E$6:$E$228,$C46,Cálculos!$H$6:$H$228,"Ambos",Cálculos!$I$6:$I$228,1)+SUMIFS(Cálculos!AI$6:AI$228,Cálculos!$E$6:$E$228,$C46,Cálculos!$H$6:$H$228,"CAPV",Cálculos!$I$6:$I$228,1))/1000 -> 0 | G46: =(SUMIFS(Cálculos!AJ$6:AJ$228,Cálculos!$E$6:$E$228,$C46,Cálculos!$H$6:$H$228,"Ambos",Cálculos!$I$6:$I$228,1)+SUMIFS(Cálculos!AJ$6:AJ$228,Cálculos!$E$6:$E$228,$C46,Cálculos!$H$6:$H$228,"CAPV",Cálculos!$I$6:$I$228,1))/1000 -> 0 | H46: =(SUMIFS(Cálculos!AK$6:AK$228,Cálculos!$E$6:$E$228,$C46,Cálculos!$H$6:$H$228,"Ambos",Cálculos!$I$6:$I$228,1)+SUMIFS(Cálculos!AK$6:AK$228,Cálculos!$E$6:$E$228,$C46,Cálculos!$H$6:$H$228,"CAPV",Cálculos!$I$6:$I$228,1))/1000 -> 0 | I46: =(SUMIFS(Cálculos!AL$6:AL$228,Cálculos!$E$6:$E$228,$C46,Cálculos!$H$6:$H$228,"Ambos",Cálculos!$I$6:$I$228,1)+SUMIFS(Cálculos!AL$6:AL$228,Cálculos!$E$6:$E$228,$C46,Cálculos!$H$6:$H$228,"CAPV",Cálculos!$I$6:$I$228,1))/1000 -> 0
B47: Combustión | C47: Carbón mineral | D47: =SUM(E47:H47) -> 0 | E47: =(SUMIFS(Cálculos!AH$6:AH$228,Cálculos!$E$6:$E$228,$C47,Cálculos!$H$6:$H$228,"Ambos",Cálculos!$I$6:$I$228,1)+SUMIFS(Cálculos!AH$6:AH$228,Cálculos!$E$6:$E$228,$C47,Cálculos!$H$6:$H$228,"CAPV",Cálculos!$I$6:$I$228,1))/1000 -> 0 | F47: =(SUMIFS(Cálculos!AI$6:AI$228,Cálculos!$E$6:$E$228,$C47,Cálculos!$H$6:$H$228,"Ambos",Cálculos!$I$6:$I$228,1)+SUMIFS(Cálculos!AI$6:AI$228,Cálculos!$E$6:$E$228,$C47,Cálculos!$H$6:$H$228,"CAPV",Cálculos!$I$6:$I$228,1))/1000 -> 0 | G47: =(SUMIFS(Cálculos!AJ$6:AJ$228,Cálculos!$E$6:$E$228,$C47,Cálculos!$H$6:$H$228,"Ambos",Cálculos!$I$6:$I$228,1)+SUMIFS(Cálculos!AJ$6:AJ$228,Cálculos!$E$6:$E$228,$C47,Cálculos!$H$6:$H$228,"CAPV",Cálculos!$I$6:$I$228,1))/1000 -> 0 | H47: =(SUMIFS(Cálculos!AK$6:AK$228,Cálculos!$E$6:$E$228,$C47,Cálculos!$H$6:$H$228,"Ambos",Cálculos!$I$6:$I$228,1)+SUMIFS(Cálculos!AK$6:AK$228,Cálculos!$E$6:$E$228,$C47,Cálculos!$H$6:$H$228,"CAPV",Cálculos!$I$6:$I$228,1))/1000 -> 0 | I47: =(SUMIFS(Cálculos!AL$6:AL$228,Cálculos!$E$6:$E$228,$C47,Cálculos!$H$6:$H$228,"Ambos",Cálculos!$I$6:$I$228,1)+SUMIFS(Cálculos!AL$6:AL$228,Cálculos!$E$6:$E$228,$C47,Cálculos!$H$6:$H$228,"CAPV",Cálculos!$I$6:$I$228,1))/1000 -> 0
B48: Combustión | C48: Coque de petróleo | D48: 0 | E48: =(SUMIFS(Cálculos!AH$6:AH$228,Cálculos!$E$6:$E$228,$C48,Cálculos!$H$6:$H$228,"Ambos",Cálculos!$I$6:$I$228,1)+SUMIFS(Cálculos!AH$6:AH$228,Cálculos!$E$6:$E$228,$C48,Cálculos!$H$6:$H$228,"CAPV",Cálculos!$I$6:$I$228,1))/1000 -> 0 | F48: =(SUMIFS(Cálculos!AI$6:AI$228,Cálculos!$E$6:$E$228,$C48,Cálculos!$H$6:$H$228,"Ambos",Cálculos!$I$6:$I$228,1)+SUMIFS(Cálculos!AI$6:AI$228,Cálculos!$E$6:$E$228,$C48,Cálculos!$H$6:$H$228,"CAPV",Cálculos!$I$6:$I$228,1))/1000 -> 0 | G48: =(SUMIFS(Cálculos!AJ$6:AJ$228,Cálculos!$E$6:$E$228,$C48,Cálculos!$H$6:$H$228,"Ambos",Cálculos!$I$6:$I$228,1)+SUMIFS(Cálculos!AJ$6:AJ$228,Cálculos!$E$6:$E$228,$C48,Cálculos!$H$6:$H$228,"CAPV",Cálculos!$I$6:$I$228,1))/1000 -> 0 | H48: =(SUMIFS(Cálculos!AK$6:AK$228,Cálculos!$E$6:$E$228,$C48,Cálculos!$H$6:$H$228,"Ambos",Cálculos!$I$6:$I$228,1)+SUMIFS(Cálculos!AK$6:AK$228,Cálculos!$E$6:$E$228,$C48,Cálculos!$H$6:$H$228,"CAPV",Cálculos!$I$6:$I$228,1))/1000 -> 0 | I48: =(SUMIFS(Cálculos!AL$6:AL$228,Cálculos!$E$6:$E$228,$C48,Cálculos!$H$6:$H$228,"Ambos",Cálculos!$I$6:$I$228,1)+SUMIFS(Cálculos!AL$6:AL$228,Cálculos!$E$6:$E$228,$C48,Cálculos!$H$6:$H$228,"CAPV",Cálculos!$I$6:$I$228,1))/1000 -> 0
B49: Combustión | C49: Fueloleo | D49: 0 | E49: =(SUMIFS(Cálculos!AH$6:AH$228,Cálculos!$E$6:$E$228,$C49,Cálculos!$H$6:$H$228,"Ambos",Cálculos!$I$6:$I$228,1)+SUMIFS(Cálculos!AH$6:AH$228,Cálculos!$E$6:$E$228,$C49,Cálculos!$H$6:$H$228,"CAPV",Cálculos!$I$6:$I$228,1))/1000 -> 0 | F49: =(SUMIFS(Cálculos!AI$6:AI$228,Cálculos!$E$6:$E$228,$C49,Cálculos!$H$6:$H$228,"Ambos",Cálculos!$I$6:$I$228,1)+SUMIFS(Cálculos!AI$6:AI$228,Cálculos!$E$6:$E$228,$C49,Cálculos!$H$6:$H$228,"CAPV",Cálculos!$I$6:$I$228,1))/1000 -> 0 | G49: =(SUMIFS(Cálculos!AJ$6:AJ$228,Cálculos!$E$6:$E$228,$C49,Cálculos!$H$6:$H$228,"Ambos",Cálculos!$I$6:$I$228,1)+SUMIFS(Cálculos!AJ$6:AJ$228,Cálculos!$E$6:$E$228,$C49,Cálculos!$H$6:$H$228,"CAPV",Cálculos!$I$6:$I$228,1))/1000 -> 0 | H49: =(SUMIFS(Cálculos!AK$6:AK$228,Cálculos!$E$6:$E$228,$C49,Cálculos!$H$6:$H$228,"Ambos",Cálculos!$I$6:$I$228,1)+SUMIFS(Cálculos!AK$6:AK$228,Cálculos!$E$6:$E$228,$C49,Cálculos!$H$6:$H$228,"CAPV",Cálculos!$I$6:$I$228,1))/1000 -> 0 | I49: =(SUMIFS(Cálculos!AL$6:AL$228,Cálculos!$E$6:$E$228,$C49,Cálculos!$H$6:$H$228,"Ambos",Cálculos!$I$6:$I$228,1)+SUMIFS(Cálculos!AL$6:AL$228,Cálculos!$E$6:$E$228,$C49,Cálculos!$H$6:$H$228,"CAPV",Cálculos!$I$6:$I$228,1))/1000 -> 0
B50: Combustión | C50: Gas butano | D50: 0 | E50: =(SUMIFS(Cálculos!AH$6:AH$228,Cálculos!$E$6:$E$228,$C50,Cálculos!$H$6:$H$228,"Ambos",Cálculos!$I$6:$I$228,1)+SUMIFS(Cálculos!AH$6:AH$228,Cálculos!$E$6:$E$228,$C50,Cálculos!$H$6:$H$228,"CAPV",Cálculos!$I$6:$I$228,1))/1000 -> 0 | F50: =(SUMIFS(Cálculos!AI$6:AI$228,Cálculos!$E$6:$E$228,$C50,Cálculos!$H$6:$H$228,"Ambos",Cálculos!$I$6:$I$228,1)+SUMIFS(Cálculos!AI$6:AI$228,Cálculos!$E$6:$E$228,$C50,Cálculos!$H$6:$H$228,"CAPV",Cálculos!$I$6:$I$228,1))/1000 -> 0 | G50: =(SUMIFS(Cálculos!AJ$6:AJ$228,Cálculos!$E$6:$E$228,$C50,Cálculos!$H$6:$H$228,"Ambos",Cálculos!$I$6:$I$228,1)+SUMIFS(Cálculos!AJ$6:AJ$228,Cálculos!$E$6:$E$228,$C50,Cálculos!$H$6:$H$228,"CAPV",Cálculos!$I$6:$I$228,1))/1000 -> 0 | H50: =(SUMIFS(Cálculos!AK$6:AK$228,Cálculos!$E$6:$E$228,$C50,Cálculos!$H$6:$H$228,"Ambos",Cálculos!$I$6:$I$228,1)+SUMIFS(Cálculos!AK$6:AK$228,Cálculos!$E$6:$E$228,$C50,Cálculos!$H$6:$H$228,"CAPV",Cálculos!$I$6:$I$228,1))/1000 -> 0 | I50: =(SUMIFS(Cálculos!AL$6:AL$228,Cálculos!$E$6:$E$228,$C50,Cálculos!$H$6:$H$228,"Ambos",Cálculos!$I$6:$I$228,1)+SUMIFS(Cálculos!AL$6:AL$228,Cálculos!$E$6:$E$228,$C50,Cálculos!$H$6:$H$228,"CAPV",Cálculos!$I$6:$I$228,1))/1000 -> 0
B51: Combustión | C51: Gas natural | D51: 0 | E51: =(SUMIFS(Cálculos!AH$6:AH$228,Cálculos!$E$6:$E$228,$C51,Cálculos!$H$6:$H$228,"Ambos",Cálculos!$I$6:$I$228,1)+SUMIFS(Cálculos!AH$6:AH$228,Cálculos!$E$6:$E$228,$C51,Cálculos!$H$6:$H$228,"CAPV",Cálculos!$I$6:$I$228,1))/1000 -> 0 | F51: =(SUMIFS(Cálculos!AI$6:AI$228,Cálculos!$E$6:$E$228,$C51,Cálculos!$H$6:$H$228,"Ambos",Cálculos!$I$6:$I$228,1)+SUMIFS(Cálculos!AI$6:AI$228,Cálculos!$E$6:$E$228,$C51,Cálculos!$H$6:$H$228,"CAPV",Cálculos!$I$6:$I$228,1))/1000 -> 0 | G51: =(SUMIFS(Cálculos!AJ$6:AJ$228,Cálculos!$E$6:$E$228,$C51,Cálculos!$H$6:$H$228,"Ambos",Cálculos!$I$6:$I$228,1)+SUMIFS(Cálculos!AJ$6:AJ$228,Cálculos!$E$6:$E$228,$C51,Cálculos!$H$6:$H$228,"CAPV",Cálculos!$I$6:$I$228,1))/1000 -> 0 | H51: =(SUMIFS(Cálculos!AK$6:AK$228,Cálculos!$E$6:$E$228,$C51,Cálculos!$H$6:$H$228,"Ambos",Cálculos!$I$6:$I$228,1)+SUMIFS(Cálculos!AK$6:AK$228,Cálculos!$E$6:$E$228,$C51,Cálculos!$H$6:$H$228,"CAPV",Cálculos!$I$6:$I$228,1))/1000 -> 0 | I51: =(SUMIFS(Cálculos!AL$6:AL$228,Cálculos!$E$6:$E$228,$C51,Cálculos!$H$6:$H$228,"Ambos",Cálculos!$I$6:$I$228,1)+SUMIFS(Cálculos!AL$6:AL$228,Cálculos!$E$6:$E$228,$C51,Cálculos!$H$6:$H$228,"CAPV",Cálculos!$I$6:$I$228,1))/1000 -> 0
B52: Combustión | C52: Gas propano | D52: 0 | E52: =(SUMIFS(Cálculos!AH$6:AH$228,Cálculos!$E$6:$E$228,$C52,Cálculos!$H$6:$H$228,"Ambos",Cálculos!$I$6:$I$228,1)+SUMIFS(Cálculos!AH$6:AH$228,Cálculos!$E$6:$E$228,$C52,Cálculos!$H$6:$H$228,"CAPV",Cálculos!$I$6:$I$228,1))/1000 -> 0 | F52: =(SUMIFS(Cálculos!AI$6:AI$228,Cálculos!$E$6:$E$228,$C52,Cálculos!$H$6:$H$228,"Ambos",Cálculos!$I$6:$I$228,1)+SUMIFS(Cálculos!AI$6:AI$228,Cálculos!$E$6:$E$228,$C52,Cálculos!$H$6:$H$228,"CAPV",Cálculos!$I$6:$I$228,1))/1000 -> 0 | G52: =(SUMIFS(Cálculos!AJ$6:AJ$228,Cálculos!$E$6:$E$228,$C52,Cálculos!$H$6:$H$228,"Ambos",Cálculos!$I$6:$I$228,1)+SUMIFS(Cálculos!AJ$6:AJ$228,Cálculos!$E$6:$E$228,$C52,Cálculos!$H$6:$H$228,"CAPV",Cálculos!$I$6:$I$228,1))/1000 -> 0 | H52: =(SUMIFS(Cálculos!AK$6:AK$228,Cálculos!$E$6:$E$228,$C52,Cálculos!$H$6:$H$228,"Ambos",Cálculos!$I$6:$I$228,1)+SUMIFS(Cálculos!AK$6:AK$228,Cálculos!$E$6:$E$228,$C52,Cálculos!$H$6:$H$228,"CAPV",Cálculos!$I$6:$I$228,1))/1000 -> 0 | I52: =(SUMIFS(Cálculos!AL$6:AL$228,Cálculos!$E$6:$E$228,$C52,Cálculos!$H$6:$H$228,"Ambos",Cálculos!$I$6:$I$228,1)+SUMIFS(Cálculos!AL$6:AL$228,Cálculos!$E$6:$E$228,$C52,Cálculos!$H$6:$H$228,"CAPV",Cálculos!$I$6:$I$228,1))/1000 -> 0
B53: Combustión | C53: Gasóleo C | D53: 0 | E53: =(SUMIFS(Cálculos!AH$6:AH$228,Cálculos!$E$6:$E$228,$C53,Cálculos!$H$6:$H$228,"Ambos",Cálculos!$I$6:$I$228,1)+SUMIFS(Cálculos!AH$6:AH$228,Cálculos!$E$6:$E$228,$C53,Cálculos!$H$6:$H$228,"CAPV",Cálculos!$I$6:$I$228,1))/1000 -> 0 | F53: =(SUMIFS(Cálculos!AI$6:AI$228,Cálculos!$E$6:$E$228,$C53,Cálculos!$H$6:$H$228,"Ambos",Cálculos!$I$6:$I$228,1)+SUMIFS(Cálculos!AI$6:AI$228,Cálculos!$E$6:$E$228,$C53,Cálculos!$H$6:$H$228,"CAPV",Cálculos!$I$6:$I$228,1))/1000 -> 0 | G53: =(SUMIFS(Cálculos!AJ$6:AJ$228,Cálculos!$E$6:$E$228,$C53,Cálculos!$H$6:$H$228,"Ambos",Cálculos!$I$6:$I$228,1)+SUMIFS(Cálculos!AJ$6:AJ$228,Cálculos!$E$6:$E$228,$C53,Cálculos!$H$6:$H$228,"CAPV",Cálculos!$I$6:$I$228,1))/1000 -> 0 | H53: =(SUMIFS(Cálculos!AK$6:AK$228,Cálculos!$E$6:$E$228,$C53,Cálculos!$H$6:$H$228,"Ambos",Cálculos!$I$6:$I$228,1)+SUMIFS(Cálculos!AK$6:AK$228,Cálculos!$E$6:$E$228,$C53,Cálculos!$H$6:$H$228,"CAPV",Cálculos!$I$6:$I$228,1))/1000 -> 0 | I53: =(SUMIFS(Cálculos!AL$6:AL$228,Cálculos!$E$6:$E$228,$C53,Cálculos!$H$6:$H$228,"Ambos",Cálculos!$I$6:$I$228,1)+SUMIFS(Cálculos!AL$6:AL$228,Cálculos!$E$6:$E$228,$C53,Cálculos!$H$6:$H$228,"CAPV",Cálculos!$I$6:$I$228,1))/1000 -> 0
B54: Combustión | C54: GLP genérico | D54: 0 | E54: =(SUMIFS(Cálculos!AH$6:AH$228,Cálculos!$E$6:$E$228,$C54,Cálculos!$H$6:$H$228,"Ambos",Cálculos!$I$6:$I$228,1)+SUMIFS(Cálculos!AH$6:AH$228,Cálculos!$E$6:$E$228,$C54,Cálculos!$H$6:$H$228,"CAPV",Cálculos!$I$6:$I$228,1))/1000 -> 0 | F54: =(SUMIFS(Cálculos!AI$6:AI$228,Cálculos!$E$6:$E$228,$C54,Cálculos!$H$6:$H$228,"Ambos",Cálculos!$I$6:$I$228,1)+SUMIFS(Cálculos!AI$6:AI$228,Cálculos!$E$6:$E$228,$C54,Cálculos!$H$6:$H$228,"CAPV",Cálculos!$I$6:$I$228,1))/1000 -> 0 | G54: =(SUMIFS(Cálculos!AJ$6:AJ$228,Cálculos!$E$6:$E$228,$C54,Cálculos!$H$6:$H$228,"Ambos",Cálculos!$I$6:$I$228,1)+SUMIFS(Cálculos!AJ$6:AJ$228,Cálculos!$E$6:$E$228,$C54,Cálculos!$H$6:$H$228,"CAPV",Cálculos!$I$6:$I$228,1))/1000 -> 0 | H54: =(SUMIFS(Cálculos!AK$6:AK$228,Cálculos!$E$6:$E$228,$C54,Cálculos!$H$6:$H$228,"Ambos",Cálculos!$I$6:$I$228,1)+SUMIFS(Cálculos!AK$6:AK$228,Cálculos!$E$6:$E$228,$C54,Cálculos!$H$6:$H$228,"CAPV",Cálculos!$I$6:$I$228,1))/1000 -> 0 | I54: =(SUMIFS(Cálculos!AL$6:AL$228,Cálculos!$E$6:$E$228,$C54,Cálculos!$H$6:$H$228,"Ambos",Cálculos!$I$6:$I$228,1)+SUMIFS(Cálculos!AL$6:AL$228,Cálculos!$E$6:$E$228,$C54,Cálculos!$H$6:$H$228,"CAPV",Cálculos!$I$6:$I$228,1))/1000 -> 0
B55: Combustión | C55: Queroseno | D55: 0 | E55: =(SUMIFS(Cálculos!AH$6:AH$228,Cálculos!$E$6:$E$228,$C55,Cálculos!$H$6:$H$228,"Ambos",Cálculos!$I$6:$I$228,1)+SUMIFS(Cálculos!AH$6:AH$228,Cálculos!$E$6:$E$228,$C55,Cálculos!$H$6:$H$228,"CAPV",Cálculos!$I$6:$I$228,1))/1000 -> 0 | F55: =(SUMIFS(Cálculos!AI$6:AI$228,Cálculos!$E$6:$E$228,$C55,Cálculos!$H$6:$H$228,"Ambos",Cálculos!$I$6:$I$228,1)+SUMIFS(Cálculos!AI$6:AI$228,Cálculos!$E$6:$E$228,$C55,Cálculos!$H$6:$H$228,"CAPV",Cálculos!$I$6:$I$228,1))/1000 -> 0 | G55: =(SUMIFS(Cálculos!AJ$6:AJ$228,Cálculos!$E$6:$E$228,$C55,Cálculos!$H$6:$H$228,"Ambos",Cálculos!$I$6:$I$228,1)+SUMIFS(Cálculos!AJ$6:AJ$228,Cálculos!$E$6:$E$228,$C55,Cálculos!$H$6:$H$228,"CAPV",Cálculos!$I$6:$I$228,1))/1000 -> 0 | H55: =(SUMIFS(Cálculos!AK$6:AK$228,Cálculos!$E$6:$E$228,$C55,Cálculos!$H$6:$H$228,"Ambos",Cálculos!$I$6:$I$228,1)+SUMIFS(Cálculos!AK$6:AK$228,Cálculos!$E$6:$E$228,$C55,Cálculos!$H$6:$H$228,"CAPV",Cálculos!$I$6:$I$228,1))/1000 -> 0 | I55: =(SUMIFS(Cálculos!AL$6:AL$228,Cálculos!$E$6:$E$228,$C55,Cálculos!$H$6:$H$228,"Ambos",Cálculos!$I$6:$I$228,1)+SUMIFS(Cálculos!AL$6:AL$228,Cálculos!$E$6:$E$228,$C55,Cálculos!$H$6:$H$228,"CAPV",Cálculos!$I$6:$I$228,1))/1000 -> 0
B56: Combustión | C56: Gasolina | E56: =(SUMIFS(Cálculos!AH$6:AH$228,Cálculos!$E$6:$E$228,$C56,Cálculos!$H$6:$H$228,"Ambos",Cálculos!$I$6:$I$228,1)+SUMIFS(Cálculos!AH$6:AH$228,Cálculos!$E$6:$E$228,$C56,Cálculos!$H$6:$H$228,"CAPV",Cálculos!$I$6:$I$228,1))/1000 ->  | F56: =(SUMIFS(Cálculos!AI$6:AI$228,Cálculos!$E$6:$E$228,$C56,Cálculos!$H$6:$H$228,"Ambos",Cálculos!$I$6:$I$228,1)+SUMIFS(Cálculos!AI$6:AI$228,Cálculos!$E$6:$E$228,$C56,Cálculos!$H$6:$H$228,"CAPV",Cálculos!$I$6:$I$228,1))/1000 ->  | G56: =(SUMIFS(Cálculos!AJ$6:AJ$228,Cálculos!$E$6:$E$228,$C56,Cálculos!$H$6:$H$228,"Ambos",Cálculos!$I$6:$I$228,1)+SUMIFS(Cálculos!AJ$6:AJ$228,Cálculos!$E$6:$E$228,$C56,Cálculos!$H$6:$H$228,"CAPV",Cálculos!$I$6:$I$228,1))/1000 ->  | H56: =(SUMIFS(Cálculos!AK$6:AK$228,Cálculos!$E$6:$E$228,$C56,Cálculos!$H$6:$H$228,"Ambos",Cálculos!$I$6:$I$228,1)+SUMIFS(Cálculos!AK$6:AK$228,Cálculos!$E$6:$E$228,$C56,Cálculos!$H$6:$H$228,"CAPV",Cálculos!$I$6:$I$228,1))/1000 -> 0 | I56: =(SUMIFS(Cálculos!AL$6:AL$228,Cálculos!$E$6:$E$228,$C56,Cálculos!$H$6:$H$228,"Ambos",Cálculos!$I$6:$I$228,1)+SUMIFS(Cálculos!AL$6:AL$228,Cálculos!$E$6:$E$228,$C56,Cálculos!$H$6:$H$228,"CAPV",Cálculos!$I$6:$I$228,1))/1000 -> 
A57: Gasóleo A y B | B57: Combustión | C57: Gasóleo A y B | E57: =(SUMIFS(Cálculos!AH$6:AH$228,Cálculos!$E$6:$E$228,$C57,Cálculos!$H$6:$H$228,"Ambos",Cálculos!$I$6:$I$228,1)+SUMIFS(Cálculos!AH$6:AH$228,Cálculos!$E$6:$E$228,$C57,Cálculos!$H$6:$H$228,"CAPV",Cálculos!$I$6:$I$228,1))/1000 ->  | F57: =(SUMIFS(Cálculos!AI$6:AI$228,Cálculos!$E$6:$E$228,$C57,Cálculos!$H$6:$H$228,"Ambos",Cálculos!$I$6:$I$228,1)+SUMIFS(Cálculos!AI$6:AI$228,Cálculos!$E$6:$E$228,$C57,Cálculos!$H$6:$H$228,"CAPV",Cálculos!$I$6:$I$228,1))/1000 ->  | G57: =(SUMIFS(Cálculos!AJ$6:AJ$228,Cálculos!$E$6:$E$228,$C57,Cálculos!$H$6:$H$228,"Ambos",Cálculos!$I$6:$I$228,1)+SUMIFS(Cálculos!AJ$6:AJ$228,Cálculos!$E$6:$E$228,$C57,Cálculos!$H$6:$H$228,"CAPV",Cálculos!$I$6:$I$228,1))/1000 ->  | H57: =(SUMIFS(Cálculos!AK$6:AK$228,Cálculos!$E$6:$E$228,$C57,Cálculos!$H$6:$H$228,"Ambos",Cálculos!$I$6:$I$228,1)+SUMIFS(Cálculos!AK$6:AK$228,Cálculos!$E$6:$E$228,$C57,Cálculos!$H$6:$H$228,"CAPV",Cálculos!$I$6:$I$228,1))/1000 -> 0 | I57: =(SUMIFS(Cálculos!AL$6:AL$228,Cálculos!$E$6:$E$228,$C57,Cálculos!$H$6:$H$228,"Ambos",Cálculos!$I$6:$I$228,1)+SUMIFS(Cálculos!AL$6:AL$228,Cálculos!$E$6:$E$228,$C57,Cálculos!$H$6:$H$228,"CAPV",Cálculos!$I$6:$I$228,1))/1000 -> 
B58: Combustión | C58: E10 | D58: 0 | E58: =(SUMIFS(Cálculos!AH$6:AH$228,Cálculos!$E$6:$E$228,$C58,Cálculos!$H$6:$H$228,"Ambos",Cálculos!$I$6:$I$228,1)+SUMIFS(Cálculos!AH$6:AH$228,Cálculos!$E$6:$E$228,$C58,Cálculos!$H$6:$H$228,"CAPV",Cálculos!$I$6:$I$228,1))/1000 -> 0 | F58: =(SUMIFS(Cálculos!AI$6:AI$228,Cálculos!$E$6:$E$228,$C58,Cálculos!$H$6:$H$228,"Ambos",Cálculos!$I$6:$I$228,1)+SUMIFS(Cálculos!AI$6:AI$228,Cálculos!$E$6:$E$228,$C58,Cálculos!$H$6:$H$228,"CAPV",Cálculos!$I$6:$I$228,1))/1000 -> 0 | G58: =(SUMIFS(Cálculos!AJ$6:AJ$228,Cálculos!$E$6:$E$228,$C58,Cálculos!$H$6:$H$228,"Ambos",Cálculos!$I$6:$I$228,1)+SUMIFS(Cálculos!AJ$6:AJ$228,Cálculos!$E$6:$E$228,$C58,Cálculos!$H$6:$H$228,"CAPV",Cálculos!$I$6:$I$228,1))/1000 -> 0 | H58: =(SUMIFS(Cálculos!AK$6:AK$228,Cálculos!$E$6:$E$228,$C58,Cálculos!$H$6:$H$228,"Ambos",Cálculos!$I$6:$I$228,1)+SUMIFS(Cálculos!AK$6:AK$228,Cálculos!$E$6:$E$228,$C58,Cálculos!$H$6:$H$228,"CAPV",Cálculos!$I$6:$I$228,1))/1000 -> 0 | I58: =(SUMIFS(Cálculos!AL$6:AL$228,Cálculos!$E$6:$E$228,$C58,Cálculos!$H$6:$H$228,"Ambos",Cálculos!$I$6:$I$228,1)+SUMIFS(Cálculos!AL$6:AL$228,Cálculos!$E$6:$E$228,$C58,Cálculos!$H$6:$H$228,"CAPV",Cálculos!$I$6:$I$228,1))/1000 -> 0
B59: Combustión | C59: E85 | D59: 0 | E59: =(SUMIFS(Cálculos!AH$6:AH$228,Cálculos!$E$6:$E$228,$C59,Cálculos!$H$6:$H$228,"Ambos",Cálculos!$I$6:$I$228,1)+SUMIFS(Cálculos!AH$6:AH$228,Cálculos!$E$6:$E$228,$C59,Cálculos!$H$6:$H$228,"CAPV",Cálculos!$I$6:$I$228,1))/1000 -> 0 | F59: =(SUMIFS(Cálculos!AI$6:AI$228,Cálculos!$E$6:$E$228,$C59,Cálculos!$H$6:$H$228,"Ambos",Cálculos!$I$6:$I$228,1)+SUMIFS(Cálculos!AI$6:AI$228,Cálculos!$E$6:$E$228,$C59,Cálculos!$H$6:$H$228,"CAPV",Cálculos!$I$6:$I$228,1))/1000 -> 0 | G59: =(SUMIFS(Cálculos!AJ$6:AJ$228,Cálculos!$E$6:$E$228,$C59,Cálculos!$H$6:$H$228,"Ambos",Cálculos!$I$6:$I$228,1)+SUMIFS(Cálculos!AJ$6:AJ$228,Cálculos!$E$6:$E$228,$C59,Cálculos!$H$6:$H$228,"CAPV",Cálculos!$I$6:$I$228,1))/1000 -> 0 | H59: =(SUMIFS(Cálculos!AK$6:AK$228,Cálculos!$E$6:$E$228,$C59,Cálculos!$H$6:$H$228,"Ambos",Cálculos!$I$6:$I$228,1)+SUMIFS(Cálculos!AK$6:AK$228,Cálculos!$E$6:$E$228,$C59,Cálculos!$H$6:$H$228,"CAPV",Cálculos!$I$6:$I$228,1))/1000 -> 0 | I59: =(SUMIFS(Cálculos!AL$6:AL$228,Cálculos!$E$6:$E$228,$C59,Cálculos!$H$6:$H$228,"Ambos",Cálculos!$I$6:$I$228,1)+SUMIFS(Cálculos!AL$6:AL$228,Cálculos!$E$6:$E$228,$C59,Cálculos!$H$6:$H$228,"CAPV",Cálculos!$I$6:$I$228,1))/1000 -> 0
B60: Combustión | C60: B30 | D60: 0 | E60: =(SUMIFS(Cálculos!AH$6:AH$228,Cálculos!$E$6:$E$228,$C60,Cálculos!$H$6:$H$228,"Ambos",Cálculos!$I$6:$I$228,1)+SUMIFS(Cálculos!AH$6:AH$228,Cálculos!$E$6:$E$228,$C60,Cálculos!$H$6:$H$228,"CAPV",Cálculos!$I$6:$I$228,1))/1000 -> 0 | F60: =(SUMIFS(Cálculos!AI$6:AI$228,Cálculos!$E$6:$E$228,$C60,Cálculos!$H$6:$H$228,"Ambos",Cálculos!$I$6:$I$228,1)+SUMIFS(Cálculos!AI$6:AI$228,Cálculos!$E$6:$E$228,$C60,Cálculos!$H$6:$H$228,"CAPV",Cálculos!$I$6:$I$228,1))/1000 -> 0 | G60: =(SUMIFS(Cálculos!AJ$6:AJ$228,Cálculos!$E$6:$E$228,$C60,Cálculos!$H$6:$H$228,"Ambos",Cálculos!$I$6:$I$228,1)+SUMIFS(Cálculos!AJ$6:AJ$228,Cálculos!$E$6:$E$228,$C60,Cálculos!$H$6:$H$228,"CAPV",Cálculos!$I$6:$I$228,1))/1000 -> 0 | H60: =(SUMIFS(Cálculos!AK$6:AK$228,Cálculos!$E$6:$E$228,$C60,Cálculos!$H$6:$H$228,"Ambos",Cálculos!$I$6:$I$228,1)+SUMIFS(Cálculos!AK$6:AK$228,Cálculos!$E$6:$E$228,$C60,Cálculos!$H$6:$H$228,"CAPV",Cálculos!$I$6:$I$228,1))/1000 -> 0 | I60: =(SUMIFS(Cálculos!AL$6:AL$228,Cálculos!$E$6:$E$228,$C60,Cálculos!$H$6:$H$228,"Ambos",Cálculos!$I$6:$I$228,1)+SUMIFS(Cálculos!AL$6:AL$228,Cálculos!$E$6:$E$228,$C60,Cálculos!$H$6:$H$228,"CAPV",Cálculos!$I$6:$I$228,1))/1000 -> 0
B61: Combustión | C61: B100 | D61: 0 | E61: =(SUMIFS(Cálculos!AH$6:AH$228,Cálculos!$E$6:$E$228,$C61,Cálculos!$H$6:$H$228,"Ambos",Cálculos!$I$6:$I$228,1)+SUMIFS(Cálculos!AH$6:AH$228,Cálculos!$E$6:$E$228,$C61,Cálculos!$H$6:$H$228,"CAPV",Cálculos!$I$6:$I$228,1))/1000 -> 0 | F61: =(SUMIFS(Cálculos!AI$6:AI$228,Cálculos!$E$6:$E$228,$C61,Cálculos!$H$6:$H$228,"Ambos",Cálculos!$I$6:$I$228,1)+SUMIFS(Cálculos!AI$6:AI$228,Cálculos!$E$6:$E$228,$C61,Cálculos!$H$6:$H$228,"CAPV",Cálculos!$I$6:$I$228,1))/1000 -> 0 | G61: =(SUMIFS(Cálculos!AJ$6:AJ$228,Cálculos!$E$6:$E$228,$C61,Cálculos!$H$6:$H$228,"Ambos",Cálculos!$I$6:$I$228,1)+SUMIFS(Cálculos!AJ$6:AJ$228,Cálculos!$E$6:$E$228,$C61,Cálculos!$H$6:$H$228,"CAPV",Cálculos!$I$6:$I$228,1))/1000 -> 0 | H61: =(SUMIFS(Cálculos!AK$6:AK$228,Cálculos!$E$6:$E$228,$C61,Cálculos!$H$6:$H$228,"Ambos",Cálculos!$I$6:$I$228,1)+SUMIFS(Cálculos!AK$6:AK$228,Cálculos!$E$6:$E$228,$C61,Cálculos!$H$6:$H$228,"CAPV",Cálculos!$I$6:$I$228,1))/1000 -> 0 | I61: =(SUMIFS(Cálculos!AL$6:AL$228,Cálculos!$E$6:$E$228,$C61,Cálculos!$H$6:$H$228,"Ambos",Cálculos!$I$6:$I$228,1)+SUMIFS(Cálculos!AL$6:AL$228,Cálculos!$E$6:$E$228,$C61,Cálculos!$H$6:$H$228,"CAPV",Cálculos!$I$6:$I$228,1))/1000 -> 0
B62: Combustión | C62: Gas Natural Comprimido | D62: 0 | E62: =(SUMIFS(Cálculos!AH$6:AH$228,Cálculos!$E$6:$E$228,$C62,Cálculos!$H$6:$H$228,"Ambos",Cálculos!$I$6:$I$228,1)+SUMIFS(Cálculos!AH$6:AH$228,Cálculos!$E$6:$E$228,$C62,Cálculos!$H$6:$H$228,"CAPV",Cálculos!$I$6:$I$228,1))/1000 -> 0 | F62: =(SUMIFS(Cálculos!AI$6:AI$228,Cálculos!$E$6:$E$228,$C62,Cálculos!$H$6:$H$228,"Ambos",Cálculos!$I$6:$I$228,1)+SUMIFS(Cálculos!AI$6:AI$228,Cálculos!$E$6:$E$228,$C62,Cálculos!$H$6:$H$228,"CAPV",Cálculos!$I$6:$I$228,1))/1000 -> 0 | G62: =(SUMIFS(Cálculos!AJ$6:AJ$228,Cálculos!$E$6:$E$228,$C62,Cálculos!$H$6:$H$228,"Ambos",Cálculos!$I$6:$I$228,1)+SUMIFS(Cálculos!AJ$6:AJ$228,Cálculos!$E$6:$E$228,$C62,Cálculos!$H$6:$H$228,"CAPV",Cálculos!$I$6:$I$228,1))/1000 -> 0 | H62: =(SUMIFS(Cálculos!AK$6:AK$228,Cálculos!$E$6:$E$228,$C62,Cálculos!$H$6:$H$228,"Ambos",Cálculos!$I$6:$I$228,1)+SUMIFS(Cálculos!AK$6:AK$228,Cálculos!$E$6:$E$228,$C62,Cálculos!$H$6:$H$228,"CAPV",Cálculos!$I$6:$I$228,1))/1000 -> 0 | I62: =(SUMIFS(Cálculos!AL$6:AL$228,Cálculos!$E$6:$E$228,$C62,Cálculos!$H$6:$H$228,"Ambos",Cálculos!$I$6:$I$228,1)+SUMIFS(Cálculos!AL$6:AL$228,Cálculos!$E$6:$E$228,$C62,Cálculos!$H$6:$H$228,"CAPV",Cálculos!$I$6:$I$228,1))/1000 -> 0
B63: Combustión | C63: Gas Natural Licuado | D63: 0 | E63: =(SUMIFS(Cálculos!AH$6:AH$228,Cálculos!$E$6:$E$228,$C63,Cálculos!$H$6:$H$228,"Ambos",Cálculos!$I$6:$I$228,1)+SUMIFS(Cálculos!AH$6:AH$228,Cálculos!$E$6:$E$228,$C63,Cálculos!$H$6:$H$228,"CAPV",Cálculos!$I$6:$I$228,1))/1000 -> 0 | F63: =(SUMIFS(Cálculos!AI$6:AI$228,Cálculos!$E$6:$E$228,$C63,Cálculos!$H$6:$H$228,"Ambos",Cálculos!$I$6:$I$228,1)+SUMIFS(Cálculos!AI$6:AI$228,Cálculos!$E$6:$E$228,$C63,Cálculos!$H$6:$H$228,"CAPV",Cálculos!$I$6:$I$228,1))/1000 -> 0 | G63: =(SUMIFS(Cálculos!AJ$6:AJ$228,Cálculos!$E$6:$E$228,$C63,Cálculos!$H$6:$H$228,"Ambos",Cálculos!$I$6:$I$228,1)+SUMIFS(Cálculos!AJ$6:AJ$228,Cálculos!$E$6:$E$228,$C63,Cálculos!$H$6:$H$228,"CAPV",Cálculos!$I$6:$I$228,1))/1000 -> 0 | H63: =(SUMIFS(Cálculos!AK$6:AK$228,Cálculos!$E$6:$E$228,$C63,Cálculos!$H$6:$H$228,"Ambos",Cálculos!$I$6:$I$228,1)+SUMIFS(Cálculos!AK$6:AK$228,Cálculos!$E$6:$E$228,$C63,Cálculos!$H$6:$H$228,"CAPV",Cálculos!$I$6:$I$228,1))/1000 -> 0 | I63: =(SUMIFS(Cálculos!AL$6:AL$228,Cálculos!$E$6:$E$228,$C63,Cálculos!$H$6:$H$228,"Ambos",Cálculos!$I$6:$I$228,1)+SUMIFS(Cálculos!AL$6:AL$228,Cálculos!$E$6:$E$228,$C63,Cálculos!$H$6:$H$228,"CAPV",Cálculos!$I$6:$I$228,1))/1000 -> 0
B64: Combustión | C64: GLP genérico | D64: 0 | E64: =(SUMIFS(Cálculos!AH$6:AH$228,Cálculos!$E$6:$E$228,$C64,Cálculos!$H$6:$H$228,"Ambos",Cálculos!$I$6:$I$228,1)+SUMIFS(Cálculos!AH$6:AH$228,Cálculos!$E$6:$E$228,$C64,Cálculos!$H$6:$H$228,"CAPV",Cálculos!$I$6:$I$228,1))/1000 -> 0 | F64: =(SUMIFS(Cálculos!AI$6:AI$228,Cálculos!$E$6:$E$228,$C64,Cálculos!$H$6:$H$228,"Ambos",Cálculos!$I$6:$I$228,1)+SUMIFS(Cálculos!AI$6:AI$228,Cálculos!$E$6:$E$228,$C64,Cálculos!$H$6:$H$228,"CAPV",Cálculos!$I$6:$I$228,1))/1000 -> 0 | G64: =(SUMIFS(Cálculos!AJ$6:AJ$228,Cálculos!$E$6:$E$228,$C64,Cálculos!$H$6:$H$228,"Ambos",Cálculos!$I$6:$I$228,1)+SUMIFS(Cálculos!AJ$6:AJ$228,Cálculos!$E$6:$E$228,$C64,Cálculos!$H$6:$H$228,"CAPV",Cálculos!$I$6:$I$228,1))/1000 -> 0 | H64: =(SUMIFS(Cálculos!AK$6:AK$228,Cálculos!$E$6:$E$228,$C64,Cálculos!$H$6:$H$228,"Ambos",Cálculos!$I$6:$I$228,1)+SUMIFS(Cálculos!AK$6:AK$228,Cálculos!$E$6:$E$228,$C64,Cálculos!$H$6:$H$228,"CAPV",Cálculos!$I$6:$I$228,1))/1000 -> 0 | I64: =(SUMIFS(Cálculos!AL$6:AL$228,Cálculos!$E$6:$E$228,$C64,Cálculos!$H$6:$H$228,"Ambos",Cálculos!$I$6:$I$228,1)+SUMIFS(Cálculos!AL$6:AL$228,Cálculos!$E$6:$E$228,$C64,Cálculos!$H$6:$H$228,"CAPV",Cálculos!$I$6:$I$228,1))/1000 -> 0
B65: Uso de productos | C65: Lubricantes | D65: 0 | E65: =(SUMIFS(Cálculos!AH$6:AH$228,Cálculos!$E$6:$E$228,$C65,Cálculos!$H$6:$H$228,"Ambos",Cálculos!$I$6:$I$228,1)+SUMIFS(Cálculos!AH$6:AH$228,Cálculos!$E$6:$E$228,$C65,Cálculos!$H$6:$H$228,"CAPV",Cálculos!$I$6:$I$228,1))/1000 -> 0 | F65: =(SUMIFS(Cálculos!AI$6:AI$228,Cálculos!$E$6:$E$228,$C65,Cálculos!$H$6:$H$228,"Ambos",Cálculos!$I$6:$I$228,1)+SUMIFS(Cálculos!AI$6:AI$228,Cálculos!$E$6:$E$228,$C65,Cálculos!$H$6:$H$228,"CAPV",Cálculos!$I$6:$I$228,1))/1000 -> 0 | G65: =(SUMIFS(Cálculos!AJ$6:AJ$228,Cálculos!$E$6:$E$228,$C65,Cálculos!$H$6:$H$228,"Ambos",Cálculos!$I$6:$I$228,1)+SUMIFS(Cálculos!AJ$6:AJ$228,Cálculos!$E$6:$E$228,$C65,Cálculos!$H$6:$H$228,"CAPV",Cálculos!$I$6:$I$228,1))/1000 -> 0 | H65: =(SUMIFS(Cálculos!AK$6:AK$228,Cálculos!$E$6:$E$228,$C65,Cálculos!$H$6:$H$228,"Ambos",Cálculos!$I$6:$I$228,1)+SUMIFS(Cálculos!AK$6:AK$228,Cálculos!$E$6:$E$228,$C65,Cálculos!$H$6:$H$228,"CAPV",Cálculos!$I$6:$I$228,1))/1000 -> 0 | I65: =(SUMIFS(Cálculos!AL$6:AL$228,Cálculos!$E$6:$E$228,$C65,Cálculos!$H$6:$H$228,"Ambos",Cálculos!$I$6:$I$228,1)+SUMIFS(Cálculos!AL$6:AL$228,Cálculos!$E$6:$E$228,$C65,Cálculos!$H$6:$H$228,"CAPV",Cálculos!$I$6:$I$228,1))/1000 -> 0
B66: Uso de productos | C66: Gases fluorados | D66: 0 | E66: =(SUMIFS(Cálculos!AH$6:AH$228,Cálculos!$E$6:$E$228,$C66,Cálculos!$H$6:$H$228,"Ambos",Cálculos!$I$6:$I$228,1)+SUMIFS(Cálculos!AH$6:AH$228,Cálculos!$E$6:$E$228,$C66,Cálculos!$H$6:$H$228,"CAPV",Cálculos!$I$6:$I$228,1))/1000 -> 0 | F66: =(SUMIFS(Cálculos!AI$6:AI$228,Cálculos!$E$6:$E$228,$C66,Cálculos!$H$6:$H$228,"Ambos",Cálculos!$I$6:$I$228,1)+SUMIFS(Cálculos!AI$6:AI$228,Cálculos!$E$6:$E$228,$C66,Cálculos!$H$6:$H$228,"CAPV",Cálculos!$I$6:$I$228,1))/1000 -> 0 | G66: =(SUMIFS(Cálculos!AJ$6:AJ$228,Cálculos!$E$6:$E$228,$C66,Cálculos!$H$6:$H$228,"Ambos",Cálculos!$I$6:$I$228,1)+SUMIFS(Cálculos!AJ$6:AJ$228,Cálculos!$E$6:$E$228,$C66,Cálculos!$H$6:$H$228,"CAPV",Cálculos!$I$6:$I$228,1))/1000 -> 0 | H66: =(SUMIFS(Cálculos!AK$6:AK$228,Cálculos!$E$6:$E$228,$C66,Cálculos!$H$6:$H$228,"Ambos",Cálculos!$I$6:$I$228,1)+SUMIFS(Cálculos!AK$6:AK$228,Cálculos!$E$6:$E$228,$C66,Cálculos!$H$6:$H$228,"CAPV",Cálculos!$I$6:$I$228,1))/1000 -> 0 | I66: =(SUMIFS(Cálculos!AL$6:AL$228,Cálculos!$E$6:$E$228,$C66,Cálculos!$H$6:$H$228,"Ambos",Cálculos!$I$6:$I$228,1)+SUMIFS(Cálculos!AL$6:AL$228,Cálculos!$E$6:$E$228,$C66,Cálculos!$H$6:$H$228,"CAPV",Cálculos!$I$6:$I$228,1))/1000 -> 0
B67: Electricidad | C67: Electricidad | D67: 0 | E67: =(SUMIFS(Cálculos!AH$6:AH$228,Cálculos!$E$6:$E$228,$C67,Cálculos!$H$6:$H$228,"Ambos",Cálculos!$I$6:$I$228,2)+SUMIFS(Cálculos!AH$6:AH$228,Cálculos!$E$6:$E$228,$C67,Cálculos!$H$6:$H$228,"CAPV",Cálculos!$I$6:$I$228,2))/1000 -> 0 | F67: =(SUMIFS(Cálculos!AI$6:AI$228,Cálculos!$E$6:$E$228,$C67,Cálculos!$H$6:$H$228,"Ambos",Cálculos!$I$6:$I$228,2)+SUMIFS(Cálculos!AI$6:AI$228,Cálculos!$E$6:$E$228,$C67,Cálculos!$H$6:$H$228,"CAPV",Cálculos!$I$6:$I$228,2))/1000 -> 0 | G67: =(SUMIFS(Cálculos!AJ$6:AJ$228,Cálculos!$E$6:$E$228,$C67,Cálculos!$H$6:$H$228,"Ambos",Cálculos!$I$6:$I$228,2)+SUMIFS(Cálculos!AJ$6:AJ$228,Cálculos!$E$6:$E$228,$C67,Cálculos!$H$6:$H$228,"CAPV",Cálculos!$I$6:$I$228,2))/1000 -> 0 | H67: =(SUMIFS(Cálculos!AK$6:AK$228,Cálculos!$E$6:$E$228,$C67,Cálculos!$H$6:$H$228,"Ambos",Cálculos!$I$6:$I$228,2)+SUMIFS(Cálculos!AK$6:AK$228,Cálculos!$E$6:$E$228,$C67,Cálculos!$H$6:$H$228,"CAPV",Cálculos!$I$6:$I$228,2))/1000 -> 0 | I67: =(SUMIFS(Cálculos!AL$6:AL$228,Cálculos!$E$6:$E$228,$C67,Cálculos!$H$6:$H$228,"Ambos",Cálculos!$I$6:$I$228,2)+SUMIFS(Cálculos!AL$6:AL$228,Cálculos!$E$6:$E$228,$C67,Cálculos!$H$6:$H$228,"CAPV",Cálculos!$I$6:$I$228,2))/1000 -> 0
B69: =CONCATENATE("D) RATIOS EN EL AÑO ",'Datos generales organización'!$D$14, " - (ALCANCE 1 +ALCANCE 2)") -> D) RATIOS EN EL AÑO <seleccionar año> - (ALCANCE 1 +ALCANCE 2)
B71: Emisiones/ Superficie | C71: t CO2e/m2 | D71: =$D$20/'Datos generales organización'!E22 -> 
B72: Emisiones/ Nº de empleados | C72: t CO2e/trabajador | D72: =$D$20/'Datos generales organización'!E23 -> 
B73: Emisiones/ Facturación | C73: t CO2e/mil € | D73: =$D$20/'Datos generales organización'!E24 -> 
B74: =CONCATENATE("Emisiones/ ",'Datos generales organización'!C37) -> Emisiones/ Seleccionar índice | C74: =CONCATENATE("tCO2e/ ", 'Datos generales organización'!D37) -> tCO2e/ unidades | D74: =$D$20/'Datos generales organización'!E20 -> 
B76: E) EVOLUCIÓN HISTÓRICA DE LAS EMISIONES
D78: ='Datos generales organización'!D14 -> <seleccionar año> | E78: =IF('Datos generales organización'!E45<>"<Año>",'Datos generales organización'!E45,NA()) ->  | F78: =IF('Datos generales organización'!F45<>"<Año>",'Datos generales organización'!F45,NA()) ->  | G78: =IF('Datos generales organización'!G45<>"<Año>",'Datos generales organización'!G45,NA()) ->  | H78: =IF('Datos generales organización'!H45<>"<Año>",'Datos generales organización'!H45,NA()) ->  | I78: =IF('Datos generales organización'!I45<>"<Año>",'Datos generales organización'!I45,NA()) ->  | J78: =IF('Datos generales organización'!J45<>"<Año>",'Datos generales organización'!J45,NA()) ->  | K78: =IF('Datos generales organización'!K45<>"<Año>",'Datos generales organización'!K45,NA()) -> 
B79: Emisiones de alcance 1 | C79: (t CO2e) | D79: =D14 ->  | E79: =IF('Datos generales organización'!E46*'Datos generales organización'!E$37<>0,'Datos generales organización'!E46*'Datos generales organización'!E$37,NA()) ->  | F79: =IF('Datos generales organización'!F46*'Datos generales organización'!F$37<>0,'Datos generales organización'!F46*'Datos generales organización'!F$37,NA()) ->  | G79: =IF('Datos generales organización'!G46*'Datos generales organización'!G$37<>0,'Datos generales organización'!G46*'Datos generales organización'!G$37,NA()) ->  | H79: =IF('Datos generales organización'!H46*'Datos generales organización'!H$37<>0,'Datos generales organización'!H46*'Datos generales organización'!H$37,NA()) ->  | I79: =IF('Datos generales organización'!I46*'Datos generales organización'!I$37<>0,'Datos generales organización'!I46*'Datos generales organización'!I$37,NA()) ->  | J79: =IF('Datos generales organización'!J46*'Datos generales organización'!J$37<>0,'Datos generales organización'!J46*'Datos generales organización'!J$37,NA()) ->  | K79: =IF('Datos generales organización'!K46*'Datos generales organización'!K$37<>0,'Datos generales organización'!K46*'Datos generales organización'!K$37,NA()) -> 
B80: Emisiones de alcance 2 | C80: (t CO2e) | D80: =D18 -> 0 | E80: =IF('Datos generales organización'!E47*'Datos generales organización'!E$37<>0,'Datos generales organización'!E47*'Datos generales organización'!E$37,NA()) ->  | F80: =IF('Datos generales organización'!F47*'Datos generales organización'!F$37<>0,'Datos generales organización'!F47*'Datos generales organización'!F$37,NA()) ->  | G80: =IF('Datos generales organización'!G47*'Datos generales organización'!G$37<>0,'Datos generales organización'!G47*'Datos generales organización'!G$37,NA()) ->  | H80: =IF('Datos generales organización'!H47*'Datos generales organización'!H$37<>0,'Datos generales organización'!H47*'Datos generales organización'!H$37,NA()) ->  | I80: =IF('Datos generales organización'!I47*'Datos generales organización'!I$37<>0,'Datos generales organización'!I47*'Datos generales organización'!I$37,NA()) ->  | J80: =IF('Datos generales organización'!J47*'Datos generales organización'!J$37<>0,'Datos generales organización'!J47*'Datos generales organización'!J$37,NA()) ->  | K80: =IF('Datos generales organización'!K47*'Datos generales organización'!K$37<>0,'Datos generales organización'!K47*'Datos generales organización'!K$37,NA()) -> 
B81: Emisiones alcance 1 + 2 | C81: (t CO2e) | D81: =D20 ->  | E81: =IF('Datos generales organización'!E48*'Datos generales organización'!E$37<>0,'Datos generales organización'!E48*'Datos generales organización'!E$37,NA()) ->  | F81: =IF('Datos generales organización'!F48*'Datos generales organización'!F$37<>0,'Datos generales organización'!F48*'Datos generales organización'!F$37,NA()) ->  | G81: =IF('Datos generales organización'!G48*'Datos generales organización'!G$37<>0,'Datos generales organización'!G48*'Datos generales organización'!G$37,NA()) ->  | H81: =IF('Datos generales organización'!H48*'Datos generales organización'!H$37<>0,'Datos generales organización'!H48*'Datos generales organización'!H$37,NA()) ->  | I81: =IF('Datos generales organización'!I48*'Datos generales organización'!I$37<>0,'Datos generales organización'!I48*'Datos generales organización'!I$37,NA()) ->  | J81: =IF('Datos generales organización'!J48*'Datos generales organización'!J$37<>0,'Datos generales organización'!J48*'Datos generales organización'!J$37,NA()) ->  | K81: =IF('Datos generales organización'!K48*'Datos generales organización'!K$37<>0,'Datos generales organización'!K48*'Datos generales organización'!K$37,NA()) -> 
B82: Emisiones/ Superficie | C82: (t CO2e/m2) | D82: =D$81/'Datos generales organización'!E22 ->  | E82: =E$81/'Datos generales organización'!E40 ->  | F82: =F$81/'Datos generales organización'!F40 ->  | G82: =G$81/'Datos generales organización'!G40 ->  | H82: =H$81/'Datos generales organización'!H40 ->  | I82: =I$81/'Datos generales organización'!I40 ->  | J82: =J$81/'Datos generales organización'!J40 ->  | K82: =K$81/'Datos generales organización'!K40 -> 
B83: Emisiones/ Nº de empleados | C83: (t CO2e/trabajador) | D83: =D$81/'Datos generales organización'!E23 ->  | E83: =E$81/'Datos generales organización'!E41 ->  | F83: =F$81/'Datos generales organización'!F41 ->  | G83: =G$81/'Datos generales organización'!G41 ->  | H83: =H$81/'Datos generales organización'!H41 ->  | I83: =I$81/'Datos generales organización'!I41 ->  | J83: =J$81/'Datos generales organización'!J41 ->  | K83: =K$81/'Datos generales organización'!K41 -> 
B84: Emisiones/ Facturación | C84: (t CO2e/mil €) | D84: =D$81/'Datos generales organización'!E24 ->  | E84: =E$81/'Datos generales organización'!E42 ->  | F84: =F$81/'Datos generales organización'!F42 ->  | G84: =G$81/'Datos generales organización'!G42 ->  | H84: =H$81/'Datos generales organización'!H42 ->  | I84: =I$81/'Datos generales organización'!I42 ->  | J84: =J$81/'Datos generales organización'!J42 ->  | K84: =K$81/'Datos generales organización'!K42 -> 
B85: Emisiones/ Nº de empleados | C85: =CONCATENATE("(tCO2e/ ",'Datos generales organización'!D37,")") -> (tCO2e/ unidades) | D85: =D$81/'Datos generales organización'!E20 ->  | E85: =E$81/'Datos generales organización'!E37 ->  | F85: =F$81/'Datos generales organización'!F37 ->  | G85: =G$81/'Datos generales organización'!G37 ->  | H85: =H$81/'Datos generales organización'!H37 ->  | I85: =I$81/'Datos generales organización'!I37 ->  | J85: =J$81/'Datos generales organización'!J37 ->  | K85: =K$81/'Datos generales organización'!K37 -> 

Sheet Result- SGMA
C1: =Instrucciones!B1 -> HERRAMIENTA DE HUELLA DE CARBONO PARA ORGANIZACIONES. Año de cálculo 2020
B2: INDICADORES RELEVANTES PARA SU INCLUSIÓN EN SISTEMAS DE GESTIÓN AMBIENTAL
B4: =CONCATENATE("A) HUELLA DE CARBONO ",'Datos generales organización'!D14, " (t CO2e)") -> A) HUELLA DE CARBONO <seleccionar año> (t CO2e)
B5: A.1) REPORTE OBLIGATORIO: ALCANCE 1 Y ALCANCE 2
D7: Total
B8: EMISIONES DIRECTAS (ALCANCE 1) | C8: Fuentes fijas | D8: =(SUMIFS(Cálculos_5!$AL$6:$AL$228,Cálculos_5!$I$6:$I$228,1,Cálculos_5!$C$6:$C$228,"Fuente fija",Cálculos_5!$H$6:$H$228,"Ambos")+SUMIFS(Cálculos_5!$AL$6:$AL$228,Cálculos_5!$I$6:$I$228,1,Cálculos_5!$C$6:$C$228,"Fuente fija",Cálculos_5!$H$6:$H$228,"CAPV"))/1000 -> 0
C9: Fuentes móviles | D9: =(SUMIFS(Cálculos_5!$AL$6:$AL$228,Cálculos_5!$I$6:$I$228,1,Cálculos_5!$C$6:$C$228,"Fuente móvil",Cálculos_5!$H$6:$H$228,"Ambos")+SUMIFS(Cálculos_5!$AL$6:$AL$228,Cálculos_5!$I$6:$I$228,1,Cálculos_5!$C$6:$C$228,"Fuente móvil",Cálculos_5!$H$6:$H$228,"CAPV"))/1000 -> 
C10: Fuentes difusas | D10: =(SUMIFS(Cálculos_5!$AL$6:$AL$228,Cálculos_5!$I$6:$I$228,1,Cálculos_5!$C$6:$C$228,"Fuente difusa",Cálculos_5!$H$6:$H$228,"Ambos")+SUMIFS(Cálculos_5!$AL$6:$AL$228,Cálculos_5!$I$6:$I$228,1,Cálculos_5!$C$6:$C$228,"Fuente difusa",Cálculos_5!$H$6:$H$228,"CAPV"))/1000 -> 0
B11: Total | C11: Total | D11: =D8+D9+D10 -> 
B13: EMISIONES INDIRECTAS POR ENERGÍA (ALCANCE 2) | C13: Fuentes fijas | D13: =(SUMIFS(Cálculos_5!$AH$6:$AH$228,Cálculos_5!$I$6:$I$228,2,Cálculos_5!$C$6:$C$228,"Fuente fija",Cálculos_5!$H$6:$H$228,"Ambos")+SUMIFS(Cálculos_5!$AH$6:$AH$228,Cálculos_5!$I$6:$I$228,2,Cálculos_5!$C$6:$C$228,"Fuente fija",Cálculos_5!$H$6:$H$228,"CAPV"))/1000 -> 0
C14: Fuentes móviles | D14: =(SUMIFS(Cálculos_5!$AH$6:$AH$228,Cálculos_5!$I$6:$I$228,2,Cálculos_5!$C$6:$C$228,"Fuente móvil",Cálculos_5!$H$6:$H$228,"Ambos")+SUMIFS(Cálculos_5!$AH$6:$AH$228,Cálculos_5!$I$6:$I$228,2,Cálculos_5!$C$6:$C$228,"Fuente móvil",Cálculos_5!$H$6:$H$228,"CAPV"))/1000 -> 0
C15: Total | D15: =D13+D14 -> 0
B17: EMISIONES DIRECTAS (ALCANCE 1) + EMISIONES INDIRECTAS POR ENERGÍA (ALCANCE 2) | C17: Total | D17: =D11+D15 -> 
B19: A.2) REPORTE OPCIONAL: ALCANCE 3 (t CO2e)
D21: Total
B22: OTRAS EMISIONES INDIRECTAS (ALCANCE 3) | C22: ='Result- RVHdC Detalle'!C29 -> Movilidad de los trabajadores | D22: =(SUMIFS(Cálculos_5!$AL$6:$AL$228,Cálculos_5!$I$6:$I$228,3,Cálculos_5!$G$6:$G$228,C22,Cálculos_5!$H$6:$H$228,"Ambos")+SUMIFS(Cálculos_5!$AL$6:$AL$228,Cálculos_5!$I$6:$I$228,3,Cálculos_5!$G$6:$G$228,C22,Cálculos_5!$H$6:$H$228,"CAPV"))/1000 -> 0.0078845
C23: ='Result- RVHdC Detalle'!C30 -> Viajes de trabajo | D23: =(SUMIFS(Cálculos_5!$AL$6:$AL$228,Cálculos_5!$I$6:$I$228,3,Cálculos_5!$G$6:$G$228,C23,Cálculos_5!$H$6:$H$228,"Ambos")+SUMIFS(Cálculos_5!$AL$6:$AL$228,Cálculos_5!$I$6:$I$228,3,Cálculos_5!$G$6:$G$228,C23,Cálculos_5!$H$6:$H$228,"CAPV"))/1000 -> 0
C24: ='Result- RVHdC Detalle'!C31 -> Gestión de residuos | D24: =(SUMIFS(Cálculos_5!$AL$6:$AL$228,Cálculos_5!$I$6:$I$228,3,Cálculos_5!$G$6:$G$228,C24,Cálculos_5!$H$6:$H$228,"Ambos")+SUMIFS(Cálculos_5!$AL$6:$AL$228,Cálculos_5!$I$6:$I$228,3,Cálculos_5!$G$6:$G$228,C24,Cálculos_5!$H$6:$H$228,"CAPV"))/1000 -> 0
C25: ='Result- RVHdC Detalle'!C32 -> Consumo de agua | D25: =(SUMIFS(Cálculos_5!$AL$6:$AL$228,Cálculos_5!$I$6:$I$228,3,Cálculos_5!$G$6:$G$228,C25,Cálculos_5!$H$6:$H$228,"Ambos")+SUMIFS(Cálculos_5!$AL$6:$AL$228,Cálculos_5!$I$6:$I$228,3,Cálculos_5!$G$6:$G$228,C25,Cálculos_5!$H$6:$H$228,"CAPV"))/1000 -> 0
C26: ='Result- RVHdC Detalle'!C33 -> Consumo de bienes y servicios | D26: =(SUMIFS(Cálculos_5!$AL$6:$AL$228,Cálculos_5!$I$6:$I$228,3,Cálculos_5!$G$6:$G$228,C26,Cálculos_5!$H$6:$H$228,"Ambos")+SUMIFS(Cálculos_5!$AL$6:$AL$228,Cálculos_5!$I$6:$I$228,3,Cálculos_5!$G$6:$G$228,C26,Cálculos_5!$H$6:$H$228,"CAPV"))/1000 -> 0
C27: ='Result- RVHdC Detalle'!C34 -> Transporte desde proveedor | D27: =(SUMIFS(Cálculos_5!$AL$6:$AL$228,Cálculos_5!$I$6:$I$228,3,Cálculos_5!$G$6:$G$228,C27,Cálculos_5!$H$6:$H$228,"Ambos")+SUMIFS(Cálculos_5!$AL$6:$AL$228,Cálculos_5!$I$6:$I$228,3,Cálculos_5!$G$6:$G$228,C27,Cálculos_5!$H$6:$H$228,"CAPV"))/1000 -> 0
C28: ='Result- RVHdC Detalle'!C35 -> Distribución de productos | D28: =(SUMIFS(Cálculos_5!$AL$6:$AL$228,Cálculos_5!$I$6:$I$228,3,Cálculos_5!$G$6:$G$228,C28,Cálculos_5!$H$6:$H$228,"Ambos")+SUMIFS(Cálculos_5!$AL$6:$AL$228,Cálculos_5!$I$6:$I$228,3,Cálculos_5!$G$6:$G$228,C28,Cálculos_5!$H$6:$H$228,"CAPV"))/1000 -> 0
C29: Total | D29: =SUM(D22:D28) -> 0.0078845
B31: =CONCATENATE("B) CONSUMOS DE ENERGÍA ",'Datos generales organización'!$D$14," - (ALCANCE 1 +ALCANCE 2)") -> B) CONSUMOS DE ENERGÍA <seleccionar año> - (ALCANCE 1 +ALCANCE 2)
B33: Biomasa | C33: ='Alcance 1'!E8 -> kg | D33: ='Alcance 1'!D8 -> 0
B34: Carbón mineral | C34: ='Alcance 1'!E9 -> kg | D34: ='Alcance 1'!D9 -> 0
B35: Coque de petróleo | C35: ='Alcance 1'!E10 -> kg | D35: ='Alcance 1'!D10 -> 0
B36: Fueloleo | C36: ='Alcance 1'!E11 -> L | D36: ='Alcance 1'!D11 -> 0
B37: Gas butano | C37: ='Alcance 1'!E12 -> L | D37: ='Alcance 1'!D12 -> 0
B38: Gas natural | C38: ='Alcance 1'!E13 -> Nm3 | D38: ='Alcance 1'!D13 -> 0
B39: Gas propano | C39: ='Alcance 1'!E14 -> L | D39: ='Alcance 1'!D14 -> 0
B40: Gasóleo C | C40: ='Alcance 1'!E15 -> L | D40: ='Alcance 1'!D15 -> 0
B41: GLP genérico | C41: ='Alcance 1'!E16 -> L | D41: ='Alcance 1'!D16 -> 0
B42: Queroseno | C42: ='Alcance 1'!E17 -> L | D42: ='Alcance 1'!D17 -> 0
B43: Gasolina | C43: ='Alcance 1'!E24 -> L | D43: =(SUMIFS(Cálculos_5!AL$20:AL$228,Cálculos_5!$E$20:$E$228,B43,Cálculos_5!$H$20:$H$228,"Ambos",Cálculos_5!$I$20:$I$228,1)+SUMIFS(Cálculos_5!AL$20:AL$228,Cálculos_5!$E$20:$E$228,B43,Cálculos_5!$H$20:$H$228,"CAPV",Cálculos_5!$I$20:$I$228,1))/SUMIF('Datos 1-Factores emisión'!$B$23:$B$33,'Result- SGMA'!B43,'Datos 1-Factores emisión'!$K$23:$K$33) -> 
B44: Gasóleo A y B | C44: ='Alcance 1'!E25 -> L | D44: =(SUMIFS(Cálculos_5!AL$20:AL$228,Cálculos_5!$E$20:$E$228,B44,Cálculos_5!$H$20:$H$228,"Ambos",Cálculos_5!$I$20:$I$228,1)+SUMIFS(Cálculos_5!AL$20:AL$228,Cálculos_5!$E$20:$E$228,B44,Cálculos_5!$H$20:$H$228,"CAPV",Cálculos_5!$I$20:$I$228,1))/SUMIF('Datos 1-Factores emisión'!$B$23:$B$33,'Result- SGMA'!B44,'Datos 1-Factores emisión'!$K$23:$K$33) -> 
B45: E10 | C45: ='Alcance 1'!E26 -> L | D45: =(SUMIFS(Cálculos_5!AL$20:AL$228,Cálculos_5!$E$20:$E$228,B45,Cálculos_5!$H$20:$H$228,"Ambos",Cálculos_5!$I$20:$I$228,1)+SUMIFS(Cálculos_5!AL$20:AL$228,Cálculos_5!$E$20:$E$228,B45,Cálculos_5!$H$20:$H$228,"CAPV",Cálculos_5!$I$20:$I$228,1))/SUMIF('Datos 1-Factores emisión'!$B$23:$B$33,'Result- SGMA'!B45,'Datos 1-Factores emisión'!$K$23:$K$33) -> 0
B46: E85 | C46: ='Alcance 1'!E27 -> L | D46: =(SUMIFS(Cálculos_5!AL$20:AL$228,Cálculos_5!$E$20:$E$228,B46,Cálculos_5!$H$20:$H$228,"Ambos",Cálculos_5!$I$20:$I$228,1)+SUMIFS(Cálculos_5!AL$20:AL$228,Cálculos_5!$E$20:$E$228,B46,Cálculos_5!$H$20:$H$228,"CAPV",Cálculos_5!$I$20:$I$228,1))/SUMIF('Datos 1-Factores emisión'!$B$23:$B$33,'Result- SGMA'!B46,'Datos 1-Factores emisión'!$K$23:$K$33) -> 0
B47: B30 | C47: ='Alcance 1'!E28 -> L | D47: =(SUMIFS(Cálculos_5!AL$20:AL$228,Cálculos_5!$E$20:$E$228,B47,Cálculos_5!$H$20:$H$228,"Ambos",Cálculos_5!$I$20:$I$228,1)+SUMIFS(Cálculos_5!AL$20:AL$228,Cálculos_5!$E$20:$E$228,B47,Cálculos_5!$H$20:$H$228,"CAPV",Cálculos_5!$I$20:$I$228,1))/SUMIF('Datos 1-Factores emisión'!$B$23:$B$33,'Result- SGMA'!B47,'Datos 1-Factores emisión'!$K$23:$K$33) -> 0
B48: B100 | C48: ='Alcance 1'!E29 -> L | D48: =(SUMIFS(Cálculos_5!AL$20:AL$228,Cálculos_5!$E$20:$E$228,B48,Cálculos_5!$H$20:$H$228,"Ambos",Cálculos_5!$I$20:$I$228,1)+SUMIFS(Cálculos_5!AL$20:AL$228,Cálculos_5!$E$20:$E$228,B48,Cálculos_5!$H$20:$H$228,"CAPV",Cálculos_5!$I$20:$I$228,1))/SUMIF('Datos 1-Factores emisión'!$B$23:$B$33,'Result- SGMA'!B48,'Datos 1-Factores emisión'!$K$23:$K$33) -> 0
B49: Gas Natural Comprimido | C49: ='Alcance 1'!E30 -> Nm3 | D49: =(SUMIFS(Cálculos_5!AL$20:AL$228,Cálculos_5!$E$20:$E$228,B49,Cálculos_5!$H$20:$H$228,"Ambos",Cálculos_5!$I$20:$I$228,1)+SUMIFS(Cálculos_5!AL$20:AL$228,Cálculos_5!$E$20:$E$228,B49,Cálculos_5!$H$20:$H$228,"CAPV",Cálculos_5!$I$20:$I$228,1))/SUMIF('Datos 1-Factores emisión'!$B$23:$B$33,'Result- SGMA'!B49,'Datos 1-Factores emisión'!$K$23:$K$33) -> 0
B50: Gas Natural Licuado | C50: ='Alcance 1'!E31 -> L | D50: =(SUMIFS(Cálculos_5!AL$20:AL$228,Cálculos_5!$E$20:$E$228,B50,Cálculos_5!$H$20:$H$228,"Ambos",Cálculos_5!$I$20:$I$228,1)+SUMIFS(Cálculos_5!AL$20:AL$228,Cálculos_5!$E$20:$E$228,B50,Cálculos_5!$H$20:$H$228,"CAPV",Cálculos_5!$I$20:$I$228,1))/SUMIF('Datos 1-Factores emisión'!$B$23:$B$33,'Result- SGMA'!B50,'Datos 1-Factores emisión'!$K$23:$K$33) -> 0
B51: GLP genérico | C51: ='Alcance 1'!E32 -> L | D51: =(SUMIFS(Cálculos_5!AL$20:AL$228,Cálculos_5!$E$20:$E$228,B51,Cálculos_5!$H$20:$H$228,"Ambos",Cálculos_5!$I$20:$I$228,1)+SUMIFS(Cálculos_5!AL$20:AL$228,Cálculos_5!$E$20:$E$228,B51,Cálculos_5!$H$20:$H$228,"CAPV",Cálculos_5!$I$20:$I$228,1))/SUMIF('Datos 1-Factores emisión'!$B$23:$B$33,'Result- SGMA'!B51,'Datos 1-Factores emisión'!$K$23:$K$33) -> 0
B52: Electricidad | C52: kWh | D52: =(SUMIFS(Cálculos_5!O$20:O$228,Cálculos_5!$E$20:$E$228,B52,Cálculos_5!$H$20:$H$228,"Ambos",Cálculos_5!$I$20:$I$228,2)+SUMIFS(Cálculos_5!O$20:O$228,Cálculos_5!$E$20:$E$228,B52,Cálculos_5!$H$20:$H$228,"CAPV",Cálculos_5!$I$20:$I$228,2)) -> 0
B54: =CONCATENATE("C) DATOS DE GENERACIÓN DE RESIDUOS EN EL AÑO ",'Datos generales organización'!$D$14) -> C) DATOS DE GENERACIÓN DE RESIDUOS EN EL AÑO <seleccionar año>
B56: Residuos domiciliarios a vertedero | C56: t | D56: ='Alcance 3'!D66 -> 0
B57: Residuos domiciliarios a incineración | C57: t | D57: ='Alcance 3'!D67 -> 0
B58: Residuos comerciales e industriales a vertedero | C58: t | D58: ='Alcance 3'!D68 -> 0
B59: Residuos comerciales e industriales a incineración | C59: t | D59: ='Alcance 3'!D69 -> 0
B60: Fracción orgánica a compostaje | C60: t | D60: ='Alcance 3'!D70 -> 0
B61: Vidrio a reciclaje | C61: t | D61: ='Alcance 3'!D71 -> 0
B62: Envases a reciclaje | C62: t | D62: ='Alcance 3'!D72 -> 0
B63: Papel y cartón a reciclaje | C63: t | D63: ='Alcance 3'!D73 -> 0

Sheet Result- REHdC
C1: =Instrucciones!B1 -> HERRAMIENTA DE HUELLA DE CARBONO PARA ORGANIZACIONES. Año de cálculo 2020
B2: RESULTADOS SEGÚN REGISTRO ESPAÑOL DE HUELLA DE CARBONO, COMPENSACIÓN Y PROYECTOS DE ABSORCIÓN
B4: Nombre de la organización | C4: ='Datos generales organización'!D5 -> 0
B7: =CONCATENATE("RESULTADOS ABSOLUTOS EN ",'Datos generales organización'!D14) -> RESULTADOS ABSOLUTOS EN <seleccionar año>
B9: Año de cálculo | C9: ='Datos generales organización'!D14 -> <seleccionar año>
B11: EMISIONES DIRECTAS (ALCANCE 1) | C11: Instalaciones fijas (t CO2e) | D11: =(SUMIFS(Cálculos!$AH$6:$AH$197,Cálculos!$I$6:$I$197,1,Cálculos!$C$6:$C$197,"Fuente fija",Cálculos!$H$6:$H$197,"Ambos")+SUMIFS(Cálculos!$AH$6:$AH$197,Cálculos!$I$6:$I$197,1,Cálculos!$C$6:$C$197,"Fuente fija",Cálculos!$H$6:$H$197,"España"))/1000 -> 0
C12: Desplazamientos en vehículos (t CO2e) | D12: =(SUMIFS(Cálculos!$AH$6:$AH$197,Cálculos!$I$6:$I$197,1,Cálculos!$C$6:$C$197,"Fuente móvil",Cálculos!$H$6:$H$197,"Ambos")+SUMIFS(Cálculos!$AH$6:$AH$197,Cálculos!$I$6:$I$197,1,Cálculos!$C$6:$C$197,"Fuente móvil",Cálculos!$H$6:$H$197,"España"))/1000 -> 
C13: Refrigeración/climatización (t CO2e) | D13: =(SUMIFS(Cálculos!$AK$6:$AK$197,Cálculos!$I$6:$I$197,1,Cálculos!$C$6:$C$197,"Fuente difusa",Cálculos!$H$6:$H$197,"Ambos")+SUMIFS(Cálculos!$AK$6:$AK$197,Cálculos!$I$6:$I$197,1,Cálculos!$C$6:$C$197,"Fuente difusa",Cálculos!$H$6:$H$197,"España"))/1000 -> 0
C14: Total (t CO2e) | D14: =D11+D12+D13 -> 
B16: EMISIONES INDIRECTAS POR ENERGÍA (ALCANCE 2) | C16: Electricidad (t CO2e) | D16: =(SUMIFS(Cálculos!$AH$6:$AH$197,Cálculos!$I$6:$I$197,2,Cálculos!$H$6:$H$197,"Ambos")+SUMIFS(Cálculos!$AH$6:$AH$197,Cálculos!$I$6:$I$197,2,Cálculos!$H$6:$H$197,"España"))/1000 -> 0
B18: EMISIONES DIRECTAS (ALCANCE 1) + EMISIONES INDIRECTAS POR ENERGÍA (ALCANCE 2) (t CO2e) | D18: =D14+D16 -> 
B20: =CONCATENATE("RATIOS AÑO DE CÁLCULO ",'Datos generales organización'!D14) -> RATIOS AÑO DE CÁLCULO <seleccionar año>
B22: Emisiones/ Superficie | C22: t CO2e/m2 | D22: =$D$18/'Datos generales organización'!E22 -> 
B23: Emisiones/ Nº de empleados | C23: t CO2e/trabajador | D23: =$D$18/'Datos generales organización'!E23 -> 
B24: Emisiones/ Facturación | C24: t CO2e/mil € | D24: =$D$18/'Datos generales organización'!E24 -> 
B25: =CONCATENATE("Emisiones/ ",'Datos generales organización'!C37) -> Emisiones/ Seleccionar índice | C25: =CONCATENATE("tCO2e/ ", 'Datos generales organización'!D37) -> tCO2e/ unidades | D25: =$D$18/'Datos generales organización'!E20 -> 

Sheet Cálculos
C1: =Instrucciones!B1 -> HERRAMIENTA DE HUELLA DE CARBONO PARA ORGANIZACIONES. Año de cálculo 2020
B2: CÁLCULOS
B4: Clasificaciones | J4: Dato de actividad (ud) | Q4: Factores de Emisión / absorción (kg /ud) | V4: Emisiones (kg de GEI) | AB4: Potencial calentamiento global | AH4: Emisiones (kg CO2 e)
B5: Categoría | C5: Sector | D5: Tipo de emisión | E5: Flujo fuente | F5: Detalle 1 | G5: Detalle 2 | H5: Resultado | I5: Alcance | J5: Dato actividad (valor) | K5: Unidades | L5: Comentarios | M5: Factor conversión | N5: Unidades | O5: Dato actividad final | P5: Unidades | Q5: CO2 | R5: CH4 | S5: N2O | T5: CO2 b | U5: CO2 abs | V5: CO2 | W5: CH4 | X5: N2O | Y5: Gases fluorados | Z5: CO2 b | AA5: CO2 abs | AB5: CO2 | AC5: CH4 | AD5: N2O | AE5: =Y5 -> Gases fluorados | AF5: CO2 b | AG5: CO2 abs | AH5: CO2 | AI5: CH4 | AJ5: N2O | AK5: =Y5 -> Gases fluorados | AL5: Total emisiones | AM5: CO2 b | AN5: CO2 abs
B6: Emisiones de proceso y uso de productos | C6: Fuente fija | D6: Fugitivas | E6: ='Alcance 1'!C170 -> CO2 e | H6: Ambos | I6: 1 | J6: ='Alcance 1'!D170 -> 0 | K6: ='Alcance 1'!E170 -> kg CO2 e | M6: 1 | O6: =J6*M6 -> 0 | P6: =K6 -> kg CO2 e | Q6: 1 | R6: 0 | S6: 0 | T6: =LOOKUP($E6,'Datos 1-Factores emisión'!$B$9:$B$18,'Datos 1-Factores emisión'!$D$9:$D$18) -> 0 | U6: 0 | V6: =Q6*$O6 -> 0 | W6: 0 | X6: 0 | Y6: 0 | Z6: =T6*$O6 -> 0 | AA6: 0 | AB6: ='Datos 2-Potenciales calent glob'!$D$6 -> 1 | AC6: ='Datos 2-Potenciales calent glob'!$D$31 -> 25 | AD6: ='Datos 2-Potenciales calent glob'!$D$32 -> 298 | AE6: =SUMIF('Datos 2-Potenciales calent glob'!$B$6:$B$56,Cálculos!F6,'Datos 2-Potenciales calent glob'!$D$6:$D$56) -> 0 | AF6: ='Datos 2-Potenciales calent glob'!$D$6 -> 1 | AG6: ='Datos 2-Potenciales calent glob'!$D$6 -> 1 | AH6: =V6*AB6 -> 0 | AI6: 0 | AJ6: 0 | AK6: 0 | AL6: =SUM(AH6:AK6) -> 0 | AM6: =Z6*AF6 -> 0 | AN6: 0
B7: Emisiones de proceso y uso de productos | C7: Fuente fija | D7: Fugitivas | E7: ='Alcance 1'!C175 -> CO2 | H7: Ambos | I7: 1 | J7: ='Alcance 1'!D175 -> 0 | K7: ='Alcance 1'!E175 -> kg | M7: 1 | O7: 0 | P7: =K7 -> kg | Q7: 1 | R7: 0 | S7: 0 | T7: 0 | U7: 0 | V7: 0 | W7: 0 | X7: 0 | Y7: 0 | Z7: 0 | AA7: 0 | AB7: ='Datos 2-Potenciales calent glob'!$D$6 -> 1 | AC7: ='Datos 2-Potenciales calent glob'!$D$31 -> 25 | AD7: ='Datos 2-Potenciales calent glob'!$D$32 -> 298 | AE7: =SUMIF('Datos 2-Potenciales calent glob'!$B$6:$B$56,Cálculos!F7,'Datos 2-Potenciales calent glob'!$D$6:$D$56) -> 0 | AF7: ='Datos 2-Potenciales calent glob'!$D$6 -> 1 | AG7: ='Datos 2-Potenciales calent glob'!$D$6 -> 1 | AH7: 0 | AI7: 0 | AJ7: 0 | AK7: 0 | AL7: 0 | AM7: 0 | AN7: 0
B8: Emisiones de proceso y uso de productos | C8: Fuente fija | D8: Fugitivas | E8: ='Alcance 1'!C176 -> CH4 | H8: Ambos | I8: 1 | J8: ='Alcance 1'!D176 -> 0 | K8: ='Alcance 1'!E176 -> kg | M8: 1 | O8: 0 | P8: =K8 -> kg | Q8: 0 | R8: 1 | S8: 0 | T8: 0 | U8: 0 | V8: 0 | W8: 0 | X8: 0 | Y8: 0 | Z8: 0 | AA8: 0 | AB8: ='Datos 2-Potenciales calent glob'!$D$6 -> 1 | AC8: ='Datos 2-Potenciales calent glob'!$D$31 -> 25 | AD8: ='Datos 2-Potenciales calent glob'!$D$32 -> 298 | AE8: =SUMIF('Datos 2-Potenciales calent glob'!$B$6:$B$56,Cálculos!F8,'Datos 2-Potenciales calent glob'!$D$6:$D$56) -> 0 | AF8: ='Datos 2-Potenciales calent glob'!$D$6 -> 1 | AG8: ='Datos 2-Potenciales calent glob'!$D$6 -> 1 | AH8: 0 | AI8: 0 | AJ8: 0 | AK8: 0 | AL8: 0 | AM8: 0 | AN8: 0
B9: Emisiones de proceso y uso de productos | C9: Fuente fija | D9: Fugitivas | E9: ='Alcance 1'!C177 -> N2O | H9: Ambos | I9: 1 | J9: ='Alcance 1'!D177 -> 0 | K9: ='Alcance 1'!E177 -> kg | M9: 1 | O9: 0 | P9: kg | Q9: 0 | R9: 0 | S9: 1 | T9: 0 | U9: 0 | V9: 0 | W9: 0 | X9: 0 | Y9: 0 | Z9: 0 | AA9: 0 | AB9: ='Datos 2-Potenciales calent glob'!$D$6 -> 1 | AC9: ='Datos 2-Potenciales calent glob'!$D$31 -> 25 | AD9: ='Datos 2-Potenciales calent glob'!$D$32 -> 298 | AE9: =SUMIF('Datos 2-Potenciales calent glob'!$B$6:$B$56,Cálculos!F9,'Datos 2-Potenciales calent glob'!$D$6:$D$56) -> 0 | AF9: ='Datos 2-Potenciales calent glob'!$D$6 -> 1 | AG9: ='Datos 2-Potenciales calent glob'!$D$6 -> 1 | AH9: 0 | AI9: 0 | AJ9: 0 | AK9: 0 | AL9: 0 | AM9: 0 | AN9: 0
B10: Emisiones de proceso y uso de productos | C10: Fuente fija | D10: Fugitivas | E10: Gases fluorados | F10: ='Alcance 1'!C178 -> Tipo de gas fluorado | H10: Ambos | I10: 1 | J10: ='Alcance 1'!D178 -> 0 | K10: ='Alcance 1'!E178 -> kg | M10: 1 | O10: 0 | P10: kg | Q10: 0 | R10: 0 | S10: 0 | T10: 0 | U10: 0 | V10: 0 | W10: 0 | X10: 0 | Y10: =O10 -> 0 | Z10: 0 | AA10: 0 | AB10: ='Datos 2-Potenciales calent glob'!$D$6 -> 1 | AC10: ='Datos 2-Potenciales calent glob'!$D$31 -> 25 | AD10: ='Datos 2-Potenciales calent glob'!$D$32 -> 298 | AE10: =SUMIF('Datos 2-Potenciales calent glob'!$B$6:$B$56,Cálculos!F10,'Datos 2-Potenciales calent glob'!$D$6:$D$56) -> 0 | AF10: ='Datos 2-Potenciales calent glob'!$D$6 -> 1 | AG10: ='Datos 2-Potenciales calent glob'!$D$6 -> 1 | AH10: 0 | AI10: 0 | AJ10: 0 | AK10: 0 | AL10: 0 | AM10: 0 | AN10: 0
B11: Emisiones de proceso y uso de productos | C11: Fuente fija | D11: Fugitivas | E11: Gases fluorados | F11: ='Alcance 1'!C179 -> Tipo de gas fluorado | H11: Ambos | I11: 1 | J11: ='Alcance 1'!D179 -> 0 | K11: ='Alcance 1'!E179 -> kg | M11: 1 | O11: 0 | P11: kg | Q11: 0 | R11: 0 | S11: 0 | T11: 0 | U11: 0 | V11: 0 | W11: 0 | X11: 0 | Y11: =O11 -> 0 | Z11: 0 | AA11: 0 | AB11: ='Datos 2-Potenciales calent glob'!$D$6 -> 1 | AC11: ='Datos 2-Potenciales calent glob'!$D$31 -> 25 | AD11: ='Datos 2-Potenciales calent glob'!$D$32 -> 298 | AE11: =SUMIF('Datos 2-Potenciales calent glob'!$B$6:$B$56,Cálculos!F11,'Datos 2-Potenciales calent glob'!$D$6:$D$56) -> 0 | AF11: ='Datos 2-Potenciales calent glob'!$D$6 -> 1 | AG11: ='Datos 2-Potenciales calent glob'!$D$6 -> 1 | AH11: 0 | AI11: 0 | AJ11: 0 | AK11: 0 | AL11: 0 | AM11: 0 | AN11: 0
B12: Emisiones de proceso y uso de productos | C12: Fuente fija | D12: Fugitivas | E12: Gases fluorados | F12: ='Alcance 1'!C180 -> Tipo de gas fluorado | H12: Ambos | I12: 1 | J12: ='Alcance 1'!D180 -> 0 | K12: ='Alcance 1'!E180 -> kg | M12: 1 | O12: 0 | P12: kg | Q12: 0 | R12: 0 | S12: 0 | T12: 0 | U12: 0 | V12: 0 | W12: 0 | X12: 0 | Y12: 0 | Z12: 0 | AA12: 0 | AB12: ='Datos 2-Potenciales calent glob'!$D$6 -> 1 | AC12: ='Datos 2-Potenciales calent glob'!$D$31 -> 25 | AD12: ='Datos 2-Potenciales calent glob'!$D$32 -> 298 | AE12: =SUMIF('Datos 2-Potenciales calent glob'!$B$6:$B$56,Cálculos!F12,'Datos 2-Potenciales calent glob'!$D$6:$D$56) -> 0 | AF12: ='Datos 2-Potenciales calent glob'!$D$6 -> 1 | AG12: ='Datos 2-Potenciales calent glob'!$D$6 -> 1 | AH12: 0 | AI12: 0 | AJ12: 0 | AK12: 0 | AL12: 0 | AM12: 0 | AN12: 0
B13: Emisiones de proceso y uso de productos | C13: Fuente fija | D13: Fugitivas | E13: Gases fluorados | F13: ='Alcance 1'!C181 -> Tipo de gas fluorado | H13: Ambos | I13: 1 | J13: ='Alcance 1'!D181 -> 0 | K13: ='Alcance 1'!E181 -> kg | M13: 1 | O13: 0 | P13: kg | Q13: 0 | R13: 0 | S13: 0 | T13: 0 | U13: 0 | V13: 0 | W13: 0 | X13: 0 | Y13: 0 | Z13: 0 | AA13: 0 | AB13: ='Datos 2-Potenciales calent glob'!$D$6 -> 1 | AC13: ='Datos 2-Potenciales calent glob'!$D$31 -> 25 | AD13: ='Datos 2-Potenciales calent glob'!$D$32 -> 298 | AE13: =SUMIF('Datos 2-Potenciales calent glob'!$B$6:$B$56,Cálculos!F13,'Datos 2-Potenciales calent glob'!$D$6:$D$56) -> 0 | AF13: ='Datos 2-Potenciales calent glob'!$D$6 -> 1 | AG13: ='Datos 2-Potenciales calent glob'!$D$6 -> 1 | AH13: 0 | AI13: 0 | AJ13: 0 | AK13: 0 | AL13: 0 | AM13: 0 | AN13: 0
B14: Emisiones de proceso y uso de productos | C14: Fuente fija | D14: Fugitivas | E14: Gases fluorados | F14: ='Alcance 1'!C182 -> Tipo de gas fluorado | H14: Ambos | I14: 1 | J14: ='Alcance 1'!D182 -> 0 | K14: ='Alcance 1'!E182 -> kg | M14: 1 | O14: 0 | P14: kg | Q14: 0 | R14: 0 | S14: 0 | T14: 0 | U14: 0 | V14: 0 | W14: 0 | X14: 0 | Y14: 0 | Z14: 0 | AA14: 0 | AB14: ='Datos 2-Potenciales calent glob'!$D$6 -> 1 | AC14: ='Datos 2-Potenciales calent glob'!$D$31 -> 25 | AD14: ='Datos 2-Potenciales calent glob'!$D$32 -> 298 | AE14: =SUMIF('Datos 2-Potenciales calent glob'!$B$6:$B$56,Cálculos!F14,'Datos 2-Potenciales calent glob'!$D$6:$D$56) -> 0 | AF14: ='Datos 2-Potenciales calent glob'!$D$6 -> 1 | AG14: ='Datos 2-Potenciales calent glob'!$D$6 -> 1 | AH14: 0 | AI14: 0 | AJ14: 0 | AK14: 0 | AL14: 0 | AM14: 0 | AN14: 0
B15: Emisiones de proceso y uso de productos | C15: Fuente fija | D15: Fugitivas | E15: Gases fluorados | F15: ='Alcance 1'!C183 -> Tipo de gas fluorado | H15: Ambos | I15: 1 | J15: ='Alcance 1'!D183 -> 0 | K15: ='Alcance 1'!E183 -> kg | M15: 1 | O15: 0 | P15: kg | Q15: 0 | R15: 0 | S15: 0 | T15: 0 | U15: 0 | V15: 0 | W15: 0 | X15: 0 | Y15: 0 | Z15: 0 | AA15: 0 | AB15: ='Datos 2-Potenciales calent glob'!$D$6 -> 1 | AC15: ='Datos 2-Potenciales calent glob'!$D$31 -> 25 | AD15: ='Datos 2-Potenciales calent glob'!$D$32 -> 298 | AE15: =SUMIF('Datos 2-Potenciales calent glob'!$B$6:$B$56,Cálculos!F15,'Datos 2-Potenciales calent glob'!$D$6:$D$56) -> 0 | AF15: ='Datos 2-Potenciales calent glob'!$D$6 -> 1 | AG15: ='Datos 2-Potenciales calent glob'!$D$6 -> 1 | AH15: 0 | AI15: 0 | AJ15: 0 | AK15: 0 | AL15: 0 | AM15: 0 | AN15: 0
B16: Emisiones de proceso y uso de productos | C16: Fuente fija | D16: Fugitivas | E16: Gases fluorados | F16: ='Alcance 1'!C184 -> Tipo de gas fluorado | H16: Ambos | I16: 1 | J16: ='Alcance 1'!D184 -> 0 | K16: ='Alcance 1'!E184 -> kg | M16: 1 | O16: 0 | P16: kg | Q16: 0 | R16: 0 | S16: 0 | T16: 0 | U16: 0 | V16: 0 | W16: 0 | X16: 0 | Y16: 0 | Z16: 0 | AA16: 0 | AB16: ='Datos 2-Potenciales calent glob'!$D$6 -> 1 | AC16: ='Datos 2-Potenciales calent glob'!$D$31 -> 25 | AD16: ='Datos 2-Potenciales calent glob'!$D$32 -> 298 | AE16: =SUMIF('Datos 2-Potenciales calent glob'!$B$6:$B$56,Cálculos!F16,'Datos 2-Potenciales calent glob'!$D$6:$D$56) -> 0 | AF16: ='Datos 2-Potenciales calent glob'!$D$6 -> 1 | AG16: ='Datos 2-Potenciales calent glob'!$D$6 -> 1 | AH16: 0 | AI16: 0 | AJ16: 0 | AK16: 0 | AL16: 0 | AM16: 0 | AN16: 0
B17: Emisiones de proceso y uso de productos | C17: Fuente fija | D17: Fugitivas | E17: Gases fluorados | F17: ='Alcance 1'!C185 -> Tipo de gas fluorado | H17: Ambos | I17: 1 | J17: ='Alcance 1'!D185 -> 0 | K17: ='Alcance 1'!E185 -> kg | M17: 1 | O17: 0 | P17: kg | Q17: 0 | R17: 0 | S17: 0 | T17: 0 | U17: 0 | V17: 0 | W17: 0 | X17: 0 | Y17: 0 | Z17: 0 | AA17: 0 | AB17: ='Datos 2-Potenciales calent glob'!$D$6 -> 1 | AC17: ='Datos 2-Potenciales calent glob'!$D$31 -> 25 | AD17: ='Datos 2-Potenciales calent glob'!$D$32 -> 298 | AE17: =SUMIF('Datos 2-Potenciales calent glob'!$B$6:$B$56,Cálculos!F17,'Datos 2-Potenciales calent glob'!$D$6:$D$56) -> 0 | AF17: ='Datos 2-Potenciales calent glob'!$D$6 -> 1 | AG17: ='Datos 2-Potenciales calent glob'!$D$6 -> 1 | AH17: 0 | AI17: 0 | AJ17: 0 | AK17: 0 | AL17: 0 | AM17: 0 | AN17: 0
B18: Emisiones de proceso y uso de productos | C18: Fuente fija | D18: Fugitivas | E18: Gases fluorados | F18: ='Alcance 1'!C186 -> Tipo de gas fluorado | H18: Ambos | I18: 1 | J18: ='Alcance 1'!D186 -> 0 | K18: ='Alcance 1'!E186 -> kg | M18: 1 | O18: 0 | P18: kg | Q18: 0 | R18: 0 | S18: 0 | T18: 0 | U18: 0 | V18: 0 | W18: 0 | X18: 0 | Y18: 0 | Z18: 0 | AA18: 0 | AB18: ='Datos 2-Potenciales calent glob'!$D$6 -> 1 | AC18: ='Datos 2-Potenciales calent glob'!$D$31 -> 25 | AD18: ='Datos 2-Potenciales calent glob'!$D$32 -> 298 | AE18: =SUMIF('Datos 2-Potenciales calent glob'!$B$6:$B$56,Cálculos!F18,'Datos 2-Potenciales calent glob'!$D$6:$D$56) -> 0 | AF18: ='Datos 2-Potenciales calent glob'!$D$6 -> 1 | AG18: ='Datos 2-Potenciales calent glob'!$D$6 -> 1 | AH18: 0 | AI18: 0 | AJ18: 0 | AK18: 0 | AL18: 0 | AM18: 0 | AN18: 0
B19: Emisiones de proceso y uso de productos | C19: Fuente fija | D19: Fugitivas | E19: Gases fluorados | F19: ='Alcance 1'!C187 -> Tipo de gas fluorado | H19: Ambos | I19: 1 | J19: ='Alcance 1'!D187 -> 0 | K19: ='Alcance 1'!E187 -> kg | M19: 1 | O19: 0 | P19: kg | Q19: 0 | R19: 0 | S19: 0 | T19: 0 | U19: 0 | V19: 0 | W19: 0 | X19: 0 | Y19: 0 | Z19: 0 | AA19: 0 | AB19: ='Datos 2-Potenciales calent glob'!$D$6 -> 1 | AC19: ='Datos 2-Potenciales calent glob'!$D$31 -> 25 | AD19: ='Datos 2-Potenciales calent glob'!$D$32 -> 298 | AE19: =SUMIF('Datos 2-Potenciales calent glob'!$B$6:$B$56,Cálculos!F19,'Datos 2-Potenciales calent glob'!$D$6:$D$56) -> 0 | AF19: ='Datos 2-Potenciales calent glob'!$D$6 -> 1 | AG19: ='Datos 2-Potenciales calent glob'!$D$6 -> 1 | AH19: 0 | AI19: 0 | AJ19: 0 | AK19: 0 | AL19: 0 | AM19: 0 | AN19: 0
B20: Energía | C20: Fuente fija | D20: Combustión | E20: Biomasa | H20: Ambos | I20: 1 | J20: ='Alcance 1'!D8 -> 0 | K20: ='Alcance 1'!E8 -> kg | M20: =LOOKUP($E20,'Datos 3-Factores de convers'!$B$29:$B$51,'Datos 3-Factores de convers'!$F$29:$F$51) -> 1.56e-05 | N20: =LOOKUP($E20,'Datos 3-Factores de convers'!$B$29:$B$51,'Datos 3-Factores de convers'!$G$29:$G$51) -> TJ/kg | O20: 0 | P20: kg | Q20: =LOOKUP($E20,'Datos 1-Factores emisión'!$B$9:$B$18,'Datos 1-Factores emisión'!$C$9:$C$18) -> 0 | R20: =LOOKUP($E20,'Datos 1-Factores emisión'!$B$9:$B$18,'Datos 1-Factores emisión'!$E$9:$E$18) -> 300 | S20: =LOOKUP($E20,'Datos 1-Factores emisión'!$B$9:$B$18,'Datos 1-Factores emisión'!$F$9:$F$18) -> 4 | T20: =LOOKUP($E20,'Datos 1-Factores emisión'!$B$9:$B$18,'Datos 1-Factores emisión'!$D$9:$D$18) -> 112000 | U20: 0 | V20: 0 | W20: 0 | X20: 0 | Y20: 0 | Z20: =T20*$O20 -> 0 | AA20: =U20*$O20 -> 0 | AB20: ='Datos 2-Potenciales calent glob'!$D$6 -> 1 | AC20: ='Datos 2-Potenciales calent glob'!$D$31 -> 25 | AD20: ='Datos 2-Potenciales calent glob'!$D$32 -> 298 | AE20: =SUMIF('Datos 2-Potenciales calent glob'!$B$6:$B$56,Cálculos!F20,'Datos 2-Potenciales calent glob'!$D$6:$D$56) -> 0 | AF20: ='Datos 2-Potenciales calent glob'!$D$6 -> 1 | AG20: ='Datos 2-Potenciales calent glob'!$D$6 -> 1 | AH20: 0 | AI20: 0 | AJ20: 0 | AK20: 0 | AL20: 0 | AM20: 0 | AN20: =AA20*AG20 -> 0
B21: Energía | C21: Fuente fija | D21: Combustión | E21: Carbón mineral | H21: Ambos | I21: 1 | J21: ='Alcance 1'!D9 -> 0 | K21: ='Alcance 1'!E9 -> kg | M21: =LOOKUP($E21,'Datos 3-Factores de convers'!$B$29:$B$51,'Datos 3-Factores de convers'!$F$29:$F$51) -> 2.516387e-05 | N21: =LOOKUP($E21,'Datos 3-Factores de convers'!$B$29:$B$51,'Datos 3-Factores de convers'!$G$29:$G$51) -> TJ/kg | O21: 0 | P21: kg | Q21: =LOOKUP($E21,'Datos 1-Factores emisión'!$B$9:$B$18,'Datos 1-Factores emisión'!$C$9:$C$18) -> 99420 | R21: =LOOKUP($E21,'Datos 1-Factores emisión'!$B$9:$B$18,'Datos 1-Factores emisión'!$E$9:$E$18) -> 10 | S21: =LOOKUP($E21,'Datos 1-Factores emisión'!$B$9:$B$18,'Datos 1-Factores emisión'!$F$9:$F$18) -> 1.5 | T21: =LOOKUP($E21,'Datos 1-Factores emisión'!$B$9:$B$18,'Datos 1-Factores emisión'!$D$9:$D$18) -> 0 | U21: 0 | V21: 0 | W21: 0 | X21: 0 | Y21: 0 | Z21: =T21*$O21 -> 0 | AA21: 0 | AB21: ='Datos 2-Potenciales calent glob'!$D$6 -> 1 | AC21: ='Datos 2-Potenciales calent glob'!$D$31 -> 25 | AD21: ='Datos 2-Potenciales calent glob'!$D$32 -> 298 | AE21: =SUMIF('Datos 2-Potenciales calent glob'!$B$6:$B$56,Cálculos!F21,'Datos 2-Potenciales calent glob'!$D$6:$D$56) -> 0 | AF21: ='Datos 2-Potenciales calent glob'!$D$6 -> 1 | AG21: ='Datos 2-Potenciales calent glob'!$D$6 -> 1 | AH21: 0 | AI21: 0 | AJ21: 0 | AK21: 0 | AL21: 0 | AM21: 0 | AN21: 0
B22: Energía | C22: Fuente fija | D22: Combustión | E22: Coque de petróleo | H22: Ambos | I22: 1 | J22: ='Alcance 1'!D10 -> 0 | K22: ='Alcance 1'!E10 -> kg | M22: =LOOKUP($E22,'Datos 3-Factores de convers'!$B$29:$B$51,'Datos 3-Factores de convers'!$F$29:$F$51) -> 3.496145e-05 | N22: =LOOKUP($E22,'Datos 3-Factores de convers'!$B$29:$B$51,'Datos 3-Factores de convers'!$G$29:$G$51) -> TJ/kg | O22: 0 | P22: kg | Q22: =LOOKUP($E22,'Datos 1-Factores emisión'!$B$9:$B$18,'Datos 1-Factores emisión'!$C$9:$C$18) -> 97500 | R22: =LOOKUP($E22,'Datos 1-Factores emisión'!$B$9:$B$18,'Datos 1-Factores emisión'!$E$9:$E$18) -> 10 | S22: =LOOKUP($E22,'Datos 1-Factores emisión'!$B$9:$B$18,'Datos 1-Factores emisión'!$F$9:$F$18) -> 0.6 | T22: =LOOKUP($E22,'Datos 1-Factores emisión'!$B$9:$B$18,'Datos 1-Factores emisión'!$D$9:$D$18) -> 0 | U22: 0 | V22: =Q22*$O22 -> 0 | W22: 0 | X22: 0 | Y22: 0 | Z22: 0 | AA22: 0 | AB22: ='Datos 2-Potenciales calent glob'!$D$6 -> 1 | AC22: ='Datos 2-Potenciales calent glob'!$D$31 -> 25 | AD22: ='Datos 2-Potenciales calent glob'!$D$32 -> 298 | AE22: =SUMIF('Datos 2-Potenciales calent glob'!$B$6:$B$56,Cálculos!F22,'Datos 2-Potenciales calent glob'!$D$6:$D$56) -> 0 | AF22: ='Datos 2-Potenciales calent glob'!$D$6 -> 1 | AG22: ='Datos 2-Potenciales calent glob'!$D$6 -> 1 | AH22: =V22*AB22 -> 0 | AI22: 0 | AJ22: 0 | AK22: 0 | AL22: 0 | AM22: =Z22*AF22 -> 0 | AN22: 0
B23: Energía | C23: Fuente fija | D23: Combustión | E23: Fueloleo | H23: Ambos | I23: 1 | J23: ='Alcance 1'!D11 -> 0 | K23: ='Alcance 1'!E11 -> L | M23: =LOOKUP($E23,'Datos 3-Factores de convers'!$B$29:$B$51,'Datos 3-Factores de convers'!$F$29:$F$51) -> 3.1352256e-05 | N23: =LOOKUP($E23,'Datos 3-Factores de convers'!$B$29:$B$51,'Datos 3-Factores de convers'!$G$29:$G$51) -> TJ/L | O23: 0 | P23: TJ | Q23: =LOOKUP($E23,'Datos 1-Factores emisión'!$B$9:$B$18,'Datos 1-Factores emisión'!$C$9:$C$18) -> 77400 | R23: =LOOKUP($E23,'Datos 1-Factores emisión'!$B$9:$B$18,'Datos 1-Factores emisión'!$E$9:$E$18) -> 10 | S23: =LOOKUP($E23,'Datos 1-Factores emisión'!$B$9:$B$18,'Datos 1-Factores emisión'!$F$9:$F$18) -> 0.6 | T23: =LOOKUP($E23,'Datos 1-Factores emisión'!$B$9:$B$18,'Datos 1-Factores emisión'!$D$9:$D$18) -> 0 | U23: 0 | V23: 0 | W23: 0 | X23: 0 | Y23: 0 | Z23: 0 | AA23: 0 | AB23: ='Datos 2-Potenciales calent glob'!$D$6 -> 1 | AC23: ='Datos 2-Potenciales calent glob'!$D$31 -> 25 | AD23: ='Datos 2-Potenciales calent glob'!$D$32 -> 298 | AE23: =SUMIF('Datos 2-Potenciales calent glob'!$B$6:$B$56,Cálculos!F23,'Datos 2-Potenciales calent glob'!$D$6:$D$56) -> 0 | AF23: ='Datos 2-Potenciales calent glob'!$D$6 -> 1 | AG23: ='Datos 2-Potenciales calent glob'!$D$6 -> 1 | AH23: 0 | AI23: 0 | AJ23: 0 | AK23: 0 | AL23: 0 | AM23: 0 | AN23: 0
B24: Energía | C24: Fuente fija | D24: Combustión | E24: Gas butano | H24: Ambos | I24: 1 | J24: ='Alcance 1'!D12 -> 0 | K24: ='Alcance 1'!E12 -> L | M24: =LOOKUP($E24,'Datos 3-Factores de convers'!$B$29:$B$51,'Datos 3-Factores de convers'!$F$29:$F$51) -> 2.6495336e-05 | N24: =LOOKUP($E24,'Datos 3-Factores de convers'!$B$29:$B$51,'Datos 3-Factores de convers'!$G$29:$G$51) -> TJ/L | O24: 0 | P24: TJ | Q24: =LOOKUP($E24,'Datos 1-Factores emisión'!$B$9:$B$18,'Datos 1-Factores emisión'!$C$9:$C$18) -> 66200 | R24: =LOOKUP($E24,'Datos 1-Factores emisión'!$B$9:$B$18,'Datos 1-Factores emisión'!$E$9:$E$18) -> 5 | S24: =LOOKUP($E24,'Datos 1-Factores emisión'!$B$9:$B$18,'Datos 1-Factores emisión'!$F$9:$F$18) -> 0.1 | T24: =LOOKUP($E24,'Datos 1-Factores emisión'!$B$9:$B$18,'Datos 1-Factores emisión'!$D$9:$D$18) -> 0 | U24: 0 | V24: 0 | W24: 0 | X24: 0 | Y24: 0 | Z24: 0 | AA24: 0 | AB24: ='Datos 2-Potenciales calent glob'!$D$6 -> 1 | AC24: ='Datos 2-Potenciales calent glob'!$D$31 -> 25 | AD24: ='Datos 2-Potenciales calent glob'!$D$32 -> 298 | AE24: =SUMIF('Datos 2-Potenciales calent glob'!$B$6:$B$56,Cálculos!F24,'Datos 2-Potenciales calent glob'!$D$6:$D$56) -> 0 | AF24: ='Datos 2-Potenciales calent glob'!$D$6 -> 1 | AG24: ='Datos 2-Potenciales calent glob'!$D$6 -> 1 | AH24: 0 | AI24: 0 | AJ24: 0 | AK24: 0 | AL24: 0 | AM24: 0 | AN24: 0
B25: Energía | C25: Fuente fija | D25: Combustión | E25: Gas natural | H25: Ambos | I25: 1 | J25: ='Alcance 1'!D13 -> 0 | K25: ='Alcance 1'!E13 -> Nm3 | M25: =LOOKUP($E25,'Datos 3-Factores de convers'!$B$29:$B$51,'Datos 3-Factores de convers'!$F$29:$F$51) -> 3.78456e-05 | N25: =LOOKUP($E25,'Datos 3-Factores de convers'!$B$29:$B$51,'Datos 3-Factores de convers'!$G$29:$G$51) -> TJ/Nm3 | O25: 0 | P25: TJ | Q25: =LOOKUP($E25,'Datos 1-Factores emisión'!$B$9:$B$18,'Datos 1-Factores emisión'!$C$9:$C$18) -> 56130 | R25: =LOOKUP($E25,'Datos 1-Factores emisión'!$B$9:$B$18,'Datos 1-Factores emisión'!$E$9:$E$18) -> 5 | S25: =LOOKUP($E25,'Datos 1-Factores emisión'!$B$9:$B$18,'Datos 1-Factores emisión'!$F$9:$F$18) -> 0.1 | T25: =LOOKUP($E25,'Datos 1-Factores emisión'!$B$9:$B$18,'Datos 1-Factores emisión'!$D$9:$D$18) -> 0 | U25: 0 | V25: 0 | W25: 0 | X25: 0 | Y25: 0 | Z25: 0 | AA25: 0 | AB25: ='Datos 2-Potenciales calent glob'!$D$6 -> 1 | AC25: ='Datos 2-Potenciales calent glob'!$D$31 -> 25 | AD25: ='Datos 2-Potenciales calent glob'!$D$32 -> 298 | AE25: =SUMIF('Datos 2-Potenciales calent glob'!$B$6:$B$56,Cálculos!F25,'Datos 2-Potenciales calent glob'!$D$6:$D$56) -> 0 | AF25: ='Datos 2-Potenciales calent glob'!$D$6 -> 1 | AG25: ='Datos 2-Potenciales calent glob'!$D$6 -> 1 | AH25: 0 | AI25: 0 | AJ25: 0 | AK25: 0 | AL25: 0 | AM25: 0 | AN25: 0
B26: Energía | C26: Fuente fija | D26: Combustión | E26: Gas propano | H26: Ambos | I26: 1 | J26: ='Alcance 1'!D14 -> 0 | K26: ='Alcance 1'!E14 -> L | M26: =LOOKUP($E26,'Datos 3-Factores de convers'!$B$29:$B$51,'Datos 3-Factores de convers'!$F$29:$F$51) -> 2.453184235e-05 | N26: =LOOKUP($E26,'Datos 3-Factores de convers'!$B$29:$B$51,'Datos 3-Factores de convers'!$G$29:$G$51) -> TJ/L | O26: 0 | P26: TJ | Q26: =LOOKUP($E26,'Datos 1-Factores emisión'!$B$9:$B$18,'Datos 1-Factores emisión'!$C$9:$C$18) -> 63600 | R26: =LOOKUP($E26,'Datos 1-Factores emisión'!$B$9:$B$18,'Datos 1-Factores emisión'!$E$9:$E$18) -> 5 | S26: =LOOKUP($E26,'Datos 1-Factores emisión'!$B$9:$B$18,'Datos 1-Factores emisión'!$F$9:$F$18) -> 0.1 | T26: =LOOKUP($E26,'Datos 1-Factores emisión'!$B$9:$B$18,'Datos 1-Factores emisión'!$D$9:$D$18) -> 0 | U26: 0 | V26: 0 | W26: 0 | X26: 0 | Y26: 0 | Z26: 0 | AA26: 0 | AB26: ='Datos 2-Potenciales calent glob'!$D$6 -> 1 | AC26: ='Datos 2-Potenciales calent glob'!$D$31 -> 25 | AD26: ='Datos 2-Potenciales calent glob'!$D$32 -> 298 | AE26: =SUMIF('Datos 2-Potenciales calent glob'!$B$6:$B$56,Cálculos!F26,'Datos 2-Potenciales calent glob'!$D$6:$D$56) -> 0 | AF26: ='Datos 2-Potenciales calent glob'!$D$6 -> 1 | AG26: ='Datos 2-Potenciales calent glob'!$D$6 -> 1 | AH26: 0 | AI26: 0 | AJ26: 0 | AK26: 0 | AL26: 0 | AM26: 0 | AN26: 0
B27: Energía | C27: Fuente fija | D27: Combustión | E27: Gasóleo C | H27: Ambos | I27: 1 | J27: ='Alcance 1'!D15 -> 0 | K27: ='Alcance 1'!E15 -> L | M27: =LOOKUP($E27,'Datos 3-Factores de convers'!$B$29:$B$51,'Datos 3-Factores de convers'!$F$29:$F$51) -> 3.9001905e-05 | N27: =LOOKUP($E27,'Datos 3-Factores de convers'!$B$29:$B$51,'Datos 3-Factores de convers'!$G$29:$G$51) -> TJ/L | O27: 0 | P27: TJ | Q27: =LOOKUP($E27,'Datos 1-Factores emisión'!$B$9:$B$18,'Datos 1-Factores emisión'!$C$9:$C$18) -> 74100 | R27: =LOOKUP($E27,'Datos 1-Factores emisión'!$B$9:$B$18,'Datos 1-Factores emisión'!$E$9:$E$18) -> 10 | S27: =LOOKUP($E27,'Datos 1-Factores emisión'!$B$9:$B$18,'Datos 1-Factores emisión'!$F$9:$F$18) -> 0.6 | T27: =LOOKUP($E27,'Datos 1-Factores emisión'!$B$9:$B$18,'Datos 1-Factores emisión'!$D$9:$D$18) -> 0 | U27: 0 | V27: 0 | W27: 0 | X27: 0 | Y27: 0 | Z27: 0 | AA27: 0 | AB27: ='Datos 2-Potenciales calent glob'!$D$6 -> 1 | AC27: ='Datos 2-Potenciales calent glob'!$D$31 -> 25 | AD27: ='Datos 2-Potenciales calent glob'!$D$32 -> 298 | AE27: =SUMIF('Datos 2-Potenciales calent glob'!$B$6:$B$56,Cálculos!F27,'Datos 2-Potenciales calent glob'!$D$6:$D$56) -> 0 | AF27: ='Datos 2-Potenciales calent glob'!$D$6 -> 1 | AG27: ='Datos 2-Potenciales calent glob'!$D$6 -> 1 | AH27: 0 | AI27: 0 | AJ27: 0 | AK27: 0 | AL27: 0 | AM27: 0 | AN27: 0
B28: Energía | C28: Fuente fija | D28: Combustión | E28: GLP genérico | H28: Ambos | I28: 1 | J28: ='Alcance 1'!D16 -> 0 | K28: ='Alcance 1'!E16 -> L | M28: =LOOKUP($E28,'Datos 3-Factores de convers'!$B$29:$B$51,'Datos 3-Factores de convers'!$F$29:$F$51) -> 2.6495336e-05 | N28: =LOOKUP($E28,'Datos 3-Factores de convers'!$B$29:$B$51,'Datos 3-Factores de convers'!$G$29:$G$51) -> TJ/L | O28: 0 | P28: TJ | Q28: =LOOKUP($E28,'Datos 1-Factores emisión'!$B$9:$B$18,'Datos 1-Factores emisión'!$C$9:$C$18) -> 63100 | R28: =LOOKUP($E28,'Datos 1-Factores emisión'!$B$9:$B$18,'Datos 1-Factores emisión'!$E$9:$E$18) -> 5 | S28: =LOOKUP($E28,'Datos 1-Factores emisión'!$B$9:$B$18,'Datos 1-Factores emisión'!$F$9:$F$18) -> 0.1 | T28: =LOOKUP($E28,'Datos 1-Factores emisión'!$B$9:$B$18,'Datos 1-Factores emisión'!$D$9:$D$18) -> 0 | U28: 0 | V28: 0 | W28: 0 | X28: 0 | Y28: 0 | Z28: 0 | AA28: 0 | AB28: ='Datos 2-Potenciales calent glob'!$D$6 -> 1 | AC28: ='Datos 2-Potenciales calent glob'!$D$31 -> 25 | AD28: ='Datos 2-Potenciales calent glob'!$D$32 -> 298 | AE28: =SUMIF('Datos 2-Potenciales calent glob'!$B$6:$B$56,Cálculos!F28,'Datos 2-Potenciales calent glob'!$D$6:$D$56) -> 0 | AF28: ='Datos 2-Potenciales calent glob'!$D$6 -> 1 | AG28: ='Datos 2-Potenciales calent glob'!$D$6 -> 1 | AH28: 0 | AI28: 0 | AJ28: 0 | AK28: 0 | AL28: 0 | AM28: 0 | AN28: 0
B29: Energía | C29: Fuente fija | D29: Combustión | E29: Queroseno | H29: Ambos | I29: 1 | J29: ='Alcance 1'!D17 -> 0 | K29: ='Alcance 1'!E17 -> L | M29: =LOOKUP($E29,'Datos 3-Factores de convers'!$B$29:$B$51,'Datos 3-Factores de convers'!$F$29:$F$51) -> 3.567324e-05 | N29: =LOOKUP($E29,'Datos 3-Factores de convers'!$B$29:$B$51,'Datos 3-Factores de convers'!$G$29:$G$51) -> TJ/L | O29: 0 | P29: TJ | Q29: =LOOKUP($E29,'Datos 1-Factores emisión'!$B$9:$B$18,'Datos 1-Factores emisión'!$C$9:$C$18) -> 71900 | R29: =LOOKUP($E29,'Datos 1-Factores emisión'!$B$9:$B$18,'Datos 1-Factores emisión'!$E$9:$E$18) -> 10 | S29: =LOOKUP($E29,'Datos 1-Factores emisión'!$B$9:$B$18,'Datos 1-Factores emisión'!$F$9:$F$18) -> 0.6 | T29: =LOOKUP($E29,'Datos 1-Factores emisión'!$B$9:$B$18,'Datos 1-Factores emisión'!$D$9:$D$18) -> 0 | U29: 0 | V29: 0 | W29: 0 | X29: 0 | Y29: 0 | Z29: 0 | AA29: 0 | AB29: ='Datos 2-Potenciales calent glob'!$D$6 -> 1 | AC29: ='Datos 2-Potenciales calent glob'!$D$31 -> 25 | AD29: ='Datos 2-Potenciales calent glob'!$D$32 -> 298 | AE29: =SUMIF('Datos 2-Potenciales calent glob'!$B$6:$B$56,Cálculos!F29,'Datos 2-Potenciales calent glob'!$D$6:$D$56) -> 0 | AF29: ='Datos 2-Potenciales calent glob'!$D$6 -> 1 | AG29: ='Datos 2-Potenciales calent glob'!$D$6 -> 1 | AH29: 0 | AI29: 0 | AJ29: 0 | AK29: 0 | AL29: 0 | AM29: 0 | AN29: 0
B30: Energía | C30: Fuente móvil | D30: Combustión | E30: Gasolina | H30: Ambos | I30: 1 | J30: ='Alcance 1'!D24 -> 0 | K30: ='Alcance 1'!E24 -> L | M30: =LOOKUP($E30,'Datos 3-Factores de convers'!$B$29:$B$51,'Datos 3-Factores de convers'!$F$29:$F$51) -> 3.607676212e-05 | N30: =LOOKUP($E30,'Datos 3-Factores de convers'!$B$29:$B$51,'Datos 3-Factores de convers'!$G$29:$G$51) -> TJ/L | O30: 0 | P30: TJ | Q30: =LOOKUP($E30,'Datos 1-Factores emisión'!$B$23:$B$33,'Datos 1-Factores emisión'!$C$23:$C$33) ->  | R30: =LOOKUP($E30,'Datos 1-Factores emisión'!$B$23:$B$33,'Datos 1-Factores emisión'!$E$23:$E$33) ->  | S30: =LOOKUP($E30,'Datos 1-Factores emisión'!$B$23:$B$33,'Datos 1-Factores emisión'!$F$23:$F$33) ->  | T30: =LOOKUP($E30,'Datos 1-Factores emisión'!$B$23:$B$33,'Datos 1-Factores emisión'!$D$23:$D$33) ->  | U30: 0 | Y30: 0 | AA30: 0 | AB30: ='Datos 2-Potenciales calent glob'!$D$6 -> 1 | AC30: ='Datos 2-Potenciales calent glob'!$D$31 -> 25 | AD30: ='Datos 2-Potenciales calent glob'!$D$32 -> 298 | AE30: =SUMIF('Datos 2-Potenciales calent glob'!$B$6:$B$56,Cálculos!F30,'Datos 2-Potenciales calent glob'!$D$6:$D$56) -> 0 | AF30: ='Datos 2-Potenciales calent glob'!$D$6 -> 1 | AG30: ='Datos 2-Potenciales calent glob'!$D$6 -> 1 | AK30: 0 | AN30: 0
B31: Energía | C31: Fuente móvil | D31: Combustión | E31: Gasóleo A y B | H31: Ambos | I31: 1 | J31: ='Alcance 1'!D25 -> 0 | K31: ='Alcance 1'!E25 -> L | M31: =LOOKUP($E31,'Datos 3-Factores de convers'!$B$29:$B$51,'Datos 3-Factores de convers'!$F$29:$F$51) ->  | N31: =LOOKUP($E31,'Datos 3-Factores de convers'!$B$29:$B$51,'Datos 3-Factores de convers'!$G$29:$G$51) -> TJ/L | P31: TJ | Q31: =LOOKUP($E31,'Datos 1-Factores emisión'!$B$23:$B$33,'Datos 1-Factores emisión'!$C$23:$C$33) ->  | R31: =LOOKUP($E31,'Datos 1-Factores emisión'!$B$23:$B$33,'Datos 1-Factores emisión'!$E$23:$E$33) ->  | S31: =LOOKUP($E31,'Datos 1-Factores emisión'!$B$23:$B$33,'Datos 1-Factores emisión'!$F$23:$F$33) ->  | T31: =LOOKUP($E31,'Datos 1-Factores emisión'!$B$23:$B$33,'Datos 1-Factores emisión'!$D$23:$D$33) ->  | U31: 0 | Y31: 0 | AB31: ='Datos 2-Potenciales calent glob'!$D$6 -> 1 | AC31: ='Datos 2-Potenciales calent glob'!$D$31 -> 25 | AD31: ='Datos 2-Potenciales calent glob'!$D$32 -> 298 | AE31: =SUMIF('Datos 2-Potenciales calent glob'!$B$6:$B$56,Cálculos!F31,'Datos 2-Potenciales calent glob'!$D$6:$D$56) -> 0 | AF31: ='Datos 2-Potenciales calent glob'!$D$6 -> 1 | AG31: ='Datos 2-Potenciales calent glob'!$D$6 -> 1 | AK31: 0
B32: Energía | C32: Fuente móvil | D32: Combustión | E32: E10 | H32: Ambos | I32: 1 | J32: ='Alcance 1'!D26 -> 0 | K32: ='Alcance 1'!E26 -> L | M32: =LOOKUP($E32,'Datos 3-Factores de convers'!$B$29:$B$51,'Datos 3-Factores de convers'!$F$29:$F$51) -> 3.229980548e-05 | N32: =LOOKUP($E32,'Datos 3-Factores de convers'!$B$29:$B$51,'Datos 3-Factores de convers'!$G$29:$G$51) -> TJ/L | O32: 0 | P32: TJ | Q32: =LOOKUP($E32,'Datos 1-Factores emisión'!$B$23:$B$33,'Datos 1-Factores emisión'!$C$23:$C$33) -> 62370 | R32: =LOOKUP($E32,'Datos 1-Factores emisión'!$B$23:$B$33,'Datos 1-Factores emisión'!$E$23:$E$33) -> 30.09 | S32: =LOOKUP($E32,'Datos 1-Factores emisión'!$B$23:$B$33,'Datos 1-Factores emisión'!$F$23:$F$33) -> 3.27 | T32: =LOOKUP($E32,'Datos 1-Factores emisión'!$B$23:$B$33,'Datos 1-Factores emisión'!$D$23:$D$33) -> 7080 | U32: 0 | V32: 0 | W32: 0 | X32: 0 | Y32: 0 | Z32: 0 | AA32: 0 | AB32: ='Datos 2-Potenciales calent glob'!$D$6 -> 1 | AC32: ='Datos 2-Potenciales calent glob'!$D$31 -> 25 | AD32: ='Datos 2-Potenciales calent glob'!$D$32 -> 298 | AE32: =SUMIF('Datos 2-Potenciales calent glob'!$B$6:$B$56,Cálculos!F32,'Datos 2-Potenciales calent glob'!$D$6:$D$56) -> 0 | AF32: ='Datos 2-Potenciales calent glob'!$D$6 -> 1 | AG32: ='Datos 2-Potenciales calent glob'!$D$6 -> 1 | AH32: 0 | AI32: 0 | AJ32: 0 | AK32: 0 | AL32: 0 | AM32: 0 | AN32: 0
B33: Energía | C33: Fuente móvil | D33: Combustión | E33: E85 | H33: Ambos | I33: 1 | J33: ='Alcance 1'!D27 -> 0 | K33: ='Alcance 1'!E27 -> L | M33: =LOOKUP($E33,'Datos 3-Factores de convers'!$B$29:$B$51,'Datos 3-Factores de convers'!$F$29:$F$51) -> 2.338330091e-05 | N33: =LOOKUP($E33,'Datos 3-Factores de convers'!$B$29:$B$51,'Datos 3-Factores de convers'!$G$29:$G$51) -> TJ/L | O33: 0 | P33: TJ | Q33: =LOOKUP($E33,'Datos 1-Factores emisión'!$B$23:$B$33,'Datos 1-Factores emisión'!$C$23:$C$33) -> 10395 | R33: =LOOKUP($E33,'Datos 1-Factores emisión'!$B$23:$B$33,'Datos 1-Factores emisión'!$E$23:$E$33) -> 8.265 | S33: =LOOKUP($E33,'Datos 1-Factores emisión'!$B$23:$B$33,'Datos 1-Factores emisión'!$F$23:$F$33) -> 3.795 | T33: =LOOKUP($E33,'Datos 1-Factores emisión'!$B$23:$B$33,'Datos 1-Factores emisión'!$D$23:$D$33) -> 60180 | U33: 0 | V33: 0 | W33: 0 | X33: 0 | Y33: 0 | Z33: 0 | AA33: 0 | AB33: ='Datos 2-Potenciales calent glob'!$D$6 -> 1 | AC33: ='Datos 2-Potenciales calent glob'!$D$31 -> 25 | AD33: ='Datos 2-Potenciales calent glob'!$D$32 -> 298 | AE33: =SUMIF('Datos 2-Potenciales calent glob'!$B$6:$B$56,Cálculos!F33,'Datos 2-Potenciales calent glob'!$D$6:$D$56) -> 0 | AF33: ='Datos 2-Potenciales calent glob'!$D$6 -> 1 | AG33: ='Datos 2-Potenciales calent glob'!$D$6 -> 1 | AH33: 0 | AI33: 0 | AJ33: 0 | AK33: 0 | AL33: 0 | AM33: 0 | AN33: 0
B34: Energía | C34: Fuente móvil | D34: Combustión | E34: B30 | H34: Ambos | I34: 1 | J34: ='Alcance 1'!D28 -> 0 | K34: ='Alcance 1'!E28 -> L | M34: =LOOKUP($E34,'Datos 3-Factores de convers'!$B$29:$B$51,'Datos 3-Factores de convers'!$F$29:$F$51) -> 3.238173349e-05 | N34: =LOOKUP($E34,'Datos 3-Factores de convers'!$B$29:$B$51,'Datos 3-Factores de convers'!$G$29:$G$51) -> TJ/L | O34: 0 | P34: TJ | Q34: =LOOKUP($E34,'Datos 1-Factores emisión'!$B$23:$B$33,'Datos 1-Factores emisión'!$C$23:$C$33) -> 51870 | R34: =LOOKUP($E34,'Datos 1-Factores emisión'!$B$23:$B$33,'Datos 1-Factores emisión'!$E$23:$E$33) -> 3.9 | S34: =LOOKUP($E34,'Datos 1-Factores emisión'!$B$23:$B$33,'Datos 1-Factores emisión'!$F$23:$F$33) -> 3.9 | T34: =LOOKUP($E34,'Datos 1-Factores emisión'!$B$23:$B$33,'Datos 1-Factores emisión'!$D$23:$D$33) -> 21240 | U34: 0 | V34: 0 | W34: 0 | X34: 0 | Y34: 0 | Z34: 0 | AA34: 0 | AB34: ='Datos 2-Potenciales calent glob'!$D$6 -> 1 | AC34: ='Datos 2-Potenciales calent glob'!$D$31 -> 25 | AD34: ='Datos 2-Potenciales calent glob'!$D$32 -> 298 | AE34: =SUMIF('Datos 2-Potenciales calent glob'!$B$6:$B$56,Cálculos!F34,'Datos 2-Potenciales calent glob'!$D$6:$D$56) -> 0 | AF34: ='Datos 2-Potenciales calent glob'!$D$6 -> 1 | AG34: ='Datos 2-Potenciales calent glob'!$D$6 -> 1 | AH34: 0 | AI34: 0 | AJ34: 0 | AK34: 0 | AL34: 0 | AM34: 0 | AN34: 0
B35: Energía | C35: Fuente móvil | D35: Combustión | E35: B100 | H35: Ambos | I35: 1 | J35: ='Alcance 1'!D29 -> 0 | K35: ='Alcance 1'!E29 -> L | M35: =LOOKUP($E35,'Datos 3-Factores de convers'!$B$29:$B$51,'Datos 3-Factores de convers'!$F$29:$F$51) -> 2.376e-05 | N35: =LOOKUP($E35,'Datos 3-Factores de convers'!$B$29:$B$51,'Datos 3-Factores de convers'!$G$29:$G$51) -> TJ/L | O35: 0 | P35: TJ | Q35: =LOOKUP($E35,'Datos 1-Factores emisión'!$B$23:$B$33,'Datos 1-Factores emisión'!$C$23:$C$33) -> 0 | R35: =LOOKUP($E35,'Datos 1-Factores emisión'!$B$23:$B$33,'Datos 1-Factores emisión'!$E$23:$E$33) -> 3.9 | S35: =LOOKUP($E35,'Datos 1-Factores emisión'!$B$23:$B$33,'Datos 1-Factores emisión'!$F$23:$F$33) -> 3.9 | T35: =LOOKUP($E35,'Datos 1-Factores emisión'!$B$23:$B$33,'Datos 1-Factores emisión'!$D$23:$D$33) -> 70800 | U35: 0 | V35: 0 | W35: 0 | X35: 0 | Y35: 0 | Z35: 0 | AA35: 0 | AB35: ='Datos 2-Potenciales calent glob'!$D$6 -> 1 | AC35: ='Datos 2-Potenciales calent glob'!$D$31 -> 25 | AD35: ='Datos 2-Potenciales calent glob'!$D$32 -> 298 | AE35: =SUMIF('Datos 2-Potenciales calent glob'!$B$6:$B$56,Cálculos!F35,'Datos 2-Potenciales calent glob'!$D$6:$D$56) -> 0 | AF35: ='Datos 2-Potenciales calent glob'!$D$6 -> 1 | AG35: ='Datos 2-Potenciales calent glob'!$D$6 -> 1 | AH35: 0 | AI35: 0 | AJ35: 0 | AK35: 0 | AL35: 0 | AM35: 0 | AN35: 0
B36: Energía | C36: Fuente móvil | D36: Combustión | E36: Gas Natural Comprimido | H36: Ambos | I36: 1 | J36: ='Alcance 1'!D30 -> 0 | K36: ='Alcance 1'!E30 -> Nm3 | M36: =LOOKUP($E36,'Datos 3-Factores de convers'!$B$29:$B$51,'Datos 3-Factores de convers'!$F$29:$F$51) -> 3.78456e-05 | N36: =LOOKUP($E36,'Datos 3-Factores de convers'!$B$29:$B$51,'Datos 3-Factores de convers'!$G$29:$G$51) -> TJ/Nm3 | O36: 0 | P36: TJ | Q36: =LOOKUP($E36,'Datos 1-Factores emisión'!$B$23:$B$33,'Datos 1-Factores emisión'!$C$23:$C$33) -> 56100 | R36: =LOOKUP($E36,'Datos 1-Factores emisión'!$B$23:$B$33,'Datos 1-Factores emisión'!$E$23:$E$33) -> 92 | S36: =LOOKUP($E36,'Datos 1-Factores emisión'!$B$23:$B$33,'Datos 1-Factores emisión'!$F$23:$F$33) -> 3 | T36: =LOOKUP($E36,'Datos 1-Factores emisión'!$B$23:$B$33,'Datos 1-Factores emisión'!$D$23:$D$33) -> 0 | U36: 0 | V36: 0 | W36: 0 | X36: 0 | Y36: 0 | Z36: 0 | AA36: 0 | AB36: ='Datos 2-Potenciales calent glob'!$D$6 -> 1 | AC36: ='Datos 2-Potenciales calent glob'!$D$31 -> 25 | AD36: ='Datos 2-Potenciales calent glob'!$D$32 -> 298 | AE36: =SUMIF('Datos 2-Potenciales calent glob'!$B$6:$B$56,Cálculos!F36,'Datos 2-Potenciales calent glob'!$D$6:$D$56) -> 0 | AF36: ='Datos 2-Potenciales calent glob'!$D$6 -> 1 | AG36: ='Datos 2-Potenciales calent glob'!$D$6 -> 1 | AH36: 0 | AI36: 0 | AJ36: 0 | AK36: 0 | AL36: 0 | AM36: 0 | AN36: 0
B37: Energía | C37: Fuente móvil | D37: Combustión | E37: Gas Natural Licuado | H37: Ambos | I37: 1 | J37: ='Alcance 1'!D31 -> 0 | K37: ='Alcance 1'!E31 -> L | M37: =LOOKUP($E37,'Datos 3-Factores de convers'!$B$29:$B$51,'Datos 3-Factores de convers'!$F$29:$F$51) -> 1.989e-05 | N37: =LOOKUP($E37,'Datos 3-Factores de convers'!$B$29:$B$51,'Datos 3-Factores de convers'!$G$29:$G$51) -> TJ/L | O37: 0 | P37: TJ | Q37: =LOOKUP($E37,'Datos 1-Factores emisión'!$B$23:$B$33,'Datos 1-Factores emisión'!$C$23:$C$33) -> 56100 | R37: =LOOKUP($E37,'Datos 1-Factores emisión'!$B$23:$B$33,'Datos 1-Factores emisión'!$E$23:$E$33) -> 92 | S37: =LOOKUP($E37,'Datos 1-Factores emisión'!$B$23:$B$33,'Datos 1-Factores emisión'!$F$23:$F$33) -> 3 | T37: =LOOKUP($E37,'Datos 1-Factores emisión'!$B$23:$B$33,'Datos 1-Factores emisión'!$D$23:$D$33) -> 0 | U37: 0 | V37: 0 | W37: 0 | X37: 0 | Y37: 0 | Z37: 0 | AA37: 0 | AB37: ='Datos 2-Potenciales calent glob'!$D$6 -> 1 | AC37: ='Datos 2-Potenciales calent glob'!$D$31 -> 25 | AD37: ='Datos 2-Potenciales calent glob'!$D$32 -> 298 | AE37: =SUMIF('Datos 2-Potenciales calent glob'!$B$6:$B$56,Cálculos!F37,'Datos 2-Potenciales calent glob'!$D$6:$D$56) -> 0 | AF37: ='Datos 2-Potenciales calent glob'!$D$6 -> 1 | AG37: ='Datos 2-Potenciales calent glob'!$D$6 -> 1 | AH37: 0 | AI37: 0 | AJ37: 0 | AK37: 0 | AL37: 0 | AM37: 0 | AN37: 0
B38: Energía | C38: Fuente móvil | D38: Combustión | E38: GLP genérico | H38: Ambos | I38: 1 | J38: ='Alcance 1'!D32 -> 0 | K38: ='Alcance 1'!E32 -> L | M38: =LOOKUP($E38,'Datos 3-Factores de convers'!$B$29:$B$51,'Datos 3-Factores de convers'!$F$29:$F$51) -> 2.6495336e-05 | N38: =LOOKUP($E38,'Datos 3-Factores de convers'!$B$29:$B$51,'Datos 3-Factores de convers'!$G$29:$G$51) -> TJ/L | O38: 0 | P38: TJ | Q38: =LOOKUP($E38,'Datos 1-Factores emisión'!$B$23:$B$33,'Datos 1-Factores emisión'!$C$23:$C$33) -> 63100 | R38: =LOOKUP($E38,'Datos 1-Factores emisión'!$B$23:$B$33,'Datos 1-Factores emisión'!$E$23:$E$33) -> 62 | S38: =LOOKUP($E38,'Datos 1-Factores emisión'!$B$23:$B$33,'Datos 1-Factores emisión'!$F$23:$F$33) -> 0.2 | T38: =LOOKUP($E38,'Datos 1-Factores emisión'!$B$23:$B$33,'Datos 1-Factores emisión'!$D$23:$D$33) -> 0 | U38: 0 | V38: 0 | W38: 0 | X38: 0 | Y38: 0 | Z38: 0 | AA38: 0 | AB38: ='Datos 2-Potenciales calent glob'!$D$6 -> 1 | AC38: ='Datos 2-Potenciales calent glob'!$D$31 -> 25 | AD38: ='Datos 2-Potenciales calent glob'!$D$32 -> 298 | AE38: =SUMIF('Datos 2-Potenciales calent glob'!$B$6:$B$56,Cálculos!F38,'Datos 2-Potenciales calent glob'!$D$6:$D$56) -> 0 | AF38: ='Datos 2-Potenciales calent glob'!$D$6 -> 1 | AG38: ='Datos 2-Potenciales calent glob'!$D$6 -> 1 | AH38: 0 | AI38: 0 | AJ38: 0 | AK38: 0 | AL38: 0 | AM38: 0 | AN38: 0
B39: Energía | C39: Fuente móvil | D39: Combustión | E39: ='Alcance 1'!D37 -> Tipo de propulsión | F39: ='Alcance 1'!C37 -> Tipo de vehículo | H39: Ambos | I39: 1 | J39: ='Alcance 1'!E37 -> 0 | K39: km | M39: 1 | O39: 0 | P39: =K39 -> km | Q39: =SUMIFS('Datos 1-Factores emisión'!$E$43:$E$321,'Datos 1-Factores emisión'!$B$43:$B$321,Cálculos!$F39,'Datos 1-Factores emisión'!$C$43:$C$321,Cálculos!$E39,'Datos 1-Factores emisión'!$D$43:$D$321,Cálculos!Q$5) -> 0 | R39: =SUMIFS('Datos 1-Factores emisión'!$E$43:$E$321,'Datos 1-Factores emisión'!$B$43:$B$321,Cálculos!$F39,'Datos 1-Factores emisión'!$C$43:$C$321,Cálculos!$E39,'Datos 1-Factores emisión'!$D$43:$D$321,Cálculos!R$5) -> 0 | S39: =SUMIFS('Datos 1-Factores emisión'!$E$43:$E$321,'Datos 1-Factores emisión'!$B$43:$B$321,Cálculos!$F39,'Datos 1-Factores emisión'!$C$43:$C$321,Cálculos!$E39,'Datos 1-Factores emisión'!$D$43:$D$321,Cálculos!S$5) -> 0 | T39: =SUMIFS('Datos 1-Factores emisión'!$E$43:$E$321,'Datos 1-Factores emisión'!$B$43:$B$321,Cálculos!$F39,'Datos 1-Factores emisión'!$C$43:$C$321,Cálculos!$E39,'Datos 1-Factores emisión'!$D$43:$D$321,Cálculos!T$5) -> 0 | U39: =SUMIFS('Datos 1-Factores emisión'!$E$43:$E$321,'Datos 1-Factores emisión'!$B$43:$B$321,Cálculos!$F39,'Datos 1-Factores emisión'!$C$43:$C$321,Cálculos!$E39,'Datos 1-Factores emisión'!$D$43:$D$321,Cálculos!U$5) -> 0 | V39: 0 | W39: 0 | X39: 0 | Y39: 0 | Z39: 0 | AA39: =U39*$O39 -> 0 | AB39: ='Datos 2-Potenciales calent glob'!$D$6 -> 1 | AC39: ='Datos 2-Potenciales calent glob'!$D$31 -> 25 | AD39: ='Datos 2-Potenciales calent glob'!$D$32 -> 298 | AE39: =SUMIF('Datos 2-Potenciales calent glob'!$B$6:$B$56,Cálculos!F39,'Datos 2-Potenciales calent glob'!$D$6:$D$56) -> 0 | AF39: ='Datos 2-Potenciales calent glob'!$D$6 -> 1 | AG39: ='Datos 2-Potenciales calent glob'!$D$6 -> 1 | AH39: 0 | AI39: 0 | AJ39: 0 | AK39: 0 | AL39: 0 | AM39: 0 | AN39: 0
B40: Energía | C40: Fuente móvil | D40: Combustión | E40: ='Alcance 1'!D38 -> Tipo de propulsión | F40: ='Alcance 1'!C38 -> Tipo de vehículo | H40: Ambos | I40: 1 | J40: ='Alcance 1'!E38 -> 0 | K40: km | M40: 1 | O40: 0 | P40: =K40 -> km | Q40: =SUMIFS('Datos 1-Factores emisión'!$E$43:$E$321,'Datos 1-Factores emisión'!$B$43:$B$321,Cálculos!$F40,'Datos 1-Factores emisión'!$C$43:$C$321,Cálculos!$E40,'Datos 1-Factores emisión'!$D$43:$D$321,Cálculos!Q$5) -> 0 | R40: =SUMIFS('Datos 1-Factores emisión'!$E$43:$E$321,'Datos 1-Factores emisión'!$B$43:$B$321,Cálculos!$F40,'Datos 1-Factores emisión'!$C$43:$C$321,Cálculos!$E40,'Datos 1-Factores emisión'!$D$43:$D$321,Cálculos!R$5) -> 0 | S40: =SUMIFS('Datos 1-Factores emisión'!$E$43:$E$321,'Datos 1-Factores emisión'!$B$43:$B$321,Cálculos!$F40,'Datos 1-Factores emisión'!$C$43:$C$321,Cálculos!$E40,'Datos 1-Factores emisión'!$D$43:$D$321,Cálculos!S$5) -> 0 | T40: =SUMIFS('Datos 1-Factores emisión'!$E$43:$E$321,'Datos 1-Factores emisión'!$B$43:$B$321,Cálculos!$F40,'Datos 1-Factores emisión'!$C$43:$C$321,Cálculos!$E40,'Datos 1-Factores emisión'!$D$43:$D$321,Cálculos!T$5) -> 0 | U40: =SUMIFS('Datos 1-Factores emisión'!$E$43:$E$321,'Datos 1-Factores emisión'!$B$43:$B$321,Cálculos!$F40,'Datos 1-Factores emisión'!$C$43:$C$321,Cálculos!$E40,'Datos 1-Factores emisión'!$D$43:$D$321,Cálculos!U$5) -> 0 | V40: 0 | W40: 0 | X40: 0 | Y40: 0 | Z40: 0 | AA40: 0 | AB40: ='Datos 2-Potenciales calent glob'!$D$6 -> 1 | AC40: ='Datos 2-Potenciales calent glob'!$D$31 -> 25 | AD40: ='Datos 2-Potenciales calent glob'!$D$32 -> 298 | AE40: =SUMIF('Datos 2-Potenciales calent glob'!$B$6:$B$56,Cálculos!F40,'Datos 2-Potenciales calent glob'!$D$6:$D$56) -> 0 | AF40: ='Datos 2-Potenciales calent glob'!$D$6 -> 1 | AG40: ='Datos 2-Potenciales calent glob'!$D$6 -> 1 | AH40: 0 | AI40: 0 | AJ40: 0 | AK40: 0 | AL40: 0 | AM40: 0 | AN40: 0
B41: Energía | C41: Fuente móvil | D41: Combustión | E41: ='Alcance 1'!D39 -> Tipo de propulsión | F41: ='Alcance 1'!C39 -> Tipo de vehículo | H41: Ambos | I41: 1 | J41: ='Alcance 1'!E39 -> 0 | K41: km | M41: 1 | O41: 0 | P41: km | Q41: =SUMIFS('Datos 1-Factores emisión'!$E$43:$E$321,'Datos 1-Factores emisión'!$B$43:$B$321,Cálculos!$F41,'Datos 1-Factores emisión'!$C$43:$C$321,Cálculos!$E41,'Datos 1-Factores emisión'!$D$43:$D$321,Cálculos!Q$5) -> 0 | R41: =SUMIFS('Datos 1-Factores emisión'!$E$43:$E$321,'Datos 1-Factores emisión'!$B$43:$B$321,Cálculos!$F41,'Datos 1-Factores emisión'!$C$43:$C$321,Cálculos!$E41,'Datos 1-Factores emisión'!$D$43:$D$321,Cálculos!R$5) -> 0 | S41: =SUMIFS('Datos 1-Factores emisión'!$E$43:$E$321,'Datos 1-Factores emisión'!$B$43:$B$321,Cálculos!$F41,'Datos 1-Factores emisión'!$C$43:$C$321,Cálculos!$E41,'Datos 1-Factores emisión'!$D$43:$D$321,Cálculos!S$5) -> 0 | T41: =SUMIFS('Datos 1-Factores emisión'!$E$43:$E$321,'Datos 1-Factores emisión'!$B$43:$B$321,Cálculos!$F41,'Datos 1-Factores emisión'!$C$43:$C$321,Cálculos!$E41,'Datos 1-Factores emisión'!$D$43:$D$321,Cálculos!T$5) -> 0 | U41: =SUMIFS('Datos 1-Factores emisión'!$E$43:$E$321,'Datos 1-Factores emisión'!$B$43:$B$321,Cálculos!$F41,'Datos 1-Factores emisión'!$C$43:$C$321,Cálculos!$E41,'Datos 1-Factores emisión'!$D$43:$D$321,Cálculos!U$5) -> 0 | V41: 0 | W41: 0 | X41: 0 | Y41: 0 | Z41: 0 | AA41: 0 | AB41: ='Datos 2-Potenciales calent glob'!$D$6 -> 1 | AC41: ='Datos 2-Potenciales calent glob'!$D$31 -> 25 | AD41: ='Datos 2-Potenciales calent glob'!$D$32 -> 298 | AE41: =SUMIF('Datos 2-Potenciales calent glob'!$B$6:$B$56,Cálculos!F41,'Datos 2-Potenciales calent glob'!$D$6:$D$56) -> 0 | AF41: ='Datos 2-Potenciales calent glob'!$D$6 -> 1 | AG41: ='Datos 2-Potenciales calent glob'!$D$6 -> 1 | AH41: 0 | AI41: 0 | AJ41: 0 | AK41: 0 | AL41: 0 | AM41: 0 | AN41: 0
B42: Energía | C42: Fuente móvil | D42: Combustión | E42: ='Alcance 1'!D40 -> Tipo de propulsión | F42: ='Alcance 1'!C40 -> Tipo de vehículo | H42: Ambos | I42: 1 | J42: ='Alcance 1'!E40 -> 0 | K42: km | M42: 1 | O42: 0 | P42: km | Q42: =SUMIFS('Datos 1-Factores emisión'!$E$43:$E$321,'Datos 1-Factores emisión'!$B$43:$B$321,Cálculos!$F42,'Datos 1-Factores emisión'!$C$43:$C$321,Cálculos!$E42,'Datos 1-Factores emisión'!$D$43:$D$321,Cálculos!Q$5) -> 0 | R42: =SUMIFS('Datos 1-Factores emisión'!$E$43:$E$321,'Datos 1-Factores emisión'!$B$43:$B$321,Cálculos!$F42,'Datos 1-Factores emisión'!$C$43:$C$321,Cálculos!$E42,'Datos 1-Factores emisión'!$D$43:$D$321,Cálculos!R$5) -> 0 | S42: =SUMIFS('Datos 1-Factores emisión'!$E$43:$E$321,'Datos 1-Factores emisión'!$B$43:$B$321,Cálculos!$F42,'Datos 1-Factores emisión'!$C$43:$C$321,Cálculos!$E42,'Datos 1-Factores emisión'!$D$43:$D$321,Cálculos!S$5) -> 0 | T42: =SUMIFS('Datos 1-Factores emisión'!$E$43:$E$321,'Datos 1-Factores emisión'!$B$43:$B$321,Cálculos!$F42,'Datos 1-Factores emisión'!$C$43:$C$321,Cálculos!$E42,'Datos 1-Factores emisión'!$D$43:$D$321,Cálculos!T$5) -> 0 | U42: =SUMIFS('Datos 1-Factores emisión'!$E$43:$E$321,'Datos 1-Factores emisión'!$B$43:$B$321,Cálculos!$F42,'Datos 1-Factores emisión'!$C$43:$C$321,Cálculos!$E42,'Datos 1-Factores emisión'!$D$43:$D$321,Cálculos!U$5) -> 0 | V42: 0 | W42: 0 | X42: 0 | Y42: 0 | Z42: 0 | AA42: 0 | AB42: ='Datos 2-Potenciales calent glob'!$D$6 -> 1 | AC42: ='Datos 2-Potenciales calent glob'!$D$31 -> 25 | AD42: ='Datos 2-Potenciales calent glob'!$D$32 -> 298 | AE42: =SUMIF('Datos 2-Potenciales calent glob'!$B$6:$B$56,Cálculos!F42,'Datos 2-Potenciales calent glob'!$D$6:$D$56) -> 0 | AF42: ='Datos 2-Potenciales calent glob'!$D$6 -> 1 | AG42: ='Datos 2-Potenciales calent glob'!$D$6 -> 1 | AH42: 0 | AI42: 0 | AJ42: 0 | AK42: 0 | AL42: 0 | AM42: 0 | AN42: 0
B43: Energía | C43: Fuente móvil | D43: Combustión | E43: ='Alcance 1'!D41 -> Tipo de propulsión | F43: ='Alcance 1'!C41 -> Tipo de vehículo | H43: Ambos | I43: 1 | J43: ='Alcance 1'!E41 -> 0 | K43: km | M43: 1 | O43: 0 | P43: km | Q43: =SUMIFS('Datos 1-Factores emisión'!$E$43:$E$321,'Datos 1-Factores emisión'!$B$43:$B$321,Cálculos!$F43,'Datos 1-Factores emisión'!$C$43:$C$321,Cálculos!$E43,'Datos 1-Factores emisión'!$D$43:$D$321,Cálculos!Q$5) -> 0 | R43: =SUMIFS('Datos 1-Factores emisión'!$E$43:$E$321,'Datos 1-Factores emisión'!$B$43:$B$321,Cálculos!$F43,'Datos 1-Factores emisión'!$C$43:$C$321,Cálculos!$E43,'Datos 1-Factores emisión'!$D$43:$D$321,Cálculos!R$5) -> 0 | S43: =SUMIFS('Datos 1-Factores emisión'!$E$43:$E$321,'Datos 1-Factores emisión'!$B$43:$B$321,Cálculos!$F43,'Datos 1-Factores emisión'!$C$43:$C$321,Cálculos!$E43,'Datos 1-Factores emisión'!$D$43:$D$321,Cálculos!S$5) -> 0 | T43: =SUMIFS('Datos 1-Factores emisión'!$E$43:$E$321,'Datos 1-Factores emisión'!$B$43:$B$321,Cálculos!$F43,'Datos 1-Factores emisión'!$C$43:$C$321,Cálculos!$E43,'Datos 1-Factores emisión'!$D$43:$D$321,Cálculos!T$5) -> 0 | U43: =SUMIFS('Datos 1-Factores emisión'!$E$43:$E$321,'Datos 1-Factores emisión'!$B$43:$B$321,Cálculos!$F43,'Datos 1-Factores emisión'!$C$43:$C$321,Cálculos!$E43,'Datos 1-Factores emisión'!$D$43:$D$321,Cálculos!U$5) -> 0 | V43: 0 | W43: 0 | X43: 0 | Y43: 0 | Z43: 0 | AA43: 0 | AB43: ='Datos 2-Potenciales calent glob'!$D$6 -> 1 | AC43: ='Datos 2-Potenciales calent glob'!$D$31 -> 25 | AD43: ='Datos 2-Potenciales calent glob'!$D$32 -> 298 | AE43: =SUMIF('Datos 2-Potenciales calent glob'!$B$6:$B$56,Cálculos!F43,'Datos 2-Potenciales calent glob'!$D$6:$D$56) -> 0 | AF43: ='Datos 2-Potenciales calent glob'!$D$6 -> 1 | AG43: ='Datos 2-Potenciales calent glob'!$D$6 -> 1 | AH43: 0 | AI43: 0 | AJ43: 0 | AK43: 0 | AL43: 0 | AM43: 0 | AN43: 0
B44: Energía | C44: Fuente móvil | D44: Combustión | E44: ='Alcance 1'!D42 -> Tipo de propulsión | F44: ='Alcance 1'!C42 -> Tipo de vehículo | H44: Ambos | I44: 1 | J44: ='Alcance 1'!E42 -> 0 | K44: km | M44: 1 | O44: 0 | P44: km | Q44: =SUMIFS('Datos 1-Factores emisión'!$E$43:$E$321,'Datos 1-Factores emisión'!$B$43:$B$321,Cálculos!$F44,'Datos 1-Factores emisión'!$C$43:$C$321,Cálculos!$E44,'Datos 1-Factores emisión'!$D$43:$D$321,Cálculos!Q$5) -> 0 | R44: =SUMIFS('Datos 1-Factores emisión'!$E$43:$E$321,'Datos 1-Factores emisión'!$B$43:$B$321,Cálculos!$F44,'Datos 1-Factores emisión'!$C$43:$C$321,Cálculos!$E44,'Datos 1-Factores emisión'!$D$43:$D$321,Cálculos!R$5) -> 0 | S44: =SUMIFS('Datos 1-Factores emisión'!$E$43:$E$321,'Datos 1-Factores emisión'!$B$43:$B$321,Cálculos!$F44,'Datos 1-Factores emisión'!$C$43:$C$321,Cálculos!$E44,'Datos 1-Factores emisión'!$D$43:$D$321,Cálculos!S$5) -> 0 | T44: =SUMIFS('Datos 1-Factores emisión'!$E$43:$E$321,'Datos 1-Factores emisión'!$B$43:$B$321,Cálculos!$F44,'Datos 1-Factores emisión'!$C$43:$C$321,Cálculos!$E44,'Datos 1-Factores emisión'!$D$43:$D$321,Cálculos!T$5) -> 0 | U44: =SUMIFS('Datos 1-Factores emisión'!$E$43:$E$321,'Datos 1-Factores emisión'!$B$43:$B$321,Cálculos!$F44,'Datos 1-Factores emisión'!$C$43:$C$321,Cálculos!$E44,'Datos 1-Factores emisión'!$D$43:$D$321,Cálculos!U$5) -> 0 | V44: 0 | W44: 0 | X44: 0 | Y44: 0 | AA44: 0 | AB44: ='Datos 2-Potenciales calent glob'!$D$6 -> 1 | AC44: ='Datos 2-Potenciales calent glob'!$D$31 -> 25 | AD44: ='Datos 2-Potenciales calent glob'!$D$32 -> 298 | AE44: =SUMIF('Datos 2-Potenciales calent glob'!$B$6:$B$56,Cálculos!F44,'Datos 2-Potenciales calent glob'!$D$6:$D$56) -> 0 | AF44: ='Datos 2-Potenciales calent glob'!$D$6 -> 1 | AG44: ='Datos 2-Potenciales calent glob'!$D$6 -> 1 | AH44: 0 | AI44: 0 | AJ44: 0 | AK44: 0 | AL44: 0 | AM44: 0 | AN44: 0
B45: Energía | C45: Fuente móvil | D45: Combustión | E45: ='Alcance 1'!D43 -> Tipo de propulsión | F45: ='Alcance 1'!C43 -> Tipo de vehículo | H45: Ambos | I45: 1 | J45: ='Alcance 1'!E43 -> 0 | K45: km | M45: 1 | O45: 0 | P45: km | Q45: =SUMIFS('Datos 1-Factores emisión'!$E$43:$E$321,'Datos 1-Factores emisión'!$B$43:$B$321,Cálculos!$F45,'Datos 1-Factores emisión'!$C$43:$C$321,Cálculos!$E45,'Datos 1-Factores emisión'!$D$43:$D$321,Cálculos!Q$5) -> 0 | R45: =SUMIFS('Datos 1-Factores emisión'!$E$43:$E$321,'Datos 1-Factores emisión'!$B$43:$B$321,Cálculos!$F45,'Datos 1-Factores emisión'!$C$43:$C$321,Cálculos!$E45,'Datos 1-Factores emisión'!$D$43:$D$321,Cálculos!R$5) -> 0 | S45: =SUMIFS('Datos 1-Factores emisión'!$E$43:$E$321,'Datos 1-Factores emisión'!$B$43:$B$321,Cálculos!$F45,'Datos 1-Factores emisión'!$C$43:$C$321,Cálculos!$E45,'Datos 1-Factores emisión'!$D$43:$D$321,Cálculos!S$5) -> 0 | T45: =SUMIFS('Datos 1-Factores emisión'!$E$43:$E$321,'Datos 1-Factores emisión'!$B$43:$B$321,Cálculos!$F45,'Datos 1-Factores emisión'!$C$43:$C$321,Cálculos!$E45,'Datos 1-Factores emisión'!$D$43:$D$321,Cálculos!T$5) -> 0 | U45: =SUMIFS('Datos 1-Factores emisión'!$E$43:$E$321,'Datos 1-Factores emisión'!$B$43:$B$321,Cálculos!$F45,'Datos 1-Factores emisión'!$C$43:$C$321,Cálculos!$E45,'Datos 1-Factores emisión'!$D$43:$D$321,Cálculos!U$5) -> 0 | V45: 0 | W45: 0 | X45: 0 | Y45: 0 | Z45: 0 | AA45: 0 | AB45: ='Datos 2-Potenciales calent glob'!$D$6 -> 1 | AC45: ='Datos 2-Potenciales calent glob'!$D$31 -> 25 | AD45: ='Datos 2-Potenciales calent glob'!$D$32 -> 298 | AE45: =SUMIF('Datos 2-Potenciales calent glob'!$B$6:$B$56,Cálculos!F45,'Datos 2-Potenciales calent glob'!$D$6:$D$56) -> 0 | AF45: ='Datos 2-Potenciales calent glob'!$D$6 -> 1 | AG45: ='Datos 2-Potenciales calent glob'!$D$6 -> 1 | AH45: 0 | AI45: 0 | AJ45: 0 | AK45: 0 | AL45: 0 | AM45: 0 | AN45: 0
B46: Energía | C46: Fuente móvil | D46: Combustión | E46: ='Alcance 1'!D44 -> Tipo de propulsión | F46: ='Alcance 1'!C44 -> Tipo de vehículo | H46: Ambos | I46: 1 | J46: ='Alcance 1'!E44 -> 0 | K46: km | M46: 1 | O46: 0 | P46: km | Q46: =SUMIFS('Datos 1-Factores emisión'!$E$43:$E$321,'Datos 1-Factores emisión'!$B$43:$B$321,Cálculos!$F46,'Datos 1-Factores emisión'!$C$43:$C$321,Cálculos!$E46,'Datos 1-Factores emisión'!$D$43:$D$321,Cálculos!Q$5) -> 0 | R46: =SUMIFS('Datos 1-Factores emisión'!$E$43:$E$321,'Datos 1-Factores emisión'!$B$43:$B$321,Cálculos!$F46,'Datos 1-Factores emisión'!$C$43:$C$321,Cálculos!$E46,'Datos 1-Factores emisión'!$D$43:$D$321,Cálculos!R$5) -> 0 | S46: =SUMIFS('Datos 1-Factores emisión'!$E$43:$E$321,'Datos 1-Factores emisión'!$B$43:$B$321,Cálculos!$F46,'Datos 1-Factores emisión'!$C$43:$C$321,Cálculos!$E46,'Datos 1-Factores emisión'!$D$43:$D$321,Cálculos!S$5) -> 0 | T46: =SUMIFS('Datos 1-Factores emisión'!$E$43:$E$321,'Datos 1-Factores emisión'!$B$43:$B$321,Cálculos!$F46,'Datos 1-Factores emisión'!$C$43:$C$321,Cálculos!$E46,'Datos 1-Factores emisión'!$D$43:$D$321,Cálculos!T$5) -> 0 | U46: =SUMIFS('Datos 1-Factores emisión'!$E$43:$E$321,'Datos 1-Factores emisión'!$B$43:$B$321,Cálculos!$F46,'Datos 1-Factores emisión'!$C$43:$C$321,Cálculos!$E46,'Datos 1-Factores emisión'!$D$43:$D$321,Cálculos!U$5) -> 0 | V46: 0 | W46: 0 | X46: 0 | Y46: 0 | Z46: 0 | AA46: 0 | AB46: ='Datos 2-Potenciales calent glob'!$D$6 -> 1 | AC46: ='Datos 2-Potenciales calent glob'!$D$31 -> 25 | AD46: ='Datos 2-Potenciales calent glob'!$D$32 -> 298 | AE46: =SUMIF('Datos 2-Potenciales calent glob'!$B$6:$B$56,Cálculos!F46,'Datos 2-Potenciales calent glob'!$D$6:$D$56) -> 0 | AF46: ='Datos 2-Potenciales calent glob'!$D$6 -> 1 | AG46: ='Datos 2-Potenciales calent glob'!$D$6 -> 1 | AH46: 0 | AI46: 0 | AJ46: 0 | AK46: 0 | AL46: 0 | AM46: 0 | AN46: 0
B47: Energía | C47: Fuente móvil | D47: Combustión | E47: ='Alcance 1'!D45 -> Tipo de propulsión | F47: ='Alcance 1'!C45 -> Tipo de vehículo | H47: Ambos | I47: 1 | J47: ='Alcance 1'!E45 -> 0 | K47: km | M47: 1 | O47: 0 | P47: km | Q47: =SUMIFS('Datos 1-Factores emisión'!$E$43:$E$321,'Datos 1-Factores emisión'!$B$43:$B$321,Cálculos!$F47,'Datos 1-Factores emisión'!$C$43:$C$321,Cálculos!$E47,'Datos 1-Factores emisión'!$D$43:$D$321,Cálculos!Q$5) -> 0 | R47: =SUMIFS('Datos 1-Factores emisión'!$E$43:$E$321,'Datos 1-Factores emisión'!$B$43:$B$321,Cálculos!$F47,'Datos 1-Factores emisión'!$C$43:$C$321,Cálculos!$E47,'Datos 1-Factores emisión'!$D$43:$D$321,Cálculos!R$5) -> 0 | S47: =SUMIFS('Datos 1-Factores emisión'!$E$43:$E$321,'Datos 1-Factores emisión'!$B$43:$B$321,Cálculos!$F47,'Datos 1-Factores emisión'!$C$43:$C$321,Cálculos!$E47,'Datos 1-Factores emisión'!$D$43:$D$321,Cálculos!S$5) -> 0 | T47: =SUMIFS('Datos 1-Factores emisión'!$E$43:$E$321,'Datos 1-Factores emisión'!$B$43:$B$321,Cálculos!$F47,'Datos 1-Factores emisión'!$C$43:$C$321,Cálculos!$E47,'Datos 1-Factores emisión'!$D$43:$D$321,Cálculos!T$5) -> 0 | U47: =SUMIFS('Datos 1-Factores emisión'!$E$43:$E$321,'Datos 1-Factores emisión'!$B$43:$B$321,Cálculos!$F47,'Datos 1-Factores emisión'!$C$43:$C$321,Cálculos!$E47,'Datos 1-Factores emisión'!$D$43:$D$321,Cálculos!U$5) -> 0 | V47: 0 | W47: 0 | X47: 0 | Y47: 0 | Z47: 0 | AA47: 0 | AB47: ='Datos 2-Potenciales calent glob'!$D$6 -> 1 | AC47: ='Datos 2-Potenciales calent glob'!$D$31 -> 25 | AD47: ='Datos 2-Potenciales calent glob'!$D$32 -> 298 | AE47: =SUMIF('Datos 2-Potenciales calent glob'!$B$6:$B$56,Cálculos!F47,'Datos 2-Potenciales calent glob'!$D$6:$D$56) -> 0 | AF47: ='Datos 2-Potenciales calent glob'!$D$6 -> 1 | AG47: ='Datos 2-Potenciales calent glob'!$D$6 -> 1 | AH47: 0 | AI47: 0 | AJ47: 0 | AK47: 0 | AL47: 0 | AM47: 0 | AN47: 0
B48: Energía | C48: Fuente móvil | D48: Combustión | E48: ='Alcance 1'!D46 -> Tipo de propulsión | F48: ='Alcance 1'!C46 -> Tipo de vehículo | H48: Ambos | I48: 1 | J48: ='Alcance 1'!E46 -> 0 | K48: km | M48: 1 | O48: 0 | P48: km | Q48: =SUMIFS('Datos 1-Factores emisión'!$E$43:$E$321,'Datos 1-Factores emisión'!$B$43:$B$321,Cálculos!$F48,'Datos 1-Factores emisión'!$C$43:$C$321,Cálculos!$E48,'Datos 1-Factores emisión'!$D$43:$D$321,Cálculos!Q$5) -> 0 | R48: =SUMIFS('Datos 1-Factores emisión'!$E$43:$E$321,'Datos 1-Factores emisión'!$B$43:$B$321,Cálculos!$F48,'Datos 1-Factores emisión'!$C$43:$C$321,Cálculos!$E48,'Datos 1-Factores emisión'!$D$43:$D$321,Cálculos!R$5) -> 0 | S48: =SUMIFS('Datos 1-Factores emisión'!$E$43:$E$321,'Datos 1-Factores emisión'!$B$43:$B$321,Cálculos!$F48,'Datos 1-Factores emisión'!$C$43:$C$321,Cálculos!$E48,'Datos 1-Factores emisión'!$D$43:$D$321,Cálculos!S$5) -> 0 | T48: =SUMIFS('Datos 1-Factores emisión'!$E$43:$E$321,'Datos 1-Factores emisión'!$B$43:$B$321,Cálculos!$F48,'Datos 1-Factores emisión'!$C$43:$C$321,Cálculos!$E48,'Datos 1-Factores emisión'!$D$43:$D$321,Cálculos!T$5) -> 0 | U48: =SUMIFS('Datos 1-Factores emisión'!$E$43:$E$321,'Datos 1-Factores emisión'!$B$43:$B$321,Cálculos!$F48,'Datos 1-Factores emisión'!$C$43:$C$321,Cálculos!$E48,'Datos 1-Factores emisión'!$D$43:$D$321,Cálculos!U$5) -> 0 | V48: 0 | W48: 0 | X48: 0 | Y48: 0 | Z48: 0 | AA48: 0 | AB48: ='Datos 2-Potenciales calent glob'!$D$6 -> 1 | AC48: ='Datos 2-Potenciales calent glob'!$D$31 -> 25 | AD48: ='Datos 2-Potenciales calent glob'!$D$32 -> 298 | AE48: =SUMIF('Datos 2-Potenciales calent glob'!$B$6:$B$56,Cálculos!F48,'Datos 2-Potenciales calent glob'!$D$6:$D$56) -> 0 | AF48: ='Datos 2-Potenciales calent glob'!$D$6 -> 1 | AG48: ='Datos 2-Potenciales calent glob'!$D$6 -> 1 | AH48: 0 | AI48: 0 | AJ48: 0 | AK48: 0 | AL48: 0 | AM48: 0 | AN48: 0
B49: Emisiones de proceso y uso de productos | C49: Fuente difusa | D49: Fugitivas | E49: Lubricantes | F49: Grasas | H49: CAPV | I49: 1 | J49: ='Alcance 1'!D58 -> 0 | K49: ='Alcance 1'!E58 -> L | M49: =LOOKUP($E49,'Datos 3-Factores de convers'!$B$29:$B$51,'Datos 3-Factores de convers'!$F$29:$F$51) -> 3.5778e-05 | N49: =LOOKUP($E49,'Datos 3-Factores de convers'!$B$29:$B$51,'Datos 3-Factores de convers'!$G$29:$G$51) -> TJ/L | O49: 0 | P49: TJ | Q49: ='Datos 1-Factores emisión'!C763 -> 3666.666667 | R49: =SUMIFS('Datos 1-Factores emisión'!$E$43:$E$309,'Datos 1-Factores emisión'!$B$43:$B$309,Cálculos!$F49,'Datos 1-Factores emisión'!$C$43:$C$309,Cálculos!$E49,'Datos 1-Factores emisión'!$D$43:$D$309,Cálculos!R$5) -> 0 | S49: =SUMIFS('Datos 1-Factores emisión'!$E$43:$E$309,'Datos 1-Factores emisión'!$B$43:$B$309,Cálculos!$F49,'Datos 1-Factores emisión'!$C$43:$C$309,Cálculos!$E49,'Datos 1-Factores emisión'!$D$43:$D$309,Cálculos!S$5) -> 0 | T49: 0 | U49: 0 | V49: 0 | W49: 0 | X49: 0 | Y49: =T49*$O49 -> 0 | Z49: 0 | AA49: 0 | AB49: ='Datos 2-Potenciales calent glob'!$D$6 -> 1 | AC49: ='Datos 2-Potenciales calent glob'!$D$31 -> 25 | AD49: ='Datos 2-Potenciales calent glob'!$D$32 -> 298 | AE49: =SUMIF('Datos 2-Potenciales calent glob'!$B$6:$B$56,Cálculos!F49,'Datos 2-Potenciales calent glob'!$D$6:$D$56) -> 0 | AF49: ='Datos 2-Potenciales calent glob'!$D$6 -> 1 | AG49: ='Datos 2-Potenciales calent glob'!$D$6 -> 1 | AH49: 0 | AI49: 0 | AJ49: 0 | AK49: 0 | AL49: 0 | AM49: 0 | AN49: 0
B50: Emisiones de proceso y uso de productos | C50: Fuente difusa | D50: Fugitivas | E50: Lubricantes | F50: Aceites | H50: CAPV | I50: 1 | J50: ='Alcance 1'!D59 -> 0 | K50: ='Alcance 1'!E59 -> L | M50: =LOOKUP($E50,'Datos 3-Factores de convers'!$B$29:$B$51,'Datos 3-Factores de convers'!$F$29:$F$51) -> 3.5778e-05 | N50: =LOOKUP($E50,'Datos 3-Factores de convers'!$B$29:$B$51,'Datos 3-Factores de convers'!$G$29:$G$51) -> TJ/L | O50: 0 | P50: TJ | Q50: ='Datos 1-Factores emisión'!C764 -> 14666.66667 | R50: =SUMIFS('Datos 1-Factores emisión'!$E$43:$E$309,'Datos 1-Factores emisión'!$B$43:$B$309,Cálculos!$F50,'Datos 1-Factores emisión'!$C$43:$C$309,Cálculos!$E50,'Datos 1-Factores emisión'!$D$43:$D$309,Cálculos!R$5) -> 0 | S50: =SUMIFS('Datos 1-Factores emisión'!$E$43:$E$309,'Datos 1-Factores emisión'!$B$43:$B$309,Cálculos!$F50,'Datos 1-Factores emisión'!$C$43:$C$309,Cálculos!$E50,'Datos 1-Factores emisión'!$D$43:$D$309,Cálculos!S$5) -> 0 | T50: 0 | U50: 0 | V50: 0 | W50: 0 | X50: 0 | Y50: =T50*$O50 -> 0 | Z50: =U50*$O50 -> 0 | AA50: 0 | AB50: ='Datos 2-Potenciales calent glob'!$D$6 -> 1 | AC50: ='Datos 2-Potenciales calent glob'!$D$31 -> 25 | AD50: ='Datos 2-Potenciales calent glob'!$D$32 -> 298 | AE50: =SUMIF('Datos 2-Potenciales calent glob'!$B$6:$B$56,Cálculos!F50,'Datos 2-Potenciales calent glob'!$D$6:$D$56) -> 0 | AF50: ='Datos 2-Potenciales calent glob'!$D$6 -> 1 | AG50: ='Datos 2-Potenciales calent glob'!$D$6 -> 1 | AH50: 0 | AI50: 0 | AJ50: 0 | AK50: 0 | AL50: 0 | AM50: 0 | AN50: 0
B51: Emisiones de proceso y uso de productos | C51: Fuente difusa | D51: Fugitivas | E51: Gases fluorados | F51: ='Alcance 1'!C64 -> Tipo de gas fluorado | H51: Ambos | I51: 1 | J51: ='Alcance 1'!D64 -> 0 | K51: ='Alcance 1'!E64 -> kg | M51: 1 | O51: 0 | P51: =K51 -> kg | Q51: 0 | R51: 0 | S51: 0 | T51: 0 | U51: 0 | V51: 0 | W51: 0 | X51: 0 | Y51: =O51 -> 0 | Z51: 0 | AA51: 0 | AB51: ='Datos 2-Potenciales calent glob'!$D$6 -> 1 | AC51: ='Datos 2-Potenciales calent glob'!$D$31 -> 25 | AD51: ='Datos 2-Potenciales calent glob'!$D$32 -> 298 | AE51: =SUMIF('Datos 2-Potenciales calent glob'!$B$6:$B$56,Cálculos!F51,'Datos 2-Potenciales calent glob'!$D$6:$D$56) -> 0 | AF51: ='Datos 2-Potenciales calent glob'!$D$6 -> 1 | AG51: ='Datos 2-Potenciales calent glob'!$D$6 -> 1 | AH51: 0 | AI51: 0 | AJ51: 0 | AK51: 0 | AL51: 0 | AM51: 0 | AN51: 0
B52: Emisiones de proceso y uso de productos | C52: Fuente difusa | D52: Fugitivas | E52: Gases fluorados | F52: ='Alcance 1'!C65 -> Tipo de gas fluorado | H52: Ambos | I52: 1 | J52: ='Alcance 1'!D65 -> 0 | K52: ='Alcance 1'!E65 -> kg | M52: 1 | O52: 0 | P52: kg | Q52: 0 | R52: 0 | S52: 0 | T52: 0 | U52: 0 | V52: 0 | W52: 0 | X52: 0 | Y52: 0 | Z52: 0 | AA52: 0 | AB52: ='Datos 2-Potenciales calent glob'!$D$6 -> 1 | AC52: ='Datos 2-Potenciales calent glob'!$D$31 -> 25 | AD52: ='Datos 2-Potenciales calent glob'!$D$32 -> 298 | AE52: =SUMIF('Datos 2-Potenciales calent glob'!$B$6:$B$56,Cálculos!F52,'Datos 2-Potenciales calent glob'!$D$6:$D$56) -> 0 | AF52: ='Datos 2-Potenciales calent glob'!$D$6 -> 1 | AG52: ='Datos 2-Potenciales calent glob'!$D$6 -> 1 | AH52: 0 | AI52: 0 | AJ52: 0 | AK52: 0 | AL52: 0 | AM52: 0 | AN52: 0
B53: Emisiones de proceso y uso de productos | C53: Fuente difusa | D53: Fugitivas | E53: Gases fluorados | F53: ='Alcance 1'!C66 -> Tipo de gas fluorado | H53: Ambos | I53: 1 | J53: ='Alcance 1'!D66 -> 0 | K53: ='Alcance 1'!E66 -> kg | M53: 1 | O53: 0 | P53: kg | Q53: 0 | R53: 0 | S53: 0 | T53: 0 | U53: 0 | V53: 0 | W53: 0 | X53: 0 | Y53: 0 | Z53: 0 | AA53: 0 | AB53: ='Datos 2-Potenciales calent glob'!$D$6 -> 1 | AC53: ='Datos 2-Potenciales calent glob'!$D$31 -> 25 | AD53: ='Datos 2-Potenciales calent glob'!$D$32 -> 298 | AE53: =SUMIF('Datos 2-Potenciales calent glob'!$B$6:$B$56,Cálculos!F53,'Datos 2-Potenciales calent glob'!$D$6:$D$56) -> 0 | AF53: ='Datos 2-Potenciales calent glob'!$D$6 -> 1 | AG53: ='Datos 2-Potenciales calent glob'!$D$6 -> 1 | AH53: 0 | AI53: 0 | AJ53: 0 | AK53: 0 | AL53: 0 | AM53: =Z53*AF53 -> 0 | AN53: 0
B54: Emisiones de proceso y uso de productos | C54: Fuente difusa | D54: Fugitivas | E54: Gases fluorados | F54: ='Alcance 1'!C67 -> Tipo de gas fluorado | H54: Ambos | I54: 1 | J54: ='Alcance 1'!D67 -> 0 | K54: ='Alcance 1'!E67 -> kg | M54: 1 | O54: 0 | P54: kg | Q54: 0 | R54: 0 | S54: 0 | T54: 0 | U54: 0 | V54: 0 | W54: 0 | X54: 0 | Y54: 0 | Z54: 0 | AA54: 0 | AB54: ='Datos 2-Potenciales calent glob'!$D$6 -> 1 | AC54: ='Datos 2-Potenciales calent glob'!$D$31 -> 25 | AD54: ='Datos 2-Potenciales calent glob'!$D$32 -> 298 | AE54: =SUMIF('Datos 2-Potenciales calent glob'!$B$6:$B$56,Cálculos!F54,'Datos 2-Potenciales calent glob'!$D$6:$D$56) -> 0 | AF54: ='Datos 2-Potenciales calent glob'!$D$6 -> 1 | AG54: ='Datos 2-Potenciales calent glob'!$D$6 -> 1 | AH54: 0 | AI54: 0 | AJ54: 0 | AK54: 0 | AL54: 0 | AM54: 0 | AN54: 0
B55: Emisiones de proceso y uso de productos | C55: Fuente difusa | D55: Fugitivas | E55: Gases fluorados | F55: ='Alcance 1'!C68 -> Tipo de gas fluorado | H55: Ambos | I55: 1 | J55: ='Alcance 1'!D68 -> 0 | K55: ='Alcance 1'!E68 -> kg | M55: 1 | O55: 0 | P55: kg | Q55: 0 | R55: 0 | S55: 0 | T55: 0 | U55: 0 | V55: 0 | W55: 0 | X55: 0 | Y55: 0 | Z55: 0 | AA55: 0 | AB55: ='Datos 2-Potenciales calent glob'!$D$6 -> 1 | AC55: ='Datos 2-Potenciales calent glob'!$D$31 -> 25 | AD55: ='Datos 2-Potenciales calent glob'!$D$32 -> 298 | AE55: =SUMIF('Datos 2-Potenciales calent glob'!$B$6:$B$56,Cálculos!F55,'Datos 2-Potenciales calent glob'!$D$6:$D$56) -> 0 | AF55: ='Datos 2-Potenciales calent glob'!$D$6 -> 1 | AG55: ='Datos 2-Potenciales calent glob'!$D$6 -> 1 | AH55: 0 | AI55: 0 | AJ55: 0 | AK55: 0 | AL55: 0 | AM55: 0 | AN55: 0
B56: Emisiones de proceso y uso de productos | C56: Fuente difusa | D56: Fugitivas | E56: Gases fluorados | F56: ='Alcance 1'!C69 -> Tipo de gas fluorado | H56: Ambos | I56: 1 | J56: ='Alcance 1'!D69 -> 0 | K56: ='Alcance 1'!E69 -> kg | M56: 1 | O56: 0 | P56: kg | Q56: 0 | R56: 0 | S56: 0 | T56: 0 | U56: 0 | V56: 0 | W56: 0 | X56: 0 | Y56: 0 | Z56: 0 | AA56: 0 | AB56: ='Datos 2-Potenciales calent glob'!$D$6 -> 1 | AC56: ='Datos 2-Potenciales calent glob'!$D$31 -> 25 | AD56: ='Datos 2-Potenciales calent glob'!$D$32 -> 298 | AE56: =SUMIF('Datos 2-Potenciales calent glob'!$B$6:$B$56,Cálculos!F56,'Datos 2-Potenciales calent glob'!$D$6:$D$56) -> 0 | AF56: ='Datos 2-Potenciales calent glob'!$D$6 -> 1 | AG56: ='Datos 2-Potenciales calent glob'!$D$6 -> 1 | AH56: 0 | AI56: 0 | AJ56: 0 | AK56: 0 | AL56: 0 | AM56: 0 | AN56: 0
B57: Emisiones de proceso y uso de productos | C57: Fuente difusa | D57: Fugitivas | E57: Gases fluorados | F57: ='Alcance 1'!C70 -> Tipo de gas fluorado | H57: Ambos | I57: 1 | J57: ='Alcance 1'!D70 -> 0 | K57: ='Alcance 1'!E70 -> kg | M57: 1 | O57: 0 | P57: kg | Q57: 0 | R57: 0 | S57: 0 | T57: 0 | U57: 0 | V57: 0 | W57: 0 | X57: 0 | Y57: 0 | Z57: 0 | AA57: 0 | AB57: ='Datos 2-Potenciales calent glob'!$D$6 -> 1 | AC57: ='Datos 2-Potenciales calent glob'!$D$31 -> 25 | AD57: ='Datos 2-Potenciales calent glob'!$D$32 -> 298 | AE57: =SUMIF('Datos 2-Potenciales calent glob'!$B$6:$B$56,Cálculos!F57,'Datos 2-Potenciales calent glob'!$D$6:$D$56) -> 0 | AF57: ='Datos 2-Potenciales calent glob'!$D$6 -> 1 | AG57: ='Datos 2-Potenciales calent glob'!$D$6 -> 1 | AH57: 0 | AI57: 0 | AJ57: 0 | AK57: 0 | AL57: 0 | AM57: 0 | AN57: 0
B58: Emisiones de proceso y uso de productos | C58: Fuente difusa | D58: Fugitivas | E58: Gases fluorados | F58: ='Alcance 1'!C71 -> Tipo de gas fluorado | H58: Ambos | I58: 1 | J58: ='Alcance 1'!D71 -> 0 | K58: ='Alcance 1'!E71 -> kg | M58: 1 | O58: 0 | P58: kg | Q58: 0 | R58: 0 | S58: 0 | T58: 0 | U58: 0 | V58: 0 | W58: 0 | X58: 0 | Y58: 0 | Z58: 0 | AA58: 0 | AB58: ='Datos 2-Potenciales calent glob'!$D$6 -> 1 | AC58: ='Datos 2-Potenciales calent glob'!$D$31 -> 25 | AD58: ='Datos 2-Potenciales calent glob'!$D$32 -> 298 | AE58: =SUMIF('Datos 2-Potenciales calent glob'!$B$6:$B$56,Cálculos!F58,'Datos 2-Potenciales calent glob'!$D$6:$D$56) -> 0 | AF58: ='Datos 2-Potenciales calent glob'!$D$6 -> 1 | AG58: ='Datos 2-Potenciales calent glob'!$D$6 -> 1 | AH58: 0 | AI58: 0 | AJ58: 0 | AK58: 0 | AL58: 0 | AM58: 0 | AN58: 0
B59: Emisiones de proceso y uso de productos | C59: Fuente difusa | D59: Fugitivas | E59: Gases fluorados | F59: ='Alcance 1'!C72 -> Tipo de gas fluorado | H59: Ambos | I59: 1 | J59: ='Alcance 1'!D72 -> 0 | K59: ='Alcance 1'!E72 -> kg | M59: 1 | O59: 0 | P59: kg | Q59: 0 | R59: 0 | S59: 0 | T59: 0 | U59: 0 | V59: 0 | W59: 0 | X59: 0 | Y59: 0 | Z59: 0 | AA59: 0 | AB59: ='Datos 2-Potenciales calent glob'!$D$6 -> 1 | AC59: ='Datos 2-Potenciales calent glob'!$D$31 -> 25 | AD59: ='Datos 2-Potenciales calent glob'!$D$32 -> 298 | AE59: =SUMIF('Datos 2-Potenciales calent glob'!$B$6:$B$56,Cálculos!F59,'Datos 2-Potenciales calent glob'!$D$6:$D$56) -> 0 | AF59: ='Datos 2-Potenciales calent glob'!$D$6 -> 1 | AG59: ='Datos 2-Potenciales calent glob'!$D$6 -> 1 | AH59: 0 | AI59: 0 | AJ59: 0 | AK59: 0 | AL59: 0 | AM59: 0 | AN59: 0
B60: Emisiones de proceso y uso de productos | C60: Fuente difusa | D60: Fugitivas | E60: Gases fluorados | F60: ='Alcance 1'!C73 -> Tipo de gas fluorado | H60: Ambos | I60: 1 | J60: ='Alcance 1'!D73 -> 0 | K60: ='Alcance 1'!E73 -> kg | M60: 1 | O60: 0 | P60: kg | Q60: 0 | R60: 0 | S60: 0 | T60: 0 | U60: 0 | V60: 0 | W60: 0 | X60: 0 | Y60: 0 | Z60: 0 | AA60: 0 | AB60: ='Datos 2-Potenciales calent glob'!$D$6 -> 1 | AC60: ='Datos 2-Potenciales calent glob'!$D$31 -> 25 | AD60: ='Datos 2-Potenciales calent glob'!$D$32 -> 298 | AE60: =SUMIF('Datos 2-Potenciales calent glob'!$B$6:$B$56,Cálculos!F60,'Datos 2-Potenciales calent glob'!$D$6:$D$56) -> 0 | AF60: ='Datos 2-Potenciales calent glob'!$D$6 -> 1 | AG60: ='Datos 2-Potenciales calent glob'!$D$6 -> 1 | AH60: 0 | AI60: 0 | AJ60: 0 | AK60: 0 | AL60: 0 | AM60: 0 | AN60: 0
B61: Absorciones | C61: Fuente fija | D61: Absorción | E61: Abies alba | H61: Ambos | I61: 1 | J61: ='Alcance 1'!D80 -> 0 | K61: ='Alcance 1'!E80 -> árboles | M61: 1 | O61: 0 | P61: árboles | Q61: 0 | R61: 0 | S61: 0 | T61: 0 | U61: =-'Datos 1-Factores emisión'!C674 -> -3.177240806 | V61: =Q61*$O61 -> 0 | W61: 0 | X61: 0 | Y61: 0 | Z61: =T61*$O61 -> 0 | AA61: =U61*$O61 -> 0 | AB61: ='Datos 2-Potenciales calent glob'!$E$6 -> 1 | AC61: ='Datos 2-Potenciales calent glob'!$E$31 -> 28 | AD61: ='Datos 2-Potenciales calent glob'!$E$32 -> 265 | AE61: =SUMIF('Datos 2-Potenciales calent glob'!$B$6:$B$56,Cálculos_5!F61,'Datos 2-Potenciales calent glob'!$E$6:$E$56) -> 0 | AF61: ='Datos 2-Potenciales calent glob'!$E$6 -> 1 | AG61: ='Datos 2-Potenciales calent glob'!$E$6 -> 1 | AH61: 0 | AI61: 0 | AJ61: 0 | AK61: 0 | AL61: =SUM(AH61:AK61) -> 0 | AM61: 0 | AN61: 0
B62: Absorciones | C62: Fuente fija | D62: Absorción | E62: Abies pinsapo | H62: Ambos | I62: 1 | J62: ='Alcance 1'!D81 -> 0 | K62: ='Alcance 1'!E81 -> árboles | M62: 1 | O62: 0 | P62: árboles | Q62: 0 | R62: 0 | S62: 0 | T62: 0 | U62: =-'Datos 1-Factores emisión'!C675 -> -10.96954854 | V62: 0 | W62: 0 | X62: 0 | Y62: 0 | Z62: =T62*$O62 -> 0 | AA62: 0 | AB62: ='Datos 2-Potenciales calent glob'!$E$6 -> 1 | AC62: ='Datos 2-Potenciales calent glob'!$E$31 -> 28 | AD62: ='Datos 2-Potenciales calent glob'!$E$32 -> 265 | AE62: =SUMIF('Datos 2-Potenciales calent glob'!$B$6:$B$56,Cálculos_5!F62,'Datos 2-Potenciales calent glob'!$E$6:$E$56) -> 0 | AF62: ='Datos 2-Potenciales calent glob'!$E$6 -> 1 | AG62: ='Datos 2-Potenciales calent glob'!$E$6 -> 1 | AH62: 0 | AI62: 0 | AJ62: 0 | AK62: 0 | AL62: 0 | AM62: 0 | AN62: 0
B63: Absorciones | C63: Fuente fija | D63: Absorción | E63: Acacia spp. | H63: Ambos | I63: 1 | J63: ='Alcance 1'!D82 -> 0 | K63: ='Alcance 1'!E82 -> árboles | M63: 1 | O63: 0 | P63: árboles | Q63: 0 | R63: 0 | S63: 0 | T63: 0 | U63: =-'Datos 1-Factores emisión'!C676 -> -1.527443131 | V63: 0 | W63: 0 | X63: 0 | Y63: 0 | Z63: 0 | AA63: 0 | AB63: ='Datos 2-Potenciales calent glob'!$E$6 -> 1 | AC63: ='Datos 2-Potenciales calent glob'!$E$31 -> 28 | AD63: ='Datos 2-Potenciales calent glob'!$E$32 -> 265 | AE63: =SUMIF('Datos 2-Potenciales calent glob'!$B$6:$B$56,Cálculos_5!F63,'Datos 2-Potenciales calent glob'!$E$6:$E$56) -> 0 | AF63: ='Datos 2-Potenciales calent glob'!$E$6 -> 1 | AG63: ='Datos 2-Potenciales calent glob'!$E$6 -> 1 | AH63: =V63*AB63 -> 0 | AI63: 0 | AJ63: 0 | AK63: 0 | AL63: 0 | AM63: 0 | AN63: 0
B64: Absorciones | C64: Fuente fija | D64: Absorción | E64: Acer spp. | H64: Ambos | I64: 1 | J64: ='Alcance 1'!D83 -> 0 | K64: ='Alcance 1'!E83 -> árboles | M64: 1 | O64: 0 | P64: árboles | Q64: 0 | R64: 0 | S64: 0 | T64: 0 | U64: =-'Datos 1-Factores emisión'!C677 -> -7.487768065 | V64: 0 | W64: 0 | X64: 0 | Y64: 0 | Z64: 0 | AA64: 0 | AB64: ='Datos 2-Potenciales calent glob'!$E$6 -> 1 | AC64: ='Datos 2-Potenciales calent glob'!$E$31 -> 28 | AD64: ='Datos 2-Potenciales calent glob'!$E$32 -> 265 | AE64: =SUMIF('Datos 2-Potenciales calent glob'!$B$6:$B$56,Cálculos_5!F64,'Datos 2-Potenciales calent glob'!$E$6:$E$56) -> 0 | AF64: ='Datos 2-Potenciales calent glob'!$E$6 -> 1 | AG64: ='Datos 2-Potenciales calent glob'!$E$6 -> 1 | AH64: 0 | AI64: 0 | AJ64: 0 | AK64: 0 | AL64: 0 | AM64: 0 | AN64: 0
B65: Absorciones | C65: Fuente fija | D65: Absorción | E65: Ailanthus altissima | H65: Ambos | I65: 1 | J65: ='Alcance 1'!D84 -> 0 | K65: ='Alcance 1'!E84 -> árboles | M65: 1 | O65: 0 | P65: árboles | Q65: 0 | R65: 0 | S65: 0 | T65: 0 | U65: =-'Datos 1-Factores emisión'!C678 -> -1.527443131 | V65: 0 | W65: 0 | X65: 0 | Y65: 0 | Z65: 0 | AA65: 0 | AB65: ='Datos 2-Potenciales calent glob'!$E$6 -> 1 | AC65: ='Datos 2-Potenciales calent glob'!$E$31 -> 28 | AD65: ='Datos 2-Potenciales calent glob'!$E$32 -> 265 | AE65: =SUMIF('Datos 2-Potenciales calent glob'!$B$6:$B$56,Cálculos_5!F65,'Datos 2-Potenciales calent glob'!$E$6:$E$56) -> 0 | AF65: ='Datos 2-Potenciales calent glob'!$E$6 -> 1 | AG65: ='Datos 2-Potenciales calent glob'!$E$6 -> 1 | AH65: 0 | AI65: 0 | AJ65: 0 | AK65: 0 | AL65: 0 | AM65: 0 | AN65: 0
B66: Absorciones | C66: Fuente fija | D66: Absorción | E66: Alnus spp. | H66: Ambos | I66: 1 | J66: ='Alcance 1'!D85 -> 0 | K66: ='Alcance 1'!E85 -> árboles | M66: 1 | O66: 0 | P66: árboles | Q66: 0 | R66: 0 | S66: 0 | T66: 0 | U66: =-'Datos 1-Factores emisión'!C679 -> -5.463940324 | V66: 0 | W66: 0 | X66: 0 | Y66: 0 | Z66: 0 | AA66: 0 | AB66: ='Datos 2-Potenciales calent glob'!$E$6 -> 1 | AC66: ='Datos 2-Potenciales calent glob'!$E$31 -> 28 | AD66: ='Datos 2-Potenciales calent glob'!$E$32 -> 265 | AE66: =SUMIF('Datos 2-Potenciales calent glob'!$B$6:$B$56,Cálculos_5!F66,'Datos 2-Potenciales calent glob'!$E$6:$E$56) -> 0 | AF66: ='Datos 2-Potenciales calent glob'!$E$6 -> 1 | AG66: ='Datos 2-Potenciales calent glob'!$E$6 -> 1 | AH66: 0 | AI66: 0 | AJ66: 0 | AK66: 0 | AL66: 0 | AM66: 0 | AN66: 0
B67: Absorciones | C67: Fuente fija | D67: Absorción | E67: Amelanchier ovalis | H67: Ambos | I67: 1 | J67: ='Alcance 1'!D86 -> 0 | K67: ='Alcance 1'!E86 -> árboles | M67: 1 | O67: 0 | P67: árboles | Q67: 0 | R67: 0 | S67: 0 | T67: 0 | U67: =-'Datos 1-Factores emisión'!C680 -> -6.838861723 | V67: 0 | W67: 0 | X67: 0 | Y67: 0 | Z67: 0 | AA67: 0 | AB67: ='Datos 2-Potenciales calent glob'!$E$6 -> 1 | AC67: ='Datos 2-Potenciales calent glob'!$E$31 -> 28 | AD67: ='Datos 2-Potenciales calent glob'!$E$32 -> 265 | AE67: =SUMIF('Datos 2-Potenciales calent glob'!$B$6:$B$56,Cálculos_5!F67,'Datos 2-Potenciales calent glob'!$E$6:$E$56) -> 0 | AF67: ='Datos 2-Potenciales calent glob'!$E$6 -> 1 | AG67: ='Datos 2-Potenciales calent glob'!$E$6 -> 1 | AH67: 0 | AI67: 0 | AJ67: 0 | AK67: 0 | AL67: 0 | AM67: 0 | AN67: 0
B68: Absorciones | C68: Fuente fija | D68: Absorción | E68: Arbutus unedo | H68: Ambos | I68: 1 | J68: ='Alcance 1'!D87 -> 0 | K68: ='Alcance 1'!E87 -> árboles | M68: 1 | O68: 0 | P68: árboles | Q68: 0 | R68: 0 | S68: 0 | T68: 0 | U68: =-'Datos 1-Factores emisión'!C681 -> -2.980225866 | V68: 0 | W68: 0 | X68: 0 | Y68: 0 | Z68: 0 | AA68: 0 | AB68: ='Datos 2-Potenciales calent glob'!$E$6 -> 1 | AC68: ='Datos 2-Potenciales calent glob'!$E$31 -> 28 | AD68: ='Datos 2-Potenciales calent glob'!$E$32 -> 265 | AE68: =SUMIF('Datos 2-Potenciales calent glob'!$B$6:$B$56,Cálculos_5!F68,'Datos 2-Potenciales calent glob'!$E$6:$E$56) -> 0 | AF68: ='Datos 2-Potenciales calent glob'!$E$6 -> 1 | AG68: ='Datos 2-Potenciales calent glob'!$E$6 -> 1 | AH68: 0 | AI68: 0 | AJ68: 0 | AK68: 0 | AL68: 0 | AM68: 0 | AN68: 0
B69: Absorciones | C69: Fuente fija | D69: Absorción | E69: Betula spp. | H69: Ambos | I69: 1 | J69: ='Alcance 1'!D88 -> 0 | K69: ='Alcance 1'!E88 -> árboles | M69: 1 | O69: 0 | P69: árboles | Q69: 0 | R69: 0 | S69: 0 | T69: 0 | U69: =-'Datos 1-Factores emisión'!C682 -> -3.113911449 | V69: 0 | W69: 0 | X69: 0 | Y69: 0 | Z69: 0 | AA69: 0 | AB69: ='Datos 2-Potenciales calent glob'!$E$6 -> 1 | AC69: ='Datos 2-Potenciales calent glob'!$E$31 -> 28 | AD69: ='Datos 2-Potenciales calent glob'!$E$32 -> 265 | AE69: =SUMIF('Datos 2-Potenciales calent glob'!$B$6:$B$56,Cálculos_5!F69,'Datos 2-Potenciales calent glob'!$E$6:$E$56) -> 0 | AF69: ='Datos 2-Potenciales calent glob'!$E$6 -> 1 | AG69: ='Datos 2-Potenciales calent glob'!$E$6 -> 1 | AH69: 0 | AI69: 0 | AJ69: 0 | AK69: 0 | AL69: 0 | AM69: =Z69*AF69 -> 0 | AN69: 0
B70: Absorciones | C70: Fuente fija | D70: Absorción | E70: Carpinus betulus | H70: Ambos | I70: 1 | J70: ='Alcance 1'!D89 -> 0 | K70: ='Alcance 1'!E89 -> árboles | M70: 1 | O70: =J70*M70 -> 0 | P70: árboles | Q70: 0 | R70: 0 | S70: 0 | T70: 0 | U70: =-'Datos 1-Factores emisión'!C683 -> -3.113911449 | V70: 0 | W70: 0 | X70: 0 | Y70: 0 | Z70: 0 | AA70: 0 | AB70: ='Datos 2-Potenciales calent glob'!$E$6 -> 1 | AC70: ='Datos 2-Potenciales calent glob'!$E$31 -> 28 | AD70: ='Datos 2-Potenciales calent glob'!$E$32 -> 265 | AE70: =SUMIF('Datos 2-Potenciales calent glob'!$B$6:$B$56,Cálculos_5!F70,'Datos 2-Potenciales calent glob'!$E$6:$E$56) -> 0 | AF70: ='Datos 2-Potenciales calent glob'!$E$6 -> 1 | AG70: ='Datos 2-Potenciales calent glob'!$E$6 -> 1 | AH70: 0 | AI70: 0 | AJ70: 0 | AK70: 0 | AL70: 0 | AM70: 0 | AN70: 0
B71: Absorciones | C71: Fuente fija | D71: Absorción | E71: Castanea sativa | H71: Ambos | I71: 1 | J71: ='Alcance 1'!D90 -> 0 | K71: ='Alcance 1'!E90 -> árboles | M71: 1 | O71: 0 | P71: árboles | Q71: 0 | R71: 0 | S71: 0 | T71: 0 | U71: =-'Datos 1-Factores emisión'!C684 -> -6.205907698 | V71: 0 | W71: 0 | X71: 0 | Y71: 0 | Z71: 0 | AA71: 0 | AB71: ='Datos 2-Potenciales calent glob'!$E$6 -> 1 | AC71: ='Datos 2-Potenciales calent glob'!$E$31 -> 28 | AD71: ='Datos 2-Potenciales calent glob'!$E$32 -> 265 | AE71: =SUMIF('Datos 2-Potenciales calent glob'!$B$6:$B$56,Cálculos_5!F71,'Datos 2-Potenciales calent glob'!$E$6:$E$56) -> 0 | AF71: ='Datos 2-Potenciales calent glob'!$E$6 -> 1 | AG71: ='Datos 2-Potenciales calent glob'!$E$6 -> 1 | AH71: 0 | AI71: 0 | AJ71: 0 | AK71: 0 | AL71: 0 | AM71: 0 | AN71: 0
B72: Absorciones | C72: Fuente fija | D72: Absorción | E72: Ceratonia siliqua | H72: Ambos | I72: 1 | J72: ='Alcance 1'!D91 -> 0 | K72: ='Alcance 1'!E91 -> árboles | M72: 1 | O72: 0 | P72: árboles | Q72: 0 | R72: 0 | S72: 0 | T72: 0 | U72: =-'Datos 1-Factores emisión'!C685 -> -3.098022922 | V72: 0 | W72: 0 | X72: 0 | Y72: 0 | Z72: 0 | AA72: 0 | AB72: ='Datos 2-Potenciales calent glob'!$E$6 -> 1 | AC72: ='Datos 2-Potenciales calent glob'!$E$31 -> 28 | AD72: ='Datos 2-Potenciales calent glob'!$E$32 -> 265 | AE72: =SUMIF('Datos 2-Potenciales calent glob'!$B$6:$B$56,Cálculos_5!F72,'Datos 2-Potenciales calent glob'!$E$6:$E$56) -> 0 | AF72: ='Datos 2-Potenciales calent glob'!$E$6 -> 1 | AG72: ='Datos 2-Potenciales calent glob'!$E$6 -> 1 | AH72: 0 | AI72: 0 | AJ72: 0 | AK72: 0 | AL72: 0 | AM72: 0 | AN72: 0
B73: Absorciones | C73: Fuente fija | D73: Absorción | E73: Cedrus atlantica | H73: Ambos | I73: 1 | J73: ='Alcance 1'!D92 -> 0 | K73: ='Alcance 1'!E92 -> árboles | M73: 1 | O73: 0 | P73: árboles | Q73: 0 | R73: 0 | S73: 0 | T73: 0 | U73: =-'Datos 1-Factores emisión'!C686 -> -43.21560441 | V73: 0 | W73: 0 | X73: 0 | Y73: 0 | Z73: 0 | AA73: 0 | AB73: ='Datos 2-Potenciales calent glob'!$E$6 -> 1 | AC73: ='Datos 2-Potenciales calent glob'!$E$31 -> 28 | AD73: ='Datos 2-Potenciales calent glob'!$E$32 -> 265 | AE73: =SUMIF('Datos 2-Potenciales calent glob'!$B$6:$B$56,Cálculos_5!F73,'Datos 2-Potenciales calent glob'!$E$6:$E$56) -> 0 | AF73: ='Datos 2-Potenciales calent glob'!$E$6 -> 1 | AG73: ='Datos 2-Potenciales calent glob'!$E$6 -> 1 | AH73: 0 | AI73: 0 | AJ73: 0 | AK73: 0 | AL73: 0 | AM73: 0 | AN73: 0
B74: Absorciones | C74: Fuente fija | D74: Absorción | E74: Celtis australis | H74: Ambos | I74: 1 | J74: ='Alcance 1'!D93 -> 0 | K74: ='Alcance 1'!E93 -> árboles | M74: 1 | O74: 0 | P74: árboles | Q74: 0 | R74: 0 | S74: 0 | T74: 0 | U74: =-'Datos 1-Factores emisión'!C687 -> -33.54816511 | V74: 0 | W74: 0 | X74: 0 | Y74: 0 | Z74: 0 | AA74: 0 | AB74: ='Datos 2-Potenciales calent glob'!$E$6 -> 1 | AC74: ='Datos 2-Potenciales calent glob'!$E$31 -> 28 | AD74: ='Datos 2-Potenciales calent glob'!$E$32 -> 265 | AE74: =SUMIF('Datos 2-Potenciales calent glob'!$B$6:$B$56,Cálculos_5!F74,'Datos 2-Potenciales calent glob'!$E$6:$E$56) -> 0 | AF74: ='Datos 2-Potenciales calent glob'!$E$6 -> 1 | AG74: ='Datos 2-Potenciales calent glob'!$E$6 -> 1 | AH74: 0 | AI74: 0 | AJ74: 0 | AK74: 0 | AL74: 0 | AM74: 0 | AN74: 0
B75: Absorciones | C75: Fuente fija | D75: Absorción | E75: Chamaecyparis lawsoniana | H75: Ambos | I75: 1 | J75: ='Alcance 1'!D94 -> 0 | K75: ='Alcance 1'!E94 -> árboles | M75: 1 | O75: 0 | P75: árboles | Q75: 0 | R75: 0 | S75: 0 | T75: 0 | U75: =-'Datos 1-Factores emisión'!C688 -> -0.3645101482 | V75: 0 | W75: 0 | X75: 0 | Y75: 0 | Z75: 0 | AA75: 0 | AB75: ='Datos 2-Potenciales calent glob'!$E$6 -> 1 | AC75: ='Datos 2-Potenciales calent glob'!$E$31 -> 28 | AD75: ='Datos 2-Potenciales calent glob'!$E$32 -> 265 | AE75: =SUMIF('Datos 2-Potenciales calent glob'!$B$6:$B$56,Cálculos_5!F75,'Datos 2-Potenciales calent glob'!$E$6:$E$56) -> 0 | AF75: ='Datos 2-Potenciales calent glob'!$E$6 -> 1 | AG75: ='Datos 2-Potenciales calent glob'!$E$6 -> 1 | AH75: 0 | AI75: 0 | AJ75: 0 | AK75: 0 | AL75: 0 | AM75: 0 | AN75: 0
B76: Absorciones | C76: Fuente fija | D76: Absorción | E76: Cornus sanguinea | H76: Ambos | I76: 1 | J76: ='Alcance 1'!D95 -> 0 | K76: ='Alcance 1'!E95 -> árboles | M76: 1 | O76: 0 | P76: árboles | Q76: 0 | R76: 0 | S76: 0 | T76: 0 | U76: =-'Datos 1-Factores emisión'!C689 -> -6.838861723 | V76: 0 | W76: 0 | X76: 0 | Y76: 0 | Z76: 0 | AA76: 0 | AB76: ='Datos 2-Potenciales calent glob'!$E$6 -> 1 | AC76: ='Datos 2-Potenciales calent glob'!$E$31 -> 28 | AD76: ='Datos 2-Potenciales calent glob'!$E$32 -> 265 | AE76: =SUMIF('Datos 2-Potenciales calent glob'!$B$6:$B$56,Cálculos_5!F76,'Datos 2-Potenciales calent glob'!$E$6:$E$56) -> 0 | AF76: ='Datos 2-Potenciales calent glob'!$E$6 -> 1 | AG76: ='Datos 2-Potenciales calent glob'!$E$6 -> 1 | AH76: 0 | AI76: 0 | AJ76: 0 | AK76: 0 | AL76: 0 | AM76: 0 | AN76: 0
B77: Absorciones | C77: Fuente fija | D77: Absorción | E77: Corylus avellana | H77: Ambos | I77: 1 | J77: ='Alcance 1'!D96 -> 0 | K77: ='Alcance 1'!E96 -> árboles | M77: 1 | O77: 0 | P77: árboles | Q77: 0 | R77: 0 | S77: 0 | T77: 0 | U77: =-'Datos 1-Factores emisión'!C690 -> -3.917610022 | V77: 0 | W77: 0 | X77: 0 | Y77: 0 | Z77: 0 | AA77: 0 | AB77: ='Datos 2-Potenciales calent glob'!$E$6 -> 1 | AC77: ='Datos 2-Potenciales calent glob'!$E$31 -> 28 | AD77: ='Datos 2-Potenciales calent glob'!$E$32 -> 265 | AE77: =SUMIF('Datos 2-Potenciales calent glob'!$B$6:$B$56,Cálculos_5!F77,'Datos 2-Potenciales calent glob'!$E$6:$E$56) -> 0 | AF77: ='Datos 2-Potenciales calent glob'!$E$6 -> 1 | AG77: ='Datos 2-Potenciales calent glob'!$E$6 -> 1 | AH77: 0 | AI77: 0 | AJ77: 0 | AK77: 0 | AL77: 0 | AM77: 0 | AN77: 0
B78: Absorciones | C78: Fuente fija | D78: Absorción | E78: Crataegus spp. | H78: Ambos | I78: 1 | J78: ='Alcance 1'!D97 -> 0 | K78: ='Alcance 1'!E97 -> árboles | M78: 1 | O78: 0 | P78: árboles | Q78: 0 | R78: 0 | S78: 0 | T78: 0 | U78: =-'Datos 1-Factores emisión'!C691 -> -6.838861723 | V78: 0 | W78: 0 | X78: 0 | Y78: 0 | Z78: 0 | AA78: 0 | AB78: ='Datos 2-Potenciales calent glob'!$E$6 -> 1 | AC78: ='Datos 2-Potenciales calent glob'!$E$31 -> 28 | AD78: ='Datos 2-Potenciales calent glob'!$E$32 -> 265 | AE78: =SUMIF('Datos 2-Potenciales calent glob'!$B$6:$B$56,Cálculos_5!F78,'Datos 2-Potenciales calent glob'!$E$6:$E$56) -> 0 | AF78: ='Datos 2-Potenciales calent glob'!$E$6 -> 1 | AG78: ='Datos 2-Potenciales calent glob'!$E$6 -> 1 | AH78: 0 | AI78: 0 | AJ78: 0 | AK78: 0 | AL78: 0 | AM78: 0 | AN78: 0
B79: Absorciones | C79: Fuente fija | D79: Absorción | E79: Cupressus arizonica | H79: Ambos | I79: 1 | J79: ='Alcance 1'!D98 -> 0 | K79: ='Alcance 1'!E98 -> árboles | M79: 1 | O79: 0 | P79: árboles | Q79: 0 | R79: 0 | S79: 0 | T79: 0 | U79: =-'Datos 1-Factores emisión'!C692 -> -1.932628019 | V79: 0 | W79: 0 | X79: 0 | Y79: 0 | Z79: 0 | AA79: 0 | AB79: ='Datos 2-Potenciales calent glob'!$E$6 -> 1 | AC79: ='Datos 2-Potenciales calent glob'!$E$31 -> 28 | AD79: ='Datos 2-Potenciales calent glob'!$E$32 -> 265 | AE79: =SUMIF('Datos 2-Potenciales calent glob'!$B$6:$B$56,Cálculos_5!F79,'Datos 2-Potenciales calent glob'!$E$6:$E$56) -> 0 | AF79: ='Datos 2-Potenciales calent glob'!$E$6 -> 1 | AG79: ='Datos 2-Potenciales calent glob'!$E$6 -> 1 | AH79: 0 | AI79: 0 | AJ79: 0 | AK79: 0 | AL79: 0 | AM79: 0 | AN79: 0
B80: Absorciones | C80: Fuente fija | D80: Absorción | E80: Cupressus macrocarpa | H80: Ambos | I80: 1 | J80: ='Alcance 1'!D99 -> 0 | K80: ='Alcance 1'!E99 -> árboles | M80: 1 | O80: 0 | P80: árboles | Q80: 0 | R80: 0 | S80: 0 | T80: 0 | U80: =-'Datos 1-Factores emisión'!C693 -> -1.932628019 | V80: 0 | W80: 0 | X80: 0 | Y80: 0 | Z80: 0 | AA80: 0 | AB80: ='Datos 2-Potenciales calent glob'!$E$6 -> 1 | AC80: ='Datos 2-Potenciales calent glob'!$E$31 -> 28 | AD80: ='Datos 2-Potenciales calent glob'!$E$32 -> 265 | AE80: =SUMIF('Datos 2-Potenciales calent glob'!$B$6:$B$56,Cálculos_5!F80,'Datos 2-Potenciales calent glob'!$E$6:$E$56) -> 0 | AF80: ='Datos 2-Potenciales calent glob'!$E$6 -> 1 | AG80: ='Datos 2-Potenciales calent glob'!$E$6 -> 1 | AH80: 0 | AI80: 0 | AJ80: 0 | AK80: 0 | AL80: 0 | AM80: 0 | AN80: 0
B81: Absorciones | C81: Fuente fija | D81: Absorción | E81: Cupressus sempervirens | H81: Ambos | I81: 1 | J81: ='Alcance 1'!D100 -> 0 | K81: ='Alcance 1'!E100 -> árboles | M81: 1 | O81: 0 | P81: árboles | Q81: 0 | R81: 0 | S81: 0 | T81: 0 | U81: =-'Datos 1-Factores emisión'!C694 -> -1.932628019 | V81: 0 | W81: 0 | X81: 0 | Y81: 0 | Z81: 0 | AA81: 0 | AB81: ='Datos 2-Potenciales calent glob'!$E$6 -> 1 | AC81: ='Datos 2-Potenciales calent glob'!$E$31 -> 28 | AD81: ='Datos 2-Potenciales calent glob'!$E$32 -> 265 | AE81: =SUMIF('Datos 2-Potenciales calent glob'!$B$6:$B$56,Cálculos_5!F81,'Datos 2-Potenciales calent glob'!$E$6:$E$56) -> 0 | AF81: ='Datos 2-Potenciales calent glob'!$E$6 -> 1 | AG81: ='Datos 2-Potenciales calent glob'!$E$6 -> 1 | AH81: 0 | AI81: 0 | AJ81: 0 | AK81: 0 | AL81: 0 | AM81: 0 | AN81: 0
B82: Absorciones | C82: Fuente fija | D82: Absorción | E82: Erica arborea | H82: Ambos | I82: 1 | J82: ='Alcance 1'!D101 -> 0 | K82: ='Alcance 1'!E101 -> árboles | M82: 1 | O82: 0 | P82: árboles | Q82: 0 | R82: 0 | S82: 0 | T82: 0 | U82: =-'Datos 1-Factores emisión'!C695 -> -6.838861723 | V82: 0 | W82: 0 | X82: 0 | Y82: 0 | Z82: 0 | AA82: 0 | AB82: ='Datos 2-Potenciales calent glob'!$E$6 -> 1 | AC82: ='Datos 2-Potenciales calent glob'!$E$31 -> 28 | AD82: ='Datos 2-Potenciales calent glob'!$E$32 -> 265 | AE82: =SUMIF('Datos 2-Potenciales calent glob'!$B$6:$B$56,Cálculos_5!F82,'Datos 2-Potenciales calent glob'!$E$6:$E$56) -> 0 | AF82: ='Datos 2-Potenciales calent glob'!$E$6 -> 1 | AG82: ='Datos 2-Potenciales calent glob'!$E$6 -> 1 | AH82: 0 | AI82: 0 | AJ82: 0 | AK82: 0 | AL82: 0 | AM82: 0 | AN82: 0
B83: Absorciones | C83: Fuente fija | D83: Absorción | E83: Eucalyptus camaldulensis | H83: Ambos | I83: 1 | J83: ='Alcance 1'!D102 -> 0 | K83: ='Alcance 1'!E102 -> árboles | M83: 1 | O83: 0 | P83: árboles | Q83: 0 | R83: 0 | S83: 0 | T83: 0 | U83: =-'Datos 1-Factores emisión'!C696 -> -52.19426741 | V83: 0 | W83: 0 | X83: 0 | Y83: 0 | Z83: 0 | AA83: 0 | AB83: ='Datos 2-Potenciales calent glob'!$E$6 -> 1 | AC83: ='Datos 2-Potenciales calent glob'!$E$31 -> 28 | AD83: ='Datos 2-Potenciales calent glob'!$E$32 -> 265 | AE83: =SUMIF('Datos 2-Potenciales calent glob'!$B$6:$B$56,Cálculos_5!F83,'Datos 2-Potenciales calent glob'!$E$6:$E$56) -> 0 | AF83: ='Datos 2-Potenciales calent glob'!$E$6 -> 1 | AG83: ='Datos 2-Potenciales calent glob'!$E$6 -> 1 | AH83: 0 | AI83: 0 | AJ83: 0 | AK83: 0 | AL83: 0 | AM83: 0 | AN83: 0
B84: Absorciones | C84: Fuente fija | D84: Absorción | E84: Eucalyptus globulus | H84: Ambos | I84: 1 | J84: ='Alcance 1'!D103 -> 0 | K84: ='Alcance 1'!E103 -> árboles | M84: 1 | O84: 0 | P84: árboles | Q84: 0 | R84: 0 | S84: 0 | T84: 0 | U84: =-'Datos 1-Factores emisión'!C697 -> -67.87099468 | V84: 0 | W84: 0 | X84: 0 | Y84: 0 | Z84: 0 | AA84: 0 | AB84: ='Datos 2-Potenciales calent glob'!$E$6 -> 1 | AC84: ='Datos 2-Potenciales calent glob'!$E$31 -> 28 | AD84: ='Datos 2-Potenciales calent glob'!$E$32 -> 265 | AE84: =SUMIF('Datos 2-Potenciales calent glob'!$B$6:$B$56,Cálculos_5!F84,'Datos 2-Potenciales calent glob'!$E$6:$E$56) -> 0 | AF84: ='Datos 2-Potenciales calent glob'!$E$6 -> 1 | AG84: ='Datos 2-Potenciales calent glob'!$E$6 -> 1 | AH84: 0 | AI84: 0 | AJ84: 0 | AK84: 0 | AL84: 0 | AM84: 0 | AN84: 0
B85: Absorciones | C85: Fuente fija | D85: Absorción | E85: Fagus sylvatica | H85: Ambos | I85: 1 | J85: ='Alcance 1'!D104 -> 0 | K85: ='Alcance 1'!E104 -> árboles | M85: 1 | O85: 0 | P85: árboles | Q85: 0 | R85: 0 | S85: 0 | T85: 0 | U85: =-'Datos 1-Factores emisión'!C698 -> -0.9069668056 | V85: 0 | W85: 0 | X85: 0 | Y85: 0 | Z85: 0 | AA85: 0 | AB85: ='Datos 2-Potenciales calent glob'!$E$6 -> 1 | AC85: ='Datos 2-Potenciales calent glob'!$E$31 -> 28 | AD85: ='Datos 2-Potenciales calent glob'!$E$32 -> 265 | AE85: =SUMIF('Datos 2-Potenciales calent glob'!$B$6:$B$56,Cálculos_5!F85,'Datos 2-Potenciales calent glob'!$E$6:$E$56) -> 0 | AF85: ='Datos 2-Potenciales calent glob'!$E$6 -> 1 | AG85: ='Datos 2-Potenciales calent glob'!$E$6 -> 1 | AH85: 0 | AI85: 0 | AJ85: 0 | AK85: 0 | AL85: 0 | AM85: 0 | AN85: 0
B86: Absorciones | C86: Fuente fija | D86: Absorción | E86: Fraxinus spp. | H86: Ambos | I86: 1 | J86: ='Alcance 1'!D105 -> 0 | K86: ='Alcance 1'!E105 -> árboles | M86: 1 | O86: 0 | P86: árboles | Q86: 0 | R86: 0 | S86: 0 | T86: 0 | U86: =-'Datos 1-Factores emisión'!C699 -> -6.156855056 | V86: 0 | W86: 0 | X86: 0 | Y86: 0 | Z86: 0 | AA86: 0 | AB86: ='Datos 2-Potenciales calent glob'!$E$6 -> 1 | AC86: ='Datos 2-Potenciales calent glob'!$E$31 -> 28 | AD86: ='Datos 2-Potenciales calent glob'!$E$32 -> 265 | AE86: =SUMIF('Datos 2-Potenciales calent glob'!$B$6:$B$56,Cálculos_5!F86,'Datos 2-Potenciales calent glob'!$E$6:$E$56) -> 0 | AF86: ='Datos 2-Potenciales calent glob'!$E$6 -> 1 | AG86: ='Datos 2-Potenciales calent glob'!$E$6 -> 1 | AH86: 0 | AI86: 0 | AJ86: 0 | AK86: 0 | AL86: 0 | AM86: 0 | AN86: 0
B87: Absorciones | C87: Fuente fija | D87: Absorción | E87: Ilex aquifolium | H87: Ambos | I87: 1 | J87: ='Alcance 1'!D106 -> 0 | K87: ='Alcance 1'!E106 -> árboles | M87: 1 | O87: 0 | P87: árboles | Q87: 0 | R87: 0 | S87: 0 | T87: 0 | U87: =-'Datos 1-Factores emisión'!C700 -> -1.593567444 | V87: 0 | W87: 0 | X87: 0 | Y87: 0 | Z87: 0 | AA87: 0 | AB87: ='Datos 2-Potenciales calent glob'!$E$6 -> 1 | AC87: ='Datos 2-Potenciales calent glob'!$E$31 -> 28 | AD87: ='Datos 2-Potenciales calent glob'!$E$32 -> 265 | AE87: =SUMIF('Datos 2-Potenciales calent glob'!$B$6:$B$56,Cálculos_5!F87,'Datos 2-Potenciales calent glob'!$E$6:$E$56) -> 0 | AF87: ='Datos 2-Potenciales calent glob'!$E$6 -> 1 | AG87: ='Datos 2-Potenciales calent glob'!$E$6 -> 1 | AH87: 0 | AI87: 0 | AJ87: 0 | AK87: 0 | AL87: 0 | AM87: 0 | AN87: 0
B88: Absorciones | C88: Fuente fija | D88: Absorción | E88: Ilex canariensis | H88: Ambos | I88: 1 | J88: ='Alcance 1'!D107 -> 0 | K88: ='Alcance 1'!E107 -> árboles | M88: 1 | O88: 0 | P88: árboles | Q88: 0 | R88: 0 | S88: 0 | T88: 0 | U88: =-'Datos 1-Factores emisión'!C701 -> -1.794777828 | V88: 0 | W88: 0 | X88: 0 | Y88: 0 | Z88: 0 | AA88: 0 | AB88: ='Datos 2-Potenciales calent glob'!$E$6 -> 1 | AC88: ='Datos 2-Potenciales calent glob'!$E$31 -> 28 | AD88: ='Datos 2-Potenciales calent glob'!$E$32 -> 265 | AE88: =SUMIF('Datos 2-Potenciales calent glob'!$B$6:$B$56,Cálculos_5!F88,'Datos 2-Potenciales calent glob'!$E$6:$E$56) -> 0 | AF88: ='Datos 2-Potenciales calent glob'!$E$6 -> 1 | AG88: ='Datos 2-Potenciales calent glob'!$E$6 -> 1 | AH88: 0 | AI88: 0 | AJ88: 0 | AK88: 0 | AL88: 0 | AM88: 0 | AN88: 0
B89: Absorciones | C89: Fuente fija | D89: Absorción | E89: Juglans regia | H89: Ambos | I89: 1 | J89: ='Alcance 1'!D108 -> 0 | K89: ='Alcance 1'!E108 -> árboles | M89: 1 | O89: 0 | P89: árboles | Q89: 0 | R89: 0 | S89: 0 | T89: 0 | U89: =-'Datos 1-Factores emisión'!C702 -> -6.205907698 | V89: 0 | W89: 0 | X89: 0 | Y89: 0 | Z89: 0 | AA89: 0 | AB89: ='Datos 2-Potenciales calent glob'!$E$6 -> 1 | AC89: ='Datos 2-Potenciales calent glob'!$E$31 -> 28 | AD89: ='Datos 2-Potenciales calent glob'!$E$32 -> 265 | AE89: =SUMIF('Datos 2-Potenciales calent glob'!$B$6:$B$56,Cálculos_5!F89,'Datos 2-Potenciales calent glob'!$E$6:$E$56) -> 0 | AF89: ='Datos 2-Potenciales calent glob'!$E$6 -> 1 | AG89: ='Datos 2-Potenciales calent glob'!$E$6 -> 1 | AH89: 0 | AI89: 0 | AJ89: 0 | AK89: 0 | AL89: 0 | AM89: 0 | AN89: 0
B90: Absorciones | C90: Fuente fija | D90: Absorción | E90: Juniperus oxycedrus, J. communis | H90: Ambos | I90: 1 | J90: ='Alcance 1'!D109 -> 0 | K90: ='Alcance 1'!E109 -> árboles | M90: 1 | O90: 0 | P90: árboles | Q90: 0 | R90: 0 | S90: 0 | T90: 0 | U90: =-'Datos 1-Factores emisión'!C703 -> -0.5692377218 | V90: 0 | W90: 0 | X90: 0 | Y90: 0 | Z90: 0 | AA90: 0 | AB90: ='Datos 2-Potenciales calent glob'!$E$6 -> 1 | AC90: ='Datos 2-Potenciales calent glob'!$E$31 -> 28 | AD90: ='Datos 2-Potenciales calent glob'!$E$32 -> 265 | AE90: =SUMIF('Datos 2-Potenciales calent glob'!$B$6:$B$56,Cálculos_5!F90,'Datos 2-Potenciales calent glob'!$E$6:$E$56) -> 0 | AF90: ='Datos 2-Potenciales calent glob'!$E$6 -> 1 | AG90: ='Datos 2-Potenciales calent glob'!$E$6 -> 1 | AH90: 0 | AI90: 0 | AJ90: 0 | AK90: 0 | AL90: 0 | AM90: 0 | AN90: 0
B91: Absorciones | C91: Fuente fija | D91: Absorción | E91: Juniperus phoenicea | H91: Ambos | I91: 1 | J91: ='Alcance 1'!D110 -> 0 | K91: ='Alcance 1'!E110 -> árboles | M91: 1 | O91: 0 | P91: árboles | Q91: 0 | R91: 0 | S91: 0 | T91: 0 | U91: =-'Datos 1-Factores emisión'!C704 -> -0.9427706611 | V91: 0 | W91: 0 | X91: 0 | Y91: 0 | Z91: 0 | AA91: 0 | AB91: ='Datos 2-Potenciales calent glob'!$E$6 -> 1 | AC91: ='Datos 2-Potenciales calent glob'!$E$31 -> 28 | AD91: ='Datos 2-Potenciales calent glob'!$E$32 -> 265 | AE91: =SUMIF('Datos 2-Potenciales calent glob'!$B$6:$B$56,Cálculos_5!F91,'Datos 2-Potenciales calent glob'!$E$6:$E$56) -> 0 | AF91: ='Datos 2-Potenciales calent glob'!$E$6 -> 1 | AG91: ='Datos 2-Potenciales calent glob'!$E$6 -> 1 | AH91: 0 | AI91: 0 | AJ91: 0 | AK91: 0 | AL91: 0 | AM91: 0 | AN91: 0
B92: Absorciones | C92: Fuente fija | D92: Absorción | E92: Juniperus thurifera | H92: Ambos | I92: 1 | J92: ='Alcance 1'!D111 -> 0 | K92: ='Alcance 1'!E111 -> árboles | M92: 1 | O92: 0 | P92: árboles | Q92: 0 | R92: 0 | S92: 0 | T92: 0 | U92: =-'Datos 1-Factores emisión'!C705 -> -0.6971187328 | V92: 0 | W92: 0 | X92: 0 | Y92: 0 | Z92: 0 | AA92: 0 | AB92: ='Datos 2-Potenciales calent glob'!$E$6 -> 1 | AC92: ='Datos 2-Potenciales calent glob'!$E$31 -> 28 | AD92: ='Datos 2-Potenciales calent glob'!$E$32 -> 265 | AE92: =SUMIF('Datos 2-Potenciales calent glob'!$B$6:$B$56,Cálculos_5!F92,'Datos 2-Potenciales calent glob'!$E$6:$E$56) -> 0 | AF92: ='Datos 2-Potenciales calent glob'!$E$6 -> 1 | AG92: ='Datos 2-Potenciales calent glob'!$E$6 -> 1 | AH92: 0 | AI92: 0 | AJ92: 0 | AK92: 0 | AL92: 0 | AM92: 0 | AN92: 0
B93: Absorciones | C93: Fuente fija | D93: Absorción | E93: Larix spp. | H93: Ambos | I93: 1 | J93: ='Alcance 1'!D112 -> 0 | K93: ='Alcance 1'!E112 -> árboles | M93: 1 | O93: 0 | P93: árboles | Q93: 0 | R93: 0 | S93: 0 | T93: 0 | U93: =-'Datos 1-Factores emisión'!C706 -> -17.19121658 | V93: 0 | W93: 0 | X93: 0 | Y93: 0 | Z93: 0 | AA93: 0 | AB93: ='Datos 2-Potenciales calent glob'!$E$6 -> 1 | AC93: ='Datos 2-Potenciales calent glob'!$E$31 -> 28 | AD93: ='Datos 2-Potenciales calent glob'!$E$32 -> 265 | AE93: =SUMIF('Datos 2-Potenciales calent glob'!$B$6:$B$56,Cálculos_5!F93,'Datos 2-Potenciales calent glob'!$E$6:$E$56) -> 0 | AF93: ='Datos 2-Potenciales calent glob'!$E$6 -> 1 | AG93: ='Datos 2-Potenciales calent glob'!$E$6 -> 1 | AH93: 0 | AI93: 0 | AJ93: 0 | AK93: 0 | AL93: 0 | AM93: 0 | AN93: 0
B94: Absorciones | C94: Fuente fija | D94: Absorción | E94: Laurus azorica | H94: Ambos | I94: 1 | J94: ='Alcance 1'!D113 -> 0 | K94: ='Alcance 1'!E113 -> árboles | M94: 1 | O94: 0 | P94: árboles | Q94: 0 | R94: 0 | S94: 0 | T94: 0 | U94: =-'Datos 1-Factores emisión'!C707 -> -6.838861723 | V94: 0 | W94: 0 | X94: 0 | Y94: 0 | Z94: 0 | AA94: 0 | AB94: ='Datos 2-Potenciales calent glob'!$E$6 -> 1 | AC94: ='Datos 2-Potenciales calent glob'!$E$31 -> 28 | AD94: ='Datos 2-Potenciales calent glob'!$E$32 -> 265 | AE94: =SUMIF('Datos 2-Potenciales calent glob'!$B$6:$B$56,Cálculos_5!F94,'Datos 2-Potenciales calent glob'!$E$6:$E$56) -> 0 | AF94: ='Datos 2-Potenciales calent glob'!$E$6 -> 1 | AG94: ='Datos 2-Potenciales calent glob'!$E$6 -> 1 | AH94: 0 | AI94: 0 | AJ94: 0 | AK94: 0 | AL94: 0 | AM94: 0 | AN94: 0
B95: Absorciones | C95: Fuente fija | D95: Absorción | E95: Laurus nobilis | H95: Ambos | I95: 1 | J95: ='Alcance 1'!D114 -> 0 | K95: ='Alcance 1'!E114 -> árboles | M95: 1 | O95: 0 | P95: árboles | Q95: 0 | R95: 0 | S95: 0 | T95: 0 | U95: =-'Datos 1-Factores emisión'!C708 -> -6.838861723 | V95: 0 | W95: 0 | X95: 0 | Y95: 0 | Z95: 0 | AA95: 0 | AB95: ='Datos 2-Potenciales calent glob'!$E$6 -> 1 | AC95: ='Datos 2-Potenciales calent glob'!$E$31 -> 28 | AD95: ='Datos 2-Potenciales calent glob'!$E$32 -> 265 | AE95: =SUMIF('Datos 2-Potenciales calent glob'!$B$6:$B$56,Cálculos_5!F95,'Datos 2-Potenciales calent glob'!$E$6:$E$56) -> 0 | AF95: ='Datos 2-Potenciales calent glob'!$E$6 -> 1 | AG95: ='Datos 2-Potenciales calent glob'!$E$6 -> 1 | AH95: 0 | AI95: 0 | AJ95: 0 | AK95: 0 | AL95: 0 | AM95: 0 | AN95: 0
B96: Absorciones | C96: Fuente fija | D96: Absorción | E96: Malus sylvestris | H96: Ambos | I96: 1 | J96: ='Alcance 1'!D115 -> 0 | K96: ='Alcance 1'!E115 -> árboles | M96: 1 | O96: 0 | P96: árboles | Q96: 0 | R96: 0 | S96: 0 | T96: 0 | U96: =-'Datos 1-Factores emisión'!C709 -> -7.487768065 | V96: 0 | W96: 0 | X96: 0 | Y96: 0 | Z96: 0 | AA96: 0 | AB96: ='Datos 2-Potenciales calent glob'!$E$6 -> 1 | AC96: ='Datos 2-Potenciales calent glob'!$E$31 -> 28 | AD96: ='Datos 2-Potenciales calent glob'!$E$32 -> 265 | AE96: =SUMIF('Datos 2-Potenciales calent glob'!$B$6:$B$56,Cálculos_5!F96,'Datos 2-Potenciales calent glob'!$E$6:$E$56) -> 0 | AF96: ='Datos 2-Potenciales calent glob'!$E$6 -> 1 | AG96: ='Datos 2-Potenciales calent glob'!$E$6 -> 1 | AH96: 0 | AI96: 0 | AJ96: 0 | AK96: 0 | AL96: 0 | AM96: 0 | AN96: 0
B97: Absorciones | C97: Fuente fija | D97: Absorción | E97: Myrica faya | H97: Ambos | I97: 1 | J97: ='Alcance 1'!D116 -> 0 | K97: ='Alcance 1'!E116 -> árboles | M97: 1 | O97: 0 | P97: árboles | Q97: 0 | R97: 0 | S97: 0 | T97: 0 | U97: =-'Datos 1-Factores emisión'!C710 -> -6.838861723 | V97: 0 | W97: 0 | X97: 0 | Y97: 0 | Z97: 0 | AA97: 0 | AB97: ='Datos 2-Potenciales calent glob'!$E$6 -> 1 | AC97: ='Datos 2-Potenciales calent glob'!$E$31 -> 28 | AD97: ='Datos 2-Potenciales calent glob'!$E$32 -> 265 | AE97: =SUMIF('Datos 2-Potenciales calent glob'!$B$6:$B$56,Cálculos_5!F97,'Datos 2-Potenciales calent glob'!$E$6:$E$56) -> 0 | AF97: ='Datos 2-Potenciales calent glob'!$E$6 -> 1 | AG97: ='Datos 2-Potenciales calent glob'!$E$6 -> 1 | AH97: 0 | AI97: 0 | AJ97: 0 | AK97: 0 | AL97: 0 | AM97: 0 | AN97: 0
B98: Absorciones | C98: Fuente fija | D98: Absorción | E98: Myrtus communis | H98: Ambos | I98: 1 | J98: ='Alcance 1'!D117 -> 0 | K98: ='Alcance 1'!E117 -> árboles | M98: 1 | O98: 0 | P98: árboles | Q98: 0 | R98: 0 | S98: 0 | T98: 0 | U98: =-'Datos 1-Factores emisión'!C711 -> -6.838861723 | V98: 0 | W98: 0 | X98: 0 | Y98: 0 | Z98: 0 | AA98: 0 | AB98: ='Datos 2-Potenciales calent glob'!$E$6 -> 1 | AC98: ='Datos 2-Potenciales calent glob'!$E$31 -> 28 | AD98: ='Datos 2-Potenciales calent glob'!$E$32 -> 265 | AE98: =SUMIF('Datos 2-Potenciales calent glob'!$B$6:$B$56,Cálculos_5!F98,'Datos 2-Potenciales calent glob'!$E$6:$E$56) -> 0 | AF98: ='Datos 2-Potenciales calent glob'!$E$6 -> 1 | AG98: ='Datos 2-Potenciales calent glob'!$E$6 -> 1 | AH98: 0 | AI98: 0 | AJ98: 0 | AK98: 0 | AL98: 0 | AM98: 0 | AN98: 0
B99: Absorciones | C99: Fuente fija | D99: Absorción | E99: Olea europaea | H99: Ambos | I99: 1 | J99: ='Alcance 1'!D118 -> 0 | K99: ='Alcance 1'!E118 -> árboles | M99: 1 | O99: 0 | P99: árboles | Q99: 0 | R99: 0 | S99: 0 | T99: 0 | U99: =-'Datos 1-Factores emisión'!C712 -> -2.802729983 | V99: 0 | W99: 0 | X99: 0 | Y99: 0 | Z99: 0 | AA99: 0 | AB99: ='Datos 2-Potenciales calent glob'!$E$6 -> 1 | AC99: ='Datos 2-Potenciales calent glob'!$E$31 -> 28 | AD99: ='Datos 2-Potenciales calent glob'!$E$32 -> 265 | AE99: =SUMIF('Datos 2-Potenciales calent glob'!$B$6:$B$56,Cálculos_5!F99,'Datos 2-Potenciales calent glob'!$E$6:$E$56) -> 0 | AF99: ='Datos 2-Potenciales calent glob'!$E$6 -> 1 | AG99: ='Datos 2-Potenciales calent glob'!$E$6 -> 1 | AH99: 0 | AI99: 0 | AJ99: 0 | AK99: 0 | AL99: 0 | AM99: 0 | AN99: 0
B100: Absorciones | C100: Fuente fija | D100: Absorción | E100: Phillyrea latifolia | H100: Ambos | I100: 1 | J100: ='Alcance 1'!D119 -> 0 | K100: ='Alcance 1'!E119 -> árboles | M100: 1 | O100: 0 | P100: árboles | Q100: 0 | R100: 0 | S100: 0 | T100: 0 | U100: =-'Datos 1-Factores emisión'!C713 -> -2.978664525 | V100: 0 | W100: 0 | X100: 0 | Y100: 0 | Z100: 0 | AA100: 0 | AB100: ='Datos 2-Potenciales calent glob'!$E$6 -> 1 | AC100: ='Datos 2-Potenciales calent glob'!$E$31 -> 28 | AD100: ='Datos 2-Potenciales calent glob'!$E$32 -> 265 | AE100: =SUMIF('Datos 2-Potenciales calent glob'!$B$6:$B$56,Cálculos_5!F100,'Datos 2-Potenciales calent glob'!$E$6:$E$56) -> 0 | AF100: ='Datos 2-Potenciales calent glob'!$E$6 -> 1 | AG100: ='Datos 2-Potenciales calent glob'!$E$6 -> 1 | AH100: 0 | AI100: 0 | AJ100: 0 | AK100: 0 | AL100: 0 | AM100: 0 | AN100: 0
B101: Absorciones | C101: Fuente fija | D101: Absorción | E101: Phoenix spp. | H101: Ambos | I101: 1 | J101: ='Alcance 1'!D120 -> 0 | K101: ='Alcance 1'!E120 -> árboles | M101: 1 | O101: 0 | P101: árboles | Q101: 0 | R101: 0 | S101: 0 | T101: 0 | U101: =-'Datos 1-Factores emisión'!C714 -> -29.85531354 | V101: 0 | W101: 0 | X101: 0 | Y101: 0 | Z101: 0 | AA101: 0 | AB101: ='Datos 2-Potenciales calent glob'!$E$6 -> 1 | AC101: ='Datos 2-Potenciales calent glob'!$E$31 -> 28 | AD101: ='Datos 2-Potenciales calent glob'!$E$32 -> 265 | AE101: =SUMIF('Datos 2-Potenciales calent glob'!$B$6:$B$56,Cálculos_5!F101,'Datos 2-Potenciales calent glob'!$E$6:$E$56) -> 0 | AF101: ='Datos 2-Potenciales calent glob'!$E$6 -> 1 | AG101: ='Datos 2-Potenciales calent glob'!$E$6 -> 1 | AH101: 0 | AI101: 0 | AJ101: 0 | AK101: 0 | AL101: 0 | AM101: 0 | AN101: 0
B102: Absorciones | C102: Fuente fija | D102: Absorción | E102: Picea abies | H102: Ambos | I102: 1 | J102: ='Alcance 1'!D121 -> 0 | K102: ='Alcance 1'!E121 -> árboles | M102: 1 | O102: 0 | P102: árboles | Q102: 0 | R102: 0 | S102: 0 | T102: 0 | U102: =-'Datos 1-Factores emisión'!C715 -> -43.21560441 | V102: 0 | W102: 0 | X102: 0 | Y102: 0 | Z102: 0 | AA102: 0 | AB102: ='Datos 2-Potenciales calent glob'!$E$6 -> 1 | AC102: ='Datos 2-Potenciales calent glob'!$E$31 -> 28 | AD102: ='Datos 2-Potenciales calent glob'!$E$32 -> 265 | AE102: =SUMIF('Datos 2-Potenciales calent glob'!$B$6:$B$56,Cálculos_5!F102,'Datos 2-Potenciales calent glob'!$E$6:$E$56) -> 0 | AF102: ='Datos 2-Potenciales calent glob'!$E$6 -> 1 | AG102: ='Datos 2-Potenciales calent glob'!$E$6 -> 1 | AH102: 0 | AI102: 0 | AJ102: 0 | AK102: 0 | AL102: 0 | AM102: 0 | AN102: 0
B103: Absorciones | C103: Fuente fija | D103: Absorción | E103: Pinus canariensis | H103: Ambos | I103: 1 | J103: ='Alcance 1'!D122 -> 0 | K103: ='Alcance 1'!E122 -> árboles | M103: 1 | O103: 0 | P103: árboles | Q103: 0 | R103: 0 | S103: 0 | T103: 0 | U103: =-'Datos 1-Factores emisión'!C716 -> -4.511633547 | V103: 0 | W103: 0 | X103: 0 | Y103: 0 | Z103: 0 | AA103: 0 | AB103: ='Datos 2-Potenciales calent glob'!$E$6 -> 1 | AC103: ='Datos 2-Potenciales calent glob'!$E$31 -> 28 | AD103: ='Datos 2-Potenciales calent glob'!$E$32 -> 265 | AE103: =SUMIF('Datos 2-Potenciales calent glob'!$B$6:$B$56,Cálculos_5!F103,'Datos 2-Potenciales calent glob'!$E$6:$E$56) -> 0 | AF103: ='Datos 2-Potenciales calent glob'!$E$6 -> 1 | AG103: ='Datos 2-Potenciales calent glob'!$E$6 -> 1 | AH103: 0 | AI103: 0 | AJ103: 0 | AK103: 0 | AL103: 0 | AM103: 0 | AN103: 0
B104: Absorciones | C104: Fuente fija | D104: Absorción | E104: Pinus halepensis | H104: Ambos | I104: 1 | J104: ='Alcance 1'!D123 -> 0 | K104: ='Alcance 1'!E123 -> árboles | M104: 1 | O104: 0 | P104: árboles | Q104: 0 | R104: 0 | S104: 0 | T104: 0 | U104: =-'Datos 1-Factores emisión'!C717 -> -2.739640901 | V104: 0 | W104: 0 | X104: 0 | Y104: 0 | Z104: 0 | AA104: 0 | AB104: ='Datos 2-Potenciales calent glob'!$E$6 -> 1 | AC104: ='Datos 2-Potenciales calent glob'!$E$31 -> 28 | AD104: ='Datos 2-Potenciales calent glob'!$E$32 -> 265 | AE104: =SUMIF('Datos 2-Potenciales calent glob'!$B$6:$B$56,Cálculos_5!F104,'Datos 2-Potenciales calent glob'!$E$6:$E$56) -> 0 | AF104: ='Datos 2-Potenciales calent glob'!$E$6 -> 1 | AG104: ='Datos 2-Potenciales calent glob'!$E$6 -> 1 | AH104: 0 | AI104: 0 | AJ104: 0 | AK104: 0 | AL104: 0 | AM104: 0 | AN104: 0
B105: Absorciones | C105: Fuente fija | D105: Absorción | E105: Pinus nigra Sistema Ibérico | H105: Ambos | I105: 1 | J105: ='Alcance 1'!D124 -> 0 | K105: ='Alcance 1'!E124 -> árboles | M105: 1 | O105: 0 | P105: árboles | Q105: 0 | R105: 0 | S105: 0 | T105: 0 | U105: =-'Datos 1-Factores emisión'!C718 -> -1.707884856 | V105: 0 | W105: 0 | X105: 0 | Y105: 0 | Z105: 0 | AA105: 0 | AB105: ='Datos 2-Potenciales calent glob'!$E$6 -> 1 | AC105: ='Datos 2-Potenciales calent glob'!$E$31 -> 28 | AD105: ='Datos 2-Potenciales calent glob'!$E$32 -> 265 | AE105: =SUMIF('Datos 2-Potenciales calent glob'!$B$6:$B$56,Cálculos_5!F105,'Datos 2-Potenciales calent glob'!$E$6:$E$56) -> 0 | AF105: ='Datos 2-Potenciales calent glob'!$E$6 -> 1 | AG105: ='Datos 2-Potenciales calent glob'!$E$6 -> 1 | AH105: 0 | AI105: 0 | AJ105: 0 | AK105: 0 | AL105: 0 | AM105: 0 | AN105: 0
B106: Absorciones | C106: Fuente fija | D106: Absorción | E106: Pinus nigra (Resto) | H106: Ambos | I106: 1 | J106: ='Alcance 1'!D125 -> 0 | K106: ='Alcance 1'!E125 -> árboles | M106: 1 | O106: 0 | P106: árboles | Q106: 0 | R106: 0 | S106: 0 | T106: 0 | U106: =-'Datos 1-Factores emisión'!C719 -> -2.639927123 | V106: 0 | W106: 0 | X106: 0 | Y106: 0 | Z106: 0 | AA106: 0 | AB106: ='Datos 2-Potenciales calent glob'!$E$6 -> 1 | AC106: ='Datos 2-Potenciales calent glob'!$E$31 -> 28 | AD106: ='Datos 2-Potenciales calent glob'!$E$32 -> 265 | AE106: =SUMIF('Datos 2-Potenciales calent glob'!$B$6:$B$56,Cálculos_5!F106,'Datos 2-Potenciales calent glob'!$E$6:$E$56) -> 0 | AF106: ='Datos 2-Potenciales calent glob'!$E$6 -> 1 | AG106: ='Datos 2-Potenciales calent glob'!$E$6 -> 1 | AH106: 0 | AI106: 0 | AJ106: 0 | AK106: 0 | AL106: 0 | AM106: 0 | AN106: 0
B107: Absorciones | C107: Fuente fija | D107: Absorción | E107: Pinus pinaster ssp. atlantica Zona Norte interior | H107: Ambos | I107: 1 | J107: ='Alcance 1'!D126 -> 0 | K107: ='Alcance 1'!E126 -> árboles | M107: 1 | O107: 0 | P107: árboles | Q107: 0 | R107: 0 | S107: 0 | T107: 0 | U107: =-'Datos 1-Factores emisión'!C720 -> -19.41649788 | V107: 0 | W107: 0 | X107: 0 | Y107: 0 | Z107: 0 | AA107: 0 | AB107: ='Datos 2-Potenciales calent glob'!$E$6 -> 1 | AC107: ='Datos 2-Potenciales calent glob'!$E$31 -> 28 | AD107: ='Datos 2-Potenciales calent glob'!$E$32 -> 265 | AE107: =SUMIF('Datos 2-Potenciales calent glob'!$B$6:$B$56,Cálculos_5!F107,'Datos 2-Potenciales calent glob'!$E$6:$E$56) -> 0 | AF107: ='Datos 2-Potenciales calent glob'!$E$6 -> 1 | AG107: ='Datos 2-Potenciales calent glob'!$E$6 -> 1 | AH107: 0 | AI107: 0 | AJ107: 0 | AK107: 0 | AL107: 0 | AM107: 0 | AN107: 0
B108: Absorciones | C108: Fuente fija | D108: Absorción | E108: Pinus pinaster ssp. atlantica Zona Norte costera | H108: Ambos | I108: 1 | J108: ='Alcance 1'!D127 -> 0 | K108: ='Alcance 1'!E127 -> árboles | M108: 1 | O108: 0 | P108: árboles | Q108: 0 | R108: 0 | S108: 0 | T108: 0 | U108: =-'Datos 1-Factores emisión'!C721 -> -23.04052822 | V108: 0 | W108: 0 | X108: 0 | Y108: 0 | Z108: 0 | AA108: 0 | AB108: ='Datos 2-Potenciales calent glob'!$E$6 -> 1 | AC108: ='Datos 2-Potenciales calent glob'!$E$31 -> 28 | AD108: ='Datos 2-Potenciales calent glob'!$E$32 -> 265 | AE108: =SUMIF('Datos 2-Potenciales calent glob'!$B$6:$B$56,Cálculos_5!F108,'Datos 2-Potenciales calent glob'!$E$6:$E$56) -> 0 | AF108: ='Datos 2-Potenciales calent glob'!$E$6 -> 1 | AG108: ='Datos 2-Potenciales calent glob'!$E$6 -> 1 | AH108: 0 | AI108: 0 | AJ108: 0 | AK108: 0 | AL108: 0 | AM108: 0 | AN108: 0
B109: Absorciones | C109: Fuente fija | D109: Absorción | E109: Pinus pinaster ssp. mesogeensis Sistema Central | H109: Ambos | I109: 1 | J109: ='Alcance 1'!D128 -> 0 | K109: ='Alcance 1'!E128 -> árboles | M109: 1 | O109: 0 | P109: árboles | Q109: 0 | R109: 0 | S109: 0 | T109: 0 | U109: =-'Datos 1-Factores emisión'!C722 -> -5.99142451 | V109: 0 | W109: 0 | X109: 0 | Y109: 0 | Z109: 0 | AA109: 0 | AB109: ='Datos 2-Potenciales calent glob'!$E$6 -> 1 | AC109: ='Datos 2-Potenciales calent glob'!$E$31 -> 28 | AD109: ='Datos 2-Potenciales calent glob'!$E$32 -> 265 | AE109: =SUMIF('Datos 2-Potenciales calent glob'!$B$6:$B$56,Cálculos_5!F109,'Datos 2-Potenciales calent glob'!$E$6:$E$56) -> 0 | AF109: ='Datos 2-Potenciales calent glob'!$E$6 -> 1 | AG109: ='Datos 2-Potenciales calent glob'!$E$6 -> 1 | AH109: 0 | AI109: 0 | AJ109: 0 | AK109: 0 | AL109: 0 | AM109: 0 | AN109: 0
B110: Absorciones | C110: Fuente fija | D110: Absorción | E110: Pinus pinaster (Resto) | H110: Ambos | I110: 1 | J110: ='Alcance 1'!D129 -> 0 | K110: ='Alcance 1'!E129 -> árboles | M110: 1 | O110: 0 | P110: árboles | Q110: 0 | R110: 0 | S110: 0 | T110: 0 | U110: =-'Datos 1-Factores emisión'!C723 -> -1.128204514 | V110: 0 | W110: 0 | X110: 0 | Y110: 0 | Z110: 0 | AA110: 0 | AB110: ='Datos 2-Potenciales calent glob'!$E$6 -> 1 | AC110: ='Datos 2-Potenciales calent glob'!$E$31 -> 28 | AD110: ='Datos 2-Potenciales calent glob'!$E$32 -> 265 | AE110: =SUMIF('Datos 2-Potenciales calent glob'!$B$6:$B$56,Cálculos_5!F110,'Datos 2-Potenciales calent glob'!$E$6:$E$56) -> 0 | AF110: ='Datos 2-Potenciales calent glob'!$E$6 -> 1 | AG110: ='Datos 2-Potenciales calent glob'!$E$6 -> 1 | AH110: 0 | AI110: 0 | AJ110: 0 | AK110: 0 | AL110: 0 | AM110: 0 | AN110: 0
B111: Absorciones | C111: Fuente fija | D111: Absorción | E111: Pinus pinea | H111: Ambos | I111: 1 | J111: ='Alcance 1'!D130 -> 0 | K111: ='Alcance 1'!E130 -> árboles | M111: 1 | O111: 0 | P111: árboles | Q111: 0 | R111: 0 | S111: 0 | T111: 0 | U111: =-'Datos 1-Factores emisión'!C724 -> -5.586900061 | V111: 0 | W111: 0 | X111: 0 | Y111: 0 | Z111: 0 | AA111: 0 | AB111: ='Datos 2-Potenciales calent glob'!$E$6 -> 1 | AC111: ='Datos 2-Potenciales calent glob'!$E$31 -> 28 | AD111: ='Datos 2-Potenciales calent glob'!$E$32 -> 265 | AE111: =SUMIF('Datos 2-Potenciales calent glob'!$B$6:$B$56,Cálculos_5!F111,'Datos 2-Potenciales calent glob'!$E$6:$E$56) -> 0 | AF111: ='Datos 2-Potenciales calent glob'!$E$6 -> 1 | AG111: ='Datos 2-Potenciales calent glob'!$E$6 -> 1 | AH111: 0 | AI111: 0 | AJ111: 0 | AK111: 0 | AL111: 0 | AM111: 0 | AN111: 0
B112: Absorciones | C112: Fuente fija | D112: Absorción | E112: Pinus radiata | H112: Ambos | I112: 1 | J112: ='Alcance 1'!D131 -> 0 | K112: ='Alcance 1'!E131 -> árboles | M112: 1 | O112: 0 | P112: árboles | Q112: 0 | R112: 0 | S112: 0 | T112: 0 | U112: =-'Datos 1-Factores emisión'!C725 -> -38.83719246 | V112: 0 | W112: 0 | X112: 0 | Y112: 0 | Z112: 0 | AA112: 0 | AB112: ='Datos 2-Potenciales calent glob'!$E$6 -> 1 | AC112: ='Datos 2-Potenciales calent glob'!$E$31 -> 28 | AD112: ='Datos 2-Potenciales calent glob'!$E$32 -> 265 | AE112: =SUMIF('Datos 2-Potenciales calent glob'!$B$6:$B$56,Cálculos_5!F112,'Datos 2-Potenciales calent glob'!$E$6:$E$56) -> 0 | AF112: ='Datos 2-Potenciales calent glob'!$E$6 -> 1 | AG112: ='Datos 2-Potenciales calent glob'!$E$6 -> 1 | AH112: 0 | AI112: 0 | AJ112: 0 | AK112: 0 | AL112: 0 | AM112: 0 | AN112: 0
B113: Absorciones | C113: Fuente fija | D113: Absorción | E113: Pinus sylvestris Sistema Central | H113: Ambos | I113: 1 | J113: ='Alcance 1'!D132 -> 0 | K113: ='Alcance 1'!E132 -> árboles | M113: 1 | O113: 0 | P113: árboles | Q113: 0 | R113: 0 | S113: 0 | T113: 0 | U113: =-'Datos 1-Factores emisión'!C726 -> -2.034148327 | V113: 0 | W113: 0 | X113: 0 | Y113: 0 | Z113: 0 | AA113: 0 | AB113: ='Datos 2-Potenciales calent glob'!$E$6 -> 1 | AC113: ='Datos 2-Potenciales calent glob'!$E$31 -> 28 | AD113: ='Datos 2-Potenciales calent glob'!$E$32 -> 265 | AE113: =SUMIF('Datos 2-Potenciales calent glob'!$B$6:$B$56,Cálculos_5!F113,'Datos 2-Potenciales calent glob'!$E$6:$E$56) -> 0 | AF113: ='Datos 2-Potenciales calent glob'!$E$6 -> 1 | AG113: ='Datos 2-Potenciales calent glob'!$E$6 -> 1 | AH113: 0 | AI113: 0 | AJ113: 0 | AK113: 0 | AL113: 0 | AM113: 0 | AN113: 0
B114: Absorciones | C114: Fuente fija | D114: Absorción | E114: Pinus sylvestris Sistema Ibérico | H114: Ambos | I114: 1 | J114: ='Alcance 1'!D133 -> 0 | K114: ='Alcance 1'!E133 -> árboles | M114: 1 | O114: 0 | P114: árboles | Q114: 0 | R114: 0 | S114: 0 | T114: 0 | U114: =-'Datos 1-Factores emisión'!C727 -> -1.581964415 | V114: 0 | W114: 0 | X114: 0 | Y114: 0 | Z114: 0 | AA114: 0 | AB114: ='Datos 2-Potenciales calent glob'!$E$6 -> 1 | AC114: ='Datos 2-Potenciales calent glob'!$E$31 -> 28 | AD114: ='Datos 2-Potenciales calent glob'!$E$32 -> 265 | AE114: =SUMIF('Datos 2-Potenciales calent glob'!$B$6:$B$56,Cálculos_5!F114,'Datos 2-Potenciales calent glob'!$E$6:$E$56) -> 0 | AF114: ='Datos 2-Potenciales calent glob'!$E$6 -> 1 | AG114: ='Datos 2-Potenciales calent glob'!$E$6 -> 1 | AH114: 0 | AI114: 0 | AJ114: 0 | AK114: 0 | AL114: 0 | AM114: 0 | AN114: 0
B115: Absorciones | C115: Fuente fija | D115: Absorción | E115: Pinus sylvestris Pirineos | H115: Ambos | I115: 1 | J115: ='Alcance 1'!D134 -> 0 | K115: ='Alcance 1'!E134 -> árboles | M115: 1 | O115: 0 | P115: árboles | Q115: 0 | R115: 0 | S115: 0 | T115: 0 | U115: =-'Datos 1-Factores emisión'!C728 -> -2.181771313 | V115: 0 | W115: 0 | X115: 0 | Y115: 0 | Z115: 0 | AA115: 0 | AB115: ='Datos 2-Potenciales calent glob'!$E$6 -> 1 | AC115: ='Datos 2-Potenciales calent glob'!$E$31 -> 28 | AD115: ='Datos 2-Potenciales calent glob'!$E$32 -> 265 | AE115: =SUMIF('Datos 2-Potenciales calent glob'!$B$6:$B$56,Cálculos_5!F115,'Datos 2-Potenciales calent glob'!$E$6:$E$56) -> 0 | AF115: ='Datos 2-Potenciales calent glob'!$E$6 -> 1 | AG115: ='Datos 2-Potenciales calent glob'!$E$6 -> 1 | AH115: 0 | AI115: 0 | AJ115: 0 | AK115: 0 | AL115: 0 | AM115: 0 | AN115: 0
B116: Absorciones | C116: Fuente fija | D116: Absorción | E116: Pinus sylvestris (Resto) | H116: Ambos | I116: 1 | J116: ='Alcance 1'!D135 -> 0 | K116: ='Alcance 1'!E135 -> árboles | M116: 1 | O116: 0 | P116: árboles | Q116: 0 | R116: 0 | S116: 0 | T116: 0 | U116: =-'Datos 1-Factores emisión'!C729 -> -1.932628019 | V116: 0 | W116: 0 | X116: 0 | Y116: 0 | Z116: 0 | AA116: 0 | AB116: ='Datos 2-Potenciales calent glob'!$E$6 -> 1 | AC116: ='Datos 2-Potenciales calent glob'!$E$31 -> 28 | AD116: ='Datos 2-Potenciales calent glob'!$E$32 -> 265 | AE116: =SUMIF('Datos 2-Potenciales calent glob'!$B$6:$B$56,Cálculos_5!F116,'Datos 2-Potenciales calent glob'!$E$6:$E$56) -> 0 | AF116: ='Datos 2-Potenciales calent glob'!$E$6 -> 1 | AG116: ='Datos 2-Potenciales calent glob'!$E$6 -> 1 | AH116: 0 | AI116: 0 | AJ116: 0 | AK116: 0 | AL116: 0 | AM116: 0 | AN116: 0
B117: Absorciones | C117: Fuente fija | D117: Absorción | E117: Pinus uncinata | H117: Ambos | I117: 1 | J117: ='Alcance 1'!D136 -> 0 | K117: ='Alcance 1'!E136 -> árboles | M117: 1 | O117: 0 | P117: árboles | Q117: 0 | R117: 0 | S117: 0 | T117: 0 | U117: =-'Datos 1-Factores emisión'!C730 -> -3.00468011 | V117: 0 | W117: 0 | X117: 0 | Y117: 0 | Z117: 0 | AA117: 0 | AB117: ='Datos 2-Potenciales calent glob'!$E$6 -> 1 | AC117: ='Datos 2-Potenciales calent glob'!$E$31 -> 28 | AD117: ='Datos 2-Potenciales calent glob'!$E$32 -> 265 | AE117: =SUMIF('Datos 2-Potenciales calent glob'!$B$6:$B$56,Cálculos_5!F117,'Datos 2-Potenciales calent glob'!$E$6:$E$56) -> 0 | AF117: ='Datos 2-Potenciales calent glob'!$E$6 -> 1 | AG117: ='Datos 2-Potenciales calent glob'!$E$6 -> 1 | AH117: 0 | AI117: 0 | AJ117: 0 | AK117: 0 | AL117: 0 | AM117: 0 | AN117: 0
B118: Absorciones | C118: Fuente fija | D118: Absorción | E118: Pistacia terebinthus | H118: Ambos | I118: 1 | J118: ='Alcance 1'!D137 -> 0 | K118: ='Alcance 1'!E137 -> árboles | M118: 1 | O118: 0 | P118: árboles | Q118: 0 | R118: 0 | S118: 0 | T118: 0 | U118: =-'Datos 1-Factores emisión'!C731 -> -6.838861723 | V118: 0 | W118: 0 | X118: 0 | Y118: 0 | Z118: 0 | AA118: 0 | AB118: ='Datos 2-Potenciales calent glob'!$E$6 -> 1 | AC118: ='Datos 2-Potenciales calent glob'!$E$31 -> 28 | AD118: ='Datos 2-Potenciales calent glob'!$E$32 -> 265 | AE118: =SUMIF('Datos 2-Potenciales calent glob'!$B$6:$B$56,Cálculos_5!F118,'Datos 2-Potenciales calent glob'!$E$6:$E$56) -> 0 | AF118: ='Datos 2-Potenciales calent glob'!$E$6 -> 1 | AG118: ='Datos 2-Potenciales calent glob'!$E$6 -> 1 | AH118: 0 | AI118: 0 | AJ118: 0 | AK118: 0 | AL118: 0 | AM118: 0 | AN118: 0
B119: Absorciones | C119: Fuente fija | D119: Absorción | E119: Platanus hispanica | H119: Ambos | I119: 1 | J119: ='Alcance 1'!D138 -> 0 | K119: ='Alcance 1'!E138 -> árboles | M119: 1 | O119: 0 | P119: árboles | Q119: 0 | R119: 0 | S119: 0 | T119: 0 | U119: =-'Datos 1-Factores emisión'!C732 -> -22.38842665 | V119: 0 | W119: 0 | X119: 0 | Y119: 0 | Z119: 0 | AA119: 0 | AB119: ='Datos 2-Potenciales calent glob'!$E$6 -> 1 | AC119: ='Datos 2-Potenciales calent glob'!$E$31 -> 28 | AD119: ='Datos 2-Potenciales calent glob'!$E$32 -> 265 | AE119: =SUMIF('Datos 2-Potenciales calent glob'!$B$6:$B$56,Cálculos_5!F119,'Datos 2-Potenciales calent glob'!$E$6:$E$56) -> 0 | AF119: ='Datos 2-Potenciales calent glob'!$E$6 -> 1 | AG119: ='Datos 2-Potenciales calent glob'!$E$6 -> 1 | AH119: 0 | AI119: 0 | AJ119: 0 | AK119: 0 | AL119: 0 | AM119: 0 | AN119: 0
B120: Absorciones | C120: Fuente fija | D120: Absorción | E120: Populus alba | H120: Ambos | I120: 1 | J120: ='Alcance 1'!D139 -> 0 | K120: ='Alcance 1'!E139 -> árboles | M120: 1 | O120: 0 | P120: árboles | Q120: 0 | R120: 0 | S120: 0 | T120: 0 | U120: =-'Datos 1-Factores emisión'!C733 -> -22.38842665 | V120: 0 | W120: 0 | X120: 0 | Y120: 0 | Z120: 0 | AA120: 0 | AB120: ='Datos 2-Potenciales calent glob'!$E$6 -> 1 | AC120: ='Datos 2-Potenciales calent glob'!$E$31 -> 28 | AD120: ='Datos 2-Potenciales calent glob'!$E$32 -> 265 | AE120: =SUMIF('Datos 2-Potenciales calent glob'!$B$6:$B$56,Cálculos_5!F120,'Datos 2-Potenciales calent glob'!$E$6:$E$56) -> 0 | AF120: ='Datos 2-Potenciales calent glob'!$E$6 -> 1 | AG120: ='Datos 2-Potenciales calent glob'!$E$6 -> 1 | AH120: 0 | AI120: 0 | AJ120: 0 | AK120: 0 | AL120: 0 | AM120: 0 | AN120: 0
B121: Absorciones | C121: Fuente fija | D121: Absorción | E121: Populus nigra | H121: Ambos | I121: 1 | J121: ='Alcance 1'!D140 -> 0 | K121: ='Alcance 1'!E140 -> árboles | M121: 1 | O121: 0 | P121: árboles | Q121: 0 | R121: 0 | S121: 0 | T121: 0 | U121: =-'Datos 1-Factores emisión'!C734 -> -33.54816511 | V121: 0 | W121: 0 | X121: 0 | Y121: 0 | Z121: 0 | AA121: 0 | AB121: ='Datos 2-Potenciales calent glob'!$E$6 -> 1 | AC121: ='Datos 2-Potenciales calent glob'!$E$31 -> 28 | AD121: ='Datos 2-Potenciales calent glob'!$E$32 -> 265 | AE121: =SUMIF('Datos 2-Potenciales calent glob'!$B$6:$B$56,Cálculos_5!F121,'Datos 2-Potenciales calent glob'!$E$6:$E$56) -> 0 | AF121: ='Datos 2-Potenciales calent glob'!$E$6 -> 1 | AG121: ='Datos 2-Potenciales calent glob'!$E$6 -> 1 | AH121: 0 | AI121: 0 | AJ121: 0 | AK121: 0 | AL121: 0 | AM121: 0 | AN121: 0
B122: Absorciones | C122: Fuente fija | D122: Absorción | E122: Populus x canadensis | H122: Ambos | I122: 1 | J122: ='Alcance 1'!D141 -> 0 | K122: ='Alcance 1'!E141 -> árboles | M122: 1 | O122: 0 | P122: árboles | Q122: 0 | R122: 0 | S122: 0 | T122: 0 | U122: =-'Datos 1-Factores emisión'!C735 -> -39.2467275 | V122: 0 | W122: 0 | X122: 0 | Y122: 0 | Z122: 0 | AA122: 0 | AB122: ='Datos 2-Potenciales calent glob'!$E$6 -> 1 | AC122: ='Datos 2-Potenciales calent glob'!$E$31 -> 28 | AD122: ='Datos 2-Potenciales calent glob'!$E$32 -> 265 | AE122: =SUMIF('Datos 2-Potenciales calent glob'!$B$6:$B$56,Cálculos_5!F122,'Datos 2-Potenciales calent glob'!$E$6:$E$56) -> 0 | AF122: ='Datos 2-Potenciales calent glob'!$E$6 -> 1 | AG122: ='Datos 2-Potenciales calent glob'!$E$6 -> 1 | AH122: 0 | AI122: 0 | AJ122: 0 | AK122: 0 | AL122: 0 | AM122: 0 | AN122: 0
B123: Absorciones | C123: Fuente fija | D123: Absorción | E123: Prunus spp. | H123: Ambos | I123: 1 | J123: ='Alcance 1'!D142 -> 0 | K123: ='Alcance 1'!E142 -> árboles | M123: 1 | O123: 0 | P123: árboles | Q123: 0 | R123: 0 | S123: 0 | T123: 0 | U123: =-'Datos 1-Factores emisión'!C736 -> -7.487768065 | V123: 0 | W123: 0 | X123: 0 | Y123: 0 | Z123: 0 | AA123: 0 | AB123: ='Datos 2-Potenciales calent glob'!$E$6 -> 1 | AC123: ='Datos 2-Potenciales calent glob'!$E$31 -> 28 | AD123: ='Datos 2-Potenciales calent glob'!$E$32 -> 265 | AE123: =SUMIF('Datos 2-Potenciales calent glob'!$B$6:$B$56,Cálculos_5!F123,'Datos 2-Potenciales calent glob'!$E$6:$E$56) -> 0 | AF123: ='Datos 2-Potenciales calent glob'!$E$6 -> 1 | AG123: ='Datos 2-Potenciales calent glob'!$E$6 -> 1 | AH123: 0 | AI123: 0 | AJ123: 0 | AK123: 0 | AL123: 0 | AM123: 0 | AN123: 0
B124: Absorciones | C124: Fuente fija | D124: Absorción | E124: Pseudotsuga menziesii | H124: Ambos | I124: 1 | J124: ='Alcance 1'!D143 -> 0 | K124: ='Alcance 1'!E143 -> árboles | M124: 1 | O124: 0 | P124: árboles | Q124: 0 | R124: 0 | S124: 0 | T124: 0 | U124: =-'Datos 1-Factores emisión'!C737 -> -43.21560441 | V124: 0 | W124: 0 | X124: 0 | Y124: 0 | Z124: 0 | AA124: 0 | AB124: ='Datos 2-Potenciales calent glob'!$E$6 -> 1 | AC124: ='Datos 2-Potenciales calent glob'!$E$31 -> 28 | AD124: ='Datos 2-Potenciales calent glob'!$E$32 -> 265 | AE124: =SUMIF('Datos 2-Potenciales calent glob'!$B$6:$B$56,Cálculos_5!F124,'Datos 2-Potenciales calent glob'!$E$6:$E$56) -> 0 | AF124: ='Datos 2-Potenciales calent glob'!$E$6 -> 1 | AG124: ='Datos 2-Potenciales calent glob'!$E$6 -> 1 | AH124: 0 | AI124: 0 | AJ124: 0 | AK124: 0 | AL124: 0 | AM124: 0 | AN124: 0
B125: Absorciones | C125: Fuente fija | D125: Absorción | E125: Pyrus spp. | H125: Ambos | I125: 1 | J125: ='Alcance 1'!D144 -> 0 | K125: ='Alcance 1'!E144 -> árboles | M125: 1 | O125: 0 | P125: árboles | Q125: 0 | R125: 0 | S125: 0 | T125: 0 | U125: =-'Datos 1-Factores emisión'!C738 -> -7.487768065 | V125: 0 | W125: 0 | X125: 0 | Y125: 0 | Z125: 0 | AA125: 0 | AB125: ='Datos 2-Potenciales calent glob'!$E$6 -> 1 | AC125: ='Datos 2-Potenciales calent glob'!$E$31 -> 28 | AD125: ='Datos 2-Potenciales calent glob'!$E$32 -> 265 | AE125: =SUMIF('Datos 2-Potenciales calent glob'!$B$6:$B$56,Cálculos_5!F125,'Datos 2-Potenciales calent glob'!$E$6:$E$56) -> 0 | AF125: ='Datos 2-Potenciales calent glob'!$E$6 -> 1 | AG125: ='Datos 2-Potenciales calent glob'!$E$6 -> 1 | AH125: 0 | AI125: 0 | AJ125: 0 | AK125: 0 | AL125: 0 | AM125: 0 | AN125: 0
B126: Absorciones | C126: Fuente fija | D126: Absorción | E126: Quercus canariensis | H126: Ambos | I126: 1 | J126: ='Alcance 1'!D145 -> 0 | K126: ='Alcance 1'!E145 -> árboles | M126: 1 | O126: 0 | P126: árboles | Q126: 0 | R126: 0 | S126: 0 | T126: 0 | U126: =-'Datos 1-Factores emisión'!C739 -> -4.240488518 | V126: 0 | W126: 0 | X126: 0 | Y126: 0 | Z126: 0 | AA126: 0 | AB126: ='Datos 2-Potenciales calent glob'!$E$6 -> 1 | AC126: ='Datos 2-Potenciales calent glob'!$E$31 -> 28 | AD126: ='Datos 2-Potenciales calent glob'!$E$32 -> 265 | AE126: =SUMIF('Datos 2-Potenciales calent glob'!$B$6:$B$56,Cálculos_5!F126,'Datos 2-Potenciales calent glob'!$E$6:$E$56) -> 0 | AF126: ='Datos 2-Potenciales calent glob'!$E$6 -> 1 | AG126: ='Datos 2-Potenciales calent glob'!$E$6 -> 1 | AH126: 0 | AI126: 0 | AJ126: 0 | AK126: =Y126*AE126 -> 0 | AL126: 0 | AM126: 0 | AN126: 0
B127: Absorciones | C127: Fuente fija | D127: Absorción | E127: Quercus faginea | H127: Ambos | I127: 1 | J127: ='Alcance 1'!D146 -> 0 | K127: ='Alcance 1'!E146 -> árboles | M127: 1 | O127: 0 | P127: árboles | Q127: 0 | R127: 0 | S127: 0 | T127: 0 | U127: =-'Datos 1-Factores emisión'!C740 -> -3.251889132 | V127: 0 | W127: 0 | X127: 0 | Y127: 0 | Z127: 0 | AA127: 0 | AB127: ='Datos 2-Potenciales calent glob'!$E$6 -> 1 | AC127: ='Datos 2-Potenciales calent glob'!$E$31 -> 28 | AD127: ='Datos 2-Potenciales calent glob'!$E$32 -> 265 | AE127: =SUMIF('Datos 2-Potenciales calent glob'!$B$6:$B$56,Cálculos_5!F127,'Datos 2-Potenciales calent glob'!$E$6:$E$56) -> 0 | AF127: ='Datos 2-Potenciales calent glob'!$E$6 -> 1 | AG127: ='Datos 2-Potenciales calent glob'!$E$6 -> 1 | AH127: =V127*AB127 -> 0 | AI127: 0 | AJ127: 0 | AK127: 0 | AL127: 0 | AM127: 0 | AN127: 0
B128: Absorciones | C128: Fuente fija | D128: Absorción | E128: Quercus ilex | H128: Ambos | I128: 1 | J128: ='Alcance 1'!D147 -> 0 | K128: ='Alcance 1'!E147 -> árboles | M128: 1 | O128: 0 | P128: árboles | Q128: 0 | R128: 0 | S128: 0 | T128: 0 | U128: =-'Datos 1-Factores emisión'!C741 -> -2.404519079 | V128: 0 | W128: 0 | X128: 0 | Y128: 0 | Z128: 0 | AA128: 0 | AB128: ='Datos 2-Potenciales calent glob'!$E$6 -> 1 | AC128: ='Datos 2-Potenciales calent glob'!$E$31 -> 28 | AD128: ='Datos 2-Potenciales calent glob'!$E$32 -> 265 | AE128: =SUMIF('Datos 2-Potenciales calent glob'!$B$6:$B$56,Cálculos_5!F128,'Datos 2-Potenciales calent glob'!$E$6:$E$56) -> 0 | AF128: ='Datos 2-Potenciales calent glob'!$E$6 -> 1 | AG128: ='Datos 2-Potenciales calent glob'!$E$6 -> 1 | AH128: 0 | AI128: 0 | AJ128: 0 | AK128: 0 | AL128: 0 | AM128: 0 | AN128: 0
B129: Absorciones | C129: Fuente fija | D129: Absorción | E129: Quercus petraea | H129: Ambos | I129: 1 | J129: ='Alcance 1'!D148 -> 0 | K129: ='Alcance 1'!E148 -> árboles | M129: 1 | O129: 0 | P129: árboles | Q129: 0 | R129: 0 | S129: 0 | T129: 0 | U129: =-'Datos 1-Factores emisión'!C742 -> -5.966687996 | V129: 0 | W129: 0 | X129: 0 | Y129: 0 | Z129: 0 | AA129: 0 | AB129: ='Datos 2-Potenciales calent glob'!$E$6 -> 1 | AC129: ='Datos 2-Potenciales calent glob'!$E$31 -> 28 | AD129: ='Datos 2-Potenciales calent glob'!$E$32 -> 265 | AE129: =SUMIF('Datos 2-Potenciales calent glob'!$B$6:$B$56,Cálculos_5!F129,'Datos 2-Potenciales calent glob'!$E$6:$E$56) -> 0 | AF129: ='Datos 2-Potenciales calent glob'!$E$6 -> 1 | AG129: ='Datos 2-Potenciales calent glob'!$E$6 -> 1 | AH129: 0 | AI129: 0 | AJ129: 0 | AK129: 0 | AL129: 0 | AM129: 0 | AN129: 0
B130: Absorciones | C130: Fuente fija | D130: Absorción | E130: Quercus pubescens | H130: Ambos | I130: 1 | J130: ='Alcance 1'!D149 -> 0 | K130: ='Alcance 1'!E149 -> árboles | M130: 1 | O130: 0 | P130: árboles | Q130: 0 | R130: 0 | S130: 0 | T130: 0 | U130: =-'Datos 1-Factores emisión'!C743 -> -4.918597967 | V130: 0 | W130: 0 | X130: 0 | Y130: 0 | Z130: 0 | AA130: 0 | AB130: ='Datos 2-Potenciales calent glob'!$E$6 -> 1 | AC130: ='Datos 2-Potenciales calent glob'!$E$31 -> 28 | AD130: ='Datos 2-Potenciales calent glob'!$E$32 -> 265 | AE130: =SUMIF('Datos 2-Potenciales calent glob'!$B$6:$B$56,Cálculos_5!F130,'Datos 2-Potenciales calent glob'!$E$6:$E$56) -> 0 | AF130: ='Datos 2-Potenciales calent glob'!$E$6 -> 1 | AG130: ='Datos 2-Potenciales calent glob'!$E$6 -> 1 | AH130: 0 | AI130: 0 | AJ130: 0 | AK130: 0 | AL130: 0 | AM130: 0 | AN130: 0
B131: Absorciones | C131: Fuente fija | D131: Absorción | E131: Quercus pyrenaica | H131: Ambos | I131: 1 | J131: ='Alcance 1'!D150 -> 0 | K131: ='Alcance 1'!E150 -> árboles | M131: 1 | O131: 0 | P131: árboles | Q131: 0 | R131: 0 | S131: 0 | T131: 0 | U131: =-'Datos 1-Factores emisión'!C744 -> -4.931064404 | V131: 0 | W131: 0 | X131: 0 | Y131: 0 | Z131: 0 | AA131: 0 | AB131: ='Datos 2-Potenciales calent glob'!$E$6 -> 1 | AC131: ='Datos 2-Potenciales calent glob'!$E$31 -> 28 | AD131: ='Datos 2-Potenciales calent glob'!$E$32 -> 265 | AE131: =SUMIF('Datos 2-Potenciales calent glob'!$B$6:$B$56,Cálculos_5!F131,'Datos 2-Potenciales calent glob'!$E$6:$E$56) -> 0 | AF131: ='Datos 2-Potenciales calent glob'!$E$6 -> 1 | AG131: ='Datos 2-Potenciales calent glob'!$E$6 -> 1 | AH131: 0 | AI131: 0 | AJ131: 0 | AK131: 0 | AL131: 0 | AM131: 0 | AN131: 0
B132: Absorciones | C132: Fuente fija | D132: Absorción | E132: Quercus robur | H132: Ambos | I132: 1 | J132: ='Alcance 1'!D151 -> 0 | K132: ='Alcance 1'!E151 -> árboles | M132: 1 | O132: 0 | P132: árboles | Q132: 0 | R132: 0 | S132: 0 | T132: 0 | U132: =-'Datos 1-Factores emisión'!C745 -> -6.415655592 | V132: 0 | W132: 0 | X132: 0 | Y132: 0 | Z132: 0 | AA132: 0 | AB132: ='Datos 2-Potenciales calent glob'!$E$6 -> 1 | AC132: ='Datos 2-Potenciales calent glob'!$E$31 -> 28 | AD132: ='Datos 2-Potenciales calent glob'!$E$32 -> 265 | AE132: =SUMIF('Datos 2-Potenciales calent glob'!$B$6:$B$56,Cálculos_5!F132,'Datos 2-Potenciales calent glob'!$E$6:$E$56) -> 0 | AF132: ='Datos 2-Potenciales calent glob'!$E$6 -> 1 | AG132: ='Datos 2-Potenciales calent glob'!$E$6 -> 1 | AH132: 0 | AI132: 0 | AJ132: 0 | AK132: 0 | AL132: 0 | AM132: 0 | AN132: 0
B133: Absorciones | C133: Fuente fija | D133: Absorción | E133: Quercus rubra | H133: Ambos | I133: 1 | J133: ='Alcance 1'!D152 -> 0 | K133: ='Alcance 1'!E152 -> árboles | M133: 1 | O133: 0 | P133: árboles | Q133: 0 | R133: 0 | S133: 0 | T133: 0 | U133: =-'Datos 1-Factores emisión'!C746 -> -7.384685926 | V133: 0 | W133: 0 | X133: 0 | Y133: 0 | Z133: 0 | AA133: 0 | AB133: ='Datos 2-Potenciales calent glob'!$E$6 -> 1 | AC133: ='Datos 2-Potenciales calent glob'!$E$31 -> 28 | AD133: ='Datos 2-Potenciales calent glob'!$E$32 -> 265 | AE133: =SUMIF('Datos 2-Potenciales calent glob'!$B$6:$B$56,Cálculos_5!F133,'Datos 2-Potenciales calent glob'!$E$6:$E$56) -> 0 | AF133: ='Datos 2-Potenciales calent glob'!$E$6 -> 1 | AG133: ='Datos 2-Potenciales calent glob'!$E$6 -> 1 | AH133: 0 | AI133: 0 | AJ133: 0 | AK133: 0 | AL133: 0 | AM133: 0 | AN133: 0
B134: Absorciones | C134: Fuente fija | D134: Absorción | E134: Quercus suber | H134: Ambos | I134: 1 | J134: ='Alcance 1'!D153 -> 0 | K134: ='Alcance 1'!E153 -> árboles | M134: 1 | O134: 0 | P134: árboles | Q134: 0 | R134: 0 | S134: 0 | T134: 0 | U134: =-'Datos 1-Factores emisión'!C747 -> -3.705557918 | V134: 0 | W134: 0 | X134: 0 | Y134: 0 | Z134: 0 | AA134: 0 | AB134: ='Datos 2-Potenciales calent glob'!$E$6 -> 1 | AC134: ='Datos 2-Potenciales calent glob'!$E$31 -> 28 | AD134: ='Datos 2-Potenciales calent glob'!$E$32 -> 265 | AE134: =SUMIF('Datos 2-Potenciales calent glob'!$B$6:$B$56,Cálculos_5!F134,'Datos 2-Potenciales calent glob'!$E$6:$E$56) -> 0 | AF134: ='Datos 2-Potenciales calent glob'!$E$6 -> 1 | AG134: ='Datos 2-Potenciales calent glob'!$E$6 -> 1 | AH134: 0 | AI134: 0 | AJ134: 0 | AK134: 0 | AL134: 0 | AM134: 0 | AN134: 0
B135: Absorciones | C135: Fuente fija | D135: Absorción | E135: Rhamnus alaternus | H135: Ambos | I135: 1 | J135: ='Alcance 1'!D154 -> 0 | K135: ='Alcance 1'!E154 -> árboles | M135: 1 | O135: 0 | P135: árboles | Q135: 0 | R135: 0 | S135: 0 | T135: 0 | U135: =-'Datos 1-Factores emisión'!C748 -> -6.838861723 | V135: 0 | W135: 0 | X135: 0 | Y135: 0 | Z135: 0 | AA135: 0 | AB135: ='Datos 2-Potenciales calent glob'!$E$6 -> 1 | AC135: ='Datos 2-Potenciales calent glob'!$E$31 -> 28 | AD135: ='Datos 2-Potenciales calent glob'!$E$32 -> 265 | AE135: =SUMIF('Datos 2-Potenciales calent glob'!$B$6:$B$56,Cálculos_5!F135,'Datos 2-Potenciales calent glob'!$E$6:$E$56) -> 0 | AF135: ='Datos 2-Potenciales calent glob'!$E$6 -> 1 | AG135: ='Datos 2-Potenciales calent glob'!$E$6 -> 1 | AH135: 0 | AI135: 0 | AJ135: 0 | AK135: 0 | AL135: 0 | AM135: 0 | AN135: 0
B136: Absorciones | C136: Fuente fija | D136: Absorción | E136: Robinia pseudacacia | H136: Ambos | I136: 1 | J136: ='Alcance 1'!D155 -> 0 | K136: ='Alcance 1'!E155 -> árboles | M136: 1 | O136: 0 | P136: árboles | Q136: 0 | R136: 0 | S136: 0 | T136: 0 | U136: =-'Datos 1-Factores emisión'!C749 -> -6.371517914 | V136: 0 | W136: 0 | X136: 0 | Y136: 0 | Z136: 0 | AA136: 0 | AB136: ='Datos 2-Potenciales calent glob'!$E$6 -> 1 | AC136: ='Datos 2-Potenciales calent glob'!$E$31 -> 28 | AD136: ='Datos 2-Potenciales calent glob'!$E$32 -> 265 | AE136: =SUMIF('Datos 2-Potenciales calent glob'!$B$6:$B$56,Cálculos_5!F136,'Datos 2-Potenciales calent glob'!$E$6:$E$56) -> 0 | AF136: ='Datos 2-Potenciales calent glob'!$E$6 -> 1 | AG136: ='Datos 2-Potenciales calent glob'!$E$6 -> 1 | AH136: 0 | AI136: 0 | AJ136: 0 | AK136: 0 | AL136: 0 | AM136: 0 | AN136: 0
B137: Absorciones | C137: Fuente fija | D137: Absorción | E137: Salix spp. | H137: Ambos | I137: 1 | J137: ='Alcance 1'!D156 -> 0 | K137: ='Alcance 1'!E156 -> árboles | M137: 1 | O137: 0 | P137: árboles | Q137: 0 | R137: 0 | S137: 0 | T137: 0 | U137: =-'Datos 1-Factores emisión'!C750 -> -29.85531354 | V137: 0 | W137: 0 | X137: 0 | Y137: 0 | Z137: 0 | AA137: 0 | AB137: ='Datos 2-Potenciales calent glob'!$E$6 -> 1 | AC137: ='Datos 2-Potenciales calent glob'!$E$31 -> 28 | AD137: ='Datos 2-Potenciales calent glob'!$E$32 -> 265 | AE137: =SUMIF('Datos 2-Potenciales calent glob'!$B$6:$B$56,Cálculos_5!F137,'Datos 2-Potenciales calent glob'!$E$6:$E$56) -> 0 | AF137: ='Datos 2-Potenciales calent glob'!$E$6 -> 1 | AG137: ='Datos 2-Potenciales calent glob'!$E$6 -> 1 | AH137: 0 | AI137: 0 | AJ137: 0 | AK137: 0 | AL137: 0 | AM137: 0 | AN137: 0
B138: Absorciones | C138: Fuente fija | D138: Absorción | E138: Sorbus spp. | H138: Ambos | I138: 1 | J138: ='Alcance 1'!D157 -> 0 | K138: ='Alcance 1'!E157 -> árboles | M138: 1 | O138: 0 | P138: árboles | Q138: 0 | R138: 0 | S138: 0 | T138: 0 | U138: =-'Datos 1-Factores emisión'!C751 -> -8.257271741 | V138: 0 | W138: 0 | X138: 0 | Y138: 0 | Z138: 0 | AA138: 0 | AB138: ='Datos 2-Potenciales calent glob'!$E$6 -> 1 | AC138: ='Datos 2-Potenciales calent glob'!$E$31 -> 28 | AD138: ='Datos 2-Potenciales calent glob'!$E$32 -> 265 | AE138: =SUMIF('Datos 2-Potenciales calent glob'!$B$6:$B$56,Cálculos_5!F138,'Datos 2-Potenciales calent glob'!$E$6:$E$56) -> 0 | AF138: ='Datos 2-Potenciales calent glob'!$E$6 -> 1 | AG138: ='Datos 2-Potenciales calent glob'!$E$6 -> 1 | AH138: 0 | AI138: 0 | AJ138: 0 | AK138: 0 | AL138: 0 | AM138: 0 | AN138: 0
B139: Absorciones | C139: Fuente fija | D139: Absorción | E139: Tamarix spp. | H139: Ambos | I139: 1 | J139: ='Alcance 1'!D158 -> 0 | K139: ='Alcance 1'!E158 -> árboles | M139: 1 | O139: 0 | P139: árboles | Q139: 0 | R139: 0 | S139: 0 | T139: 0 | U139: =-'Datos 1-Factores emisión'!C752 -> -2.66472898 | V139: 0 | W139: 0 | X139: 0 | Y139: 0 | Z139: 0 | AA139: 0 | AB139: ='Datos 2-Potenciales calent glob'!$E$6 -> 1 | AC139: ='Datos 2-Potenciales calent glob'!$E$31 -> 28 | AD139: ='Datos 2-Potenciales calent glob'!$E$32 -> 265 | AE139: =SUMIF('Datos 2-Potenciales calent glob'!$B$6:$B$56,Cálculos_5!F139,'Datos 2-Potenciales calent glob'!$E$6:$E$56) -> 0 | AF139: ='Datos 2-Potenciales calent glob'!$E$6 -> 1 | AG139: ='Datos 2-Potenciales calent glob'!$E$6 -> 1 | AH139: 0 | AI139: 0 | AJ139: 0 | AK139: 0 | AL139: 0 | AM139: 0 | AN139: 0
B140: Absorciones | C140: Fuente fija | D140: Absorción | E140: Taxus baccata | H140: Ambos | I140: 1 | J140: ='Alcance 1'!D159 -> 0 | K140: ='Alcance 1'!E159 -> árboles | M140: 1 | O140: 0 | P140: árboles | Q140: 0 | R140: 0 | S140: 0 | T140: 0 | U140: =-'Datos 1-Factores emisión'!C753 -> -1.932628019 | V140: 0 | W140: 0 | X140: 0 | Y140: 0 | Z140: 0 | AA140: 0 | AB140: ='Datos 2-Potenciales calent glob'!$E$6 -> 1 | AC140: ='Datos 2-Potenciales calent glob'!$E$31 -> 28 | AD140: ='Datos 2-Potenciales calent glob'!$E$32 -> 265 | AE140: =SUMIF('Datos 2-Potenciales calent glob'!$B$6:$B$56,Cálculos_5!F140,'Datos 2-Potenciales calent glob'!$E$6:$E$56) -> 0 | AF140: ='Datos 2-Potenciales calent glob'!$E$6 -> 1 | AG140: ='Datos 2-Potenciales calent glob'!$E$6 -> 1 | AH140: 0 | AI140: 0 | AJ140: 0 | AK140: 0 | AL140: 0 | AM140: 0 | AN140: 0
B141: Absorciones | C141: Fuente fija | D141: Absorción | E141: Tetraclinis articulata | H141: Ambos | I141: 1 | J141: ='Alcance 1'!D160 -> 0 | K141: ='Alcance 1'!E160 -> árboles | M141: 1 | O141: 0 | P141: árboles | Q141: 0 | R141: 0 | S141: 0 | T141: 0 | U141: =-'Datos 1-Factores emisión'!C754 -> -2.66472898 | V141: 0 | W141: 0 | X141: 0 | Y141: 0 | Z141: 0 | AA141: 0 | AB141: ='Datos 2-Potenciales calent glob'!$E$6 -> 1 | AC141: ='Datos 2-Potenciales calent glob'!$E$31 -> 28 | AD141: ='Datos 2-Potenciales calent glob'!$E$32 -> 265 | AE141: =SUMIF('Datos 2-Potenciales calent glob'!$B$6:$B$56,Cálculos_5!F141,'Datos 2-Potenciales calent glob'!$E$6:$E$56) -> 0 | AF141: ='Datos 2-Potenciales calent glob'!$E$6 -> 1 | AG141: ='Datos 2-Potenciales calent glob'!$E$6 -> 1 | AH141: 0 | AI141: 0 | AJ141: 0 | AK141: 0 | AL141: 0 | AM141: 0 | AN141: 0
B142: Absorciones | C142: Fuente fija | D142: Absorción | E142: Thuja spp. | H142: Ambos | I142: 1 | J142: ='Alcance 1'!D161 -> 0 | K142: ='Alcance 1'!E161 -> árboles | M142: 1 | O142: 0 | P142: árboles | Q142: 0 | R142: 0 | S142: 0 | T142: 0 | U142: =-'Datos 1-Factores emisión'!C755 -> -0.5692377218 | V142: 0 | W142: 0 | X142: 0 | Y142: 0 | Z142: 0 | AA142: 0 | AB142: ='Datos 2-Potenciales calent glob'!$E$6 -> 1 | AC142: ='Datos 2-Potenciales calent glob'!$E$31 -> 28 | AD142: ='Datos 2-Potenciales calent glob'!$E$32 -> 265 | AE142: =SUMIF('Datos 2-Potenciales calent glob'!$B$6:$B$56,Cálculos_5!F142,'Datos 2-Potenciales calent glob'!$E$6:$E$56) -> 0 | AF142: ='Datos 2-Potenciales calent glob'!$E$6 -> 1 | AG142: ='Datos 2-Potenciales calent glob'!$E$6 -> 1 | AH142: 0 | AI142: 0 | AJ142: 0 | AK142: 0 | AL142: 0 | AM142: 0 | AN142: 0
B143: Absorciones | C143: Fuente fija | D143: Absorción | E143: Tilia spp. | H143: Ambos | I143: 1 | J143: ='Alcance 1'!D162 -> 0 | K143: ='Alcance 1'!E162 -> árboles | M143: 1 | O143: 0 | P143: árboles | Q143: 0 | R143: 0 | S143: 0 | T143: 0 | U143: =-'Datos 1-Factores emisión'!C756 -> -2.916300853 | V143: 0 | W143: 0 | X143: 0 | Y143: 0 | Z143: 0 | AA143: 0 | AB143: ='Datos 2-Potenciales calent glob'!$E$6 -> 1 | AC143: ='Datos 2-Potenciales calent glob'!$E$31 -> 28 | AD143: ='Datos 2-Potenciales calent glob'!$E$32 -> 265 | AE143: =SUMIF('Datos 2-Potenciales calent glob'!$B$6:$B$56,Cálculos_5!F143,'Datos 2-Potenciales calent glob'!$E$6:$E$56) -> 0 | AF143: ='Datos 2-Potenciales calent glob'!$E$6 -> 1 | AG143: ='Datos 2-Potenciales calent glob'!$E$6 -> 1 | AH143: 0 | AI143: 0 | AJ143: 0 | AK143: 0 | AL143: 0 | AM143: 0 | AN143: 0
B144: Absorciones | C144: Fuente fija | D144: Absorción | E144: Ulmus spp. | H144: Ambos | I144: 1 | J144: ='Alcance 1'!D163 -> 0 | K144: ='Alcance 1'!E163 -> árboles | M144: 1 | O144: 0 | P144: árboles | Q144: 0 | R144: 0 | S144: 0 | T144: 0 | U144: =-'Datos 1-Factores emisión'!C757 -> -9.01648 | V144: 0 | W144: 0 | X144: 0 | Y144: 0 | Z144: 0 | AA144: 0 | AB144: ='Datos 2-Potenciales calent glob'!$E$6 -> 1 | AC144: ='Datos 2-Potenciales calent glob'!$E$31 -> 28 | AD144: ='Datos 2-Potenciales calent glob'!$E$32 -> 265 | AE144: =SUMIF('Datos 2-Potenciales calent glob'!$B$6:$B$56,Cálculos_5!F144,'Datos 2-Potenciales calent glob'!$E$6:$E$56) -> 0 | AF144: ='Datos 2-Potenciales calent glob'!$E$6 -> 1 | AG144: ='Datos 2-Potenciales calent glob'!$E$6 -> 1 | AH144: 0 | AI144: 0 | AJ144: 0 | AK144: 0 | AL144: 0 | AM144: 0 | AN144: 0
B145: Energía | C145: Fuente fija | D145: Electricidad | E145: Electricidad | F145: ='Alcance 2'!F8 -> Compañía suministradora | H145: Ambos | I145: 2 | J145: ='Alcance 2'!D8 -> 0 | K145: ='Alcance 2'!E8 -> kWh | M145: 1 | O145: =J145*M145 -> 0 | P145: kWh | Q145: =IF(F145="Compañía suministradora",0,IF(INDEX('Datos 1-Factores emisión'!$B$358:$S$669,MATCH(Cálculos!$F145,'Datos 1-Factores emisión'!$B$358:$B$669,0),MATCH('Datos generales organización'!$D$14,'Datos 1-Factores emisión'!$D$358:$S$358,0)+2)="No aplica",INDEX('Datos 1-Factores emisión'!$B$358:$S$669,LOOKUP('Datos 1-Factores emisión'!$B$419,'Datos 1-Factores emisión'!$B$358:$B$669,'Datos 1-Factores emisión'!$A$358:$A$669),MATCH('Datos generales organización'!$D$14,'Datos 1-Factores emisión'!$D$358:$S$358,0)+2),INDEX('Datos 1-Factores emisión'!$B$358:$S$669,MATCH(Cálculos!$F145,'Datos 1-Factores emisión'!$B$358:$B$669,0),MATCH('Datos generales organización'!$D$14,'Datos 1-Factores emisión'!$D$358:$S$358,0)+2))) -> 0 | R145: 0 | S145: 0 | T145: 0 | U145: 0 | V145: =Q145*$O145 -> 0 | W145: 0 | X145: 0 | Y145: 0 | Z145: 0 | AA145: =U145*$O145 -> 0 | AB145: ='Datos 2-Potenciales calent glob'!$D$6 -> 1 | AC145: ='Datos 2-Potenciales calent glob'!$D$31 -> 25 | AD145: ='Datos 2-Potenciales calent glob'!$D$32 -> 298 | AE145: =SUMIF('Datos 2-Potenciales calent glob'!$B$6:$B$56,Cálculos!F145,'Datos 2-Potenciales calent glob'!$D$6:$D$56) -> 0 | AF145: ='Datos 2-Potenciales calent glob'!$D$6 -> 1 | AG145: ='Datos 2-Potenciales calent glob'!$D$6 -> 1 | AH145: =V145*AB145 -> 0 | AI145: =W145*AC145 -> 0 | AJ145: =X145*AD145 -> 0 | AK145: =Y145*AE145 -> 0 | AL145: =SUM(AH145:AK145) -> 0 | AM145: =Z145*AF145 -> 0 | AN145: 0
B146: Energía | C146: Fuente fija | D146: Electricidad | E146: Electricidad | F146: ='Alcance 2'!F9 -> Compañía suministradora | H146: Ambos | I146: 2 | J146: ='Alcance 2'!D9 -> 0 | K146: ='Alcance 2'!E9 -> kWh | M146: 1 | O146: =J146*M146 -> 0 | P146: kWh | Q146: =IF(F146="Compañía suministradora",0,IF(INDEX('Datos 1-Factores emisión'!$B$358:$S$669,MATCH(Cálculos!$F146,'Datos 1-Factores emisión'!$B$358:$B$669,0),MATCH('Datos generales organización'!$D$14,'Datos 1-Factores emisión'!$D$358:$S$358,0)+2)="No aplica",INDEX('Datos 1-Factores emisión'!$B$358:$S$669,LOOKUP('Datos 1-Factores emisión'!$B$419,'Datos 1-Factores emisión'!$B$358:$B$669,'Datos 1-Factores emisión'!$A$358:$A$669),MATCH('Datos generales organización'!$D$14,'Datos 1-Factores emisión'!$D$358:$S$358,0)+2),INDEX('Datos 1-Factores emisión'!$B$358:$S$669,MATCH(Cálculos!$F146,'Datos 1-Factores emisión'!$B$358:$B$669,0),MATCH('Datos generales organización'!$D$14,'Datos 1-Factores emisión'!$D$358:$S$358,0)+2))) -> 0 | R146: 0 | S146: 0 | T146: 0 | U146: 0 | V146: 0 | W146: 0 | X146: 0 | Y146: 0 | Z146: 0 | AA146: 0 | AB146: ='Datos 2-Potenciales calent glob'!$D$6 -> 1 | AC146: ='Datos 2-Potenciales calent glob'!$D$31 -> 25 | AD146: ='Datos 2-Potenciales calent glob'!$D$32 -> 298 | AE146: =SUMIF('Datos 2-Potenciales calent glob'!$B$6:$B$56,Cálculos!F146,'Datos 2-Potenciales calent glob'!$D$6:$D$56) -> 0 | AF146: ='Datos 2-Potenciales calent glob'!$D$6 -> 1 | AG146: ='Datos 2-Potenciales calent glob'!$D$6 -> 1 | AH146: =V146*AB146 -> 0 | AI146: 0 | AJ146: 0 | AK146: 0 | AL146: =SUM(AH146:AK146) -> 0 | AM146: 0 | AN146: 0
B147: Energía | C147: Fuente fija | D147: Electricidad | E147: Electricidad | F147: ='Alcance 2'!F10 -> Compañía suministradora | H147: Ambos | I147: 2 | J147: ='Alcance 2'!D10 -> 0 | K147: ='Alcance 2'!E10 -> kWh | M147: 1 | O147: 0 | P147: kWh | Q147: =IF(F147="Compañía suministradora",0,IF(INDEX('Datos 1-Factores emisión'!$B$358:$S$669,MATCH(Cálculos!$F147,'Datos 1-Factores emisión'!$B$358:$B$669,0),MATCH('Datos generales organización'!$D$14,'Datos 1-Factores emisión'!$D$358:$S$358,0)+2)="No aplica",INDEX('Datos 1-Factores emisión'!$B$358:$S$669,LOOKUP('Datos 1-Factores emisión'!$B$419,'Datos 1-Factores emisión'!$B$358:$B$669,'Datos 1-Factores emisión'!$A$358:$A$669),MATCH('Datos generales organización'!$D$14,'Datos 1-Factores emisión'!$D$358:$S$358,0)+2),INDEX('Datos 1-Factores emisión'!$B$358:$S$669,MATCH(Cálculos!$F147,'Datos 1-Factores emisión'!$B$358:$B$669,0),MATCH('Datos generales organización'!$D$14,'Datos 1-Factores emisión'!$D$358:$S$358,0)+2))) -> 0 | R147: 0 | S147: 0 | T147: 0 | U147: 0 | V147: 0 | W147: 0 | X147: 0 | Y147: 0 | Z147: 0 | AA147: 0 | AB147: ='Datos 2-Potenciales calent glob'!$D$6 -> 1 | AC147: ='Datos 2-Potenciales calent glob'!$D$31 -> 25 | AD147: ='Datos 2-Potenciales calent glob'!$D$32 -> 298 | AE147: =SUMIF('Datos 2-Potenciales calent glob'!$B$6:$B$56,Cálculos!F147,'Datos 2-Potenciales calent glob'!$D$6:$D$56) -> 0 | AF147: ='Datos 2-Potenciales calent glob'!$D$6 -> 1 | AG147: ='Datos 2-Potenciales calent glob'!$D$6 -> 1 | AH147: 0 | AI147: 0 | AJ147: 0 | AK147: 0 | AL147: 0 | AM147: 0 | AN147: 0
B148: Energía | C148: Fuente móvil | D148: Electricidad | E148: Electricidad | F148: ='Alcance 2'!F17 -> Compañía suministradora | H148: Ambos | I148: 2 | J148: ='Alcance 2'!D17 -> 0 | K148: ='Alcance 2'!E17 -> kWh | M148: 1 | O148: =J148*M148 -> 0 | P148: kWh | Q148: =IF(F148="Compañía suministradora",0,IF(INDEX('Datos 1-Factores emisión'!$B$358:$S$669,MATCH(Cálculos!$F148,'Datos 1-Factores emisión'!$B$358:$B$669,0),MATCH('Datos generales organización'!$D$14,'Datos 1-Factores emisión'!$D$358:$S$358,0)+2)="No aplica",INDEX('Datos 1-Factores emisión'!$B$358:$S$669,LOOKUP('Datos 1-Factores emisión'!$B$419,'Datos 1-Factores emisión'!$B$358:$B$669,'Datos 1-Factores emisión'!$A$358:$A$669),MATCH('Datos generales organización'!$D$14,'Datos 1-Factores emisión'!$D$358:$S$358,0)+2),INDEX('Datos 1-Factores emisión'!$B$358:$S$669,MATCH(Cálculos!$F148,'Datos 1-Factores emisión'!$B$358:$B$669,0),MATCH('Datos generales organización'!$D$14,'Datos 1-Factores emisión'!$D$358:$S$358,0)+2))) -> 0 | R148: 0 | S148: 0 | T148: 0 | U148: 0 | V148: 0 | W148: 0 | X148: 0 | Y148: 0 | Z148: 0 | AA148: 0 | AB148: ='Datos 2-Potenciales calent glob'!$D$6 -> 1 | AC148: ='Datos 2-Potenciales calent glob'!$D$31 -> 25 | AD148: ='Datos 2-Potenciales calent glob'!$D$32 -> 298 | AE148: =SUMIF('Datos 2-Potenciales calent glob'!$B$6:$B$56,Cálculos!F148,'Datos 2-Potenciales calent glob'!$D$6:$D$56) -> 0 | AF148: ='Datos 2-Potenciales calent glob'!$D$6 -> 1 | AG148: ='Datos 2-Potenciales calent glob'!$D$6 -> 1 | AH148: 0 | AI148: 0 | AJ148: 0 | AK148: 0 | AL148: =SUM(AH148:AK148) -> 0 | AM148: 0 | AN148: 0
B149: Energía | C149: Fuente móvil | D149: Electricidad | E149: ='Alcance 2'!C22 -> Tipo de vehículo | F149: ='Alcance 2'!F22 -> Compañía suministradora | H149: Ambos | I149: 2 | J149: ='Alcance 2'!D22 -> 0 | K149: ='Alcance 2'!E22 -> km | M149: =SUMIF('Datos 3-Factores de convers'!$B$6:$B$9,Cálculos!E149,'Datos 3-Factores de convers'!$C$6:$C$9)/100 -> 0 | O149: =J149*M149 -> 0 | P149: kWh | Q149: =IF(F149="Compañía suministradora",0,IF(INDEX('Datos 1-Factores emisión'!$B$358:$S$669,MATCH(Cálculos!$F149,'Datos 1-Factores emisión'!$B$358:$B$669,0),MATCH('Datos generales organización'!$D$14,'Datos 1-Factores emisión'!$D$358:$S$358,0)+2)="No aplica",INDEX('Datos 1-Factores emisión'!$B$358:$S$669,LOOKUP('Datos 1-Factores emisión'!$B$419,'Datos 1-Factores emisión'!$B$358:$B$669,'Datos 1-Factores emisión'!$A$358:$A$669),MATCH('Datos generales organización'!$D$14,'Datos 1-Factores emisión'!$D$358:$S$358,0)+2),INDEX('Datos 1-Factores emisión'!$B$358:$S$669,MATCH(Cálculos!$F149,'Datos 1-Factores emisión'!$B$358:$B$669,0),MATCH('Datos generales organización'!$D$14,'Datos 1-Factores emisión'!$D$358:$S$358,0)+2))) -> 0 | R149: 0 | S149: 0 | T149: 0 | U149: 0 | V149: =Q149*$O149 -> 0 | W149: 0 | X149: 0 | Y149: 0 | Z149: 0 | AA149: 0 | AB149: ='Datos 2-Potenciales calent glob'!$D$6 -> 1 | AC149: ='Datos 2-Potenciales calent glob'!$D$31 -> 25 | AD149: ='Datos 2-Potenciales calent glob'!$D$32 -> 298 | AE149: =SUMIF('Datos 2-Potenciales calent glob'!$B$6:$B$56,Cálculos!F149,'Datos 2-Potenciales calent glob'!$D$6:$D$56) -> 0 | AF149: ='Datos 2-Potenciales calent glob'!$D$6 -> 1 | AG149: ='Datos 2-Potenciales calent glob'!$D$6 -> 1 | AH149: 0 | AI149: =W149*AC149 -> 0 | AJ149: =X149*AD149 -> 0 | AK149: =Y149*AE149 -> 0 | AL149: =SUM(AH149:AK149) -> 0 | AM149: 0 | AN149: 0
B150: Energía | C150: Fuente móvil | D150: Electricidad | E150: ='Alcance 2'!C23 -> Tipo de vehículo | F150: ='Alcance 2'!F23 -> Compañía suministradora | H150: Ambos | I150: 2 | J150: ='Alcance 2'!D23 -> 0 | K150: ='Alcance 2'!E23 -> km | M150: =SUMIF('Datos 3-Factores de convers'!$B$6:$B$9,Cálculos!E150,'Datos 3-Factores de convers'!$C$6:$C$9)/100 -> 0 | O150: =J150*M150 -> 0 | P150: kWh | Q150: =IF(F150="Compañía suministradora",0,IF(INDEX('Datos 1-Factores emisión'!$B$358:$S$669,MATCH(Cálculos!$F150,'Datos 1-Factores emisión'!$B$358:$B$669,0),MATCH('Datos generales organización'!$D$14,'Datos 1-Factores emisión'!$D$358:$S$358,0)+2)="No aplica",INDEX('Datos 1-Factores emisión'!$B$358:$S$669,LOOKUP('Datos 1-Factores emisión'!$B$419,'Datos 1-Factores emisión'!$B$358:$B$669,'Datos 1-Factores emisión'!$A$358:$A$669),MATCH('Datos generales organización'!$D$14,'Datos 1-Factores emisión'!$D$358:$S$358,0)+2),INDEX('Datos 1-Factores emisión'!$B$358:$S$669,MATCH(Cálculos!$F150,'Datos 1-Factores emisión'!$B$358:$B$669,0),MATCH('Datos generales organización'!$D$14,'Datos 1-Factores emisión'!$D$358:$S$358,0)+2))) -> 0 | R150: 0 | S150: 0 | T150: 0 | U150: 0 | V150: 0 | W150: 0 | X150: 0 | Y150: 0 | Z150: 0 | AA150: 0 | AB150: ='Datos 2-Potenciales calent glob'!$D$6 -> 1 | AC150: ='Datos 2-Potenciales calent glob'!$D$31 -> 25 | AD150: ='Datos 2-Potenciales calent glob'!$D$32 -> 298 | AE150: =SUMIF('Datos 2-Potenciales calent glob'!$B$6:$B$56,Cálculos!F150,'Datos 2-Potenciales calent glob'!$D$6:$D$56) -> 0 | AF150: ='Datos 2-Potenciales calent glob'!$D$6 -> 1 | AG150: ='Datos 2-Potenciales calent glob'!$D$6 -> 1 | AH150: =V150*AB150 -> 0 | AI150: =W150*AC150 -> 0 | AJ150: 0 | AK150: 0 | AL150: =SUM(AH150:AK150) -> 0 | AM150: 0 | AN150: 0
B151: Energía | C151: Fuente móvil | D151: Electricidad | E151: ='Alcance 2'!C24 -> Tipo de vehículo | F151: ='Alcance 2'!F24 -> Compañía suministradora | H151: Ambos | I151: 2 | J151: ='Alcance 2'!D24 -> 0 | K151: ='Alcance 2'!E24 -> km | M151: =SUMIF('Datos 3-Factores de convers'!$B$6:$B$9,Cálculos!E151,'Datos 3-Factores de convers'!$C$6:$C$9)/100 -> 0 | O151: 0 | P151: kWh | Q151: =IF(F151="Compañía suministradora",0,IF(INDEX('Datos 1-Factores emisión'!$B$358:$S$669,MATCH(Cálculos!$F151,'Datos 1-Factores emisión'!$B$358:$B$669,0),MATCH('Datos generales organización'!$D$14,'Datos 1-Factores emisión'!$D$358:$S$358,0)+2)="No aplica",INDEX('Datos 1-Factores emisión'!$B$358:$S$669,LOOKUP('Datos 1-Factores emisión'!$B$419,'Datos 1-Factores emisión'!$B$358:$B$669,'Datos 1-Factores emisión'!$A$358:$A$669),MATCH('Datos generales organización'!$D$14,'Datos 1-Factores emisión'!$D$358:$S$358,0)+2),INDEX('Datos 1-Factores emisión'!$B$358:$S$669,MATCH(Cálculos!$F151,'Datos 1-Factores emisión'!$B$358:$B$669,0),MATCH('Datos generales organización'!$D$14,'Datos 1-Factores emisión'!$D$358:$S$358,0)+2))) -> 0 | R151: 0 | S151: 0 | T151: 0 | U151: 0 | V151: 0 | W151: 0 | X151: 0 | Y151: 0 | Z151: 0 | AA151: 0 | AB151: ='Datos 2-Potenciales calent glob'!$D$6 -> 1 | AC151: ='Datos 2-Potenciales calent glob'!$D$31 -> 25 | AD151: ='Datos 2-Potenciales calent glob'!$D$32 -> 298 | AE151: =SUMIF('Datos 2-Potenciales calent glob'!$B$6:$B$56,Cálculos!F151,'Datos 2-Potenciales calent glob'!$D$6:$D$56) -> 0 | AF151: ='Datos 2-Potenciales calent glob'!$D$6 -> 1 | AG151: ='Datos 2-Potenciales calent glob'!$D$6 -> 1 | AH151: =V151*AB151 -> 0 | AI151: 0 | AJ151: 0 | AK151: 0 | AL151: 0 | AM151: 0 | AN151: 0
B152: Energía | C152: Fuente móvil | D152: Electricidad | E152: ='Alcance 2'!C29 -> Híbrido enchufable | F152: ='Alcance 2'!F29 -> Compañía suministradora | H152: Ambos | I152: 2 | J152: ='Alcance 2'!D29 -> 0 | K152: ='Alcance 2'!E29 -> km | M152: =SUMIF('Datos 3-Factores de convers'!$B$6:$B$9,Cálculos!E152,'Datos 3-Factores de convers'!$C$6:$C$9)/100 -> 0.2095666667 | O152: 0 | P152: kWh | Q152: =IF(F152="Compañía suministradora",0,IF(INDEX('Datos 1-Factores emisión'!$B$358:$S$669,MATCH(Cálculos!$F152,'Datos 1-Factores emisión'!$B$358:$B$669,0),MATCH('Datos generales organización'!$D$14,'Datos 1-Factores emisión'!$D$358:$S$358,0)+2)="No aplica",INDEX('Datos 1-Factores emisión'!$B$358:$S$669,31,MATCH('Datos generales organización'!$D$14,'Datos 1-Factores emisión'!$D$358:$S$358,0)+2),INDEX('Datos 1-Factores emisión'!$B$358:$S$669,MATCH(Cálculos!$F152,'Datos 1-Factores emisión'!$B$358:$B$669,0),MATCH('Datos generales organización'!$D$14,'Datos 1-Factores emisión'!$D$358:$S$358,0)+2))) -> 0 | R152: 0 | S152: 0 | T152: 0 | U152: 0 | V152: =Q152*$O152 -> 0 | W152: 0 | X152: 0 | Y152: 0 | Z152: 0 | AA152: 0 | AB152: ='Datos 2-Potenciales calent glob'!$D$6 -> 1 | AC152: ='Datos 2-Potenciales calent glob'!$D$31 -> 25 | AD152: ='Datos 2-Potenciales calent glob'!$D$32 -> 298 | AE152: =SUMIF('Datos 2-Potenciales calent glob'!$B$6:$B$56,Cálculos!F152,'Datos 2-Potenciales calent glob'!$D$6:$D$56) -> 0 | AF152: ='Datos 2-Potenciales calent glob'!$D$6 -> 1 | AG152: ='Datos 2-Potenciales calent glob'!$D$6 -> 1 | AH152: =V152*AB152 -> 0 | AI152: 0 | AJ152: 0 | AK152: 0 | AL152: 0 | AM152: 0 | AN152: 0
B153: Energía | C153: Fuente móvil | D153: Combustión | E153: ='Alcance 3'!D10 -> Tipo de propulsión | F153: ='Alcance 3'!C10 -> Tipo de vehículo | G153: Movilidad de los trabajadores | H153: CAPV | I153: 3 | J153: ='Alcance 3'!E10 -> 0 | K153: ='Alcance 3'!F10 -> km*pasajero | M153: 1 | O153: 0 | P153: =K153 -> km*pasajero | Q153: =SUMIFS('Datos 1-Factores emisión'!$E$43:$E$309,'Datos 1-Factores emisión'!$B$43:$B$309,Cálculos!$F153,'Datos 1-Factores emisión'!$C$43:$C$309,Cálculos!$E153,'Datos 1-Factores emisión'!$D$43:$D$309,Cálculos!Q$5) -> 0 | R153: =SUMIFS('Datos 1-Factores emisión'!$E$43:$E$309,'Datos 1-Factores emisión'!$B$43:$B$309,Cálculos!$F153,'Datos 1-Factores emisión'!$C$43:$C$309,Cálculos!$E153,'Datos 1-Factores emisión'!$D$43:$D$309,Cálculos!R$5) -> 0 | S153: =SUMIFS('Datos 1-Factores emisión'!$E$43:$E$309,'Datos 1-Factores emisión'!$B$43:$B$309,Cálculos!$F153,'Datos 1-Factores emisión'!$C$43:$C$309,Cálculos!$E153,'Datos 1-Factores emisión'!$D$43:$D$309,Cálculos!S$5) -> 0 | T153: =SUMIFS('Datos 1-Factores emisión'!$E$43:$E$309,'Datos 1-Factores emisión'!$B$43:$B$309,Cálculos!$F153,'Datos 1-Factores emisión'!$C$43:$C$309,Cálculos!$E153,'Datos 1-Factores emisión'!$D$43:$D$309,Cálculos!T$5) -> 0 | U153: 0 | V153: 0 | W153: 0 | X153: 0 | Y153: 0 | Z153: 0 | AA153: 0 | AB153: ='Datos 2-Potenciales calent glob'!$D$6 -> 1 | AC153: ='Datos 2-Potenciales calent glob'!$D$31 -> 25 | AD153: ='Datos 2-Potenciales calent glob'!$D$32 -> 298 | AE153: =SUMIF('Datos 2-Potenciales calent glob'!$B$6:$B$56,Cálculos!E153,'Datos 2-Potenciales calent glob'!$D$6:$D$56) -> 0 | AF153: ='Datos 2-Potenciales calent glob'!$D$6 -> 1 | AG153: ='Datos 2-Potenciales calent glob'!$D$6 -> 1 | AH153: 0 | AI153: =W153*AC153 -> 0 | AJ153: =X153*AD153 -> 0 | AK153: =Y153*AE153 -> 0 | AL153: =SUM(AH153:AK153) -> 0 | AM153: =Z153*AF153 -> 0 | AN153: =AA153*AG153 -> 0
B154: Energía | C154: Fuente móvil | D154: Combustión | E154: ='Alcance 3'!D11 -> Tipo de propulsión | F154: ='Alcance 3'!C11 -> Tipo de vehículo | G154: Movilidad de los trabajadores | H154: CAPV | I154: 3 | J154: ='Alcance 3'!E11 -> 0 | K154: ='Alcance 3'!F11 -> km*pasajero | M154: 1 | O154: 0 | P154: km*pasajero | Q154: =SUMIFS('Datos 1-Factores emisión'!$E$43:$E$309,'Datos 1-Factores emisión'!$B$43:$B$309,Cálculos!$F154,'Datos 1-Factores emisión'!$C$43:$C$309,Cálculos!$E154,'Datos 1-Factores emisión'!$D$43:$D$309,Cálculos!Q$5) -> 0 | R154: =SUMIFS('Datos 1-Factores emisión'!$E$43:$E$309,'Datos 1-Factores emisión'!$B$43:$B$309,Cálculos!$F154,'Datos 1-Factores emisión'!$C$43:$C$309,Cálculos!$E154,'Datos 1-Factores emisión'!$D$43:$D$309,Cálculos!R$5) -> 0 | S154: =SUMIFS('Datos 1-Factores emisión'!$E$43:$E$309,'Datos 1-Factores emisión'!$B$43:$B$309,Cálculos!$F154,'Datos 1-Factores emisión'!$C$43:$C$309,Cálculos!$E154,'Datos 1-Factores emisión'!$D$43:$D$309,Cálculos!S$5) -> 0 | T154: =SUMIFS('Datos 1-Factores emisión'!$E$43:$E$309,'Datos 1-Factores emisión'!$B$43:$B$309,Cálculos!$F154,'Datos 1-Factores emisión'!$C$43:$C$309,Cálculos!$E154,'Datos 1-Factores emisión'!$D$43:$D$309,Cálculos!T$5) -> 0 | U154: 0 | V154: 0 | W154: 0 | X154: 0 | Y154: 0 | Z154: 0 | AA154: 0 | AB154: ='Datos 2-Potenciales calent glob'!$D$6 -> 1 | AC154: ='Datos 2-Potenciales calent glob'!$D$31 -> 25 | AD154: ='Datos 2-Potenciales calent glob'!$D$32 -> 298 | AE154: =SUMIF('Datos 2-Potenciales calent glob'!$B$6:$B$56,Cálculos!E154,'Datos 2-Potenciales calent glob'!$D$6:$D$56) -> 0 | AF154: ='Datos 2-Potenciales calent glob'!$D$6 -> 1 | AG154: ='Datos 2-Potenciales calent glob'!$D$6 -> 1 | AH154: 0 | AI154: 0 | AJ154: 0 | AK154: 0 | AL154: =SUM(AH154:AK154) -> 0 | AM154: =Z154*AF154 -> 0 | AN154: 0
B155: Energía | C155: Fuente móvil | D155: Combustión | E155: ='Alcance 3'!D12 -> Tipo de propulsión | F155: ='Alcance 3'!C12 -> Tipo de vehículo | G155: Movilidad de los trabajadores | H155: CAPV | I155: 3 | J155: ='Alcance 3'!E12 -> 0 | K155: ='Alcance 3'!F12 -> km*pasajero | M155: 1 | O155: 0 | P155: km*pasajero | Q155: =SUMIFS('Datos 1-Factores emisión'!$E$43:$E$309,'Datos 1-Factores emisión'!$B$43:$B$309,Cálculos!$F155,'Datos 1-Factores emisión'!$C$43:$C$309,Cálculos!$E155,'Datos 1-Factores emisión'!$D$43:$D$309,Cálculos!Q$5) -> 0 | R155: =SUMIFS('Datos 1-Factores emisión'!$E$43:$E$309,'Datos 1-Factores emisión'!$B$43:$B$309,Cálculos!$F155,'Datos 1-Factores emisión'!$C$43:$C$309,Cálculos!$E155,'Datos 1-Factores emisión'!$D$43:$D$309,Cálculos!R$5) -> 0 | S155: =SUMIFS('Datos 1-Factores emisión'!$E$43:$E$309,'Datos 1-Factores emisión'!$B$43:$B$309,Cálculos!$F155,'Datos 1-Factores emisión'!$C$43:$C$309,Cálculos!$E155,'Datos 1-Factores emisión'!$D$43:$D$309,Cálculos!S$5) -> 0 | T155: =SUMIFS('Datos 1-Factores emisión'!$E$43:$E$309,'Datos 1-Factores emisión'!$B$43:$B$309,Cálculos!$F155,'Datos 1-Factores emisión'!$C$43:$C$309,Cálculos!$E155,'Datos 1-Factores emisión'!$D$43:$D$309,Cálculos!T$5) -> 0 | U155: 0 | V155: 0 | W155: 0 | X155: 0 | Y155: 0 | Z155: 0 | AA155: 0 | AB155: ='Datos 2-Potenciales calent glob'!$D$6 -> 1 | AC155: ='Datos 2-Potenciales calent glob'!$D$31 -> 25 | AD155: ='Datos 2-Potenciales calent glob'!$D$32 -> 298 | AE155: =SUMIF('Datos 2-Potenciales calent glob'!$B$6:$B$56,Cálculos!E155,'Datos 2-Potenciales calent glob'!$D$6:$D$56) -> 0 | AF155: ='Datos 2-Potenciales calent glob'!$D$6 -> 1 | AG155: ='Datos 2-Potenciales calent glob'!$D$6 -> 1 | AH155: 0 | AI155: 0 | AJ155: 0 | AK155: 0 | AL155: 0 | AM155: 0 | AN155: 0
B156: Energía | C156: Fuente móvil | D156: Combustión | E156: ='Alcance 3'!D13 -> Tipo de propulsión | F156: ='Alcance 3'!C13 -> Tipo de vehículo | G156: Movilidad de los trabajadores | H156: CAPV | I156: 3 | J156: ='Alcance 3'!E13 -> 0 | K156: ='Alcance 3'!F13 -> km*pasajero | M156: 1 | O156: 0 | P156: km*pasajero | Q156: =SUMIFS('Datos 1-Factores emisión'!$E$43:$E$309,'Datos 1-Factores emisión'!$B$43:$B$309,Cálculos!$F156,'Datos 1-Factores emisión'!$C$43:$C$309,Cálculos!$E156,'Datos 1-Factores emisión'!$D$43:$D$309,Cálculos!Q$5) -> 0 | R156: =SUMIFS('Datos 1-Factores emisión'!$E$43:$E$309,'Datos 1-Factores emisión'!$B$43:$B$309,Cálculos!$F156,'Datos 1-Factores emisión'!$C$43:$C$309,Cálculos!$E156,'Datos 1-Factores emisión'!$D$43:$D$309,Cálculos!R$5) -> 0 | S156: =SUMIFS('Datos 1-Factores emisión'!$E$43:$E$309,'Datos 1-Factores emisión'!$B$43:$B$309,Cálculos!$F156,'Datos 1-Factores emisión'!$C$43:$C$309,Cálculos!$E156,'Datos 1-Factores emisión'!$D$43:$D$309,Cálculos!S$5) -> 0 | T156: =SUMIFS('Datos 1-Factores emisión'!$E$43:$E$309,'Datos 1-Factores emisión'!$B$43:$B$309,Cálculos!$F156,'Datos 1-Factores emisión'!$C$43:$C$309,Cálculos!$E156,'Datos 1-Factores emisión'!$D$43:$D$309,Cálculos!T$5) -> 0 | U156: 0 | V156: 0 | W156: 0 | X156: 0 | Y156: 0 | Z156: 0 | AA156: 0 | AB156: ='Datos 2-Potenciales calent glob'!$D$6 -> 1 | AC156: ='Datos 2-Potenciales calent glob'!$D$31 -> 25 | AD156: ='Datos 2-Potenciales calent glob'!$D$32 -> 298 | AE156: =SUMIF('Datos 2-Potenciales calent glob'!$B$6:$B$56,Cálculos!E156,'Datos 2-Potenciales calent glob'!$D$6:$D$56) -> 0 | AF156: ='Datos 2-Potenciales calent glob'!$D$6 -> 1 | AG156: ='Datos 2-Potenciales calent glob'!$D$6 -> 1 | AH156: 0 | AI156: 0 | AJ156: 0 | AK156: 0 | AL156: 0 | AM156: 0 | AN156: 0
B157: Energía | C157: Fuente móvil | D157: Combustión | E157: ='Alcance 3'!D14 -> Tipo de propulsión | F157: ='Alcance 3'!C14 -> Tipo de vehículo | G157: Movilidad de los trabajadores | H157: CAPV | I157: 3 | J157: ='Alcance 3'!E14 -> 0 | K157: ='Alcance 3'!F14 -> km*pasajero | M157: 1 | O157: 0 | P157: km*pasajero | Q157: =SUMIFS('Datos 1-Factores emisión'!$E$43:$E$309,'Datos 1-Factores emisión'!$B$43:$B$309,Cálculos!$F157,'Datos 1-Factores emisión'!$C$43:$C$309,Cálculos!$E157,'Datos 1-Factores emisión'!$D$43:$D$309,Cálculos!Q$5) -> 0 | R157: =SUMIFS('Datos 1-Factores emisión'!$E$43:$E$309,'Datos 1-Factores emisión'!$B$43:$B$309,Cálculos!$F157,'Datos 1-Factores emisión'!$C$43:$C$309,Cálculos!$E157,'Datos 1-Factores emisión'!$D$43:$D$309,Cálculos!R$5) -> 0 | S157: =SUMIFS('Datos 1-Factores emisión'!$E$43:$E$309,'Datos 1-Factores emisión'!$B$43:$B$309,Cálculos!$F157,'Datos 1-Factores emisión'!$C$43:$C$309,Cálculos!$E157,'Datos 1-Factores emisión'!$D$43:$D$309,Cálculos!S$5) -> 0 | T157: =SUMIFS('Datos 1-Factores emisión'!$E$43:$E$309,'Datos 1-Factores emisión'!$B$43:$B$309,Cálculos!$F157,'Datos 1-Factores emisión'!$C$43:$C$309,Cálculos!$E157,'Datos 1-Factores emisión'!$D$43:$D$309,Cálculos!T$5) -> 0 | U157: 0 | V157: 0 | W157: 0 | X157: 0 | Y157: 0 | Z157: 0 | AA157: 0 | AB157: ='Datos 2-Potenciales calent glob'!$D$6 -> 1 | AC157: ='Datos 2-Potenciales calent glob'!$D$31 -> 25 | AD157: ='Datos 2-Potenciales calent glob'!$D$32 -> 298 | AE157: =SUMIF('Datos 2-Potenciales calent glob'!$B$6:$B$56,Cálculos!E157,'Datos 2-Potenciales calent glob'!$D$6:$D$56) -> 0 | AF157: ='Datos 2-Potenciales calent glob'!$D$6 -> 1 | AG157: ='Datos 2-Potenciales calent glob'!$D$6 -> 1 | AH157: 0 | AI157: 0 | AJ157: 0 | AK157: 0 | AL157: 0 | AM157: 0 | AN157: 0
B158: Energía | C158: Fuente móvil | D158: Combustión | E158: ='Alcance 3'!D15 -> Tipo de propulsión | F158: ='Alcance 3'!C15 -> Tipo de vehículo | G158: Movilidad de los trabajadores | H158: CAPV | I158: 3 | J158: ='Alcance 3'!E15 -> 0 | K158: ='Alcance 3'!F15 -> km*pasajero | M158: 1 | O158: 0 | P158: km*pasajero | Q158: =SUMIFS('Datos 1-Factores emisión'!$E$43:$E$309,'Datos 1-Factores emisión'!$B$43:$B$309,Cálculos!$F158,'Datos 1-Factores emisión'!$C$43:$C$309,Cálculos!$E158,'Datos 1-Factores emisión'!$D$43:$D$309,Cálculos!Q$5) -> 0 | R158: =SUMIFS('Datos 1-Factores emisión'!$E$43:$E$309,'Datos 1-Factores emisión'!$B$43:$B$309,Cálculos!$F158,'Datos 1-Factores emisión'!$C$43:$C$309,Cálculos!$E158,'Datos 1-Factores emisión'!$D$43:$D$309,Cálculos!R$5) -> 0 | S158: =SUMIFS('Datos 1-Factores emisión'!$E$43:$E$309,'Datos 1-Factores emisión'!$B$43:$B$309,Cálculos!$F158,'Datos 1-Factores emisión'!$C$43:$C$309,Cálculos!$E158,'Datos 1-Factores emisión'!$D$43:$D$309,Cálculos!S$5) -> 0 | T158: =SUMIFS('Datos 1-Factores emisión'!$E$43:$E$309,'Datos 1-Factores emisión'!$B$43:$B$309,Cálculos!$F158,'Datos 1-Factores emisión'!$C$43:$C$309,Cálculos!$E158,'Datos 1-Factores emisión'!$D$43:$D$309,Cálculos!T$5) -> 0 | U158: 0 | V158: 0 | W158: 0 | X158: 0 | Y158: 0 | Z158: 0 | AA158: 0 | AB158: ='Datos 2-Potenciales calent glob'!$D$6 -> 1 | AC158: ='Datos 2-Potenciales calent glob'!$D$31 -> 25 | AD158: ='Datos 2-Potenciales calent glob'!$D$32 -> 298 | AE158: =SUMIF('Datos 2-Potenciales calent glob'!$B$6:$B$56,Cálculos!E158,'Datos 2-Potenciales calent glob'!$D$6:$D$56) -> 0 | AF158: ='Datos 2-Potenciales calent glob'!$D$6 -> 1 | AG158: ='Datos 2-Potenciales calent glob'!$D$6 -> 1 | AH158: 0 | AI158: 0 | AJ158: 0 | AK158: 0 | AL158: 0 | AM158: 0 | AN158: 0
B159: Energía | C159: Fuente móvil | D159: Combustión | E159: ='Alcance 3'!D16 -> Tipo de propulsión | F159: ='Alcance 3'!C16 -> Tipo de vehículo | G159: Movilidad de los trabajadores | H159: CAPV | I159: 3 | J159: ='Alcance 3'!E16 -> 0 | K159: ='Alcance 3'!F16 -> km*pasajero | M159: 1 | O159: 0 | P159: km*pasajero | Q159: =SUMIFS('Datos 1-Factores emisión'!$E$43:$E$309,'Datos 1-Factores emisión'!$B$43:$B$309,Cálculos!$F159,'Datos 1-Factores emisión'!$C$43:$C$309,Cálculos!$E159,'Datos 1-Factores emisión'!$D$43:$D$309,Cálculos!Q$5) -> 0 | R159: =SUMIFS('Datos 1-Factores emisión'!$E$43:$E$309,'Datos 1-Factores emisión'!$B$43:$B$309,Cálculos!$F159,'Datos 1-Factores emisión'!$C$43:$C$309,Cálculos!$E159,'Datos 1-Factores emisión'!$D$43:$D$309,Cálculos!R$5) -> 0 | S159: =SUMIFS('Datos 1-Factores emisión'!$E$43:$E$309,'Datos 1-Factores emisión'!$B$43:$B$309,Cálculos!$F159,'Datos 1-Factores emisión'!$C$43:$C$309,Cálculos!$E159,'Datos 1-Factores emisión'!$D$43:$D$309,Cálculos!S$5) -> 0 | T159: =SUMIFS('Datos 1-Factores emisión'!$E$43:$E$309,'Datos 1-Factores emisión'!$B$43:$B$309,Cálculos!$F159,'Datos 1-Factores emisión'!$C$43:$C$309,Cálculos!$E159,'Datos 1-Factores emisión'!$D$43:$D$309,Cálculos!T$5) -> 0 | U159: 0 | V159: 0 | W159: 0 | X159: 0 | Y159: 0 | Z159: 0 | AA159: 0 | AB159: ='Datos 2-Potenciales calent glob'!$D$6 -> 1 | AC159: ='Datos 2-Potenciales calent glob'!$D$31 -> 25 | AD159: ='Datos 2-Potenciales calent glob'!$D$32 -> 298 | AE159: =SUMIF('Datos 2-Potenciales calent glob'!$B$6:$B$56,Cálculos!E159,'Datos 2-Potenciales calent glob'!$D$6:$D$56) -> 0 | AF159: ='Datos 2-Potenciales calent glob'!$D$6 -> 1 | AG159: ='Datos 2-Potenciales calent glob'!$D$6 -> 1 | AH159: 0 | AI159: 0 | AJ159: 0 | AK159: 0 | AL159: 0 | AM159: 0 | AN159: 0
B160: Energía | C160: Fuente móvil | D160: Combustión | E160: ='Alcance 3'!D17 -> Tipo de propulsión | F160: ='Alcance 3'!C17 -> Tipo de vehículo | G160: Movilidad de los trabajadores | H160: CAPV | I160: 3 | J160: ='Alcance 3'!E17 -> 0 | K160: ='Alcance 3'!F17 -> km*pasajero | M160: 1 | O160: 0 | P160: km*pasajero | Q160: =SUMIFS('Datos 1-Factores emisión'!$E$43:$E$309,'Datos 1-Factores emisión'!$B$43:$B$309,Cálculos!$F160,'Datos 1-Factores emisión'!$C$43:$C$309,Cálculos!$E160,'Datos 1-Factores emisión'!$D$43:$D$309,Cálculos!Q$5) -> 0 | R160: =SUMIFS('Datos 1-Factores emisión'!$E$43:$E$309,'Datos 1-Factores emisión'!$B$43:$B$309,Cálculos!$F160,'Datos 1-Factores emisión'!$C$43:$C$309,Cálculos!$E160,'Datos 1-Factores emisión'!$D$43:$D$309,Cálculos!R$5) -> 0 | S160: =SUMIFS('Datos 1-Factores emisión'!$E$43:$E$309,'Datos 1-Factores emisión'!$B$43:$B$309,Cálculos!$F160,'Datos 1-Factores emisión'!$C$43:$C$309,Cálculos!$E160,'Datos 1-Factores emisión'!$D$43:$D$309,Cálculos!S$5) -> 0 | T160: =SUMIFS('Datos 1-Factores emisión'!$E$43:$E$309,'Datos 1-Factores emisión'!$B$43:$B$309,Cálculos!$F160,'Datos 1-Factores emisión'!$C$43:$C$309,Cálculos!$E160,'Datos 1-Factores emisión'!$D$43:$D$309,Cálculos!T$5) -> 0 | U160: 0 | V160: 0 | W160: 0 | X160: 0 | Y160: 0 | Z160: 0 | AA160: 0 | AB160: ='Datos 2-Potenciales calent glob'!$D$6 -> 1 | AC160: ='Datos 2-Potenciales calent glob'!$D$31 -> 25 | AD160: ='Datos 2-Potenciales calent glob'!$D$32 -> 298 | AE160: =SUMIF('Datos 2-Potenciales calent glob'!$B$6:$B$56,Cálculos!E160,'Datos 2-Potenciales calent glob'!$D$6:$D$56) -> 0 | AF160: ='Datos 2-Potenciales calent glob'!$D$6 -> 1 | AG160: ='Datos 2-Potenciales calent glob'!$D$6 -> 1 | AH160: 0 | AI160: 0 | AJ160: 0 | AK160: 0 | AL160: 0 | AM160: 0 | AN160: 0
B161: Energía | C161: Fuente móvil | D161: Combustión | E161: ='Alcance 3'!D18 -> Tipo de propulsión | F161: ='Alcance 3'!C18 -> Tipo de vehículo | G161: Movilidad de los trabajadores | H161: CAPV | I161: 3 | J161: ='Alcance 3'!E18 -> 0 | K161: ='Alcance 3'!F18 -> km*pasajero | M161: 1 | O161: 0 | P161: km*pasajero | Q161: =SUMIFS('Datos 1-Factores emisión'!$E$43:$E$309,'Datos 1-Factores emisión'!$B$43:$B$309,Cálculos!$F161,'Datos 1-Factores emisión'!$C$43:$C$309,Cálculos!$E161,'Datos 1-Factores emisión'!$D$43:$D$309,Cálculos!Q$5) -> 0 | R161: =SUMIFS('Datos 1-Factores emisión'!$E$43:$E$309,'Datos 1-Factores emisión'!$B$43:$B$309,Cálculos!$F161,'Datos 1-Factores emisión'!$C$43:$C$309,Cálculos!$E161,'Datos 1-Factores emisión'!$D$43:$D$309,Cálculos!R$5) -> 0 | S161: =SUMIFS('Datos 1-Factores emisión'!$E$43:$E$309,'Datos 1-Factores emisión'!$B$43:$B$309,Cálculos!$F161,'Datos 1-Factores emisión'!$C$43:$C$309,Cálculos!$E161,'Datos 1-Factores emisión'!$D$43:$D$309,Cálculos!S$5) -> 0 | T161: =SUMIFS('Datos 1-Factores emisión'!$E$43:$E$309,'Datos 1-Factores emisión'!$B$43:$B$309,Cálculos!$F161,'Datos 1-Factores emisión'!$C$43:$C$309,Cálculos!$E161,'Datos 1-Factores emisión'!$D$43:$D$309,Cálculos!T$5) -> 0 | U161: 0 | V161: 0 | W161: 0 | X161: 0 | Y161: 0 | Z161: 0 | AA161: 0 | AB161: ='Datos 2-Potenciales calent glob'!$D$6 -> 1 | AC161: ='Datos 2-Potenciales calent glob'!$D$31 -> 25 | AD161: ='Datos 2-Potenciales calent glob'!$D$32 -> 298 | AE161: =SUMIF('Datos 2-Potenciales calent glob'!$B$6:$B$56,Cálculos!E161,'Datos 2-Potenciales calent glob'!$D$6:$D$56) -> 0 | AF161: ='Datos 2-Potenciales calent glob'!$D$6 -> 1 | AG161: ='Datos 2-Potenciales calent glob'!$D$6 -> 1 | AH161: 0 | AI161: 0 | AJ161: 0 | AK161: 0 | AL161: 0 | AM161: 0 | AN161: 0
B162: Energía | C162: Fuente móvil | D162: Combustión | E162: Combustible desconocido | F162: ='Alcance 3'!C25 -> Autobús urbano | G162: Movilidad de los trabajadores | H162: CAPV | I162: 3 | J162: ='Alcance 3'!D25 -> 50 | K162: ='Alcance 3'!E25 -> km*pasajero | M162: 1 | O162: 50 | P162: km*pasajero | Q162: =SUMIFS('Datos 1-Factores emisión'!$D$324:$D$353,'Datos 1-Factores emisión'!$B$324:$B$353,Cálculos!$F162,'Datos 1-Factores emisión'!$C$324:$C$353,Cálculos!Q$5) -> 0.02728 | R162: =SUMIFS('Datos 1-Factores emisión'!$D$324:$D$353,'Datos 1-Factores emisión'!$B$324:$B$353,Cálculos!$F162,'Datos 1-Factores emisión'!$C$324:$C$353,Cálculos!R$5) -> 2e-05 | S162: =SUMIFS('Datos 1-Factores emisión'!$D$324:$D$353,'Datos 1-Factores emisión'!$B$324:$B$353,Cálculos!$F162,'Datos 1-Factores emisión'!$C$324:$C$353,Cálculos!S$5) -> 0.00049 | T162: 0 | U162: 0 | V162: 1.364 | W162: 0.001 | X162: 0.0245 | Y162: 0 | Z162: 0 | AA162: 0 | AB162: ='Datos 2-Potenciales calent glob'!$D$6 -> 1 | AC162: ='Datos 2-Potenciales calent glob'!$D$31 -> 25 | AD162: ='Datos 2-Potenciales calent glob'!$D$32 -> 298 | AE162: =SUMIF('Datos 2-Potenciales calent glob'!$B$6:$B$56,Cálculos!E162,'Datos 2-Potenciales calent glob'!$D$6:$D$56) -> 0 | AF162: ='Datos 2-Potenciales calent glob'!$D$6 -> 1 | AG162: ='Datos 2-Potenciales calent glob'!$D$6 -> 1 | AH162: =V162*AB162 -> 1.364 | AI162: 0.025 | AJ162: 7.301 | AK162: 0 | AL162: 8.69 | AM162: 0 | AN162: 0
B163: Energía | C163: Fuente móvil | D163: Combustión | E163: Combustible desconocido | F163: ='Alcance 3'!C26 -> Tipo de transporte público | G163: Movilidad de los trabajadores | H163: CAPV | I163: 3 | J163: ='Alcance 3'!D26 -> 0 | K163: ='Alcance 3'!E26 -> km*pasajero | M163: 1 | O163: 0 | P163: km*pasajero | Q163: =SUMIFS('Datos 1-Factores emisión'!$D$324:$D$353,'Datos 1-Factores emisión'!$B$324:$B$353,Cálculos!$F163,'Datos 1-Factores emisión'!$C$324:$C$353,Cálculos!Q$5) -> 0 | R163: =SUMIFS('Datos 1-Factores emisión'!$D$324:$D$353,'Datos 1-Factores emisión'!$B$324:$B$353,Cálculos!$F163,'Datos 1-Factores emisión'!$C$324:$C$353,Cálculos!R$5) -> 0 | S163: =SUMIFS('Datos 1-Factores emisión'!$D$324:$D$353,'Datos 1-Factores emisión'!$B$324:$B$353,Cálculos!$F163,'Datos 1-Factores emisión'!$C$324:$C$353,Cálculos!S$5) -> 0 | T163: 0 | U163: 0 | V163: 0 | W163: 0 | X163: 0 | Y163: 0 | Z163: 0 | AA163: 0 | AB163: ='Datos 2-Potenciales calent glob'!$D$6 -> 1 | AC163: ='Datos 2-Potenciales calent glob'!$D$31 -> 25 | AD163: ='Datos 2-Potenciales calent glob'!$D$32 -> 298 | AE163: =SUMIF('Datos 2-Potenciales calent glob'!$B$6:$B$56,Cálculos!E163,'Datos 2-Potenciales calent glob'!$D$6:$D$56) -> 0 | AF163: ='Datos 2-Potenciales calent glob'!$D$6 -> 1 | AG163: ='Datos 2-Potenciales calent glob'!$D$6 -> 1 | AH163: 0 | AI163: 0 | AJ163: 0 | AK163: 0 | AL163: 0 | AM163: 0 | AN163: 0
B164: Energía | C164: Fuente móvil | D164: Combustión | E164: Combustible desconocido | F164: ='Alcance 3'!C27 -> Tipo de transporte público | G164: Movilidad de los trabajadores | H164: CAPV | I164: 3 | J164: ='Alcance 3'!D27 -> 0 | K164: ='Alcance 3'!E27 -> km*pasajero | M164: 1 | O164: 0 | P164: km*pasajero | Q164: =SUMIFS('Datos 1-Factores emisión'!$D$324:$D$353,'Datos 1-Factores emisión'!$B$324:$B$353,Cálculos!$F164,'Datos 1-Factores emisión'!$C$324:$C$353,Cálculos!Q$5) -> 0 | R164: =SUMIFS('Datos 1-Factores emisión'!$D$324:$D$353,'Datos 1-Factores emisión'!$B$324:$B$353,Cálculos!$F164,'Datos 1-Factores emisión'!$C$324:$C$353,Cálculos!R$5) -> 0 | S164: =SUMIFS('Datos 1-Factores emisión'!$D$324:$D$353,'Datos 1-Factores emisión'!$B$324:$B$353,Cálculos!$F164,'Datos 1-Factores emisión'!$C$324:$C$353,Cálculos!S$5) -> 0 | T164: 0 | U164: 0 | V164: 0 | W164: 0 | X164: 0 | Y164: 0 | Z164: 0 | AA164: 0 | AB164: ='Datos 2-Potenciales calent glob'!$D$6 -> 1 | AC164: ='Datos 2-Potenciales calent glob'!$D$31 -> 25 | AD164: ='Datos 2-Potenciales calent glob'!$D$32 -> 298 | AE164: =SUMIF('Datos 2-Potenciales calent glob'!$B$6:$B$56,Cálculos!E164,'Datos 2-Potenciales calent glob'!$D$6:$D$56) -> 0 | AF164: ='Datos 2-Potenciales calent glob'!$D$6 -> 1 | AG164: ='Datos 2-Potenciales calent glob'!$D$6 -> 1 | AH164: 0 | AI164: 0 | AJ164: 0 | AK164: 0 | AL164: 0 | AM164: 0 | AN164: 0
B165: Energía | C165: Fuente móvil | D165: Combustión | E165: Combustible desconocido | F165: ='Alcance 3'!C28 -> Tipo de transporte público | G165: Movilidad de los trabajadores | H165: CAPV | I165: 3 | J165: ='Alcance 3'!D28 -> 0 | K165: ='Alcance 3'!E28 -> km*pasajero | M165: 1 | O165: 0 | P165: km*pasajero | Q165: =SUMIFS('Datos 1-Factores emisión'!$D$324:$D$353,'Datos 1-Factores emisión'!$B$324:$B$353,Cálculos!$F165,'Datos 1-Factores emisión'!$C$324:$C$353,Cálculos!Q$5) -> 0 | R165: =SUMIFS('Datos 1-Factores emisión'!$D$324:$D$353,'Datos 1-Factores emisión'!$B$324:$B$353,Cálculos!$F165,'Datos 1-Factores emisión'!$C$324:$C$353,Cálculos!R$5) -> 0 | S165: =SUMIFS('Datos 1-Factores emisión'!$D$324:$D$353,'Datos 1-Factores emisión'!$B$324:$B$353,Cálculos!$F165,'Datos 1-Factores emisión'!$C$324:$C$353,Cálculos!S$5) -> 0 | T165: 0 | U165: 0 | V165: 0 | W165: 0 | X165: 0 | Y165: 0 | Z165: 0 | AA165: 0 | AB165: ='Datos 2-Potenciales calent glob'!$D$6 -> 1 | AC165: ='Datos 2-Potenciales calent glob'!$D$31 -> 25 | AD165: ='Datos 2-Potenciales calent glob'!$D$32 -> 298 | AE165: =SUMIF('Datos 2-Potenciales calent glob'!$B$6:$B$56,Cálculos!E165,'Datos 2-Potenciales calent glob'!$D$6:$D$56) -> 0 | AF165: ='Datos 2-Potenciales calent glob'!$D$6 -> 1 | AG165: ='Datos 2-Potenciales calent glob'!$D$6 -> 1 | AH165: 0 | AI165: 0 | AJ165: 0 | AK165: 0 | AL165: 0 | AM165: 0 | AN165: 0
B166: Energía | C166: Fuente móvil | D166: Combustión | E166: Combustible desconocido | F166: ='Alcance 3'!C29 -> Tipo de transporte público | G166: Movilidad de los trabajadores | H166: CAPV | I166: 3 | J166: ='Alcance 3'!D29 -> 0 | K166: ='Alcance 3'!E29 -> km*pasajero | M166: 1 | O166: 0 | P166: km*pasajero | Q166: =SUMIFS('Datos 1-Factores emisión'!$D$324:$D$353,'Datos 1-Factores emisión'!$B$324:$B$353,Cálculos!$F166,'Datos 1-Factores emisión'!$C$324:$C$353,Cálculos!Q$5) -> 0 | R166: =SUMIFS('Datos 1-Factores emisión'!$D$324:$D$353,'Datos 1-Factores emisión'!$B$324:$B$353,Cálculos!$F166,'Datos 1-Factores emisión'!$C$324:$C$353,Cálculos!R$5) -> 0 | S166: =SUMIFS('Datos 1-Factores emisión'!$D$324:$D$353,'Datos 1-Factores emisión'!$B$324:$B$353,Cálculos!$F166,'Datos 1-Factores emisión'!$C$324:$C$353,Cálculos!S$5) -> 0 | T166: 0 | U166: 0 | V166: 0 | W166: 0 | X166: 0 | Y166: 0 | Z166: 0 | AA166: 0 | AB166: ='Datos 2-Potenciales calent glob'!$D$6 -> 1 | AC166: ='Datos 2-Potenciales calent glob'!$D$31 -> 25 | AD166: ='Datos 2-Potenciales calent glob'!$D$32 -> 298 | AE166: =SUMIF('Datos 2-Potenciales calent glob'!$B$6:$B$56,Cálculos!E166,'Datos 2-Potenciales calent glob'!$D$6:$D$56) -> 0 | AF166: ='Datos 2-Potenciales calent glob'!$D$6 -> 1 | AG166: ='Datos 2-Potenciales calent glob'!$D$6 -> 1 | AH166: 0 | AI166: 0 | AJ166: 0 | AK166: 0 | AL166: 0 | AM166: 0 | AN166: 0
B167: Energía | C167: Fuente móvil | D167: Combustión | E167: Combustible desconocido | F167: ='Alcance 3'!C30 -> Tipo de transporte público | G167: Movilidad de los trabajadores | H167: CAPV | I167: 3 | J167: ='Alcance 3'!D30 -> 0 | K167: ='Alcance 3'!E30 -> km*pasajero | M167: 1 | O167: 0 | P167: km*pasajero | Q167: =SUMIFS('Datos 1-Factores emisión'!$D$324:$D$353,'Datos 1-Factores emisión'!$B$324:$B$353,Cálculos!$F167,'Datos 1-Factores emisión'!$C$324:$C$353,Cálculos!Q$5) -> 0 | R167: =SUMIFS('Datos 1-Factores emisión'!$D$324:$D$353,'Datos 1-Factores emisión'!$B$324:$B$353,Cálculos!$F167,'Datos 1-Factores emisión'!$C$324:$C$353,Cálculos!R$5) -> 0 | S167: =SUMIFS('Datos 1-Factores emisión'!$D$324:$D$353,'Datos 1-Factores emisión'!$B$324:$B$353,Cálculos!$F167,'Datos 1-Factores emisión'!$C$324:$C$353,Cálculos!S$5) -> 0 | T167: 0 | U167: 0 | V167: 0 | W167: 0 | X167: 0 | Y167: 0 | Z167: 0 | AA167: 0 | AB167: ='Datos 2-Potenciales calent glob'!$D$6 -> 1 | AC167: ='Datos 2-Potenciales calent glob'!$D$31 -> 25 | AD167: ='Datos 2-Potenciales calent glob'!$D$32 -> 298 | AE167: =SUMIF('Datos 2-Potenciales calent glob'!$B$6:$B$56,Cálculos!E167,'Datos 2-Potenciales calent glob'!$D$6:$D$56) -> 0 | AF167: ='Datos 2-Potenciales calent glob'!$D$6 -> 1 | AG167: ='Datos 2-Potenciales calent glob'!$D$6 -> 1 | AH167: 0 | AI167: 0 | AJ167: 0 | AK167: 0 | AL167: 0 | AM167: 0 | AN167: 0
B168: Energía | C168: Fuente móvil | D168: Combustión | E168: Combustible desconocido | F168: ='Alcance 3'!C31 -> Tipo de transporte público | G168: Movilidad de los trabajadores | H168: CAPV | I168: 3 | J168: ='Alcance 3'!D31 -> 0 | K168: ='Alcance 3'!E31 -> km*pasajero | M168: 1 | O168: 0 | P168: km*pasajero | Q168: =SUMIFS('Datos 1-Factores emisión'!$D$324:$D$353,'Datos 1-Factores emisión'!$B$324:$B$353,Cálculos!$F168,'Datos 1-Factores emisión'!$C$324:$C$353,Cálculos!Q$5) -> 0 | R168: =SUMIFS('Datos 1-Factores emisión'!$D$324:$D$353,'Datos 1-Factores emisión'!$B$324:$B$353,Cálculos!$F168,'Datos 1-Factores emisión'!$C$324:$C$353,Cálculos!R$5) -> 0 | S168: =SUMIFS('Datos 1-Factores emisión'!$D$324:$D$353,'Datos 1-Factores emisión'!$B$324:$B$353,Cálculos!$F168,'Datos 1-Factores emisión'!$C$324:$C$353,Cálculos!S$5) -> 0 | T168: 0 | U168: 0 | V168: 0 | W168: 0 | X168: 0 | Y168: 0 | Z168: 0 | AA168: 0 | AB168: ='Datos 2-Potenciales calent glob'!$D$6 -> 1 | AC168: ='Datos 2-Potenciales calent glob'!$D$31 -> 25 | AD168: ='Datos 2-Potenciales calent glob'!$D$32 -> 298 | AE168: =SUMIF('Datos 2-Potenciales calent glob'!$B$6:$B$56,Cálculos!E168,'Datos 2-Potenciales calent glob'!$D$6:$D$56) -> 0 | AF168: ='Datos 2-Potenciales calent glob'!$D$6 -> 1 | AG168: ='Datos 2-Potenciales calent glob'!$D$6 -> 1 | AH168: 0 | AI168: 0 | AJ168: 0 | AK168: 0 | AL168: 0 | AM168: 0 | AN168: 0
B169: Energía | C169: Fuente móvil | D169: Combustión | E169: ='Alcance 3'!D39 -> Tipo de propulsión | F169: ='Alcance 3'!C39 -> Tipo de vehículo | G169: Viajes de trabajo | H169: CAPV | I169: 3 | J169: ='Alcance 3'!E39 -> 0 | K169: ='Alcance 3'!F39 -> km | M169: 1 | O169: 0 | P169: km | Q169: =SUMIFS('Datos 1-Factores emisión'!$E$43:$E$309,'Datos 1-Factores emisión'!$B$43:$B$309,Cálculos!$F169,'Datos 1-Factores emisión'!$C$43:$C$309,Cálculos!$E169,'Datos 1-Factores emisión'!$D$43:$D$309,Cálculos!Q$5) -> 0 | R169: =SUMIFS('Datos 1-Factores emisión'!$E$43:$E$309,'Datos 1-Factores emisión'!$B$43:$B$309,Cálculos!$F169,'Datos 1-Factores emisión'!$C$43:$C$309,Cálculos!$E169,'Datos 1-Factores emisión'!$D$43:$D$309,Cálculos!R$5) -> 0 | S169: =SUMIFS('Datos 1-Factores emisión'!$E$43:$E$309,'Datos 1-Factores emisión'!$B$43:$B$309,Cálculos!$F169,'Datos 1-Factores emisión'!$C$43:$C$309,Cálculos!$E169,'Datos 1-Factores emisión'!$D$43:$D$309,Cálculos!S$5) -> 0 | T169: 0 | U169: 0 | V169: 0 | W169: 0 | X169: 0 | Y169: 0 | Z169: 0 | AA169: 0 | AB169: ='Datos 2-Potenciales calent glob'!$D$6 -> 1 | AC169: ='Datos 2-Potenciales calent glob'!$D$31 -> 25 | AD169: ='Datos 2-Potenciales calent glob'!$D$32 -> 298 | AE169: =SUMIF('Datos 2-Potenciales calent glob'!$B$6:$B$56,Cálculos!E169,'Datos 2-Potenciales calent glob'!$D$6:$D$56) -> 0 | AF169: ='Datos 2-Potenciales calent glob'!$D$6 -> 1 | AG169: ='Datos 2-Potenciales calent glob'!$D$6 -> 1 | AH169: 0 | AI169: 0 | AJ169: 0 | AK169: 0 | AL169: 0 | AM169: 0 | AN169: 0
B170: Energía | C170: Fuente móvil | D170: Combustión | E170: ='Alcance 3'!D40 -> Tipo de propulsión | F170: ='Alcance 3'!C40 -> Tipo de vehículo | G170: Viajes de trabajo | H170: CAPV | I170: 3 | J170: ='Alcance 3'!E40 -> 0 | K170: ='Alcance 3'!F40 -> km | M170: 1 | O170: 0 | P170: km | Q170: =SUMIFS('Datos 1-Factores emisión'!$E$43:$E$309,'Datos 1-Factores emisión'!$B$43:$B$309,Cálculos!$F170,'Datos 1-Factores emisión'!$C$43:$C$309,Cálculos!$E170,'Datos 1-Factores emisión'!$D$43:$D$309,Cálculos!Q$5) -> 0 | R170: =SUMIFS('Datos 1-Factores emisión'!$E$43:$E$309,'Datos 1-Factores emisión'!$B$43:$B$309,Cálculos!$F170,'Datos 1-Factores emisión'!$C$43:$C$309,Cálculos!$E170,'Datos 1-Factores emisión'!$D$43:$D$309,Cálculos!R$5) -> 0 | S170: =SUMIFS('Datos 1-Factores emisión'!$E$43:$E$309,'Datos 1-Factores emisión'!$B$43:$B$309,Cálculos!$F170,'Datos 1-Factores emisión'!$C$43:$C$309,Cálculos!$E170,'Datos 1-Factores emisión'!$D$43:$D$309,Cálculos!S$5) -> 0 | T170: 0 | U170: 0 | V170: 0 | W170: 0 | X170: 0 | Y170: 0 | Z170: 0 | AA170: 0 | AB170: ='Datos 2-Potenciales calent glob'!$D$6 -> 1 | AC170: ='Datos 2-Potenciales calent glob'!$D$31 -> 25 | AD170: ='Datos 2-Potenciales calent glob'!$D$32 -> 298 | AE170: =SUMIF('Datos 2-Potenciales calent glob'!$B$6:$B$56,Cálculos!E170,'Datos 2-Potenciales calent glob'!$D$6:$D$56) -> 0 | AF170: ='Datos 2-Potenciales calent glob'!$D$6 -> 1 | AG170: ='Datos 2-Potenciales calent glob'!$D$6 -> 1 | AH170: 0 | AI170: 0 | AJ170: 0 | AK170: 0 | AL170: 0 | AM170: 0 | AN170: 0
B171: Energía | C171: Fuente móvil | D171: Combustión | E171: ='Alcance 3'!D41 -> Tipo de propulsión | F171: ='Alcance 3'!C41 -> Tipo de vehículo | G171: Viajes de trabajo | H171: CAPV | I171: 3 | J171: ='Alcance 3'!E41 -> 0 | K171: ='Alcance 3'!F41 -> km | M171: 1 | O171: 0 | P171: km | Q171: =SUMIFS('Datos 1-Factores emisión'!$E$43:$E$309,'Datos 1-Factores emisión'!$B$43:$B$309,Cálculos!$F171,'Datos 1-Factores emisión'!$C$43:$C$309,Cálculos!$E171,'Datos 1-Factores emisión'!$D$43:$D$309,Cálculos!Q$5) -> 0 | R171: =SUMIFS('Datos 1-Factores emisión'!$E$43:$E$309,'Datos 1-Factores emisión'!$B$43:$B$309,Cálculos!$F171,'Datos 1-Factores emisión'!$C$43:$C$309,Cálculos!$E171,'Datos 1-Factores emisión'!$D$43:$D$309,Cálculos!R$5) -> 0 | S171: =SUMIFS('Datos 1-Factores emisión'!$E$43:$E$309,'Datos 1-Factores emisión'!$B$43:$B$309,Cálculos!$F171,'Datos 1-Factores emisión'!$C$43:$C$309,Cálculos!$E171,'Datos 1-Factores emisión'!$D$43:$D$309,Cálculos!S$5) -> 0 | T171: 0 | U171: 0 | V171: 0 | W171: 0 | X171: 0 | Y171: 0 | Z171: 0 | AA171: 0 | AB171: ='Datos 2-Potenciales calent glob'!$D$6 -> 1 | AC171: ='Datos 2-Potenciales calent glob'!$D$31 -> 25 | AD171: ='Datos 2-Potenciales calent glob'!$D$32 -> 298 | AE171: =SUMIF('Datos 2-Potenciales calent glob'!$B$6:$B$56,Cálculos!E171,'Datos 2-Potenciales calent glob'!$D$6:$D$56) -> 0 | AF171: ='Datos 2-Potenciales calent glob'!$D$6 -> 1 | AG171: ='Datos 2-Potenciales calent glob'!$D$6 -> 1 | AH171: 0 | AI171: 0 | AJ171: 0 | AK171: 0 | AL171: 0 | AM171: 0 | AN171: 0
B172: Energía | C172: Fuente móvil | D172: Combustión | E172: ='Alcance 3'!D42 -> Tipo de propulsión | F172: ='Alcance 3'!C42 -> Tipo de vehículo | G172: Viajes de trabajo | H172: CAPV | I172: 3 | J172: ='Alcance 3'!E42 -> 0 | K172: ='Alcance 3'!F42 -> km | M172: 1 | O172: 0 | P172: km | Q172: =SUMIFS('Datos 1-Factores emisión'!$E$43:$E$309,'Datos 1-Factores emisión'!$B$43:$B$309,Cálculos!$F172,'Datos 1-Factores emisión'!$C$43:$C$309,Cálculos!$E172,'Datos 1-Factores emisión'!$D$43:$D$309,Cálculos!Q$5) -> 0 | R172: =SUMIFS('Datos 1-Factores emisión'!$E$43:$E$309,'Datos 1-Factores emisión'!$B$43:$B$309,Cálculos!$F172,'Datos 1-Factores emisión'!$C$43:$C$309,Cálculos!$E172,'Datos 1-Factores emisión'!$D$43:$D$309,Cálculos!R$5) -> 0 | S172: =SUMIFS('Datos 1-Factores emisión'!$E$43:$E$309,'Datos 1-Factores emisión'!$B$43:$B$309,Cálculos!$F172,'Datos 1-Factores emisión'!$C$43:$C$309,Cálculos!$E172,'Datos 1-Factores emisión'!$D$43:$D$309,Cálculos!S$5) -> 0 | T172: 0 | U172: 0 | V172: 0 | W172: 0 | X172: 0 | Y172: 0 | Z172: 0 | AA172: 0 | AB172: ='Datos 2-Potenciales calent glob'!$D$6 -> 1 | AC172: ='Datos 2-Potenciales calent glob'!$D$31 -> 25 | AD172: ='Datos 2-Potenciales calent glob'!$D$32 -> 298 | AE172: =SUMIF('Datos 2-Potenciales calent glob'!$B$6:$B$56,Cálculos!E172,'Datos 2-Potenciales calent glob'!$D$6:$D$56) -> 0 | AF172: ='Datos 2-Potenciales calent glob'!$D$6 -> 1 | AG172: ='Datos 2-Potenciales calent glob'!$D$6 -> 1 | AH172: 0 | AI172: 0 | AJ172: 0 | AK172: 0 | AL172: 0 | AM172: 0 | AN172: 0
B173: Energía | C173: Fuente móvil | D173: Combustión | E173: ='Alcance 3'!D43 -> Tipo de propulsión | F173: ='Alcance 3'!C43 -> Tipo de vehículo | G173: Viajes de trabajo | H173: CAPV | I173: 3 | J173: ='Alcance 3'!E43 -> 0 | K173: ='Alcance 3'!F43 -> km | M173: 1 | O173: 0 | P173: km | Q173: =SUMIFS('Datos 1-Factores emisión'!$E$43:$E$309,'Datos 1-Factores emisión'!$B$43:$B$309,Cálculos!$F173,'Datos 1-Factores emisión'!$C$43:$C$309,Cálculos!$E173,'Datos 1-Factores emisión'!$D$43:$D$309,Cálculos!Q$5) -> 0 | R173: =SUMIFS('Datos 1-Factores emisión'!$E$43:$E$309,'Datos 1-Factores emisión'!$B$43:$B$309,Cálculos!$F173,'Datos 1-Factores emisión'!$C$43:$C$309,Cálculos!$E173,'Datos 1-Factores emisión'!$D$43:$D$309,Cálculos!R$5) -> 0 | S173: =SUMIFS('Datos 1-Factores emisión'!$E$43:$E$309,'Datos 1-Factores emisión'!$B$43:$B$309,Cálculos!$F173,'Datos 1-Factores emisión'!$C$43:$C$309,Cálculos!$E173,'Datos 1-Factores emisión'!$D$43:$D$309,Cálculos!S$5) -> 0 | T173: 0 | U173: 0 | V173: 0 | W173: 0 | X173: 0 | Y173: 0 | Z173: 0 | AA173: 0 | AB173: ='Datos 2-Potenciales calent glob'!$D$6 -> 1 | AC173: ='Datos 2-Potenciales calent glob'!$D$31 -> 25 | AD173: ='Datos 2-Potenciales calent glob'!$D$32 -> 298 | AE173: =SUMIF('Datos 2-Potenciales calent glob'!$B$6:$B$56,Cálculos!E173,'Datos 2-Potenciales calent glob'!$D$6:$D$56) -> 0 | AF173: ='Datos 2-Potenciales calent glob'!$D$6 -> 1 | AG173: ='Datos 2-Potenciales calent glob'!$D$6 -> 1 | AH173: 0 | AI173: 0 | AJ173: 0 | AK173: 0 | AL173: 0 | AM173: 0 | AN173: 0
B174: Energía | C174: Fuente móvil | D174: Combustión | E174: ='Alcance 3'!D44 -> Tipo de propulsión | F174: ='Alcance 3'!C44 -> Tipo de vehículo | G174: Viajes de trabajo | H174: CAPV | I174: 3 | J174: ='Alcance 3'!E44 -> 0 | K174: ='Alcance 3'!F44 -> km | M174: 1 | O174: 0 | P174: km | Q174: =SUMIFS('Datos 1-Factores emisión'!$E$43:$E$309,'Datos 1-Factores emisión'!$B$43:$B$309,Cálculos!$F174,'Datos 1-Factores emisión'!$C$43:$C$309,Cálculos!$E174,'Datos 1-Factores emisión'!$D$43:$D$309,Cálculos!Q$5) -> 0 | R174: =SUMIFS('Datos 1-Factores emisión'!$E$43:$E$309,'Datos 1-Factores emisión'!$B$43:$B$309,Cálculos!$F174,'Datos 1-Factores emisión'!$C$43:$C$309,Cálculos!$E174,'Datos 1-Factores emisión'!$D$43:$D$309,Cálculos!R$5) -> 0 | S174: =SUMIFS('Datos 1-Factores emisión'!$E$43:$E$309,'Datos 1-Factores emisión'!$B$43:$B$309,Cálculos!$F174,'Datos 1-Factores emisión'!$C$43:$C$309,Cálculos!$E174,'Datos 1-Factores emisión'!$D$43:$D$309,Cálculos!S$5) -> 0 | T174: 0 | U174: 0 | V174: 0 | W174: 0 | X174: 0 | Y174: 0 | Z174: 0 | AA174: 0 | AB174: ='Datos 2-Potenciales calent glob'!$D$6 -> 1 | AC174: ='Datos 2-Potenciales calent glob'!$D$31 -> 25 | AD174: ='Datos 2-Potenciales calent glob'!$D$32 -> 298 | AE174: =SUMIF('Datos 2-Potenciales calent glob'!$B$6:$B$56,Cálculos!E174,'Datos 2-Potenciales calent glob'!$D$6:$D$56) -> 0 | AF174: ='Datos 2-Potenciales calent glob'!$D$6 -> 1 | AG174: ='Datos 2-Potenciales calent glob'!$D$6 -> 1 | AH174: 0 | AI174: 0 | AJ174: 0 | AK174: 0 | AL174: 0 | AM174: 0 | AN174: 0
B175: Energía | C175: Fuente móvil | D175: Combustión | E175: ='Alcance 3'!D45 -> Tipo de propulsión | F175: ='Alcance 3'!C45 -> Tipo de vehículo | G175: Viajes de trabajo | H175: CAPV | I175: 3 | J175: ='Alcance 3'!E45 -> 0 | K175: ='Alcance 3'!F45 -> km | M175: 1 | O175: 0 | P175: km | Q175: =SUMIFS('Datos 1-Factores emisión'!$E$43:$E$309,'Datos 1-Factores emisión'!$B$43:$B$309,Cálculos!$F175,'Datos 1-Factores emisión'!$C$43:$C$309,Cálculos!$E175,'Datos 1-Factores emisión'!$D$43:$D$309,Cálculos!Q$5) -> 0 | R175: =SUMIFS('Datos 1-Factores emisión'!$E$43:$E$309,'Datos 1-Factores emisión'!$B$43:$B$309,Cálculos!$F175,'Datos 1-Factores emisión'!$C$43:$C$309,Cálculos!$E175,'Datos 1-Factores emisión'!$D$43:$D$309,Cálculos!R$5) -> 0 | S175: =SUMIFS('Datos 1-Factores emisión'!$E$43:$E$309,'Datos 1-Factores emisión'!$B$43:$B$309,Cálculos!$F175,'Datos 1-Factores emisión'!$C$43:$C$309,Cálculos!$E175,'Datos 1-Factores emisión'!$D$43:$D$309,Cálculos!S$5) -> 0 | T175: 0 | U175: 0 | V175: 0 | W175: 0 | X175: 0 | Y175: 0 | Z175: 0 | AA175: 0 | AB175: ='Datos 2-Potenciales calent glob'!$D$6 -> 1 | AC175: ='Datos 2-Potenciales calent glob'!$D$31 -> 25 | AD175: ='Datos 2-Potenciales calent glob'!$D$32 -> 298 | AE175: =SUMIF('Datos 2-Potenciales calent glob'!$B$6:$B$56,Cálculos!E175,'Datos 2-Potenciales calent glob'!$D$6:$D$56) -> 0 | AF175: ='Datos 2-Potenciales calent glob'!$D$6 -> 1 | AG175: ='Datos 2-Potenciales calent glob'!$D$6 -> 1 | AH175: 0 | AI175: 0 | AJ175: 0 | AK175: 0 | AL175: 0 | AM175: 0 | AN175: 0
